Workbook

Sheet orgs
B1: Id | C1: TqesId | D1: Pid | E1: Pids | F1: OrgType | G1: SD | H1: SD_ID | I1: UserPrefix | J1: Code | K1: UniqueCode | L1: FullName | M1: Name | N1: ShortName | O1: ShortName2 | P1: EducationStage | Q1: UrbanRuralType | R1: OrgFundSource | S1: Sort | T1: Address | U1: Remark | V1: Status | W1: TqesCode | X1: /* 机构 */
A2: =K2 -> A000 | B2: 1 | C2: 0 | D2: 0 | E2: [0], | F2: 1 | I2: A | J2: 000 | K2: =I2&RIGHT("000"&J2,3) -> A000 | L2: 渝北区教育委员会 | M2: 区教委 | N2: 区教委 | O2: 区教委 | P2: 0 | Q2: 0 | R2: 0 | S2: =B2*10 -> 10 | V2: 1 | X2: ="INSERT INTO sys_org(id, pid, pids, org_type, org_fund_source"&", education_stage, urban_rural_type, `code`, unique_code, full_name,"&" `name`, short_name, short_name2, tqes_id, tqes_code, `sort`, `status`, address, remark, create_sys_user_id, create_time, longitude, latitude, is_deleted) VALUES("&B2&", "&D2&", '"&E2&"', "&F2&", "&R2&", "&P2&", "&Q2&", '"&J2&"', '"&K2&"', '"&L2&"', '"&M2&"', '"&N2&"', '"&O2&"', "&C2&", '"&W2&"', "&S2&", "&V2&", '"&T2&"', '"&U2&"', 1, NOW(), 0, 0, 0);" -> INSERT INTO sys_org(id, pid, pids, org_type, org_fund_source, education_stage, urban_rural_type, `code`, unique_code, full_name, `name`, short_name, short_name2, tqes_id, tqes_code, `sort`, `status`, address, remark, create_sys_user_id, create_time, longitude, latitude, is_deleted) VALUES(1, 0, '[0],', 1, 0, 0, 0, '000', 'A000', '渝北区教育委员会', '区教委', '区教委', '区教委', 0, '', 10, 1, '', '', 1, NOW(), 0, 0, 0);
A3: A001 | B3: 2 | C3: 0 | D3: =$B$2 -> 1 | E3: =$E$2&"["&D3&"]," -> [0],[1], | F3: 1 | I3: A | J3: 001 | K3: A001 | L3: 管理机构 | M3: 管理机构 | N3: 管理机构 | O3: 管理机构 | P3: 0 | Q3: 0 | R3: 0 | S3: =B3*10 -> 20 | V3: 1 | X3: ="INSERT INTO sys_org(id, pid, pids, org_type, org_fund_source"&", education_stage, urban_rural_type, `code`, unique_code, full_name,"&" `name`, short_name, short_name2, tqes_id, tqes_code, `sort`, `status`, address, remark, create_sys_user_id, create_time, longitude, latitude, is_deleted) VALUES("&B3&", "&D3&", '"&E3&"', "&F3&", "&R3&", "&P3&", "&Q3&", '"&J3&"', '"&K3&"', '"&L3&"', '"&M3&"', '"&N3&"', '"&O3&"', "&C3&", '"&W3&"', "&S3&", "&V3&", '"&T3&"', '"&U3&"', 1, NOW(), 0, 0, 0);" -> INSERT INTO sys_org(id, pid, pids, org_type, org_fund_source, education_stage, urban_rural_type, `code`, unique_code, full_name, `name`, short_name, short_name2, tqes_id, tqes_code, `sort`, `status`, address, remark, create_sys_user_id, create_time, longitude, latitude, is_deleted) VALUES(2, 1, '[0],[1],', 1, 0, 0, 0, '001', 'A001', '管理机构', '管理机构', '管理机构', '管理机构', 0, '', 20, 1, '', '', 1, NOW(), 0, 0, 0);
A4: A002 | B4: 3 | C4: 0 | D4: =$B$3 -> 2 | E4: =$E$3&"["&D4&"]," -> [0],[1],[2], | F4: 1 | I4: A | J4: 002 | K4: A002 | L4: 重庆市渝北区教育评估与质量监测中心 | M4: 区教育评估监测中心 | N4: 评估监测中心 | O4: 监测中心 | P4: 0 | Q4: 0 | R4: 0 | S4: =B4*10 -> 30 | V4: 1 | X4: ="INSERT INTO sys_org(id, pid, pids, org_type, org_fund_source"&", education_stage, urban_rural_type, `code`, unique_code, full_name,"&" `name`, short_name, short_name2, tqes_id, tqes_code, `sort`, `status`, address, remark, create_sys_user_id, create_time, longitude, latitude, is_deleted) VALUES("&B4&", "&D4&", '"&E4&"', "&F4&", "&R4&", "&P4&", "&Q4&", '"&J4&"', '"&K4&"', '"&L4&"', '"&M4&"', '"&N4&"', '"&O4&"', "&C4&", '"&W4&"', "&S4&", "&V4&", '"&T4&"', '"&U4&"', 1, NOW(), 0, 0, 0);" -> INSERT INTO sys_org(id, pid, pids, org_type, org_fund_source, education_stage, urban_rural_type, `code`, unique_code, full_name, `name`, short_name, short_name2, tqes_id, tqes_code, `sort`, `status`, address, remark, create_sys_user_id, create_time, longitude, latitude, is_deleted) VALUES(3, 2, '[0],[1],[2],', 1, 0, 0, 0, '002', 'A002', '重庆市渝北区教育评估与质量监测中心', '区教育评估监测中心', '评估监测中心', '监测中心', 0, '', 30, 1, '', '', 1, NOW(), 0, 0, 0);
A5: A003 | B5: 4 | C5: 0 | D5: =$B$3 -> 2 | E5: =$E$3&"["&D5&"]," -> [0],[1],[2], | F5: 1 | I5: A | J5: 003 | K5: A003 | L5: 重庆市渝北区教师进修学院 | M5: 教师进修学院 | N5: 进修学院 | O5: 进修学院 | P5: 0 | Q5: 0 | R5: 0 | S5: 40 | V5: 1 | X5: INSERT INTO sys_org(id, pid, pids, org_type, org_fund_source, education_stage, urban_rural_type, `code`, unique_code, full_name, `name`, short_name, short_name2, tqes_id, tqes_code, `sort`, `status`, address, remark, create_sys_user_id, create_time, longitude, latitude, is_deleted) VALUES(4, 2, '[0],[1],[2],', 1, 0, 0, 0, '003', 'A003', '重庆市渝北区教师进修学院', '教师进修学院', '进修学院', '进修学院', 0, '', 40, 1, '', '', 1, NOW(), 0, 0, 0);
A6: A004 | B6: 5 | C6: 0 | D6: =$B$3 -> 2 | E6: =$E$3&"["&D6&"]," -> [0],[1],[2], | F6: 1 | I6: A | J6: 004 | K6: A004 | L6: 基础教育科 | M6: 基教科 | N6: 基教科 | O6: 基教科 | P6: 0 | Q6: 0 | R6: 0 | S6: 50 | V6: 1 | X6: INSERT INTO sys_org(id, pid, pids, org_type, org_fund_source, education_stage, urban_rural_type, `code`, unique_code, full_name, `name`, short_name, short_name2, tqes_id, tqes_code, `sort`, `status`, address, remark, create_sys_user_id, create_time, longitude, latitude, is_deleted) VALUES(5, 2, '[0],[1],[2],', 1, 0, 0, 0, '004', 'A004', '基础教育科', '基教科', '基教科', '基教科', 0, '', 50, 1, '', '', 1, NOW(), 0, 0, 0);
A7: A005 | B7: 6 | C7: 0 | D7: =$B$3 -> 2 | E7: =$E$3&"["&D7&"]," -> [0],[1],[2], | F7: 1 | I7: A | J7: 005 | K7: A005 | L7: 督导室 | M7: 督导室 | N7: 督导室 | O7: 督导室 | P7: 0 | Q7: 0 | R7: 0 | S7: 60 | V7: 1 | X7: INSERT INTO sys_org(id, pid, pids, org_type, org_fund_source, education_stage, urban_rural_type, `code`, unique_code, full_name, `name`, short_name, short_name2, tqes_id, tqes_code, `sort`, `status`, address, remark, create_sys_user_id, create_time, longitude, latitude, is_deleted) VALUES(6, 2, '[0],[1],[2],', 1, 0, 0, 0, '005', 'A005', '督导室', '督导室', '督导室', '督导室', 0, '', 60, 1, '', '', 1, NOW(), 0, 0, 0);
A9: =K9 -> D00 | B9: 7 | C9: 0 | D9: =$B$2 -> 1 | E9: =$E$2&"["&D9&"]," -> [0],[1], | F9: 2 | I9: D | J9: 000 | K9: =I9&RIGHT("000"&J9,2) -> D00 | L9: 学区 | M9: 学区 | N9: 学区 | O9: 学区 | P9: 0 | Q9: 0 | R9: 0 | S9: 70 | V9: 1 | X9: INSERT INTO sys_org(id, pid, pids, org_type, org_fund_source, education_stage, urban_rural_type, `code`, unique_code, full_name, `name`, short_name, short_name2, tqes_id, tqes_code, `sort`, `status`, address, remark, create_sys_user_id, create_time, longitude, latitude, is_deleted) VALUES(7, 1, '[0],[1],', 2, 0, 0, 0, '000', 'D00', '学区', '学区', '学区', '学区', 0, '', 70, 1, '', '', 1, NOW(), 0, 0, 0);
A10: D01 | B10: 8 | C10: 0 | D10: =$B$9 -> 7 | E10: =$E$9&"["&D10&"]," -> [0],[1],[7], | F10: 2 | I10: D | J10: 001 | K10: =I10&RIGHT("000"&J10,2) -> D01 | L10: 龙溪学区 | M10: 龙溪学区 | N10: 龙溪学区 | O10: 龙溪学区 | P10: 0 | Q10: 0 | R10: 0 | S10: =B10*10 -> 80 | V10: 1 | X10: ="INSERT INTO sys_org(id, pid, pids, org_type, org_fund_source"&", education_stage, urban_rural_type, `code`, unique_code, full_name,"&" `name`, short_name, short_name2, tqes_id, tqes_code, `sort`, `status`, address, remark, create_sys_user_id, create_time, longitude, latitude, is_deleted) VALUES("&B10&", "&D10&", '"&E10&"', "&F10&", "&R10&", "&P10&", "&Q10&", '"&J10&"', '"&K10&"', '"&L10&"', '"&M10&"', '"&N10&"', '"&O10&"', "&C10&", '"&W10&"', "&S10&", "&V10&", '"&T10&"', '"&U10&"', 1, NOW(), 0, 0, 0);" -> INSERT INTO sys_org(id, pid, pids, org_type, org_fund_source, education_stage, urban_rural_type, `code`, unique_code, full_name, `name`, short_name, short_name2, tqes_id, tqes_code, `sort`, `status`, address, remark, create_sys_user_id, create_time, longitude, latitude, is_deleted) VALUES(8, 7, '[0],[1],[7],', 2, 0, 0, 0, '001', 'D01', '龙溪学区', '龙溪学区', '龙溪学区', '龙溪学区', 0, '', 80, 1, '', '', 1, NOW(), 0, 0, 0);
A11: D02 | B11: 9 | C11: 0 | D11: =$B$9 -> 7 | E11: [0],[1],[7], | F11: 2 | I11: D | J11: 002 | K11: D02 | L11: 两路学区 | M11: 两路学区 | N11: 两路学区 | O11: 两路学区 | P11: 0 | Q11: 0 | R11: 0 | S11: 90 | V11: 1 | X11: INSERT INTO sys_org(id, pid, pids, org_type, org_fund_source, education_stage, urban_rural_type, `code`, unique_code, full_name, `name`, short_name, short_name2, tqes_id, tqes_code, `sort`, `status`, address, remark, create_sys_user_id, create_time, longitude, latitude, is_deleted) VALUES(9, 7, '[0],[1],[7],', 2, 0, 0, 0, '002', 'D02', '两路学区', '两路学区', '两路学区', '两路学区', 0, '', 90, 1, '', '', 1, NOW(), 0, 0, 0);
A12: D03 | B12: 10 | C12: 0 | D12: =$B$9 -> 7 | E12: [0],[1],[7], | F12: 2 | I12: D | J12: 003 | K12: D03 | L12: 回兴学区 | M12: 回兴学区 | N12: 回兴学区 | O12: 回兴学区 | P12: 0 | Q12: 0 | R12: 0 | S12: 100 | V12: 1 | X12: INSERT INTO sys_org(id, pid, pids, org_type, org_fund_source, education_stage, urban_rural_type, `code`, unique_code, full_name, `name`, short_name, short_name2, tqes_id, tqes_code, `sort`, `status`, address, remark, create_sys_user_id, create_time, longitude, latitude, is_deleted) VALUES(10, 7, '[0],[1],[7],', 2, 0, 0, 0, '003', 'D03', '回兴学区', '回兴学区', '回兴学区', '回兴学区', 0, '', 100, 1, '', '', 1, NOW(), 0, 0, 0);
A13: D04 | B13: 11 | C13: 0 | D13: =$B$9 -> 7 | E13: [0],[1],[7], | F13: 2 | I13: D | J13: 004 | K13: D04 | L13: 兴隆学区 | M13: 兴隆学区 | N13: 兴隆学区 | O13: 兴隆学区 | P13: 0 | Q13: 0 | R13: 0 | S13: 110 | V13: 1 | X13: INSERT INTO sys_org(id, pid, pids, org_type, org_fund_source, education_stage, urban_rural_type, `code`, unique_code, full_name, `name`, short_name, short_name2, tqes_id, tqes_code, `sort`, `status`, address, remark, create_sys_user_id, create_time, longitude, latitude, is_deleted) VALUES(11, 7, '[0],[1],[7],', 2, 0, 0, 0, '004', 'D04', '兴隆学区', '兴隆学区', '兴隆学区', '兴隆学区', 0, '', 110, 1, '', '', 1, NOW(), 0, 0, 0);
A14: D05 | B14: 12 | C14: 0 | D14: 7 | E14: [0],[1],[7], | F14: 2 | I14: D | J14: 005 | K14: D05 | L14: 石船学区 | M14: 石船学区 | N14: 石船学区 | O14: 石船学区 | P14: 0 | Q14: 0 | R14: 0 | S14: 120 | V14: 1 | X14: INSERT INTO sys_org(id, pid, pids, org_type, org_fund_source, education_stage, urban_rural_type, `code`, unique_code, full_name, `name`, short_name, short_name2, tqes_id, tqes_code, `sort`, `status`, address, remark, create_sys_user_id, create_time, longitude, latitude, is_deleted) VALUES(12, 7, '[0],[1],[7],', 2, 0, 0, 0, '005', 'D05', '石船学区', '石船学区', '石船学区', '石船学区', 0, '', 120, 1, '', '', 1, NOW(), 0, 0, 0);
A15: D06 | B15: 13 | C15: 0 | D15: 7 | E15: [0],[1],[7], | F15: 2 | I15: D | J15: 006 | K15: D06 | L15: 高完中学区 | M15: 高完中学区 | N15: 高完中学区 | O15: 高完中学区 | P15: 0 | Q15: 0 | R15: 0 | S15: 130 | V15: 1 | X15: INSERT INTO sys_org(id, pid, pids, org_type, org_fund_source, education_stage, urban_rural_type, `code`, unique_code, full_name, `name`, short_name, short_name2, tqes_id, tqes_code, `sort`, `status`, address, remark, create_sys_user_id, create_time, longitude, latitude, is_deleted) VALUES(13, 7, '[0],[1],[7],', 2, 0, 0, 0, '006', 'D06', '高完中学区', '高完中学区', '高完中学区', '高完中学区', 0, '', 130, 1, '', '', 1, NOW(), 0, 0, 0);
A17: Y0000 | B17: 100 | C17: 0 | D17: =$B$2 -> 1 | E17: =$E$2&"["&D17&"]," -> [0],[1], | F17: 3 | I17: Y | J17: 0000 | K17: =I17&RIGHT("000"&J17,4) -> Y0000 | L17: 学前 | M17: 学前 | N17: 学前 | O17: 学前 | P17: 0 | Q17: 0 | R17: 0 | S17: =B17*10 -> 1000 | V17: 1 | X17: ="INSERT INTO sys_org(id, pid, pids, org_type, org_fund_source"&", education_stage, urban_rural_type, `code`, unique_code, full_name,"&" `name`, short_name, short_name2, tqes_id, tqes_code, `sort`, `status`, address, remark, create_sys_user_id, create_time, longitude, latitude, is_deleted) VALUES("&B17&", "&D17&", '"&E17&"', "&F17&", "&R17&", "&P17&", "&Q17&", '"&J17&"', '"&K17&"', '"&L17&"', '"&M17&"', '"&N17&"', '"&O17&"', "&C17&", '"&W17&"', "&S17&", "&V17&", '"&T17&"', '"&U17&"', 1, NOW(), 0, 0, 0);" -> INSERT INTO sys_org(id, pid, pids, org_type, org_fund_source, education_stage, urban_rural_type, `code`, unique_code, full_name, `name`, short_name, short_name2, tqes_id, tqes_code, `sort`, `status`, address, remark, create_sys_user_id, create_time, longitude, latitude, is_deleted) VALUES(100, 1, '[0],[1],', 3, 0, 0, 0, '0000', 'Y0000', '学前', '学前', '学前', '学前', 0, '', 1000, 1, '', '', 1, NOW(), 0, 0, 0);
A18: Y0001 | B18: 101 | C18: 0 | D18: =$B$17 -> 100 | E18: =$E$17&"["&D18&"]," -> [0],[1],[100], | F18: 3 | G18: 龙溪 | H18: 8 | I18: Y | J18: 0001 | K18: =I18&RIGHT("000"&J18,4) -> Y0001 | L18: 重庆市渝北庆龄幼儿园 | M18: 庆龄幼儿园 | N18: 庆龄幼儿园 | O18: 庆龄幼儿园 | P18: 1 | Q18: 1 | R18: 1 | S18: =B18*10 -> 1010 | T18: 渝北区龙溪街道柳荫街42号 | U18: 学区：01龙溪学区，等级：示范，是否普惠园：是 | V18: 1 | X18: ="INSERT INTO sys_org(id, pid, pids, org_type, org_fund_source"&", education_stage, urban_rural_type, `code`, unique_code, full_name,"&" `name`, short_name, short_name2, tqes_id, tqes_code, `sort`, `status`, address, remark, create_sys_user_id, create_time, longitude, latitude, is_deleted) VALUES("&B18&", "&D18&", '"&E18&"', "&F18&", "&R18&", "&P18&", "&Q18&", '"&J18&"', '"&K18&"', '"&L18&"', '"&M18&"', '"&N18&"', '"&O18&"', "&C18&", '"&W18&"', "&S18&", "&V18&", '"&T18&"', '"&U18&"', 1, NOW(), 0, 0, 0);" -> INSERT INTO sys_org(id, pid, pids, org_type, org_fund_source, education_stage, urban_rural_type, `code`, unique_code, full_name, `name`, short_name, short_name2, tqes_id, tqes_code, `sort`, `status`, address, remark, create_sys_user_id, create_time, longitude, latitude, is_deleted) VALUES(101, 100, '[0],[1],[100],', 3, 1, 1, 1, '0001', 'Y0001', '重庆市渝北庆龄幼儿园', '庆龄幼儿园', '庆龄幼儿园', '庆龄幼儿园', 0, '', 1010, 1, '渝北区龙溪街道柳荫街42号', '学区：01龙溪学区，等级：示范，是否普惠园：是', 1, NOW(), 0, 0, 0);
A19: Y0002 | B19: 102 | C19: 0 | D19: =$B$17 -> 100 | E19: =$E$17&"["&D19&"]," -> [0],[1],[100], | F19: 3 | G19: 龙溪 | H19: 8 | I19: Y | J19: 0002 | K19: Y0002 | L19: 重庆市渝北区龙溪幼儿园 | M19: 龙溪幼儿园 | N19: 龙溪幼儿园 | O19: 龙溪幼儿园 | P19: 1 | Q19: 1 | R19: 1 | S19: 1020 | T19: 渝北区龙溪街道花卉东路20号公办 | U19: 学区：01龙溪学区，等级：一级，是否普惠园：是 | V19: 1 | X19: INSERT INTO sys_org(id, pid, pids, org_type, org_fund_source, education_stage, urban_rural_type, `code`, unique_code, full_name, `name`, short_name, short_name2, tqes_id, tqes_code, `sort`, `status`, address, remark, create_sys_user_id, create_time, longitude, latitude, is_deleted) VALUES(102, 100, '[0],[1],[100],', 3, 1, 1, 1, '0002', 'Y0002', '重庆市渝北区龙溪幼儿园', '龙溪幼儿园', '龙溪幼儿园', '龙溪幼儿园', 0, '', 1020, 1, '渝北区龙溪街道花卉东路20号公办', '学区：01龙溪学区，等级：一级，是否普惠园：是', 1, NOW(), 0, 0, 0);
A20: Y0003 | B20: 103 | C20: 0 | D20: 100 | E20: [0],[1],[100], | F20: 3 | G20: 龙溪 | H20: 8 | I20: Y | J20: 0003 | K20: Y0003 | L20: 重庆市渝北区龙溪小学附属幼儿园 | M20: 龙溪小学附属幼儿园 | N20: 龙溪小学附属幼儿园 | O20: 龙溪小学附属幼儿园 | P20: 1 | Q20: 1 | R20: 2 | S20: 1030 | T20: 渝北区龙溪街道金龙路121号 | U20: 学区：01龙溪学区，等级：二级，是否普惠园：是 | V20: 1 | X20: INSERT INTO sys_org(id, pid, pids, org_type, org_fund_source, education_stage, urban_rural_type, `code`, unique_code, full_name, `name`, short_name, short_name2, tqes_id, tqes_code, `sort`, `status`, address, remark, create_sys_user_id, create_time, longitude, latitude, is_deleted) VALUES(103, 100, '[0],[1],[100],', 3, 2, 1, 1, '0003', 'Y0003', '重庆市渝北区龙溪小学附属幼儿园', '龙溪小学附属幼儿园', '龙溪小学附属幼儿园', '龙溪小学附属幼儿园', 0, '', 1030, 1, '渝北区龙溪街道金龙路121号', '学区：01龙溪学区，等级：二级，是否普惠园：是', 1, NOW(), 0, 0, 0);
A21: Y0004 | B21: 104 | C21: 0 | D21: 100 | E21: [0],[1],[100], | F21: 3 | G21: 龙溪 | H21: 8 | I21: Y | J21: 0004 | K21: Y0004 | L21: 重庆市渝北长安锦绣实验小学校附属幼儿园 | M21: 安锦绣实验小学校附属幼儿园 | N21: 安锦绣实验小学校附属幼儿园 | O21: 安锦绣实验小学校附属幼儿园 | P21: 1 | Q21: 1 | R21: 2 | S21: 1040 | T21: 渝北区龙溪镇龙华大道91号 | U21: 学区：01龙溪学区，等级：二级，是否普惠园：是 | V21: 1 | X21: INSERT INTO sys_org(id, pid, pids, org_type, org_fund_source, education_stage, urban_rural_type, `code`, unique_code, full_name, `name`, short_name, short_name2, tqes_id, tqes_code, `sort`, `status`, address, remark, create_sys_user_id, create_time, longitude, latitude, is_deleted) VALUES(104, 100, '[0],[1],[100],', 3, 2, 1, 1, '0004', 'Y0004', '重庆市渝北长安锦绣实验小学校附属幼儿园', '安锦绣实验小学校附属幼儿园', '安锦绣实验小学校附属幼儿园', '安锦绣实验小学校附属幼儿园', 0, '', 1040, 1, '渝北区龙溪镇龙华大道91号', '学区：01龙溪学区，等级：二级，是否普惠园：是', 1, NOW(), 0, 0, 0);
A22: Y0005 | B22: 105 | C22: 0 | D22: 100 | E22: [0],[1],[100], | F22: 3 | G22: 龙溪 | H22: 8 | I22: Y | J22: 0005 | K22: Y0005 | L22: 重庆市渝北区龙湖南苑幼儿园 | M22: 龙湖南苑幼儿园 | N22: 龙湖南苑幼儿园 | O22: 龙湖南苑幼儿园 | P22: 1 | Q22: 1 | R22: 3 | S22: 1050 | T22: 渝北区龙溪街道新南路6号 | U22: 学区：01龙溪学区，等级：一级，是否普惠园：是 | V22: 1 | X22: INSERT INTO sys_org(id, pid, pids, org_type, org_fund_source, education_stage, urban_rural_type, `code`, unique_code, full_name, `name`, short_name, short_name2, tqes_id, tqes_code, `sort`, `status`, address, remark, create_sys_user_id, create_time, longitude, latitude, is_deleted) VALUES(105, 100, '[0],[1],[100],', 3, 3, 1, 1, '0005', 'Y0005', '重庆市渝北区龙湖南苑幼儿园', '龙湖南苑幼儿园', '龙湖南苑幼儿园', '龙湖南苑幼儿园', 0, '', 1050, 1, '渝北区龙溪街道新南路6号', '学区：01龙溪学区，等级：一级，是否普惠园：是', 1, NOW(), 0, 0, 0);
A23: Y0006 | B23: 106 | C23: 0 | D23: 100 | E23: [0],[1],[100], | F23: 3 | G23: 龙溪 | H23: 8 | I23: Y | J23: 0006 | K23: Y0006 | L23: 重庆市渝北区富悦阳光幼儿园 | M23: 富悦阳光幼儿园 | N23: 富悦阳光幼儿园 | O23: 富悦阳光幼儿园 | P23: 1 | Q23: 1 | R23: 3 | S23: 1060 | T23: 渝北区龙溪街道红石路3号 | U23: 学区：01龙溪学区，等级：一级，是否普惠园：是 | V23: 1 | X23: INSERT INTO sys_org(id, pid, pids, org_type, org_fund_source, education_stage, urban_rural_type, `code`, unique_code, full_name, `name`, short_name, short_name2, tqes_id, tqes_code, `sort`, `status`, address, remark, create_sys_user_id, create_time, longitude, latitude, is_deleted) VALUES(106, 100, '[0],[1],[100],', 3, 3, 1, 1, '0006', 'Y0006', '重庆市渝北区富悦阳光幼儿园', '富悦阳光幼儿园', '富悦阳光幼儿园', '富悦阳光幼儿园', 0, '', 1060, 1, '渝北区龙溪街道红石路3号', '学区：01龙溪学区，等级：一级，是否普惠园：是', 1, NOW(), 0, 0, 0);
A24: Y0007 | B24: 107 | C24: 0 | D24: 100 | E24: [0],[1],[100], | F24: 3 | G24: 龙溪 | H24: 8 | I24: Y | J24: 0007 | K24: Y0007 | L24: 重庆市渝北区百合林幼儿园 | M24: 百合林幼儿园 | N24: 百合林幼儿园 | O24: 百合林幼儿园 | P24: 1 | Q24: 1 | R24: 3 | S24: 1070 | T24: 渝北区龙溪街道龙华大道1891号附1号 | U24: 学区：01龙溪学区，等级：一级，是否普惠园：是 | V24: 1 | X24: INSERT INTO sys_org(id, pid, pids, org_type, org_fund_source, education_stage, urban_rural_type, `code`, unique_code, full_name, `name`, short_name, short_name2, tqes_id, tqes_code, `sort`, `status`, address, remark, create_sys_user_id, create_time, longitude, latitude, is_deleted) VALUES(107, 100, '[0],[1],[100],', 3, 3, 1, 1, '0007', 'Y0007', '重庆市渝北区百合林幼儿园', '百合林幼儿园', '百合林幼儿园', '百合林幼儿园', 0, '', 1070, 1, '渝北区龙溪街道龙华大道1891号附1号', '学区：01龙溪学区，等级：一级，是否普惠园：是', 1, NOW(), 0, 0, 0);
A25: Y0008 | B25: 108 | C25: 0 | D25: 100 | E25: [0],[1],[100], | F25: 3 | G25: 龙溪 | H25: 8 | I25: Y | J25: 0008 | K25: Y0008 | L25: 重庆市渝北区童话林幼儿园 | M25: 童话林幼儿园 | N25: 童话林幼儿园 | O25: 童话林幼儿园 | P25: 1 | Q25: 1 | R25: 3 | S25: 1080 | T25: 渝北区龙溪街道龙华大道1889号 | U25: 学区：01龙溪学区，等级：三级，是否普惠园：是 | V25: 1 | X25: INSERT INTO sys_org(id, pid, pids, org_type, org_fund_source, education_stage, urban_rural_type, `code`, unique_code, full_name, `name`, short_name, short_name2, tqes_id, tqes_code, `sort`, `status`, address, remark, create_sys_user_id, create_time, longitude, latitude, is_deleted) VALUES(108, 100, '[0],[1],[100],', 3, 3, 1, 1, '0008', 'Y0008', '重庆市渝北区童话林幼儿园', '童话林幼儿园', '童话林幼儿园', '童话林幼儿园', 0, '', 1080, 1, '渝北区龙溪街道龙华大道1889号', '学区：01龙溪学区，等级：三级，是否普惠园：是', 1, NOW(), 0, 0, 0);
A26: Y0009 | B26: 109 | C26: 0 | D26: 100 | E26: [0],[1],[100], | F26: 3 | G26: 龙溪 | H26: 8 | I26: Y | J26: 0009 | K26: Y0009 | L26: 重庆市渝北区龙溪新城幼儿园 | M26: 龙溪新城幼儿园 | N26: 龙溪新城幼儿园 | O26: 龙溪新城幼儿园 | P26: 1 | Q26: 1 | R26: 3 | S26: 1090 | T26: 渝北区龙溪街道花卉园西一路16号5-1-2 | U26: 学区：01龙溪学区，等级：三级，是否普惠园：是 | V26: 1 | X26: INSERT INTO sys_org(id, pid, pids, org_type, org_fund_source, education_stage, urban_rural_type, `code`, unique_code, full_name, `name`, short_name, short_name2, tqes_id, tqes_code, `sort`, `status`, address, remark, create_sys_user_id, create_time, longitude, latitude, is_deleted) VALUES(109, 100, '[0],[1],[100],', 3, 3, 1, 1, '0009', 'Y0009', '重庆市渝北区龙溪新城幼儿园', '龙溪新城幼儿园', '龙溪新城幼儿园', '龙溪新城幼儿园', 0, '', 1090, 1, '渝北区龙溪街道花卉园西一路16号5-1-2', '学区：01龙溪学区，等级：三级，是否普惠园：是', 1, NOW(), 0, 0, 0);
A27: Y0010 | B27: 110 | C27: 0 | D27: 100 | E27: [0],[1],[100], | F27: 3 | G27: 龙溪 | H27: 8 | I27: Y | J27: 0010 | K27: Y0010 | L27: 重庆市渝北区龙溪倚山幼儿园 | M27: 龙溪倚山幼儿园 | N27: 龙溪倚山幼儿园 | O27: 龙溪倚山幼儿园 | P27: 1 | Q27: 1 | R27: 3 | S27: 1100 | T27: 渝北区龙溪花卉园西四路82号 | U27: 学区：01龙溪学区，等级：三级，是否普惠园：是 | V27: 1 | X27: INSERT INTO sys_org(id, pid, pids, org_type, org_fund_source, education_stage, urban_rural_type, `code`, unique_code, full_name, `name`, short_name, short_name2, tqes_id, tqes_code, `sort`, `status`, address, remark, create_sys_user_id, create_time, longitude, latitude, is_deleted) VALUES(110, 100, '[0],[1],[100],', 3, 3, 1, 1, '0010', 'Y0010', '重庆市渝北区龙溪倚山幼儿园', '龙溪倚山幼儿园', '龙溪倚山幼儿园', '龙溪倚山幼儿园', 0, '', 1100, 1, '渝北区龙溪花卉园西四路82号', '学区：01龙溪学区，等级：三级，是否普惠园：是', 1, NOW(), 0, 0, 0);
A28: Y0011 | B28: 111 | C28: 0 | D28: 100 | E28: [0],[1],[100], | F28: 3 | G28: 龙溪 | H28: 8 | I28: Y | J28: 0011 | K28: Y0011 | L28: 重庆市渝北区龙溪天星幼儿园 | M28: 龙溪天星幼儿园 | N28: 龙溪天星幼儿园 | O28: 龙溪天星幼儿园 | P28: 1 | Q28: 1 | R28: 3 | S28: 1110 | T28: 渝北区龙溪花卉园西四路3号 | U28: 学区：01龙溪学区，等级：三级，是否普惠园：是 | V28: 1 | X28: INSERT INTO sys_org(id, pid, pids, org_type, org_fund_source, education_stage, urban_rural_type, `code`, unique_code, full_name, `name`, short_name, short_name2, tqes_id, tqes_code, `sort`, `status`, address, remark, create_sys_user_id, create_time, longitude, latitude, is_deleted) VALUES(111, 100, '[0],[1],[100],', 3, 3, 1, 1, '0011', 'Y0011', '重庆市渝北区龙溪天星幼儿园', '龙溪天星幼儿园', '龙溪天星幼儿园', '龙溪天星幼儿园', 0, '', 1110, 1, '渝北区龙溪花卉园西四路3号', '学区：01龙溪学区，等级：三级，是否普惠园：是', 1, NOW(), 0, 0, 0);
A29: Y0012 | B29: 112 | C29: 0 | D29: =$B$17 -> 100 | E29: [0],[1],[100], | F29: 3 | G29: 龙溪 | H29: 8 | I29: Y | J29: 0012 | K29: Y0012 | L29: 重庆市渝北区千里马幼儿园 | M29: 千里马幼儿园 | N29: 千里马幼儿园 | O29: 千里马幼儿园 | P29: 1 | Q29: 1 | R29: 3 | S29: 1120 | T29: 渝北区龙溪街道花卉东路黄金堡想小区1栋5单元 | U29: 学区：01龙溪学区，等级：三级，是否普惠园：是 | V29: 1 | X29: INSERT INTO sys_org(id, pid, pids, org_type, org_fund_source, education_stage, urban_rural_type, `code`, unique_code, full_name, `name`, short_name, short_name2, tqes_id, tqes_code, `sort`, `status`, address, remark, create_sys_user_id, create_time, longitude, latitude, is_deleted) VALUES(112, 100, '[0],[1],[100],', 3, 3, 1, 1, '0012', 'Y0012', '重庆市渝北区千里马幼儿园', '千里马幼儿园', '千里马幼儿园', '千里马幼儿园', 0, '', 1120, 1, '渝北区龙溪街道花卉东路黄金堡想小区1栋5单元', '学区：01龙溪学区，等级：三级，是否普惠园：是', 1, NOW(), 0, 0, 0);
A30: Y0013 | B30: 113 | C30: 0 | D30: 100 | E30: [0],[1],[100], | F30: 3 | G30: 龙溪 | H30: 8 | I30: Y | J30: 0013 | K30: Y0013 | L30: 重庆市渝北区龙溪明星幼儿园 | M30: 龙溪明星幼儿园 | N30: 龙溪明星幼儿园 | O30: 龙溪明星幼儿园 | P30: 1 | Q30: 1 | R30: 3 | S30: 1130 | T30: 渝北区龙溪武陵路154号 | U30: 学区：01龙溪学区，等级：三级，是否普惠园：是 | V30: 1 | X30: INSERT INTO sys_org(id, pid, pids, org_type, org_fund_source, education_stage, urban_rural_type, `code`, unique_code, full_name, `name`, short_name, short_name2, tqes_id, tqes_code, `sort`, `status`, address, remark, create_sys_user_id, create_time, longitude, latitude, is_deleted) VALUES(113, 100, '[0],[1],[100],', 3, 3, 1, 1, '0013', 'Y0013', '重庆市渝北区龙溪明星幼儿园', '龙溪明星幼儿园', '龙溪明星幼儿园', '龙溪明星幼儿园', 0, '', 1130, 1, '渝北区龙溪武陵路154号', '学区：01龙溪学区，等级：三级，是否普惠园：是', 1, NOW(), 0, 0, 0);
A31: Y0014 | B31: 114 | C31: 0 | D31: 100 | E31: [0],[1],[100], | F31: 3 | G31: 龙溪 | H31: 8 | I31: Y | J31: 0014 | K31: Y0014 | L31: 重庆市渝北区龙溪绿景幼儿园 | M31: 龙溪绿景幼儿园 | N31: 龙溪绿景幼儿园 | O31: 龙溪绿景幼儿园 | P31: 1 | Q31: 1 | R31: 3 | S31: 1140 | T31: 渝北区龙溪新牌坊一路139号北城绿景花园 | U31: 学区：01龙溪学区，等级：三级，是否普惠园：是 | V31: 1 | X31: INSERT INTO sys_org(id, pid, pids, org_type, org_fund_source, education_stage, urban_rural_type, `code`, unique_code, full_name, `name`, short_name, short_name2, tqes_id, tqes_code, `sort`, `status`, address, remark, create_sys_user_id, create_time, longitude, latitude, is_deleted) VALUES(114, 100, '[0],[1],[100],', 3, 3, 1, 1, '0014', 'Y0014', '重庆市渝北区龙溪绿景幼儿园', '龙溪绿景幼儿园', '龙溪绿景幼儿园', '龙溪绿景幼儿园', 0, '', 1140, 1, '渝北区龙溪新牌坊一路139号北城绿景花园', '学区：01龙溪学区，等级：三级，是否普惠园：是', 1, NOW(), 0, 0, 0);
A32: Y0015 | B32: 115 | C32: 0 | D32: 100 | E32: [0],[1],[100], | F32: 3 | G32: 龙溪 | H32: 8 | I32: Y | J32: 0015 | K32: Y0015 | L32: 重庆市渝北区龙溪北极星幼儿园 | M32: 龙溪北极星幼儿园 | N32: 龙溪北极星幼儿园 | O32: 龙溪北极星幼儿园 | P32: 1 | Q32: 1 | R32: 3 | S32: 1150 | T32: 渝北区龙溪街道红石路2号龙溪景苑 | U32: 学区：01龙溪学区，等级：三级，是否普惠园：是 | V32: 1 | X32: INSERT INTO sys_org(id, pid, pids, org_type, org_fund_source, education_stage, urban_rural_type, `code`, unique_code, full_name, `name`, short_name, short_name2, tqes_id, tqes_code, `sort`, `status`, address, remark, create_sys_user_id, create_time, longitude, latitude, is_deleted) VALUES(115, 100, '[0],[1],[100],', 3, 3, 1, 1, '0015', 'Y0015', '重庆市渝北区龙溪北极星幼儿园', '龙溪北极星幼儿园', '龙溪北极星幼儿园', '龙溪北极星幼儿园', 0, '', 1150, 1, '渝北区龙溪街道红石路2号龙溪景苑', '学区：01龙溪学区，等级：三级，是否普惠园：是', 1, NOW(), 0, 0, 0);
A33: Y0016 | B33: 116 | C33: 0 | D33: 100 | E33: [0],[1],[100], | F33: 3 | G33: 龙溪 | H33: 8 | I33: Y | J33: 0016 | K33: Y0016 | L33: 重庆市渝北区恒大上朗幼儿园 | M33: 恒大上朗幼儿园 | N33: 恒大上朗幼儿园 | O33: 恒大上朗幼儿园 | P33: 1 | Q33: 1 | R33: 3 | S33: 1160 | T33: 渝北区龙溪街道金顶路6号 | U33: 学区：01龙溪学区，等级：一级，是否普惠园：是 | V33: 1 | X33: INSERT INTO sys_org(id, pid, pids, org_type, org_fund_source, education_stage, urban_rural_type, `code`, unique_code, full_name, `name`, short_name, short_name2, tqes_id, tqes_code, `sort`, `status`, address, remark, create_sys_user_id, create_time, longitude, latitude, is_deleted) VALUES(116, 100, '[0],[1],[100],', 3, 3, 1, 1, '0016', 'Y0016', '重庆市渝北区恒大上朗幼儿园', '恒大上朗幼儿园', '恒大上朗幼儿园', '恒大上朗幼儿园', 0, '', 1160, 1, '渝北区龙溪街道金顶路6号', '学区：01龙溪学区，等级：一级，是否普惠园：是', 1, NOW(), 0, 0, 0);
A34: Y0017 | B34: 117 | C34: 0 | D34: 100 | E34: [0],[1],[100], | F34: 3 | G34: 龙溪 | H34: 8 | I34: Y | J34: 0017 | K34: Y0017 | L34: 重庆市渝北区笛迪香奈公馆幼儿园 | M34: 笛迪香奈公馆幼儿园 | N34: 笛迪香奈公馆幼儿园 | O34: 笛迪香奈公馆幼儿园 | P34: 1 | Q34: 1 | R34: 3 | S34: 1170 | T34: 渝北区龙溪街道新溉大道99号附2号 | U34: 学区：01龙溪学区，等级：一级，是否普惠园：是 | V34: 1 | X34: INSERT INTO sys_org(id, pid, pids, org_type, org_fund_source, education_stage, urban_rural_type, `code`, unique_code, full_name, `name`, short_name, short_name2, tqes_id, tqes_code, `sort`, `status`, address, remark, create_sys_user_id, create_time, longitude, latitude, is_deleted) VALUES(117, 100, '[0],[1],[100],', 3, 3, 1, 1, '0017', 'Y0017', '重庆市渝北区笛迪香奈公馆幼儿园', '笛迪香奈公馆幼儿园', '笛迪香奈公馆幼儿园', '笛迪香奈公馆幼儿园', 0, '', 1170, 1, '渝北区龙溪街道新溉大道99号附2号', '学区：01龙溪学区，等级：一级，是否普惠园：是', 1, NOW(), 0, 0, 0);
A35: Y0018 | B35: 118 | C35: 0 | D35: 100 | E35: [0],[1],[100], | F35: 3 | G35: 龙溪 | H35: 8 | I35: Y | J35: 0018 | K35: Y0018 | L35: 重庆市渝北区珊瑚乐学幼儿园 | M35: 珊瑚乐学幼儿园 | N35: 珊瑚乐学幼儿园 | O35: 珊瑚乐学幼儿园 | P35: 1 | Q35: 1 | R35: 3 | S35: 1180 | T35: 渝北区龙溪街道红金路37号 | U35: 学区：01龙溪学区，等级：一级，是否普惠园：是 | V35: 1 | X35: INSERT INTO sys_org(id, pid, pids, org_type, org_fund_source, education_stage, urban_rural_type, `code`, unique_code, full_name, `name`, short_name, short_name2, tqes_id, tqes_code, `sort`, `status`, address, remark, create_sys_user_id, create_time, longitude, latitude, is_deleted) VALUES(118, 100, '[0],[1],[100],', 3, 3, 1, 1, '0018', 'Y0018', '重庆市渝北区珊瑚乐学幼儿园', '珊瑚乐学幼儿园', '珊瑚乐学幼儿园', '珊瑚乐学幼儿园', 0, '', 1180, 1, '渝北区龙溪街道红金路37号', '学区：01龙溪学区，等级：一级，是否普惠园：是', 1, NOW(), 0, 0, 0);
A36: =K36 -> Y0019 | B36: 119 | C36: 0 | D36: 100 | E36: [0],[1],[100], | F36: 3 | G36: 龙溪 | H36: 8 | I36: Y | J36: 0019 | K36: Y0019 | L36: 重庆市渝北区阳光尚线幼儿园 | M36: 阳光尚线幼儿园 | N36: 阳光尚线幼儿园 | O36: 阳光尚线幼儿园 | P36: 1 | Q36: 1 | R36: 3 | S36: 1190 | T36: 渝北区龙溪街道丽园路20号 | U36: 学区：01龙溪学区，等级：一级，是否普惠园：是 | V36: 1 | X36: INSERT INTO sys_org(id, pid, pids, org_type, org_fund_source, education_stage, urban_rural_type, `code`, unique_code, full_name, `name`, short_name, short_name2, tqes_id, tqes_code, `sort`, `status`, address, remark, create_sys_user_id, create_time, longitude, latitude, is_deleted) VALUES(119, 100, '[0],[1],[100],', 3, 3, 1, 1, '0019', 'Y0019', '重庆市渝北区阳光尚线幼儿园', '阳光尚线幼儿园', '阳光尚线幼儿园', '阳光尚线幼儿园', 0, '', 1190, 1, '渝北区龙溪街道丽园路20号', '学区：01龙溪学区，等级：一级，是否普惠园：是', 1, NOW(), 0, 0, 0);
A37: Y0020 | B37: 120 | C37: 0 | D37: 100 | E37: [0],[1],[100], | F37: 3 | G37: 龙溪 | H37: 8 | I37: Y | J37: 0020 | K37: Y0020 | L37: 重庆市渝北区恒大吉的堡御都会幼儿园 | M37: 恒大吉的堡御都会幼儿园 | N37: 恒大吉的堡御都会幼儿园 | O37: 恒大吉的堡御都会幼儿园 | P37: 1 | Q37: 1 | R37: 3 | S37: 1200 | T37: 渝北区红锦支路20号 | U37: 学区：01龙溪学区，等级：一级，是否普惠园：是 | V37: 1 | X37: INSERT INTO sys_org(id, pid, pids, org_type, org_fund_source, education_stage, urban_rural_type, `code`, unique_code, full_name, `name`, short_name, short_name2, tqes_id, tqes_code, `sort`, `status`, address, remark, create_sys_user_id, create_time, longitude, latitude, is_deleted) VALUES(120, 100, '[0],[1],[100],', 3, 3, 1, 1, '0020', 'Y0020', '重庆市渝北区恒大吉的堡御都会幼儿园', '恒大吉的堡御都会幼儿园', '恒大吉的堡御都会幼儿园', '恒大吉的堡御都会幼儿园', 0, '', 1200, 1, '渝北区红锦支路20号', '学区：01龙溪学区，等级：一级，是否普惠园：是', 1, NOW(), 0, 0, 0);
A38: Y0021 | B38: 121 | C38: 0 | D38: 100 | E38: [0],[1],[100], | F38: 3 | G38: 龙溪 | H38: 8 | I38: Y | J38: 0021 | K38: Y0021 | L38: 重庆市渝北区华龙财信幼儿园 | M38: 华龙财信幼儿园 | N38: 华龙财信幼儿园 | O38: 华龙财信幼儿园 | P38: 1 | Q38: 1 | R38: 3 | S38: 1210 | T38: 渝北区龙溪街道金龙路265号 | U38: 学区：01龙溪学区，等级：一级，是否普惠园：否 | V38: 1 | X38: INSERT INTO sys_org(id, pid, pids, org_type, org_fund_source, education_stage, urban_rural_type, `code`, unique_code, full_name, `name`, short_name, short_name2, tqes_id, tqes_code, `sort`, `status`, address, remark, create_sys_user_id, create_time, longitude, latitude, is_deleted) VALUES(121, 100, '[0],[1],[100],', 3, 3, 1, 1, '0021', 'Y0021', '重庆市渝北区华龙财信幼儿园', '华龙财信幼儿园', '华龙财信幼儿园', '华龙财信幼儿园', 0, '', 1210, 1, '渝北区龙溪街道金龙路265号', '学区：01龙溪学区，等级：一级，是否普惠园：否', 1, NOW(), 0, 0, 0);
A39: Y0022 | B39: 122 | C39: 0 | D39: =$B$17 -> 100 | E39: [0],[1],[100], | F39: 3 | G39: 龙溪 | H39: 8 | I39: Y | J39: 0022 | K39: Y0022 | L39: 重庆市渝北区才儿坊国宾城幼儿园 | M39: 才儿坊国宾城幼儿园 | N39: 才儿坊国宾城幼儿园 | O39: 才儿坊国宾城幼儿园 | P39: 1 | Q39: 1 | R39: 3 | S39: 1220 | T39: 渝北区龙溪街道新溉大道18号 | U39: 学区：01龙溪学区，等级：一级，是否普惠园：否 | V39: 1 | X39: INSERT INTO sys_org(id, pid, pids, org_type, org_fund_source, education_stage, urban_rural_type, `code`, unique_code, full_name, `name`, short_name, short_name2, tqes_id, tqes_code, `sort`, `status`, address, remark, create_sys_user_id, create_time, longitude, latitude, is_deleted) VALUES(122, 100, '[0],[1],[100],', 3, 3, 1, 1, '0022', 'Y0022', '重庆市渝北区才儿坊国宾城幼儿园', '才儿坊国宾城幼儿园', '才儿坊国宾城幼儿园', '才儿坊国宾城幼儿园', 0, '', 1220, 1, '渝北区龙溪街道新溉大道18号', '学区：01龙溪学区，等级：一级，是否普惠园：否', 1, NOW(), 0, 0, 0);
A40: Y0023 | B40: 123 | C40: 0 | D40: 100 | E40: [0],[1],[100], | F40: 3 | G40: 龙溪 | H40: 8 | I40: Y | J40: 0023 | K40: Y0023 | L40: 重庆市渝北区龙溪阳光宝贝幼儿园 | M40: 龙溪阳光宝贝幼儿园 | N40: 龙溪阳光宝贝幼儿园 | O40: 龙溪阳光宝贝幼儿园 | P40: 1 | Q40: 1 | R40: 3 | S40: 1230 | T40: 渝北区龙溪加州城市花园阳光宝贝幼儿园 | U40: 学区：01龙溪学区，等级：一级，是否普惠园：是 | V40: 1 | X40: INSERT INTO sys_org(id, pid, pids, org_type, org_fund_source, education_stage, urban_rural_type, `code`, unique_code, full_name, `name`, short_name, short_name2, tqes_id, tqes_code, `sort`, `status`, address, remark, create_sys_user_id, create_time, longitude, latitude, is_deleted) VALUES(123, 100, '[0],[1],[100],', 3, 3, 1, 1, '0023', 'Y0023', '重庆市渝北区龙溪阳光宝贝幼儿园', '龙溪阳光宝贝幼儿园', '龙溪阳光宝贝幼儿园', '龙溪阳光宝贝幼儿园', 0, '', 1230, 1, '渝北区龙溪加州城市花园阳光宝贝幼儿园', '学区：01龙溪学区，等级：一级，是否普惠园：是', 1, NOW(), 0, 0, 0);
A41: Y0024 | B41: 124 | C41: 0 | D41: 100 | E41: [0],[1],[100], | F41: 3 | G41: 龙溪 | H41: 8 | I41: Y | J41: 0024 | K41: Y0024 | L41: 重庆市渝北区人和长安幼儿园 | M41: 人和长安幼儿园 | N41: 人和长安幼儿园 | O41: 人和长安幼儿园 | P41: 1 | Q41: 1 | R41: 3 | S41: 1240 | T41: 渝北区龙溪街道松牌路109号 | U41: 学区：01龙溪学区，等级：一级，是否普惠园：否 | V41: 1 | X41: INSERT INTO sys_org(id, pid, pids, org_type, org_fund_source, education_stage, urban_rural_type, `code`, unique_code, full_name, `name`, short_name, short_name2, tqes_id, tqes_code, `sort`, `status`, address, remark, create_sys_user_id, create_time, longitude, latitude, is_deleted) VALUES(124, 100, '[0],[1],[100],', 3, 3, 1, 1, '0024', 'Y0024', '重庆市渝北区人和长安幼儿园', '人和长安幼儿园', '人和长安幼儿园', '人和长安幼儿园', 0, '', 1240, 1, '渝北区龙溪街道松牌路109号', '学区：01龙溪学区，等级：一级，是否普惠园：否', 1, NOW(), 0, 0, 0);
A42: Y0025 | B42: 125 | C42: 0 | D42: 100 | E42: [0],[1],[100], | F42: 3 | G42: 龙溪 | H42: 8 | I42: Y | J42: 0025 | K42: Y0025 | L42: 重庆市渝北区龙溪英华贝贝幼儿园 | M42: 龙溪英华贝贝幼儿园 | N42: 龙溪英华贝贝幼儿园 | O42: 龙溪英华贝贝幼儿园 | P42: 1 | Q42: 1 | R42: 3 | S42: 1250 | T42: 渝北区佳园路31号 | U42: 学区：01龙溪学区，等级：一级，是否普惠园：否 | V42: 1 | X42: INSERT INTO sys_org(id, pid, pids, org_type, org_fund_source, education_stage, urban_rural_type, `code`, unique_code, full_name, `name`, short_name, short_name2, tqes_id, tqes_code, `sort`, `status`, address, remark, create_sys_user_id, create_time, longitude, latitude, is_deleted) VALUES(125, 100, '[0],[1],[100],', 3, 3, 1, 1, '0025', 'Y0025', '重庆市渝北区龙溪英华贝贝幼儿园', '龙溪英华贝贝幼儿园', '龙溪英华贝贝幼儿园', '龙溪英华贝贝幼儿园', 0, '', 1250, 1, '渝北区佳园路31号', '学区：01龙溪学区，等级：一级，是否普惠园：否', 1, NOW(), 0, 0, 0);
A43: Y0026 | B43: 126 | C43: 0 | D43: 100 | E43: [0],[1],[100], | F43: 3 | G43: 龙溪 | H43: 8 | I43: Y | J43: 0026 | K43: Y0026 | L43: 重庆市渝北区龙溪三色香山幼儿园 | M43: 龙溪三色香山幼儿园 | N43: 龙溪三色香山幼儿园 | O43: 龙溪三色香山幼儿园 | P43: 1 | Q43: 1 | R43: 3 | S43: 1260 | T43: 渝北区龙溪街新牌坊二路119号 | U43: 学区：01龙溪学区，等级：一级，是否普惠园：是 | V43: 1 | X43: INSERT INTO sys_org(id, pid, pids, org_type, org_fund_source, education_stage, urban_rural_type, `code`, unique_code, full_name, `name`, short_name, short_name2, tqes_id, tqes_code, `sort`, `status`, address, remark, create_sys_user_id, create_time, longitude, latitude, is_deleted) VALUES(126, 100, '[0],[1],[100],', 3, 3, 1, 1, '0026', 'Y0026', '重庆市渝北区龙溪三色香山幼儿园', '龙溪三色香山幼儿园', '龙溪三色香山幼儿园', '龙溪三色香山幼儿园', 0, '', 1260, 1, '渝北区龙溪街新牌坊二路119号', '学区：01龙溪学区，等级：一级，是否普惠园：是', 1, NOW(), 0, 0, 0);
A44: Y0027 | B44: 127 | C44: 0 | D44: 100 | E44: [0],[1],[100], | F44: 3 | G44: 龙溪 | H44: 8 | I44: Y | J44: 0027 | K44: Y0027 | L44: 重庆市渝北区龙溪金龙幼儿园 | M44: 龙溪金龙幼儿园 | N44: 龙溪金龙幼儿园 | O44: 龙溪金龙幼儿园 | P44: 1 | Q44: 1 | R44: 3 | S44: 1270 | T44: 渝北区龙溪金龙路75号 | U44: 学区：01龙溪学区，等级：二级，是否普惠园：否 | V44: 1 | X44: INSERT INTO sys_org(id, pid, pids, org_type, org_fund_source, education_stage, urban_rural_type, `code`, unique_code, full_name, `name`, short_name, short_name2, tqes_id, tqes_code, `sort`, `status`, address, remark, create_sys_user_id, create_time, longitude, latitude, is_deleted) VALUES(127, 100, '[0],[1],[100],', 3, 3, 1, 1, '0027', 'Y0027', '重庆市渝北区龙溪金龙幼儿园', '龙溪金龙幼儿园', '龙溪金龙幼儿园', '龙溪金龙幼儿园', 0, '', 1270, 1, '渝北区龙溪金龙路75号', '学区：01龙溪学区，等级：二级，是否普惠园：否', 1, NOW(), 0, 0, 0);
A45: Y0028 | B45: 128 | C45: 0 | D45: 100 | E45: [0],[1],[100], | F45: 3 | G45: 龙溪 | H45: 8 | I45: Y | J45: 0028 | K45: Y0028 | L45: 重庆市渝北区龙溪林璘幼儿园 | M45: 龙溪林璘幼儿园 | N45: 龙溪林璘幼儿园 | O45: 龙溪林璘幼儿园 | P45: 1 | Q45: 1 | R45: 3 | S45: 1280 | T45: 渝北区龙溪武陵路93号 | U45: 学区：01龙溪学区，等级：二级，是否普惠园：否 | V45: 1 | X45: INSERT INTO sys_org(id, pid, pids, org_type, org_fund_source, education_stage, urban_rural_type, `code`, unique_code, full_name, `name`, short_name, short_name2, tqes_id, tqes_code, `sort`, `status`, address, remark, create_sys_user_id, create_time, longitude, latitude, is_deleted) VALUES(128, 100, '[0],[1],[100],', 3, 3, 1, 1, '0028', 'Y0028', '重庆市渝北区龙溪林璘幼儿园', '龙溪林璘幼儿园', '龙溪林璘幼儿园', '龙溪林璘幼儿园', 0, '', 1280, 1, '渝北区龙溪武陵路93号', '学区：01龙溪学区，等级：二级，是否普惠园：否', 1, NOW(), 0, 0, 0);
A46: Y0029 | B46: 129 | C46: 0 | D46: 100 | E46: [0],[1],[100], | F46: 3 | G46: 龙溪 | H46: 8 | I46: Y | J46: 0029 | K46: Y0029 | L46: 重庆市渝北区爱贝贝幼儿园 | M46: 爱贝贝幼儿园 | N46: 爱贝贝幼儿园 | O46: 爱贝贝幼儿园 | P46: 1 | Q46: 1 | R46: 3 | S46: 1290 | T46: 渝北区龙溪镇镇武陵路209号 | U46: 学区：01龙溪学区，等级：二级，是否普惠园：否 | V46: 1 | X46: INSERT INTO sys_org(id, pid, pids, org_type, org_fund_source, education_stage, urban_rural_type, `code`, unique_code, full_name, `name`, short_name, short_name2, tqes_id, tqes_code, `sort`, `status`, address, remark, create_sys_user_id, create_time, longitude, latitude, is_deleted) VALUES(129, 100, '[0],[1],[100],', 3, 3, 1, 1, '0029', 'Y0029', '重庆市渝北区爱贝贝幼儿园', '爱贝贝幼儿园', '爱贝贝幼儿园', '爱贝贝幼儿园', 0, '', 1290, 1, '渝北区龙溪镇镇武陵路209号', '学区：01龙溪学区，等级：二级，是否普惠园：否', 1, NOW(), 0, 0, 0);
A47: Y0030 | B47: 130 | C47: 0 | D47: 100 | E47: [0],[1],[100], | F47: 3 | G47: 龙溪 | H47: 8 | I47: Y | J47: 0030 | K47: Y0030 | L47: 重庆市渝北区龙溪培正逗点幼儿园 | M47: 龙溪培正逗点幼儿园 | N47: 龙溪培正逗点幼儿园 | O47: 龙溪培正逗点幼儿园 | P47: 1 | Q47: 1 | R47: 3 | S47: 1300 | T47: 渝北区新南路6号 | U47: 学区：01龙溪学区，等级：三级，是否普惠园：否 | V47: 1 | X47: INSERT INTO sys_org(id, pid, pids, org_type, org_fund_source, education_stage, urban_rural_type, `code`, unique_code, full_name, `name`, short_name, short_name2, tqes_id, tqes_code, `sort`, `status`, address, remark, create_sys_user_id, create_time, longitude, latitude, is_deleted) VALUES(130, 100, '[0],[1],[100],', 3, 3, 1, 1, '0030', 'Y0030', '重庆市渝北区龙溪培正逗点幼儿园', '龙溪培正逗点幼儿园', '龙溪培正逗点幼儿园', '龙溪培正逗点幼儿园', 0, '', 1300, 1, '渝北区新南路6号', '学区：01龙溪学区，等级：三级，是否普惠园：否', 1, NOW(), 0, 0, 0);
A48: Y0031 | B48: 131 | C48: 0 | D48: 100 | E48: [0],[1],[100], | F48: 3 | G48: 龙溪 | H48: 8 | I48: Y | J48: 0031 | K48: Y0031 | L48: 重庆市渝北区冉家坝幼儿园 | M48: 冉家坝幼儿园 | N48: 冉家坝幼儿园 | O48: 冉家坝幼儿园 | P48: 1 | Q48: 1 | R48: 1 | S48: 1310 | T48: 渝北区龙山街道松石支路49号 | U48: 学区：01龙溪学区，等级：一级，是否普惠园：是 | V48: 1 | X48: INSERT INTO sys_org(id, pid, pids, org_type, org_fund_source, education_stage, urban_rural_type, `code`, unique_code, full_name, `name`, short_name, short_name2, tqes_id, tqes_code, `sort`, `status`, address, remark, create_sys_user_id, create_time, longitude, latitude, is_deleted) VALUES(131, 100, '[0],[1],[100],', 3, 1, 1, 1, '0031', 'Y0031', '重庆市渝北区冉家坝幼儿园', '冉家坝幼儿园', '冉家坝幼儿园', '冉家坝幼儿园', 0, '', 1310, 1, '渝北区龙山街道松石支路49号', '学区：01龙溪学区，等级：一级，是否普惠园：是', 1, NOW(), 0, 0, 0);
A49: Y0032 | B49: 132 | C49: 0 | D49: =$B$17 -> 100 | E49: [0],[1],[100], | F49: 3 | G49: 龙溪 | H49: 8 | I49: Y | J49: 0032 | K49: Y0032 | L49: 重庆市渝北区冉家坝幼儿园榆溪园 | M49: 冉家坝幼儿园榆溪园 | N49: 冉家坝幼儿园榆溪园 | O49: 冉家坝幼儿园榆溪园 | P49: 1 | Q49: 1 | R49: 1 | S49: 1320 | T49: 渝北区龙山街道福康路40号 | U49: 学区：01龙溪学区，等级：预一级，是否普惠园：是 | V49: 1 | X49: INSERT INTO sys_org(id, pid, pids, org_type, org_fund_source, education_stage, urban_rural_type, `code`, unique_code, full_name, `name`, short_name, short_name2, tqes_id, tqes_code, `sort`, `status`, address, remark, create_sys_user_id, create_time, longitude, latitude, is_deleted) VALUES(132, 100, '[0],[1],[100],', 3, 1, 1, 1, '0032', 'Y0032', '重庆市渝北区冉家坝幼儿园榆溪园', '冉家坝幼儿园榆溪园', '冉家坝幼儿园榆溪园', '冉家坝幼儿园榆溪园', 0, '', 1320, 1, '渝北区龙山街道福康路40号', '学区：01龙溪学区，等级：预一级，是否普惠园：是', 1, NOW(), 0, 0, 0);
A50: Y0033 | B50: 133 | C50: 0 | D50: 100 | E50: [0],[1],[100], | F50: 3 | G50: 龙溪 | H50: 8 | I50: Y | J50: 0033 | K50: =I50&RIGHT("000"&J50,4) -> Y0033 | L50: 重庆市渝北区渝开学校附属幼儿园 | M50: 渝开学校附属幼儿园 | N50: 渝开学校附属幼儿园 | O50: 渝开学校附属幼儿园 | P50: 1 | Q50: 1 | R50: 2 | S50: 1330 | T50: 渝北区龙山街道龙脊路150号 | U50: 学区：01龙溪学区，等级：一级，是否普惠园：是 | V50: 1 | X50: ="INSERT INTO sys_org(id, pid, pids, org_type, org_fund_source"&", education_stage, urban_rural_type, `code`, unique_code, full_name,"&" `name`, short_name, short_name2, tqes_id, tqes_code, `sort`, `status`, address, remark, create_sys_user_id, create_time, longitude, latitude, is_deleted) VALUES("&B50&", "&D50&", '"&E50&"', "&F50&", "&R50&", "&P50&", "&Q50&", '"&J50&"', '"&K50&"', '"&L50&"', '"&M50&"', '"&N50&"', '"&O50&"', "&C50&", '"&W50&"', "&S50&", "&V50&", '"&T50&"', '"&U50&"', 1, NOW(), 0, 0, 0);" -> INSERT INTO sys_org(id, pid, pids, org_type, org_fund_source, education_stage, urban_rural_type, `code`, unique_code, full_name, `name`, short_name, short_name2, tqes_id, tqes_code, `sort`, `status`, address, remark, create_sys_user_id, create_time, longitude, latitude, is_deleted) VALUES(133, 100, '[0],[1],[100],', 3, 2, 1, 1, '0033', 'Y0033', '重庆市渝北区渝开学校附属幼儿园', '渝开学校附属幼儿园', '渝开学校附属幼儿园', '渝开学校附属幼儿园', 0, '', 1330, 1, '渝北区龙山街道龙脊路150号', '学区：01龙溪学区，等级：一级，是否普惠园：是', 1, NOW(), 0, 0, 0);
A51: Y0034 | B51: 134 | C51: 0 | D51: 100 | E51: =$E$17&"["&D51&"]," -> [0],[1],[100], | F51: 3 | G51: 龙溪 | H51: 8 | I51: Y | J51: 0034 | K51: Y0034 | L51: 重庆市渝北区龙山小学校附属幼儿园 | M51: 龙山小学校附属幼儿园 | N51: 龙山小学校附属幼儿园 | O51: 龙山小学校附属幼儿园 | P51: 1 | Q51: 1 | R51: 2 | S51: 1340 | T51: 渝北区景辉路6号 | U51: 学区：01龙溪学区，等级：二级，是否普惠园：是 | V51: 1 | X51: INSERT INTO sys_org(id, pid, pids, org_type, org_fund_source, education_stage, urban_rural_type, `code`, unique_code, full_name, `name`, short_name, short_name2, tqes_id, tqes_code, `sort`, `status`, address, remark, create_sys_user_id, create_time, longitude, latitude, is_deleted) VALUES(134, 100, '[0],[1],[100],', 3, 2, 1, 1, '0034', 'Y0034', '重庆市渝北区龙山小学校附属幼儿园', '龙山小学校附属幼儿园', '龙山小学校附属幼儿园', '龙山小学校附属幼儿园', 0, '', 1340, 1, '渝北区景辉路6号', '学区：01龙溪学区，等级：二级，是否普惠园：是', 1, NOW(), 0, 0, 0);
A52: Y0035 | B52: 135 | C52: 0 | D52: 100 | E52: [0],[1],[100], | F52: 3 | G52: 龙溪 | H52: 8 | I52: Y | J52: 0035 | K52: Y0035 | L52: 重庆市渝北区花园小学附属幼儿园 | M52: 花园小学附属幼儿园 | N52: 花园小学附属幼儿园 | O52: 花园小学附属幼儿园 | P52: 1 | Q52: 1 | R52: 2 | S52: 1350 | T52: 渝北区龙脊路49号 | U52: 学区：01龙溪学区，等级：二级，是否普惠园：是 | V52: 1 | X52: INSERT INTO sys_org(id, pid, pids, org_type, org_fund_source, education_stage, urban_rural_type, `code`, unique_code, full_name, `name`, short_name, short_name2, tqes_id, tqes_code, `sort`, `status`, address, remark, create_sys_user_id, create_time, longitude, latitude, is_deleted) VALUES(135, 100, '[0],[1],[100],', 3, 2, 1, 1, '0035', 'Y0035', '重庆市渝北区花园小学附属幼儿园', '花园小学附属幼儿园', '花园小学附属幼儿园', '花园小学附属幼儿园', 0, '', 1350, 1, '渝北区龙脊路49号', '学区：01龙溪学区，等级：二级，是否普惠园：是', 1, NOW(), 0, 0, 0);
A53: Y0036 | B53: 136 | C53: 0 | D53: 100 | E53: [0],[1],[100], | F53: 3 | G53: 龙溪 | H53: 8 | I53: Y | J53: 0036 | K53: Y0036 | L53: 重庆市渝北区东和春天实验学校附属幼儿园 | M53: 东和春天实验学校附属幼儿园 | N53: 东和春天实验学校附属幼儿园 | O53: 东和春天实验学校附属幼儿园 | P53: 1 | Q53: 1 | R53: 2 | S53: 1360 | T53: 渝北区龙山街道松石支北路269号附40号 | U53: 学区：01龙溪学区，等级：二级，是否普惠园：是 | V53: 1 | X53: INSERT INTO sys_org(id, pid, pids, org_type, org_fund_source, education_stage, urban_rural_type, `code`, unique_code, full_name, `name`, short_name, short_name2, tqes_id, tqes_code, `sort`, `status`, address, remark, create_sys_user_id, create_time, longitude, latitude, is_deleted) VALUES(136, 100, '[0],[1],[100],', 3, 2, 1, 1, '0036', 'Y0036', '重庆市渝北区东和春天实验学校附属幼儿园', '东和春天实验学校附属幼儿园', '东和春天实验学校附属幼儿园', '东和春天实验学校附属幼儿园', 0, '', 1360, 1, '渝北区龙山街道松石支北路269号附40号', '学区：01龙溪学区，等级：二级，是否普惠园：是', 1, NOW(), 0, 0, 0);
A54: Y0037 | B54: 137 | C54: 0 | D54: 100 | E54: [0],[1],[100], | F54: 3 | G54: 龙溪 | H54: 8 | I54: Y | J54: 0037 | K54: Y0037 | L54: 重庆市渝北区嘟嘟乐幼儿园 | M54: 嘟嘟乐幼儿园 | N54: 嘟嘟乐幼儿园 | O54: 嘟嘟乐幼儿园 | P54: 1 | Q54: 1 | R54: 3 | S54: 1370 | T54: 渝北区龙山街道龙山路355号 | U54: 学区：01龙溪学区，等级：一级，是否普惠园：是 | V54: 1 | X54: INSERT INTO sys_org(id, pid, pids, org_type, org_fund_source, education_stage, urban_rural_type, `code`, unique_code, full_name, `name`, short_name, short_name2, tqes_id, tqes_code, `sort`, `status`, address, remark, create_sys_user_id, create_time, longitude, latitude, is_deleted) VALUES(137, 100, '[0],[1],[100],', 3, 3, 1, 1, '0037', 'Y0037', '重庆市渝北区嘟嘟乐幼儿园', '嘟嘟乐幼儿园', '嘟嘟乐幼儿园', '嘟嘟乐幼儿园', 0, '', 1370, 1, '渝北区龙山街道龙山路355号', '学区：01龙溪学区，等级：一级，是否普惠园：是', 1, NOW(), 0, 0, 0);
A55: Y0038 | B55: 138 | C55: 0 | D55: 100 | E55: [0],[1],[100], | F55: 3 | G55: 龙溪 | H55: 8 | I55: Y | J55: 0038 | K55: Y0038 | L55: 重庆市渝北区城市理想幼儿园 | M55: 城市理想幼儿园 | N55: 城市理想幼儿园 | O55: 城市理想幼儿园 | P55: 1 | Q55: 1 | R55: 3 | S55: 1380 | T55: 渝北区龙山街道余松一支路15号 | U55: 学区：01龙溪学区，等级：一级，是否普惠园：是 | V55: 1 | X55: INSERT INTO sys_org(id, pid, pids, org_type, org_fund_source, education_stage, urban_rural_type, `code`, unique_code, full_name, `name`, short_name, short_name2, tqes_id, tqes_code, `sort`, `status`, address, remark, create_sys_user_id, create_time, longitude, latitude, is_deleted) VALUES(138, 100, '[0],[1],[100],', 3, 3, 1, 1, '0038', 'Y0038', '重庆市渝北区城市理想幼儿园', '城市理想幼儿园', '城市理想幼儿园', '城市理想幼儿园', 0, '', 1380, 1, '渝北区龙山街道余松一支路15号', '学区：01龙溪学区，等级：一级，是否普惠园：是', 1, NOW(), 0, 0, 0);
A56: Y0039 | B56: 139 | C56: 0 | D56: 100 | E56: [0],[1],[100], | F56: 3 | G56: 龙溪 | H56: 8 | I56: Y | J56: 0039 | K56: Y0039 | L56: 重庆市渝北区开心贝贝幼儿园 | M56: 开心贝贝幼儿园 | N56: 开心贝贝幼儿园 | O56: 开心贝贝幼儿园 | P56: 1 | Q56: 1 | R56: 3 | S56: 1390 | T56: 渝北区冉家坝龙山大道135号 | U56: 学区：01龙溪学区，等级：一级，是否普惠园：是 | V56: 1 | X56: INSERT INTO sys_org(id, pid, pids, org_type, org_fund_source, education_stage, urban_rural_type, `code`, unique_code, full_name, `name`, short_name, short_name2, tqes_id, tqes_code, `sort`, `status`, address, remark, create_sys_user_id, create_time, longitude, latitude, is_deleted) VALUES(139, 100, '[0],[1],[100],', 3, 3, 1, 1, '0039', 'Y0039', '重庆市渝北区开心贝贝幼儿园', '开心贝贝幼儿园', '开心贝贝幼儿园', '开心贝贝幼儿园', 0, '', 1390, 1, '渝北区冉家坝龙山大道135号', '学区：01龙溪学区，等级：一级，是否普惠园：是', 1, NOW(), 0, 0, 0);
A57: Y0040 | B57: 140 | C57: 0 | D57: 100 | E57: [0],[1],[100], | F57: 3 | G57: 龙溪 | H57: 8 | I57: Y | J57: 0040 | K57: Y0040 | L57: 重庆市渝北区龙湖紫都城幼儿园 | M57: 龙湖紫都城幼儿园 | N57: 龙湖紫都城幼儿园 | O57: 龙湖紫都城幼儿园 | P57: 1 | Q57: 1 | R57: 3 | S57: 1400 | T57: 渝北区龙山街道余松一支路6号 | U57: 学区：01龙溪学区，等级：一级，是否普惠园：是 | V57: 1 | X57: INSERT INTO sys_org(id, pid, pids, org_type, org_fund_source, education_stage, urban_rural_type, `code`, unique_code, full_name, `name`, short_name, short_name2, tqes_id, tqes_code, `sort`, `status`, address, remark, create_sys_user_id, create_time, longitude, latitude, is_deleted) VALUES(140, 100, '[0],[1],[100],', 3, 3, 1, 1, '0040', 'Y0040', '重庆市渝北区龙湖紫都城幼儿园', '龙湖紫都城幼儿园', '龙湖紫都城幼儿园', '龙湖紫都城幼儿园', 0, '', 1400, 1, '渝北区龙山街道余松一支路6号', '学区：01龙溪学区，等级：一级，是否普惠园：是', 1, NOW(), 0, 0, 0);
A58: Y0041 | B58: 141 | C58: 0 | D58: 100 | E58: [0],[1],[100], | F58: 3 | G58: 龙溪 | H58: 8 | I58: Y | J58: 0041 | K58: Y0041 | L58: 重庆市渝北区世博爱幼儿园 | M58: 世博爱幼儿园 | N58: 世博爱幼儿园 | O58: 世博爱幼儿园 | P58: 1 | Q58: 1 | R58: 3 | S58: 1410 | T58: 渝北区新南路388号 | U58: 学区：01龙溪学区，等级：一级，是否普惠园：是 | V58: 1 | X58: INSERT INTO sys_org(id, pid, pids, org_type, org_fund_source, education_stage, urban_rural_type, `code`, unique_code, full_name, `name`, short_name, short_name2, tqes_id, tqes_code, `sort`, `status`, address, remark, create_sys_user_id, create_time, longitude, latitude, is_deleted) VALUES(141, 100, '[0],[1],[100],', 3, 3, 1, 1, '0041', 'Y0041', '重庆市渝北区世博爱幼儿园', '世博爱幼儿园', '世博爱幼儿园', '世博爱幼儿园', 0, '', 1410, 1, '渝北区新南路388号', '学区：01龙溪学区，等级：一级，是否普惠园：是', 1, NOW(), 0, 0, 0);
A59: Y0042 | B59: 142 | C59: 0 | D59: =$B$17 -> 100 | E59: [0],[1],[100], | F59: 3 | G59: 龙溪 | H59: 8 | I59: Y | J59: 0042 | K59: Y0042 | L59: 重庆市渝北区（龙溪）米兰书香幼儿园 | M59: （龙溪）米兰书香幼儿园 | N59: （龙溪）米兰书香幼儿园 | O59: （龙溪）米兰书香幼儿园 | P59: 1 | Q59: 1 | R59: 3 | S59: 1420 | T59: 渝北区松牌路米兰天空小区3栋 | U59: 学区：01龙溪学区，等级：一级，是否普惠园：是 | V59: 1 | X59: INSERT INTO sys_org(id, pid, pids, org_type, org_fund_source, education_stage, urban_rural_type, `code`, unique_code, full_name, `name`, short_name, short_name2, tqes_id, tqes_code, `sort`, `status`, address, remark, create_sys_user_id, create_time, longitude, latitude, is_deleted) VALUES(142, 100, '[0],[1],[100],', 3, 3, 1, 1, '0042', 'Y0042', '重庆市渝北区（龙溪）米兰书香幼儿园', '（龙溪）米兰书香幼儿园', '（龙溪）米兰书香幼儿园', '（龙溪）米兰书香幼儿园', 0, '', 1420, 1, '渝北区松牌路米兰天空小区3栋', '学区：01龙溪学区，等级：一级，是否普惠园：是', 1, NOW(), 0, 0, 0);
A60: Y0043 | B60: 143 | C60: 0 | D60: 100 | E60: [0],[1],[100], | F60: 3 | G60: 龙溪 | H60: 8 | I60: Y | J60: 0043 | K60: Y0043 | L60: 重庆市渝北区金港湾幼儿园 | M60: 金港湾幼儿园 | N60: 金港湾幼儿园 | O60: 金港湾幼儿园 | P60: 1 | Q60: 1 | R60: 3 | S60: 1430 | T60: 渝北区松牌路81号建峰小区 | U60: 学区：01龙溪学区，等级：一级，是否普惠园：是 | V60: 1 | X60: INSERT INTO sys_org(id, pid, pids, org_type, org_fund_source, education_stage, urban_rural_type, `code`, unique_code, full_name, `name`, short_name, short_name2, tqes_id, tqes_code, `sort`, `status`, address, remark, create_sys_user_id, create_time, longitude, latitude, is_deleted) VALUES(143, 100, '[0],[1],[100],', 3, 3, 1, 1, '0043', 'Y0043', '重庆市渝北区金港湾幼儿园', '金港湾幼儿园', '金港湾幼儿园', '金港湾幼儿园', 0, '', 1430, 1, '渝北区松牌路81号建峰小区', '学区：01龙溪学区，等级：一级，是否普惠园：是', 1, NOW(), 0, 0, 0);
A61: Y0044 | B61: 144 | C61: 0 | D61: 100 | E61: [0],[1],[100], | F61: 3 | G61: 龙溪 | H61: 8 | I61: Y | J61: 0044 | K61: Y0044 | L61: 重庆市渝北区龙溪金岛幼儿园 | M61: 龙溪金岛幼儿园 | N61: 龙溪金岛幼儿园 | O61: 龙溪金岛幼儿园 | P61: 1 | Q61: 1 | R61: 3 | S61: 1440 | T61: 渝北区龙溪松石北路58号 | U61: 学区：01龙溪学区，等级：一级，是否普惠园：是 | V61: 1 | X61: INSERT INTO sys_org(id, pid, pids, org_type, org_fund_source, education_stage, urban_rural_type, `code`, unique_code, full_name, `name`, short_name, short_name2, tqes_id, tqes_code, `sort`, `status`, address, remark, create_sys_user_id, create_time, longitude, latitude, is_deleted) VALUES(144, 100, '[0],[1],[100],', 3, 3, 1, 1, '0044', 'Y0044', '重庆市渝北区龙溪金岛幼儿园', '龙溪金岛幼儿园', '龙溪金岛幼儿园', '龙溪金岛幼儿园', 0, '', 1440, 1, '渝北区龙溪松石北路58号', '学区：01龙溪学区，等级：一级，是否普惠园：是', 1, NOW(), 0, 0, 0);
A62: Y0045 | B62: 145 | C62: 0 | D62: 100 | E62: [0],[1],[100], | F62: 3 | G62: 龙溪 | H62: 8 | I62: Y | J62: 0045 | K62: Y0045 | L62: 重庆市渝北区慧聪坊幼儿园 | M62: 慧聪坊幼儿园 | N62: 慧聪坊幼儿园 | O62: 慧聪坊幼儿园 | P62: 1 | Q62: 1 | R62: 3 | S62: 1450 | T62: 渝北区银桦路39号附29号 | U62: 学区：01龙溪学区，等级：一级，是否普惠园：是 | V62: 1 | X62: INSERT INTO sys_org(id, pid, pids, org_type, org_fund_source, education_stage, urban_rural_type, `code`, unique_code, full_name, `name`, short_name, short_name2, tqes_id, tqes_code, `sort`, `status`, address, remark, create_sys_user_id, create_time, longitude, latitude, is_deleted) VALUES(145, 100, '[0],[1],[100],', 3, 3, 1, 1, '0045', 'Y0045', '重庆市渝北区慧聪坊幼儿园', '慧聪坊幼儿园', '慧聪坊幼儿园', '慧聪坊幼儿园', 0, '', 1450, 1, '渝北区银桦路39号附29号', '学区：01龙溪学区，等级：一级，是否普惠园：是', 1, NOW(), 0, 0, 0);
A63: Y0046 | B63: 146 | C63: 0 | D63: 100 | E63: [0],[1],[100], | F63: 3 | G63: 龙溪 | H63: 8 | I63: Y | J63: 0046 | K63: Y0046 | L63: 重庆市渝北区早慧幼儿园 | M63: 早慧幼儿园 | N63: 早慧幼儿园 | O63: 早慧幼儿园 | P63: 1 | Q63: 1 | R63: 3 | S63: 1460 | T63: 渝北区花园新村松石支路15号 | U63: 学区：01龙溪学区，等级：一级，是否普惠园：是 | V63: 1 | X63: INSERT INTO sys_org(id, pid, pids, org_type, org_fund_source, education_stage, urban_rural_type, `code`, unique_code, full_name, `name`, short_name, short_name2, tqes_id, tqes_code, `sort`, `status`, address, remark, create_sys_user_id, create_time, longitude, latitude, is_deleted) VALUES(146, 100, '[0],[1],[100],', 3, 3, 1, 1, '0046', 'Y0046', '重庆市渝北区早慧幼儿园', '早慧幼儿园', '早慧幼儿园', '早慧幼儿园', 0, '', 1460, 1, '渝北区花园新村松石支路15号', '学区：01龙溪学区，等级：一级，是否普惠园：是', 1, NOW(), 0, 0, 0);
A64: Y0047 | B64: 147 | C64: 0 | D64: 100 | E64: [0],[1],[100], | F64: 3 | G64: 龙溪 | H64: 8 | I64: Y | J64: 0047 | K64: Y0047 | L64: 重庆市渝北区渝安龙都幼儿园 | M64: 渝安龙都幼儿园 | N64: 渝安龙都幼儿园 | O64: 渝安龙都幼儿园 | P64: 1 | Q64: 1 | R64: 3 | S64: 1470 | T64: 渝北区龙山路303号 | U64: 学区：01龙溪学区，等级：一级，是否普惠园：是 | V64: 1 | X64: INSERT INTO sys_org(id, pid, pids, org_type, org_fund_source, education_stage, urban_rural_type, `code`, unique_code, full_name, `name`, short_name, short_name2, tqes_id, tqes_code, `sort`, `status`, address, remark, create_sys_user_id, create_time, longitude, latitude, is_deleted) VALUES(147, 100, '[0],[1],[100],', 3, 3, 1, 1, '0047', 'Y0047', '重庆市渝北区渝安龙都幼儿园', '渝安龙都幼儿园', '渝安龙都幼儿园', '渝安龙都幼儿园', 0, '', 1470, 1, '渝北区龙山路303号', '学区：01龙溪学区，等级：一级，是否普惠园：是', 1, NOW(), 0, 0, 0);
A65: Y0048 | B65: 148 | C65: 0 | D65: 100 | E65: [0],[1],[100], | F65: 3 | G65: 龙溪 | H65: 8 | I65: Y | J65: 0048 | K65: Y0048 | L65: 重庆市渝北区余惠敏新城丽都幼儿园 | M65: 余惠敏新城丽都幼儿园 | N65: 余惠敏新城丽都幼儿园 | O65: 余惠敏新城丽都幼儿园 | P65: 1 | Q65: 1 | R65: 3 | S65: 1480 | T65: 渝北区龙溪龙山路72号 | U65: 学区：01龙溪学区，等级：二级，是否普惠园：是 | V65: 1 | X65: INSERT INTO sys_org(id, pid, pids, org_type, org_fund_source, education_stage, urban_rural_type, `code`, unique_code, full_name, `name`, short_name, short_name2, tqes_id, tqes_code, `sort`, `status`, address, remark, create_sys_user_id, create_time, longitude, latitude, is_deleted) VALUES(148, 100, '[0],[1],[100],', 3, 3, 1, 1, '0048', 'Y0048', '重庆市渝北区余惠敏新城丽都幼儿园', '余惠敏新城丽都幼儿园', '余惠敏新城丽都幼儿园', '余惠敏新城丽都幼儿园', 0, '', 1480, 1, '渝北区龙溪龙山路72号', '学区：01龙溪学区，等级：二级，是否普惠园：是', 1, NOW(), 0, 0, 0);
A66: Y0049 | B66: 149 | C66: 0 | D66: 100 | E66: [0],[1],[100], | F66: 3 | G66: 龙溪 | H66: 8 | I66: Y | J66: 0049 | K66: Y0049 | L66: 重庆市渝北区东和春天幼儿园 | M66: 东和春天幼儿园 | N66: 东和春天幼儿园 | O66: 东和春天幼儿园 | P66: 1 | Q66: 1 | R66: 3 | S66: 1490 | T66: 渝北区松石北路232号东和春天东区 | U66: 学区：01龙溪学区，等级：二级，是否普惠园：是 | V66: 1 | X66: INSERT INTO sys_org(id, pid, pids, org_type, org_fund_source, education_stage, urban_rural_type, `code`, unique_code, full_name, `name`, short_name, short_name2, tqes_id, tqes_code, `sort`, `status`, address, remark, create_sys_user_id, create_time, longitude, latitude, is_deleted) VALUES(149, 100, '[0],[1],[100],', 3, 3, 1, 1, '0049', 'Y0049', '重庆市渝北区东和春天幼儿园', '东和春天幼儿园', '东和春天幼儿园', '东和春天幼儿园', 0, '', 1490, 1, '渝北区松石北路232号东和春天东区', '学区：01龙溪学区，等级：二级，是否普惠园：是', 1, NOW(), 0, 0, 0);
A67: Y0050 | B67: 150 | C67: 0 | D67: 100 | E67: [0],[1],[100], | F67: 3 | G67: 龙溪 | H67: 8 | I67: Y | J67: 0050 | K67: Y0050 | L67: 重庆市渝北区龙溪温馨幼儿园 | M67: 龙溪温馨幼儿园 | N67: 龙溪温馨幼儿园 | O67: 龙溪温馨幼儿园 | P67: 1 | Q67: 1 | R67: 3 | S67: 1500 | T67: 渝北区松石支路176号 | U67: 学区：01龙溪学区，等级：三级，是否普惠园：是 | V67: 1 | X67: INSERT INTO sys_org(id, pid, pids, org_type, org_fund_source, education_stage, urban_rural_type, `code`, unique_code, full_name, `name`, short_name, short_name2, tqes_id, tqes_code, `sort`, `status`, address, remark, create_sys_user_id, create_time, longitude, latitude, is_deleted) VALUES(150, 100, '[0],[1],[100],', 3, 3, 1, 1, '0050', 'Y0050', '重庆市渝北区龙溪温馨幼儿园', '龙溪温馨幼儿园', '龙溪温馨幼儿园', '龙溪温馨幼儿园', 0, '', 1500, 1, '渝北区松石支路176号', '学区：01龙溪学区，等级：三级，是否普惠园：是', 1, NOW(), 0, 0, 0);
A68: Y0051 | B68: 151 | C68: 0 | D68: 100 | E68: [0],[1],[100], | F68: 3 | G68: 龙溪 | H68: 8 | I68: Y | J68: 0051 | K68: Y0051 | L68: 重庆市渝北区龙溪点点幼儿园 | M68: 龙溪点点幼儿园 | N68: 龙溪点点幼儿园 | O68: 龙溪点点幼儿园 | P68: 1 | Q68: 1 | R68: 3 | S68: 1510 | T68: 渝北区龙溪松石北路大道193号 | U68: 学区：01龙溪学区，等级：三级，是否普惠园：是 | V68: 1 | X68: INSERT INTO sys_org(id, pid, pids, org_type, org_fund_source, education_stage, urban_rural_type, `code`, unique_code, full_name, `name`, short_name, short_name2, tqes_id, tqes_code, `sort`, `status`, address, remark, create_sys_user_id, create_time, longitude, latitude, is_deleted) VALUES(151, 100, '[0],[1],[100],', 3, 3, 1, 1, '0051', 'Y0051', '重庆市渝北区龙溪点点幼儿园', '龙溪点点幼儿园', '龙溪点点幼儿园', '龙溪点点幼儿园', 0, '', 1510, 1, '渝北区龙溪松石北路大道193号', '学区：01龙溪学区，等级：三级，是否普惠园：是', 1, NOW(), 0, 0, 0);
A69: Y0052 | B69: 152 | C69: 0 | D69: =$B$17 -> 100 | E69: [0],[1],[100], | F69: 3 | G69: 龙溪 | H69: 8 | I69: Y | J69: 0052 | K69: Y0052 | L69: 重庆市渝北区全稚园聚信幼儿园 | M69: 全稚园聚信幼儿园 | N69: 全稚园聚信幼儿园 | O69: 全稚园聚信幼儿园 | P69: 1 | Q69: 1 | R69: 3 | S69: 1520 | T69: 渝北区龙山街道红石路150号聚信广场 | U69: 学区：01龙溪学区，等级：一级，是否普惠园：否 | V69: 1 | X69: INSERT INTO sys_org(id, pid, pids, org_type, org_fund_source, education_stage, urban_rural_type, `code`, unique_code, full_name, `name`, short_name, short_name2, tqes_id, tqes_code, `sort`, `status`, address, remark, create_sys_user_id, create_time, longitude, latitude, is_deleted) VALUES(152, 100, '[0],[1],[100],', 3, 3, 1, 1, '0052', 'Y0052', '重庆市渝北区全稚园聚信幼儿园', '全稚园聚信幼儿园', '全稚园聚信幼儿园', '全稚园聚信幼儿园', 0, '', 1520, 1, '渝北区龙山街道红石路150号聚信广场', '学区：01龙溪学区，等级：一级，是否普惠园：否', 1, NOW(), 0, 0, 0);
A70: Y0053 | B70: 153 | C70: 0 | D70: 100 | E70: [0],[1],[100], | F70: 3 | G70: 龙溪 | H70: 8 | I70: Y | J70: 0053 | K70: Y0053 | L70: 重庆市渝北区智多星幼儿园 | M70: 智多星幼儿园 | N70: 智多星幼儿园 | O70: 智多星幼儿园 | P70: 1 | Q70: 1 | R70: 3 | S70: 1530 | T70: 渝北区冉家坝天竺路91号附10号 | U70: 学区：01龙溪学区，等级：一级，是否普惠园：是 | V70: 1 | X70: INSERT INTO sys_org(id, pid, pids, org_type, org_fund_source, education_stage, urban_rural_type, `code`, unique_code, full_name, `name`, short_name, short_name2, tqes_id, tqes_code, `sort`, `status`, address, remark, create_sys_user_id, create_time, longitude, latitude, is_deleted) VALUES(153, 100, '[0],[1],[100],', 3, 3, 1, 1, '0053', 'Y0053', '重庆市渝北区智多星幼儿园', '智多星幼儿园', '智多星幼儿园', '智多星幼儿园', 0, '', 1530, 1, '渝北区冉家坝天竺路91号附10号', '学区：01龙溪学区，等级：一级，是否普惠园：是', 1, NOW(), 0, 0, 0);
A71: Y0054 | B71: 154 | C71: 0 | D71: 100 | E71: [0],[1],[100], | F71: 3 | G71: 龙溪 | H71: 8 | I71: Y | J71: 0054 | K71: Y0054 | L71: 重庆市渝北区盛世北辰三色幼儿园 | M71: 盛世北辰三色幼儿园 | N71: 盛世北辰三色幼儿园 | O71: 盛世北辰三色幼儿园 | P71: 1 | Q71: 1 | R71: 3 | S71: 1540 | T71: 渝北区冉家坝天竺路59号盛世北辰B区 | U71: 学区：01龙溪学区，等级：一级，是否普惠园：否 | V71: 1 | X71: INSERT INTO sys_org(id, pid, pids, org_type, org_fund_source, education_stage, urban_rural_type, `code`, unique_code, full_name, `name`, short_name, short_name2, tqes_id, tqes_code, `sort`, `status`, address, remark, create_sys_user_id, create_time, longitude, latitude, is_deleted) VALUES(154, 100, '[0],[1],[100],', 3, 3, 1, 1, '0054', 'Y0054', '重庆市渝北区盛世北辰三色幼儿园', '盛世北辰三色幼儿园', '盛世北辰三色幼儿园', '盛世北辰三色幼儿园', 0, '', 1540, 1, '渝北区冉家坝天竺路59号盛世北辰B区', '学区：01龙溪学区，等级：一级，是否普惠园：否', 1, NOW(), 0, 0, 0);
A72: Y0055 | B72: 155 | C72: 0 | D72: 100 | E72: [0],[1],[100], | F72: 3 | G72: 龙溪 | H72: 8 | I72: Y | J72: 0055 | K72: Y0055 | L72: 重庆市渝北区龙溪龙山幼儿园 | M72: 龙溪龙山幼儿园 | N72: 龙溪龙山幼儿园 | O72: 龙溪龙山幼儿园 | P72: 1 | Q72: 1 | R72: 3 | S72: 1550 | T72: 渝北区龙溪松石北路112号 | U72: 学区：01龙溪学区，等级：一级，是否普惠园：是 | V72: 1 | X72: INSERT INTO sys_org(id, pid, pids, org_type, org_fund_source, education_stage, urban_rural_type, `code`, unique_code, full_name, `name`, short_name, short_name2, tqes_id, tqes_code, `sort`, `status`, address, remark, create_sys_user_id, create_time, longitude, latitude, is_deleted) VALUES(155, 100, '[0],[1],[100],', 3, 3, 1, 1, '0055', 'Y0055', '重庆市渝北区龙溪龙山幼儿园', '龙溪龙山幼儿园', '龙溪龙山幼儿园', '龙溪龙山幼儿园', 0, '', 1550, 1, '渝北区龙溪松石北路112号', '学区：01龙溪学区，等级：一级，是否普惠园：是', 1, NOW(), 0, 0, 0);
A73: Y0056 | B73: 156 | C73: 0 | D73: 100 | E73: [0],[1],[100], | F73: 3 | G73: 龙溪 | H73: 8 | I73: Y | J73: 0056 | K73: Y0056 | L73: 重庆市渝北区奇心乐天一幼儿园 | M73: 奇心乐天一幼儿园 | N73: 奇心乐天一幼儿园 | O73: 奇心乐天一幼儿园 | P73: 1 | Q73: 1 | R73: 3 | S73: 1560 | T73: 渝北区龙山二路二号 | U73: 学区：01龙溪学区，等级：一级，是否普惠园：否 | V73: 1 | X73: INSERT INTO sys_org(id, pid, pids, org_type, org_fund_source, education_stage, urban_rural_type, `code`, unique_code, full_name, `name`, short_name, short_name2, tqes_id, tqes_code, `sort`, `status`, address, remark, create_sys_user_id, create_time, longitude, latitude, is_deleted) VALUES(156, 100, '[0],[1],[100],', 3, 3, 1, 1, '0056', 'Y0056', '重庆市渝北区奇心乐天一幼儿园', '奇心乐天一幼儿园', '奇心乐天一幼儿园', '奇心乐天一幼儿园', 0, '', 1560, 1, '渝北区龙山二路二号', '学区：01龙溪学区，等级：一级，是否普惠园：否', 1, NOW(), 0, 0, 0);
A74: Y0057 | B74: 157 | C74: 0 | D74: 100 | E74: [0],[1],[100], | F74: 3 | G74: 龙溪 | H74: 8 | I74: Y | J74: 0057 | K74: Y0057 | L74: 重庆市渝北区金凤凰幼儿园 | M74: 金凤凰幼儿园 | N74: 金凤凰幼儿园 | O74: 金凤凰幼儿园 | P74: 1 | Q74: 1 | R74: 3 | S74: 1570 | T74: 渝北区龙山街道百灵路1号 | U74: 学区：01龙溪学区，等级：一级，是否普惠园：否 | V74: 1 | X74: INSERT INTO sys_org(id, pid, pids, org_type, org_fund_source, education_stage, urban_rural_type, `code`, unique_code, full_name, `name`, short_name, short_name2, tqes_id, tqes_code, `sort`, `status`, address, remark, create_sys_user_id, create_time, longitude, latitude, is_deleted) VALUES(157, 100, '[0],[1],[100],', 3, 3, 1, 1, '0057', 'Y0057', '重庆市渝北区金凤凰幼儿园', '金凤凰幼儿园', '金凤凰幼儿园', '金凤凰幼儿园', 0, '', 1570, 1, '渝北区龙山街道百灵路1号', '学区：01龙溪学区，等级：一级，是否普惠园：否', 1, NOW(), 0, 0, 0);
A75: Y0058 | B75: 158 | C75: 0 | D75: 100 | E75: [0],[1],[100], | F75: 3 | G75: 龙溪 | H75: 8 | I75: Y | J75: 0058 | K75: Y0058 | L75: 重庆市渝北区为明幼儿园 | M75: 为明幼儿园 | N75: 为明幼儿园 | O75: 为明幼儿园 | P75: 1 | Q75: 1 | R75: 3 | S75: 1580 | T75: 渝北区龙华大道50号 | U75: 学区：01龙溪学区，等级：一级，是否普惠园：否 | V75: 1 | X75: INSERT INTO sys_org(id, pid, pids, org_type, org_fund_source, education_stage, urban_rural_type, `code`, unique_code, full_name, `name`, short_name, short_name2, tqes_id, tqes_code, `sort`, `status`, address, remark, create_sys_user_id, create_time, longitude, latitude, is_deleted) VALUES(158, 100, '[0],[1],[100],', 3, 3, 1, 1, '0058', 'Y0058', '重庆市渝北区为明幼儿园', '为明幼儿园', '为明幼儿园', '为明幼儿园', 0, '', 1580, 1, '渝北区龙华大道50号', '学区：01龙溪学区，等级：一级，是否普惠园：否', 1, NOW(), 0, 0, 0);
A76: Y0059 | B76: 159 | C76: 0 | D76: 100 | E76: [0],[1],[100], | F76: 3 | G76: 龙溪 | H76: 8 | I76: Y | J76: 0059 | K76: Y0059 | L76: 重庆市渝北区龙汇苑爱弥儿幼儿园有限公司 | M76: 龙汇苑爱弥儿幼儿园有限公司 | N76: 龙汇苑爱弥儿幼儿园有限公司 | O76: 龙汇苑爱弥儿幼儿园有限公司 | P76: 1 | Q76: 1 | R76: 3 | S76: 1590 | T76: 渝北区新南路263号 | U76: 学区：01龙溪学区，等级：一级，是否普惠园：否 | V76: 1 | X76: INSERT INTO sys_org(id, pid, pids, org_type, org_fund_source, education_stage, urban_rural_type, `code`, unique_code, full_name, `name`, short_name, short_name2, tqes_id, tqes_code, `sort`, `status`, address, remark, create_sys_user_id, create_time, longitude, latitude, is_deleted) VALUES(159, 100, '[0],[1],[100],', 3, 3, 1, 1, '0059', 'Y0059', '重庆市渝北区龙汇苑爱弥儿幼儿园有限公司', '龙汇苑爱弥儿幼儿园有限公司', '龙汇苑爱弥儿幼儿园有限公司', '龙汇苑爱弥儿幼儿园有限公司', 0, '', 1590, 1, '渝北区新南路263号', '学区：01龙溪学区，等级：一级，是否普惠园：否', 1, NOW(), 0, 0, 0);
A77: Y0060 | B77: 160 | C77: 0 | D77: 100 | E77: [0],[1],[100], | F77: 3 | G77: 龙溪 | H77: 8 | I77: Y | J77: 0060 | K77: Y0060 | L77: 重庆市渝北区金豆云中幼儿园有限公司 | M77: 金豆云中幼儿园有限公司 | N77: 金豆云中幼儿园有限公司 | O77: 金豆云中幼儿园有限公司 | P77: 1 | Q77: 1 | R77: 3 | S77: 1600 | T77: 渝北区龙山街道松石北路180号 | U77: 学区：01龙溪学区，等级：二级，是否普惠园：否 | V77: 1 | X77: INSERT INTO sys_org(id, pid, pids, org_type, org_fund_source, education_stage, urban_rural_type, `code`, unique_code, full_name, `name`, short_name, short_name2, tqes_id, tqes_code, `sort`, `status`, address, remark, create_sys_user_id, create_time, longitude, latitude, is_deleted) VALUES(160, 100, '[0],[1],[100],', 3, 3, 1, 1, '0060', 'Y0060', '重庆市渝北区金豆云中幼儿园有限公司', '金豆云中幼儿园有限公司', '金豆云中幼儿园有限公司', '金豆云中幼儿园有限公司', 0, '', 1600, 1, '渝北区龙山街道松石北路180号', '学区：01龙溪学区，等级：二级，是否普惠园：否', 1, NOW(), 0, 0, 0);
A78: Y0061 | B78: 161 | C78: 0 | D78: 100 | E78: [0],[1],[100], | F78: 3 | G78: 龙溪 | H78: 8 | I78: Y | J78: 0061 | K78: Y0061 | L78: 重庆市渝北区龙溪新绿幼儿园 | M78: 龙溪新绿幼儿园 | N78: 龙溪新绿幼儿园 | O78: 龙溪新绿幼儿园 | P78: 1 | Q78: 1 | R78: 3 | S78: 1610 | T78: 渝北区龙溪花园新村新城绿园小区内 | U78: 学区：01龙溪学区，等级：二级，是否普惠园：是 | V78: 1 | X78: INSERT INTO sys_org(id, pid, pids, org_type, org_fund_source, education_stage, urban_rural_type, `code`, unique_code, full_name, `name`, short_name, short_name2, tqes_id, tqes_code, `sort`, `status`, address, remark, create_sys_user_id, create_time, longitude, latitude, is_deleted) VALUES(161, 100, '[0],[1],[100],', 3, 3, 1, 1, '0061', 'Y0061', '重庆市渝北区龙溪新绿幼儿园', '龙溪新绿幼儿园', '龙溪新绿幼儿园', '龙溪新绿幼儿园', 0, '', 1610, 1, '渝北区龙溪花园新村新城绿园小区内', '学区：01龙溪学区，等级：二级，是否普惠园：是', 1, NOW(), 0, 0, 0);
A79: Y0062 | B79: 162 | C79: 0 | D79: =$B$17 -> 100 | E79: [0],[1],[100], | F79: 3 | G79: 龙溪 | H79: 8 | I79: Y | J79: 0062 | K79: Y0062 | L79: 重庆市渝北区五州幼儿园 | M79: 五州幼儿园 | N79: 五州幼儿园 | O79: 五州幼儿园 | P79: 1 | Q79: 1 | R79: 3 | S79: 1620 | T79: 渝北区银桦路125号圣地阳光 | U79: 学区：01龙溪学区，等级： 二级，是否普惠园：否 | V79: 1 | X79: INSERT INTO sys_org(id, pid, pids, org_type, org_fund_source, education_stage, urban_rural_type, `code`, unique_code, full_name, `name`, short_name, short_name2, tqes_id, tqes_code, `sort`, `status`, address, remark, create_sys_user_id, create_time, longitude, latitude, is_deleted) VALUES(162, 100, '[0],[1],[100],', 3, 3, 1, 1, '0062', 'Y0062', '重庆市渝北区五州幼儿园', '五州幼儿园', '五州幼儿园', '五州幼儿园', 0, '', 1620, 1, '渝北区银桦路125号圣地阳光', '学区：01龙溪学区，等级： 二级，是否普惠园：否', 1, NOW(), 0, 0, 0);
A80: Y0063 | B80: 163 | C80: 0 | D80: 100 | E80: [0],[1],[100], | F80: 3 | G80: 龙溪 | H80: 8 | I80: Y | J80: 0063 | K80: Y0063 | L80: 重庆市渝北区龙山七彩阳光春风幼儿园 | M80: 龙山七彩阳光春风幼儿园 | N80: 龙山七彩阳光春风幼儿园 | O80: 龙山七彩阳光春风幼儿园 | P80: 1 | Q80: 1 | R80: 3 | S80: 1630 | T80: 渝北区景观大道300号 | U80: 学区：01龙溪学区，等级：一级，是否普惠园：否 | V80: 1 | X80: INSERT INTO sys_org(id, pid, pids, org_type, org_fund_source, education_stage, urban_rural_type, `code`, unique_code, full_name, `name`, short_name, short_name2, tqes_id, tqes_code, `sort`, `status`, address, remark, create_sys_user_id, create_time, longitude, latitude, is_deleted) VALUES(163, 100, '[0],[1],[100],', 3, 3, 1, 1, '0063', 'Y0063', '重庆市渝北区龙山七彩阳光春风幼儿园', '龙山七彩阳光春风幼儿园', '龙山七彩阳光春风幼儿园', '龙山七彩阳光春风幼儿园', 0, '', 1630, 1, '渝北区景观大道300号', '学区：01龙溪学区，等级：一级，是否普惠园：否', 1, NOW(), 0, 0, 0);
A81: Y0064 | B81: 164 | C81: 0 | D81: 100 | E81: [0],[1],[100], | F81: 3 | G81: 龙溪 | H81: 8 | I81: Y | J81: 0064 | K81: Y0064 | L81: 重庆市渝北区贝贝爱青幼儿园 | M81: 贝贝爱青幼儿园 | N81: 贝贝爱青幼儿园 | O81: 贝贝爱青幼儿园 | P81: 1 | Q81: 1 | R81: 3 | S81: 1640 | T81: 渝北区龙山街道两江春城 | U81: 学区：01龙溪学区，等级：二级，是否普惠园：否 | V81: 1 | X81: INSERT INTO sys_org(id, pid, pids, org_type, org_fund_source, education_stage, urban_rural_type, `code`, unique_code, full_name, `name`, short_name, short_name2, tqes_id, tqes_code, `sort`, `status`, address, remark, create_sys_user_id, create_time, longitude, latitude, is_deleted) VALUES(164, 100, '[0],[1],[100],', 3, 3, 1, 1, '0064', 'Y0064', '重庆市渝北区贝贝爱青幼儿园', '贝贝爱青幼儿园', '贝贝爱青幼儿园', '贝贝爱青幼儿园', 0, '', 1640, 1, '渝北区龙山街道两江春城', '学区：01龙溪学区，等级：二级，是否普惠园：否', 1, NOW(), 0, 0, 0);
A82: Y0065 | B82: 165 | C82: 0 | D82: 100 | E82: [0],[1],[100], | F82: 3 | G82: 龙溪 | H82: 8 | I82: Y | J82: 0065 | K82: =I82&RIGHT("000"&J82,4) -> Y0065 | L82: 重庆市渝北区桑尼朵儿幼儿园 | M82: 桑尼朵儿幼儿园 | N82: 桑尼朵儿幼儿园 | O82: 桑尼朵儿幼儿园 | P82: 1 | Q82: 1 | R82: 3 | S82: =B82*10 -> 1650 | T82: 渝北区天竺路343号附1号 | U82: 学区：01龙溪学区，等级：一级，是否普惠园：否 | V82: 1 | X82: ="INSERT INTO sys_org(id, pid, pids, org_type, org_fund_source"&", education_stage, urban_rural_type, `code`, unique_code, full_name,"&" `name`, short_name, short_name2, tqes_id, tqes_code, `sort`, `status`, address, remark, create_sys_user_id, create_time, longitude, latitude, is_deleted) VALUES("&B82&", "&D82&", '"&E82&"', "&F82&", "&R82&", "&P82&", "&Q82&", '"&J82&"', '"&K82&"', '"&L82&"', '"&M82&"', '"&N82&"', '"&O82&"', "&C82&", '"&W82&"', "&S82&", "&V82&", '"&T82&"', '"&U82&"', 1, NOW(), 0, 0, 0);" -> INSERT INTO sys_org(id, pid, pids, org_type, org_fund_source, education_stage, urban_rural_type, `code`, unique_code, full_name, `name`, short_name, short_name2, tqes_id, tqes_code, `sort`, `status`, address, remark, create_sys_user_id, create_time, longitude, latitude, is_deleted) VALUES(165, 100, '[0],[1],[100],', 3, 3, 1, 1, '0065', 'Y0065', '重庆市渝北区桑尼朵儿幼儿园', '桑尼朵儿幼儿园', '桑尼朵儿幼儿园', '桑尼朵儿幼儿园', 0, '', 1650, 1, '渝北区天竺路343号附1号', '学区：01龙溪学区，等级：一级，是否普惠园：否', 1, NOW(), 0, 0, 0);
A83: Y0066 | B83: 166 | C83: 0 | D83: 100 | E83: =$E$17&"["&D83&"]," -> [0],[1],[100], | F83: 3 | G83: 龙溪 | H83: 8 | I83: Y | J83: 0066 | K83: Y0066 | L83: 重庆市渝北区龙塔实验学校附属幼儿园 | M83: 龙塔实验学校附属幼儿园 | N83: 龙塔实验学校附属幼儿园 | O83: 龙塔实验学校附属幼儿园 | P83: 1 | Q83: 1 | R83: 2 | S83: 1660 | T83: 渝北区龙塔街道紫园路188号 | U83: 学区：01龙溪学区，等级：一级，是否普惠园：是 | V83: 1 | X83: INSERT INTO sys_org(id, pid, pids, org_type, org_fund_source, education_stage, urban_rural_type, `code`, unique_code, full_name, `name`, short_name, short_name2, tqes_id, tqes_code, `sort`, `status`, address, remark, create_sys_user_id, create_time, longitude, latitude, is_deleted) VALUES(166, 100, '[0],[1],[100],', 3, 2, 1, 1, '0066', 'Y0066', '重庆市渝北区龙塔实验学校附属幼儿园', '龙塔实验学校附属幼儿园', '龙塔实验学校附属幼儿园', '龙塔实验学校附属幼儿园', 0, '', 1660, 1, '渝北区龙塔街道紫园路188号', '学区：01龙溪学区，等级：一级，是否普惠园：是', 1, NOW(), 0, 0, 0);
A84: Y0067 | B84: 167 | C84: 0 | D84: 100 | E84: [0],[1],[100], | F84: 3 | G84: 龙溪 | H84: 8 | I84: Y | J84: 0067 | K84: Y0067 | L84: 重庆市渝北区龙头寺小学校附属幼儿园 | M84: 龙头寺小学校附属幼儿园 | N84: 龙头寺小学校附属幼儿园 | O84: 龙头寺小学校附属幼儿园 | P84: 1 | Q84: 1 | R84: 2 | S84: 1670 | T84: 渝北区福缘路1号 | U84: 学区：01龙溪学区，等级：一级，是否普惠园：是 | V84: 1 | X84: INSERT INTO sys_org(id, pid, pids, org_type, org_fund_source, education_stage, urban_rural_type, `code`, unique_code, full_name, `name`, short_name, short_name2, tqes_id, tqes_code, `sort`, `status`, address, remark, create_sys_user_id, create_time, longitude, latitude, is_deleted) VALUES(167, 100, '[0],[1],[100],', 3, 2, 1, 1, '0067', 'Y0067', '重庆市渝北区龙头寺小学校附属幼儿园', '龙头寺小学校附属幼儿园', '龙头寺小学校附属幼儿园', '龙头寺小学校附属幼儿园', 0, '', 1670, 1, '渝北区福缘路1号', '学区：01龙溪学区，等级：一级，是否普惠园：是', 1, NOW(), 0, 0, 0);
A85: Y0068 | B85: 168 | C85: 0 | D85: 100 | E85: [0],[1],[100], | F85: 3 | G85: 龙溪 | H85: 8 | I85: Y | J85: 0068 | K85: Y0068 | L85: 重庆市渝北区森岭居幼儿园 | M85: 森岭居幼儿园 | N85: 森岭居幼儿园 | O85: 森岭居幼儿园 | P85: 1 | Q85: 1 | R85: 3 | S85: 1680 | T85: 渝北区龙塔街道龙头寺路50号 | U85: 学区：01龙溪学区，等级：一级，是否普惠园：是 | V85: 1 | X85: INSERT INTO sys_org(id, pid, pids, org_type, org_fund_source, education_stage, urban_rural_type, `code`, unique_code, full_name, `name`, short_name, short_name2, tqes_id, tqes_code, `sort`, `status`, address, remark, create_sys_user_id, create_time, longitude, latitude, is_deleted) VALUES(168, 100, '[0],[1],[100],', 3, 3, 1, 1, '0068', 'Y0068', '重庆市渝北区森岭居幼儿园', '森岭居幼儿园', '森岭居幼儿园', '森岭居幼儿园', 0, '', 1680, 1, '渝北区龙塔街道龙头寺路50号', '学区：01龙溪学区，等级：一级，是否普惠园：是', 1, NOW(), 0, 0, 0);
A86: Y0069 | B86: 169 | C86: 0 | D86: 100 | E86: [0],[1],[100], | F86: 3 | G86: 龙溪 | H86: 8 | I86: Y | J86: 0069 | K86: Y0069 | L86: 重庆市渝北区鲁能阳光幼儿园 | M86: 鲁能阳光幼儿园 | N86: 鲁能阳光幼儿园 | O86: 鲁能阳光幼儿园 | P86: 1 | Q86: 1 | R86: 3 | S86: 1690 | T86: 渝北区渝鲁大道680号鲁能星城12街区 | U86: 学区：01龙溪学区，等级：一级，是否普惠园：是 | V86: 1 | X86: INSERT INTO sys_org(id, pid, pids, org_type, org_fund_source, education_stage, urban_rural_type, `code`, unique_code, full_name, `name`, short_name, short_name2, tqes_id, tqes_code, `sort`, `status`, address, remark, create_sys_user_id, create_time, longitude, latitude, is_deleted) VALUES(169, 100, '[0],[1],[100],', 3, 3, 1, 1, '0069', 'Y0069', '重庆市渝北区鲁能阳光幼儿园', '鲁能阳光幼儿园', '鲁能阳光幼儿园', '鲁能阳光幼儿园', 0, '', 1690, 1, '渝北区渝鲁大道680号鲁能星城12街区', '学区：01龙溪学区，等级：一级，是否普惠园：是', 1, NOW(), 0, 0, 0);
A87: Y0070 | B87: 170 | C87: 0 | D87: 100 | E87: [0],[1],[100], | F87: 3 | G87: 龙溪 | H87: 8 | I87: Y | J87: 0070 | K87: Y0070 | L87: 重庆市渝北区天骄俊园幼儿园 | M87: 天骄俊园幼儿园 | N87: 天骄俊园幼儿园 | O87: 天骄俊园幼儿园 | P87: 1 | Q87: 1 | R87: 3 | S87: 1700 | T87: 渝北区龙溪街道红黄路97号 | U87: 学区：01龙溪学区，等级：一级，是否普惠园：是 | V87: 1 | X87: INSERT INTO sys_org(id, pid, pids, org_type, org_fund_source, education_stage, urban_rural_type, `code`, unique_code, full_name, `name`, short_name, short_name2, tqes_id, tqes_code, `sort`, `status`, address, remark, create_sys_user_id, create_time, longitude, latitude, is_deleted) VALUES(170, 100, '[0],[1],[100],', 3, 3, 1, 1, '0070', 'Y0070', '重庆市渝北区天骄俊园幼儿园', '天骄俊园幼儿园', '天骄俊园幼儿园', '天骄俊园幼儿园', 0, '', 1700, 1, '渝北区龙溪街道红黄路97号', '学区：01龙溪学区，等级：一级，是否普惠园：是', 1, NOW(), 0, 0, 0);
A88: Y0071 | B88: 171 | C88: 0 | D88: 100 | E88: [0],[1],[100], | F88: 3 | G88: 龙溪 | H88: 8 | I88: Y | J88: 0071 | K88: Y0071 | L88: 重庆市渝北区龙溪龙联幼儿园 | M88: 龙溪龙联幼儿园 | N88: 龙溪龙联幼儿园 | O88: 龙溪龙联幼儿园 | P88: 1 | Q88: 1 | R88: 3 | S88: 1710 | T88: 渝北区黄泥磅龙越路19号 | U88: 学区：01龙溪学区，等级：二级，是否普惠园：是 | V88: 1 | X88: INSERT INTO sys_org(id, pid, pids, org_type, org_fund_source, education_stage, urban_rural_type, `code`, unique_code, full_name, `name`, short_name, short_name2, tqes_id, tqes_code, `sort`, `status`, address, remark, create_sys_user_id, create_time, longitude, latitude, is_deleted) VALUES(171, 100, '[0],[1],[100],', 3, 3, 1, 1, '0071', 'Y0071', '重庆市渝北区龙溪龙联幼儿园', '龙溪龙联幼儿园', '龙溪龙联幼儿园', '龙溪龙联幼儿园', 0, '', 1710, 1, '渝北区黄泥磅龙越路19号', '学区：01龙溪学区，等级：二级，是否普惠园：是', 1, NOW(), 0, 0, 0);
A89: Y0072 | B89: 172 | C89: 0 | D89: =$B$17 -> 100 | E89: [0],[1],[100], | F89: 3 | G89: 龙溪 | H89: 8 | I89: Y | J89: 0072 | K89: Y0072 | L89: 重庆市渝北区龙溪智多星幼儿园 | M89: 龙溪智多星幼儿园 | N89: 龙溪智多星幼儿园 | O89: 龙溪智多星幼儿园 | P89: 1 | Q89: 1 | R89: 3 | S89: 1720 | T89: 渝北区龙塔街道五童街10号 | U89: 学区：01龙溪学区，等级：二级，是否普惠园：是 | V89: 1 | X89: INSERT INTO sys_org(id, pid, pids, org_type, org_fund_source, education_stage, urban_rural_type, `code`, unique_code, full_name, `name`, short_name, short_name2, tqes_id, tqes_code, `sort`, `status`, address, remark, create_sys_user_id, create_time, longitude, latitude, is_deleted) VALUES(172, 100, '[0],[1],[100],', 3, 3, 1, 1, '0072', 'Y0072', '重庆市渝北区龙溪智多星幼儿园', '龙溪智多星幼儿园', '龙溪智多星幼儿园', '龙溪智多星幼儿园', 0, '', 1720, 1, '渝北区龙塔街道五童街10号', '学区：01龙溪学区，等级：二级，是否普惠园：是', 1, NOW(), 0, 0, 0);
A90: Y0073 | B90: 173 | C90: 0 | D90: 100 | E90: [0],[1],[100], | F90: 3 | G90: 龙溪 | H90: 8 | I90: Y | J90: 0073 | K90: Y0073 | L90: 重庆市渝北区金秋十月幼儿园 | M90: 金秋十月幼儿园 | N90: 金秋十月幼儿园 | O90: 金秋十月幼儿园 | P90: 1 | Q90: 1 | R90: 3 | S90: 1730 | T90: 渝北区龙塔街道黄泥塝紫康路号皇冠自由城1栋 | U90: 学区：01龙溪学区，等级：二级，是否普惠园：是 | V90: 1 | X90: INSERT INTO sys_org(id, pid, pids, org_type, org_fund_source, education_stage, urban_rural_type, `code`, unique_code, full_name, `name`, short_name, short_name2, tqes_id, tqes_code, `sort`, `status`, address, remark, create_sys_user_id, create_time, longitude, latitude, is_deleted) VALUES(173, 100, '[0],[1],[100],', 3, 3, 1, 1, '0073', 'Y0073', '重庆市渝北区金秋十月幼儿园', '金秋十月幼儿园', '金秋十月幼儿园', '金秋十月幼儿园', 0, '', 1730, 1, '渝北区龙塔街道黄泥塝紫康路号皇冠自由城1栋', '学区：01龙溪学区，等级：二级，是否普惠园：是', 1, NOW(), 0, 0, 0);
A91: Y0074 | B91: 174 | C91: 0 | D91: 100 | E91: [0],[1],[100], | F91: 3 | G91: 龙溪 | H91: 8 | I91: Y | J91: 0074 | K91: Y0074 | L91: 重庆市渝北区宝宝乐幼儿园 | M91: 宝宝乐幼儿园 | N91: 宝宝乐幼儿园 | O91: 宝宝乐幼儿园 | P91: 1 | Q91: 1 | R91: 3 | S91: 1740 | T91: 渝北区龙塔街道五红路127号红地苑小区B栋二楼 | U91: 学区：01龙溪学区，等级：三级，是否普惠园：是 | V91: 1 | X91: INSERT INTO sys_org(id, pid, pids, org_type, org_fund_source, education_stage, urban_rural_type, `code`, unique_code, full_name, `name`, short_name, short_name2, tqes_id, tqes_code, `sort`, `status`, address, remark, create_sys_user_id, create_time, longitude, latitude, is_deleted) VALUES(174, 100, '[0],[1],[100],', 3, 3, 1, 1, '0074', 'Y0074', '重庆市渝北区宝宝乐幼儿园', '宝宝乐幼儿园', '宝宝乐幼儿园', '宝宝乐幼儿园', 0, '', 1740, 1, '渝北区龙塔街道五红路127号红地苑小区B栋二楼', '学区：01龙溪学区，等级：三级，是否普惠园：是', 1, NOW(), 0, 0, 0);
A92: Y0075 | B92: 175 | C92: 0 | D92: 100 | E92: [0],[1],[100], | F92: 3 | G92: 龙溪 | H92: 8 | I92: Y | J92: 0075 | K92: Y0075 | L92: 重庆市渝北区快乐摇篮桐林逸景幼儿园 | M92: 快乐摇篮桐林逸景幼儿园 | N92: 快乐摇篮桐林逸景幼儿园 | O92: 快乐摇篮桐林逸景幼儿园 | P92: 1 | Q92: 1 | R92: 3 | S92: 1750 | T92: 渝北区龙塔街道上域街9号观恒·上域4幢 | U92: 学区：01龙溪学区，等级：一级，是否普惠园：是 | V92: 1 | X92: INSERT INTO sys_org(id, pid, pids, org_type, org_fund_source, education_stage, urban_rural_type, `code`, unique_code, full_name, `name`, short_name, short_name2, tqes_id, tqes_code, `sort`, `status`, address, remark, create_sys_user_id, create_time, longitude, latitude, is_deleted) VALUES(175, 100, '[0],[1],[100],', 3, 3, 1, 1, '0075', 'Y0075', '重庆市渝北区快乐摇篮桐林逸景幼儿园', '快乐摇篮桐林逸景幼儿园', '快乐摇篮桐林逸景幼儿园', '快乐摇篮桐林逸景幼儿园', 0, '', 1750, 1, '渝北区龙塔街道上域街9号观恒·上域4幢', '学区：01龙溪学区，等级：一级，是否普惠园：是', 1, NOW(), 0, 0, 0);
A93: Y0076 | B93: 176 | C93: 0 | D93: 100 | E93: [0],[1],[100], | F93: 3 | G93: 龙溪 | H93: 8 | I93: Y | J93: 0076 | K93: Y0076 | L93: 重庆市渝北区蕾兰阳光幼儿园 | M93: 蕾兰阳光幼儿园 | N93: 蕾兰阳光幼儿园 | O93: 蕾兰阳光幼儿园 | P93: 1 | Q93: 1 | R93: 3 | S93: 1760 | T93: 渝北区龙塔街道龙头寺路39号附9号 | U93: 学区：01龙溪学区，等级：一级，是否普惠园：是 | V93: 1 | X93: INSERT INTO sys_org(id, pid, pids, org_type, org_fund_source, education_stage, urban_rural_type, `code`, unique_code, full_name, `name`, short_name, short_name2, tqes_id, tqes_code, `sort`, `status`, address, remark, create_sys_user_id, create_time, longitude, latitude, is_deleted) VALUES(176, 100, '[0],[1],[100],', 3, 3, 1, 1, '0076', 'Y0076', '重庆市渝北区蕾兰阳光幼儿园', '蕾兰阳光幼儿园', '蕾兰阳光幼儿园', '蕾兰阳光幼儿园', 0, '', 1760, 1, '渝北区龙塔街道龙头寺路39号附9号', '学区：01龙溪学区，等级：一级，是否普惠园：是', 1, NOW(), 0, 0, 0);
A94: Y0077 | B94: 177 | C94: 0 | D94: 100 | E94: [0],[1],[100], | F94: 3 | G94: 龙溪 | H94: 8 | I94: Y | J94: 0077 | K94: Y0077 | L94: 重庆市渝北区新城丽园幼儿园 | M94: 新城丽园幼儿园 | N94: 新城丽园幼儿园 | O94: 新城丽园幼儿园 | P94: 1 | Q94: 1 | R94: 3 | S94: 1770 | T94: 渝北区黄泥磅紫薇支路12号 | U94: 学区：01龙溪学区，等级：一级，是否普惠园：否 | V94: 1 | X94: INSERT INTO sys_org(id, pid, pids, org_type, org_fund_source, education_stage, urban_rural_type, `code`, unique_code, full_name, `name`, short_name, short_name2, tqes_id, tqes_code, `sort`, `status`, address, remark, create_sys_user_id, create_time, longitude, latitude, is_deleted) VALUES(177, 100, '[0],[1],[100],', 3, 3, 1, 1, '0077', 'Y0077', '重庆市渝北区新城丽园幼儿园', '新城丽园幼儿园', '新城丽园幼儿园', '新城丽园幼儿园', 0, '', 1770, 1, '渝北区黄泥磅紫薇支路12号', '学区：01龙溪学区，等级：一级，是否普惠园：否', 1, NOW(), 0, 0, 0);
A95: Y0078 | B95: 178 | C95: 0 | D95: 100 | E95: [0],[1],[100], | F95: 3 | G95: 龙溪 | H95: 8 | I95: Y | J95: 0078 | K95: Y0078 | L95: 重庆市渝北区巴蜀鲁能幼儿园 | M95: 巴蜀鲁能幼儿园 | N95: 巴蜀鲁能幼儿园 | O95: 巴蜀鲁能幼儿园 | P95: 1 | Q95: 1 | R95: 3 | S95: 1780 | T95: 渝北区渝鲁大道663号鲁能六街区18幢 | U95: 学区：01龙溪学区，等级：一级，是否普惠园：否 | V95: 1 | X95: INSERT INTO sys_org(id, pid, pids, org_type, org_fund_source, education_stage, urban_rural_type, `code`, unique_code, full_name, `name`, short_name, short_name2, tqes_id, tqes_code, `sort`, `status`, address, remark, create_sys_user_id, create_time, longitude, latitude, is_deleted) VALUES(178, 100, '[0],[1],[100],', 3, 3, 1, 1, '0078', 'Y0078', '重庆市渝北区巴蜀鲁能幼儿园', '巴蜀鲁能幼儿园', '巴蜀鲁能幼儿园', '巴蜀鲁能幼儿园', 0, '', 1780, 1, '渝北区渝鲁大道663号鲁能六街区18幢', '学区：01龙溪学区，等级：一级，是否普惠园：否', 1, NOW(), 0, 0, 0);
A96: Y0079 | B96: 179 | C96: 0 | D96: 100 | E96: [0],[1],[100], | F96: 3 | G96: 龙溪 | H96: 8 | I96: Y | J96: 0079 | K96: Y0079 | L96: 重庆市渝北区笛迪·梧桐幼儿园 | M96: 笛迪·梧桐幼儿园 | N96: 笛迪·梧桐幼儿园 | O96: 笛迪·梧桐幼儿园 | P96: 1 | Q96: 1 | R96: 3 | S96: 1790 | T96: 渝北区龙塔街道兴盛支路8号 | U96: 学区：01龙溪学区，等级：一级，是否普惠园：否 | V96: 1 | X96: INSERT INTO sys_org(id, pid, pids, org_type, org_fund_source, education_stage, urban_rural_type, `code`, unique_code, full_name, `name`, short_name, short_name2, tqes_id, tqes_code, `sort`, `status`, address, remark, create_sys_user_id, create_time, longitude, latitude, is_deleted) VALUES(179, 100, '[0],[1],[100],', 3, 3, 1, 1, '0079', 'Y0079', '重庆市渝北区笛迪·梧桐幼儿园', '笛迪·梧桐幼儿园', '笛迪·梧桐幼儿园', '笛迪·梧桐幼儿园', 0, '', 1790, 1, '渝北区龙塔街道兴盛支路8号', '学区：01龙溪学区，等级：一级，是否普惠园：否', 1, NOW(), 0, 0, 0);
A97: Y0080 | B97: 180 | C97: 0 | D97: 100 | E97: [0],[1],[100], | F97: 3 | G97: 龙溪 | H97: 8 | I97: Y | J97: 0080 | K97: Y0080 | L97: 重庆市渝北区鲁能宜生幼儿园 | M97: 鲁能宜生幼儿园 | N97: 鲁能宜生幼儿园 | O97: 鲁能宜生幼儿园 | P97: 1 | Q97: 1 | R97: 3 | S97: 1800 | T97: 渝北区鲁能星城五街区龙塔街道尚品路777号附31号 | U97: 学区：01龙溪学区，等级：一级，是否普惠园：否 | V97: 1 | X97: INSERT INTO sys_org(id, pid, pids, org_type, org_fund_source, education_stage, urban_rural_type, `code`, unique_code, full_name, `name`, short_name, short_name2, tqes_id, tqes_code, `sort`, `status`, address, remark, create_sys_user_id, create_time, longitude, latitude, is_deleted) VALUES(180, 100, '[0],[1],[100],', 3, 3, 1, 1, '0080', 'Y0080', '重庆市渝北区鲁能宜生幼儿园', '鲁能宜生幼儿园', '鲁能宜生幼儿园', '鲁能宜生幼儿园', 0, '', 1800, 1, '渝北区鲁能星城五街区龙塔街道尚品路777号附31号', '学区：01龙溪学区，等级：一级，是否普惠园：否', 1, NOW(), 0, 0, 0);
A98: Y0081 | B98: 181 | C98: 0 | D98: 100 | E98: [0],[1],[100], | F98: 3 | G98: 龙溪 | H98: 8 | I98: Y | J98: 0081 | K98: Y0081 | L98: 重庆市渝北区爱霖九寨幼儿园 | M98: 爱霖九寨幼儿园 | N98: 爱霖九寨幼儿园 | O98: 爱霖九寨幼儿园 | P98: 1 | Q98: 1 | R98: 3 | S98: 1810 | T98: 渝北区渝鲁大道188号附38号 | U98: 学区：01龙溪学区，等级：一级，是否普惠园：否 | V98: 1 | X98: INSERT INTO sys_org(id, pid, pids, org_type, org_fund_source, education_stage, urban_rural_type, `code`, unique_code, full_name, `name`, short_name, short_name2, tqes_id, tqes_code, `sort`, `status`, address, remark, create_sys_user_id, create_time, longitude, latitude, is_deleted) VALUES(181, 100, '[0],[1],[100],', 3, 3, 1, 1, '0081', 'Y0081', '重庆市渝北区爱霖九寨幼儿园', '爱霖九寨幼儿园', '爱霖九寨幼儿园', '爱霖九寨幼儿园', 0, '', 1810, 1, '渝北区渝鲁大道188号附38号', '学区：01龙溪学区，等级：一级，是否普惠园：否', 1, NOW(), 0, 0, 0);
A99: Y0082 | B99: 182 | C99: 0 | D99: =$B$17 -> 100 | E99: [0],[1],[100], | F99: 3 | G99: 龙溪 | H99: 8 | I99: Y | J99: 0082 | K99: Y0082 | L99: 重庆市渝北区奇心乐佳华幼儿园 | M99: 奇心乐佳华幼儿园 | N99: 奇心乐佳华幼儿园 | O99: 奇心乐佳华幼儿园 | P99: 1 | Q99: 1 | R99: 3 | S99: 1820 | T99: 渝北区黄泥磅紫荆路1号 | U99: 学区：01龙溪学区，等级：一级，是否普惠园：是 | V99: 1 | X99: INSERT INTO sys_org(id, pid, pids, org_type, org_fund_source, education_stage, urban_rural_type, `code`, unique_code, full_name, `name`, short_name, short_name2, tqes_id, tqes_code, `sort`, `status`, address, remark, create_sys_user_id, create_time, longitude, latitude, is_deleted) VALUES(182, 100, '[0],[1],[100],', 3, 3, 1, 1, '0082', 'Y0082', '重庆市渝北区奇心乐佳华幼儿园', '奇心乐佳华幼儿园', '奇心乐佳华幼儿园', '奇心乐佳华幼儿园', 0, '', 1820, 1, '渝北区黄泥磅紫荆路1号', '学区：01龙溪学区，等级：一级，是否普惠园：是', 1, NOW(), 0, 0, 0);
A100: =K100 -> Y0083 | B100: 183 | C100: 0 | D100: 100 | E100: [0],[1],[100], | F100: 3 | G100: 龙溪 | H100: 8 | I100: Y | J100: 0083 | K100: Y0083 | L100: 重庆市渝北区西米幼儿园 | M100: 西米幼儿园 | N100: 西米幼儿园 | O100: 西米幼儿园 | P100: 1 | Q100: 1 | R100: 3 | S100: 1830 | T100: 渝北区龙塔街道渝鲁大道666号鲁能星城七街区14幢 | U100: 学区：01龙溪学区，等级：二级，是否普惠园：否 | V100: 1 | X100: INSERT INTO sys_org(id, pid, pids, org_type, org_fund_source, education_stage, urban_rural_type, `code`, unique_code, full_name, `name`, short_name, short_name2, tqes_id, tqes_code, `sort`, `status`, address, remark, create_sys_user_id, create_time, longitude, latitude, is_deleted) VALUES(183, 100, '[0],[1],[100],', 3, 3, 1, 1, '0083', 'Y0083', '重庆市渝北区西米幼儿园', '西米幼儿园', '西米幼儿园', '西米幼儿园', 0, '', 1830, 1, '渝北区龙塔街道渝鲁大道666号鲁能星城七街区14幢', '学区：01龙溪学区，等级：二级，是否普惠园：否', 1, NOW(), 0, 0, 0);
A101: Y0084 | B101: 184 | C101: 0 | D101: 100 | E101: [0],[1],[100], | F101: 3 | G101: 龙溪 | H101: 8 | I101: Y | J101: 0084 | K101: Y0084 | L101: 重庆市渝北区爱诺长安华都幼儿园 | M101: 爱诺长安华都幼儿园 | N101: 爱诺长安华都幼儿园 | O101: 爱诺长安华都幼儿园 | P101: 1 | Q101: 1 | R101: 3 | S101: 1840 | T101: 渝北区五红路66号长安华都小区内 | U101: 学区：01龙溪学区，等级：二级，是否普惠园：否 | V101: 1 | X101: INSERT INTO sys_org(id, pid, pids, org_type, org_fund_source, education_stage, urban_rural_type, `code`, unique_code, full_name, `name`, short_name, short_name2, tqes_id, tqes_code, `sort`, `status`, address, remark, create_sys_user_id, create_time, longitude, latitude, is_deleted) VALUES(184, 100, '[0],[1],[100],', 3, 3, 1, 1, '0084', 'Y0084', '重庆市渝北区爱诺长安华都幼儿园', '爱诺长安华都幼儿园', '爱诺长安华都幼儿园', '爱诺长安华都幼儿园', 0, '', 1840, 1, '渝北区五红路66号长安华都小区内', '学区：01龙溪学区，等级：二级，是否普惠园：否', 1, NOW(), 0, 0, 0);
A102: Y0085 | B102: 185 | C102: 0 | D102: 100 | E102: [0],[1],[100], | F102: 3 | G102: 龙溪 | H102: 8 | I102: Y | J102: 0085 | K102: Y0085 | L102: 重庆市渝北区公园王府幼儿园 | M102: 公园王府幼儿园 | N102: 公园王府幼儿园 | O102: 公园王府幼儿园 | P102: 1 | Q102: 1 | R102: 3 | S102: 1850 | T102: 渝北区景园大道18号金科公园王府7栋 | U102: 学区：01龙溪学区，等级：二级，是否普惠园：否 | V102: 1 | X102: INSERT INTO sys_org(id, pid, pids, org_type, org_fund_source, education_stage, urban_rural_type, `code`, unique_code, full_name, `name`, short_name, short_name2, tqes_id, tqes_code, `sort`, `status`, address, remark, create_sys_user_id, create_time, longitude, latitude, is_deleted) VALUES(185, 100, '[0],[1],[100],', 3, 3, 1, 1, '0085', 'Y0085', '重庆市渝北区公园王府幼儿园', '公园王府幼儿园', '公园王府幼儿园', '公园王府幼儿园', 0, '', 1850, 1, '渝北区景园大道18号金科公园王府7栋', '学区：01龙溪学区，等级：二级，是否普惠园：否', 1, NOW(), 0, 0, 0);
A103: Y0086 | B103: 186 | C103: 0 | D103: 100 | E103: [0],[1],[100], | F103: 3 | G103: 龙溪 | H103: 8 | I103: Y | J103: 0086 | K103: Y0086 | L103: 重庆市渝北区佳华幼儿园 | M103: 佳华幼儿园 | N103: 佳华幼儿园 | O103: 佳华幼儿园 | P103: 1 | Q103: 1 | R103: 3 | S103: 1860 | T103: 渝北区紫荆路156号佳华世纪新城E区二期第6栋 | U103: 学区：01龙溪学区，等级：一级，是否普惠园：是 | V103: 1 | X103: INSERT INTO sys_org(id, pid, pids, org_type, org_fund_source, education_stage, urban_rural_type, `code`, unique_code, full_name, `name`, short_name, short_name2, tqes_id, tqes_code, `sort`, `status`, address, remark, create_sys_user_id, create_time, longitude, latitude, is_deleted) VALUES(186, 100, '[0],[1],[100],', 3, 3, 1, 1, '0086', 'Y0086', '重庆市渝北区佳华幼儿园', '佳华幼儿园', '佳华幼儿园', '佳华幼儿园', 0, '', 1860, 1, '渝北区紫荆路156号佳华世纪新城E区二期第6栋', '学区：01龙溪学区，等级：一级，是否普惠园：是', 1, NOW(), 0, 0, 0);
A104: Y0087 | B104: 187 | C104: 0 | D104: 100 | E104: [0],[1],[100], | F104: 3 | G104: 龙溪 | H104: 8 | I104: Y | J104: 0087 | K104: Y0087 | L104: 重庆市渝北区金德凯顿幼儿园 | M104: 金德凯顿幼儿园 | N104: 金德凯顿幼儿园 | O104: 金德凯顿幼儿园 | P104: 1 | Q104: 1 | R104: 3 | S104: 1870 | T104: 渝北区龙塔街道渝鲁大道777号鲁能星城一街区17幢幼儿园 | U104: 学区：01龙溪学区，等级：预一级，是否普惠园：是 | V104: 1 | X104: INSERT INTO sys_org(id, pid, pids, org_type, org_fund_source, education_stage, urban_rural_type, `code`, unique_code, full_name, `name`, short_name, short_name2, tqes_id, tqes_code, `sort`, `status`, address, remark, create_sys_user_id, create_time, longitude, latitude, is_deleted) VALUES(187, 100, '[0],[1],[100],', 3, 3, 1, 1, '0087', 'Y0087', '重庆市渝北区金德凯顿幼儿园', '金德凯顿幼儿园', '金德凯顿幼儿园', '金德凯顿幼儿园', 0, '', 1870, 1, '渝北区龙塔街道渝鲁大道777号鲁能星城一街区17幢幼儿园', '学区：01龙溪学区，等级：预一级，是否普惠园：是', 1, NOW(), 0, 0, 0);
A105: Y0088 | B105: 188 | C105: 0 | D105: 100 | E105: [0],[1],[100], | F105: 3 | G105: 龙溪 | H105: 8 | I105: Y | J105: 0088 | K105: Y0088 | L105: 重庆市渝北区生生高瞻幼儿园 | M105: 生生高瞻幼儿园 | N105: 生生高瞻幼儿园 | O105: 生生高瞻幼儿园 | P105: 1 | Q105: 1 | R105: 3 | S105: 1880 | T105: 渝北区余松路299号 | U105: 学区：01龙溪学区，等级：二级，是否普惠园：是，（世纪宝贝幼儿园更名） | V105: 1 | X105: INSERT INTO sys_org(id, pid, pids, org_type, org_fund_source, education_stage, urban_rural_type, `code`, unique_code, full_name, `name`, short_name, short_name2, tqes_id, tqes_code, `sort`, `status`, address, remark, create_sys_user_id, create_time, longitude, latitude, is_deleted) VALUES(188, 100, '[0],[1],[100],', 3, 3, 1, 1, '0088', 'Y0088', '重庆市渝北区生生高瞻幼儿园', '生生高瞻幼儿园', '生生高瞻幼儿园', '生生高瞻幼儿园', 0, '', 1880, 1, '渝北区余松路299号', '学区：01龙溪学区，等级：二级，是否普惠园：是，（世纪宝贝幼儿园更名）', 1, NOW(), 0, 0, 0);
A106: Y0089 | B106: 189 | C106: 0 | D106: 100 | E106: [0],[1],[100], | F106: 3 | G106: 两路 | H106: 9 | I106: Y | J106: 0089 | K106: Y0089 | L106: 重庆市渝北区城南幼儿园 | M106: 城南幼儿园 | N106: 城南幼儿园 | O106: 城南幼儿园 | P106: 1 | Q106: 1 | R106: 1 | S106: 1890 | T106: 渝北区双龙湖街道北湖路140号 | U106: 学区：02两路学区，等级：二级，是否普惠园：是 | V106: 1 | X106: INSERT INTO sys_org(id, pid, pids, org_type, org_fund_source, education_stage, urban_rural_type, `code`, unique_code, full_name, `name`, short_name, short_name2, tqes_id, tqes_code, `sort`, `status`, address, remark, create_sys_user_id, create_time, longitude, latitude, is_deleted) VALUES(189, 100, '[0],[1],[100],', 3, 1, 1, 1, '0089', 'Y0089', '重庆市渝北区城南幼儿园', '城南幼儿园', '城南幼儿园', '城南幼儿园', 0, '', 1890, 1, '渝北区双龙湖街道北湖路140号', '学区：02两路学区，等级：二级，是否普惠园：是', 1, NOW(), 0, 0, 0);
A107: Y0090 | B107: 190 | C107: 0 | D107: 100 | E107: [0],[1],[100], | F107: 3 | G107: 两路 | H107: 9 | I107: Y | J107: 0090 | K107: Y0090 | L107: 重庆市渝北区城南幼儿园飞湖园 | M107: 城南幼儿园飞湖园 | N107: 城南幼儿园飞湖园 | O107: 城南幼儿园飞湖园 | P107: 1 | Q107: 1 | R107: 1 | S107: 1900 | T107: 渝北区双龙湖街道龙永街28号 | U107: 学区：02两路学区，等级：一级，是否普惠园：是 | V107: 1 | X107: INSERT INTO sys_org(id, pid, pids, org_type, org_fund_source, education_stage, urban_rural_type, `code`, unique_code, full_name, `name`, short_name, short_name2, tqes_id, tqes_code, `sort`, `status`, address, remark, create_sys_user_id, create_time, longitude, latitude, is_deleted) VALUES(190, 100, '[0],[1],[100],', 3, 1, 1, 1, '0090', 'Y0090', '重庆市渝北区城南幼儿园飞湖园', '城南幼儿园飞湖园', '城南幼儿园飞湖园', '城南幼儿园飞湖园', 0, '', 1900, 1, '渝北区双龙湖街道龙永街28号', '学区：02两路学区，等级：一级，是否普惠园：是', 1, NOW(), 0, 0, 0);
A108: Y0091 | B108: 191 | C108: 0 | D108: 100 | E108: [0],[1],[100], | F108: 3 | G108: 两路 | H108: 9 | I108: Y | J108: 0091 | K108: Y0091 | L108: 重庆市渝北区城南幼儿园翠湖园 | M108: 城南幼儿园翠湖园 | N108: 城南幼儿园翠湖园 | O108: 城南幼儿园翠湖园 | P108: 1 | Q108: 1 | R108: 1 | S108: 1910 | T108: 渝北区双龙湖街道翠湖路一巷 | U108: 学区：02两路学区，等级：二级，是否普惠园：是 | V108: 1 | X108: INSERT INTO sys_org(id, pid, pids, org_type, org_fund_source, education_stage, urban_rural_type, `code`, unique_code, full_name, `name`, short_name, short_name2, tqes_id, tqes_code, `sort`, `status`, address, remark, create_sys_user_id, create_time, longitude, latitude, is_deleted) VALUES(191, 100, '[0],[1],[100],', 3, 1, 1, 1, '0091', 'Y0091', '重庆市渝北区城南幼儿园翠湖园', '城南幼儿园翠湖园', '城南幼儿园翠湖园', '城南幼儿园翠湖园', 0, '', 1910, 1, '渝北区双龙湖街道翠湖路一巷', '学区：02两路学区，等级：二级，是否普惠园：是', 1, NOW(), 0, 0, 0);
A109: Y0092 | B109: 192 | C109: 0 | D109: =$B$17 -> 100 | E109: [0],[1],[100], | F109: 3 | G109: 两路 | H109: 9 | I109: Y | J109: 0092 | K109: Y0092 | L109: 重庆市渝北区同茂小学校附属幼儿园 | M109: 同茂小学校附属幼儿园 | N109: 同茂小学校附属幼儿园 | O109: 同茂小学校附属幼儿园 | P109: 1 | Q109: 1 | R109: 2 | S109: 1920 | T109: 渝北区双龙湖街道同茂小学内 | U109: 学区：02两路学区，等级：一级，是否普惠园：是 | V109: 1 | X109: INSERT INTO sys_org(id, pid, pids, org_type, org_fund_source, education_stage, urban_rural_type, `code`, unique_code, full_name, `name`, short_name, short_name2, tqes_id, tqes_code, `sort`, `status`, address, remark, create_sys_user_id, create_time, longitude, latitude, is_deleted) VALUES(192, 100, '[0],[1],[100],', 3, 2, 1, 1, '0092', 'Y0092', '重庆市渝北区同茂小学校附属幼儿园', '同茂小学校附属幼儿园', '同茂小学校附属幼儿园', '同茂小学校附属幼儿园', 0, '', 1920, 1, '渝北区双龙湖街道同茂小学内', '学区：02两路学区，等级：一级，是否普惠园：是', 1, NOW(), 0, 0, 0);
A110: Y0093 | B110: 193 | C110: 0 | D110: 100 | E110: [0],[1],[100], | F110: 3 | G110: 两路 | H110: 9 | I110: Y | J110: 0093 | K110: Y0093 | L110: 重庆市渝北区港城幼儿园 | M110: 港城幼儿园 | N110: 港城幼儿园 | O110: 港城幼儿园 | P110: 1 | Q110: 1 | R110: 3 | S110: 1930 | T110: 渝北区仙桃街道兰馨大道18号 | U110: 学区：02两路学区，等级：一级，是否普惠园：是 | V110: 1 | X110: INSERT INTO sys_org(id, pid, pids, org_type, org_fund_source, education_stage, urban_rural_type, `code`, unique_code, full_name, `name`, short_name, short_name2, tqes_id, tqes_code, `sort`, `status`, address, remark, create_sys_user_id, create_time, longitude, latitude, is_deleted) VALUES(193, 100, '[0],[1],[100],', 3, 3, 1, 1, '0093', 'Y0093', '重庆市渝北区港城幼儿园', '港城幼儿园', '港城幼儿园', '港城幼儿园', 0, '', 1930, 1, '渝北区仙桃街道兰馨大道18号', '学区：02两路学区，等级：一级，是否普惠园：是', 1, NOW(), 0, 0, 0);
A111: Y0094 | B111: 194 | C111: 0 | D111: 100 | E111: [0],[1],[100], | F111: 3 | G111: 两路 | H111: 9 | I111: Y | J111: 0094 | K111: Y0094 | L111: 重庆市渝北区双龙湖思艺幼儿园 | M111: 双龙湖思艺幼儿园 | N111: 双龙湖思艺幼儿园 | O111: 双龙湖思艺幼儿园 | P111: 1 | Q111: 1 | R111: 3 | S111: 1940 | T111: 渝北区翠湖路三巷250号 | U111: 学区：02两路学区，等级：二级，是否普惠园：是 | V111: 1 | X111: INSERT INTO sys_org(id, pid, pids, org_type, org_fund_source, education_stage, urban_rural_type, `code`, unique_code, full_name, `name`, short_name, short_name2, tqes_id, tqes_code, `sort`, `status`, address, remark, create_sys_user_id, create_time, longitude, latitude, is_deleted) VALUES(194, 100, '[0],[1],[100],', 3, 3, 1, 1, '0094', 'Y0094', '重庆市渝北区双龙湖思艺幼儿园', '双龙湖思艺幼儿园', '双龙湖思艺幼儿园', '双龙湖思艺幼儿园', 0, '', 1940, 1, '渝北区翠湖路三巷250号', '学区：02两路学区，等级：二级，是否普惠园：是', 1, NOW(), 0, 0, 0);
A112: Y0095 | B112: 195 | C112: 0 | D112: 100 | E112: [0],[1],[100], | F112: 3 | G112: 两路 | H112: 9 | I112: Y | J112: 0095 | K112: Y0095 | L112: 重庆市渝北区双龙湖佳家幼儿园 | M112: 双龙湖佳家幼儿园 | N112: 双龙湖佳家幼儿园 | O112: 双龙湖佳家幼儿园 | P112: 1 | Q112: 1 | R112: 3 | S112: 1950 | T112: 渝北区双龙湖凯歌路后街4号 | U112: 学区：02两路学区，等级：二级，是否普惠园：是 | V112: 1 | X112: INSERT INTO sys_org(id, pid, pids, org_type, org_fund_source, education_stage, urban_rural_type, `code`, unique_code, full_name, `name`, short_name, short_name2, tqes_id, tqes_code, `sort`, `status`, address, remark, create_sys_user_id, create_time, longitude, latitude, is_deleted) VALUES(195, 100, '[0],[1],[100],', 3, 3, 1, 1, '0095', 'Y0095', '重庆市渝北区双龙湖佳家幼儿园', '双龙湖佳家幼儿园', '双龙湖佳家幼儿园', '双龙湖佳家幼儿园', 0, '', 1950, 1, '渝北区双龙湖凯歌路后街4号', '学区：02两路学区，等级：二级，是否普惠园：是', 1, NOW(), 0, 0, 0);
A113: Y0096 | B113: 196 | C113: 0 | D113: 100 | E113: [0],[1],[100], | F113: 3 | G113: 两路 | H113: 9 | I113: Y | J113: 0096 | K113: Y0096 | L113: 重庆市渝北区双龙湖园丁村幼儿园 | M113: 双龙湖园丁村幼儿园 | N113: 双龙湖园丁村幼儿园 | O113: 双龙湖园丁村幼儿园 | P113: 1 | Q113: 1 | R113: 3 | S113: 1960 | T113: 渝北区龙平街5号1幢单元1-1-3 | U113: 学区：02两路学区，等级：二级，是否普惠园：是 | V113: 1 | X113: INSERT INTO sys_org(id, pid, pids, org_type, org_fund_source, education_stage, urban_rural_type, `code`, unique_code, full_name, `name`, short_name, short_name2, tqes_id, tqes_code, `sort`, `status`, address, remark, create_sys_user_id, create_time, longitude, latitude, is_deleted) VALUES(196, 100, '[0],[1],[100],', 3, 3, 1, 1, '0096', 'Y0096', '重庆市渝北区双龙湖园丁村幼儿园', '双龙湖园丁村幼儿园', '双龙湖园丁村幼儿园', '双龙湖园丁村幼儿园', 0, '', 1960, 1, '渝北区龙平街5号1幢单元1-1-3', '学区：02两路学区，等级：二级，是否普惠园：是', 1, NOW(), 0, 0, 0);
A114: Y0097 | B114: 197 | C114: 0 | D114: 100 | E114: [0],[1],[100], | F114: 3 | G114: 两路 | H114: 9 | I114: Y | J114: 0097 | K114: =I114&RIGHT("000"&J114,4) -> Y0097 | L114: 重庆市渝北区双龙湖华都湖滨幼儿园 | M114: 双龙湖华都湖滨幼儿园 | N114: 双龙湖华都湖滨幼儿园 | O114: 双龙湖华都湖滨幼儿园 | P114: 1 | Q114: 1 | R114: 3 | S114: 1970 | T114: 渝北区双龙大道绣湖路21号 | U114: 学区：02两路学区，等级：二级，是否普惠园：是 | V114: 1 | X114: ="INSERT INTO sys_org(id, pid, pids, org_type, org_fund_source"&", education_stage, urban_rural_type, `code`, unique_code, full_name,"&" `name`, short_name, short_name2, tqes_id, tqes_code, `sort`, `status`, address, remark, create_sys_user_id, create_time, longitude, latitude, is_deleted) VALUES("&B114&", "&D114&", '"&E114&"', "&F114&", "&R114&", "&P114&", "&Q114&", '"&J114&"', '"&K114&"', '"&L114&"', '"&M114&"', '"&N114&"', '"&O114&"', "&C114&", '"&W114&"', "&S114&", "&V114&", '"&T114&"', '"&U114&"', 1, NOW(), 0, 0, 0);" -> INSERT INTO sys_org(id, pid, pids, org_type, org_fund_source, education_stage, urban_rural_type, `code`, unique_code, full_name, `name`, short_name, short_name2, tqes_id, tqes_code, `sort`, `status`, address, remark, create_sys_user_id, create_time, longitude, latitude, is_deleted) VALUES(197, 100, '[0],[1],[100],', 3, 3, 1, 1, '0097', 'Y0097', '重庆市渝北区双龙湖华都湖滨幼儿园', '双龙湖华都湖滨幼儿园', '双龙湖华都湖滨幼儿园', '双龙湖华都湖滨幼儿园', 0, '', 1970, 1, '渝北区双龙大道绣湖路21号', '学区：02两路学区，等级：二级，是否普惠园：是', 1, NOW(), 0, 0, 0);
A115: Y0098 | B115: 198 | C115: 0 | D115: 100 | E115: =$E$17&"["&D115&"]," -> [0],[1],[100], | F115: 3 | G115: 两路 | H115: 9 | I115: Y | J115: 0098 | K115: Y0098 | L115: 重庆市渝北区双龙湖艺苗幼儿园 | M115: 双龙湖艺苗幼儿园 | N115: 双龙湖艺苗幼儿园 | O115: 双龙湖艺苗幼儿园 | P115: 1 | Q115: 1 | R115: 3 | S115: 1980 | T115: 渝北区双龙湖街道龙兴街85号 | U115: 学区：02两路学区，等级：二级，是否普惠园：是 | V115: 1 | X115: INSERT INTO sys_org(id, pid, pids, org_type, org_fund_source, education_stage, urban_rural_type, `code`, unique_code, full_name, `name`, short_name, short_name2, tqes_id, tqes_code, `sort`, `status`, address, remark, create_sys_user_id, create_time, longitude, latitude, is_deleted) VALUES(198, 100, '[0],[1],[100],', 3, 3, 1, 1, '0098', 'Y0098', '重庆市渝北区双龙湖艺苗幼儿园', '双龙湖艺苗幼儿园', '双龙湖艺苗幼儿园', '双龙湖艺苗幼儿园', 0, '', 1980, 1, '渝北区双龙湖街道龙兴街85号', '学区：02两路学区，等级：二级，是否普惠园：是', 1, NOW(), 0, 0, 0);
A116: Y0099 | B116: 199 | C116: 0 | D116: 100 | E116: [0],[1],[100], | F116: 3 | G116: 两路 | H116: 9 | I116: Y | J116: 0099 | K116: Y0099 | L116: 重庆市渝北区星朗幼儿园 | M116: 星朗幼儿园 | N116: 星朗幼儿园 | O116: 星朗幼儿园 | P116: 1 | Q116: 1 | R116: 3 | S116: 1990 | T116: 渝北区双龙西路149号 | U116: 学区：02两路学区，等级：二级，是否普惠园：是 | V116: 1 | X116: INSERT INTO sys_org(id, pid, pids, org_type, org_fund_source, education_stage, urban_rural_type, `code`, unique_code, full_name, `name`, short_name, short_name2, tqes_id, tqes_code, `sort`, `status`, address, remark, create_sys_user_id, create_time, longitude, latitude, is_deleted) VALUES(199, 100, '[0],[1],[100],', 3, 3, 1, 1, '0099', 'Y0099', '重庆市渝北区星朗幼儿园', '星朗幼儿园', '星朗幼儿园', '星朗幼儿园', 0, '', 1990, 1, '渝北区双龙西路149号', '学区：02两路学区，等级：二级，是否普惠园：是', 1, NOW(), 0, 0, 0);
A117: Y0100 | B117: 200 | C117: 0 | D117: 100 | E117: [0],[1],[100], | F117: 3 | G117: 两路 | H117: 9 | I117: Y | J117: 0100 | K117: Y0100 | L117: 重庆市渝北区阳光宝童幼儿园 | M117: 阳光宝童幼儿园 | N117: 阳光宝童幼儿园 | O117: 阳光宝童幼儿园 | P117: 1 | Q117: 1 | R117: 3 | S117: 2000 | T117: 渝北区双龙湖街道银鑫路7号 | U117: 学区：02两路学区，等级：二级，是否普惠园：是 | V117: 1 | X117: INSERT INTO sys_org(id, pid, pids, org_type, org_fund_source, education_stage, urban_rural_type, `code`, unique_code, full_name, `name`, short_name, short_name2, tqes_id, tqes_code, `sort`, `status`, address, remark, create_sys_user_id, create_time, longitude, latitude, is_deleted) VALUES(200, 100, '[0],[1],[100],', 3, 3, 1, 1, '0100', 'Y0100', '重庆市渝北区阳光宝童幼儿园', '阳光宝童幼儿园', '阳光宝童幼儿园', '阳光宝童幼儿园', 0, '', 2000, 1, '渝北区双龙湖街道银鑫路7号', '学区：02两路学区，等级：二级，是否普惠园：是', 1, NOW(), 0, 0, 0);
A118: Y0101 | B118: 201 | C118: 0 | D118: 100 | E118: [0],[1],[100], | F118: 3 | G118: 两路 | H118: 9 | I118: Y | J118: 0101 | K118: Y0101 | L118: 重庆市渝北区紫台金宝贝幼儿园 | M118: 紫台金宝贝幼儿园 | N118: 紫台金宝贝幼儿园 | O118: 紫台金宝贝幼儿园 | P118: 1 | Q118: 1 | R118: 3 | S118: 2010 | T118: 渝北区双龙湖街道同茂大道14号紫台春千集B商业 | U118: 学区：02两路学区，等级：二级，是否普惠园：是 | V118: 1 | X118: INSERT INTO sys_org(id, pid, pids, org_type, org_fund_source, education_stage, urban_rural_type, `code`, unique_code, full_name, `name`, short_name, short_name2, tqes_id, tqes_code, `sort`, `status`, address, remark, create_sys_user_id, create_time, longitude, latitude, is_deleted) VALUES(201, 100, '[0],[1],[100],', 3, 3, 1, 1, '0101', 'Y0101', '重庆市渝北区紫台金宝贝幼儿园', '紫台金宝贝幼儿园', '紫台金宝贝幼儿园', '紫台金宝贝幼儿园', 0, '', 2010, 1, '渝北区双龙湖街道同茂大道14号紫台春千集B商业', '学区：02两路学区，等级：二级，是否普惠园：是', 1, NOW(), 0, 0, 0);
A119: Y0102 | B119: 202 | C119: 0 | D119: =$B$17 -> 100 | E119: [0],[1],[100], | F119: 3 | G119: 两路 | H119: 9 | I119: Y | J119: 0102 | K119: Y0102 | L119: 重庆市渝北区双龙湖小不点幼儿园 | M119: 双龙湖小不点幼儿园 | N119: 双龙湖小不点幼儿园 | O119: 双龙湖小不点幼儿园 | P119: 1 | Q119: 1 | R119: 3 | S119: 2020 | T119: 渝北区双龙湖一支路龙裕街58号 | U119: 学区：02两路学区，等级：二级，是否普惠园：是 | V119: 1 | X119: INSERT INTO sys_org(id, pid, pids, org_type, org_fund_source, education_stage, urban_rural_type, `code`, unique_code, full_name, `name`, short_name, short_name2, tqes_id, tqes_code, `sort`, `status`, address, remark, create_sys_user_id, create_time, longitude, latitude, is_deleted) VALUES(202, 100, '[0],[1],[100],', 3, 3, 1, 1, '0102', 'Y0102', '重庆市渝北区双龙湖小不点幼儿园', '双龙湖小不点幼儿园', '双龙湖小不点幼儿园', '双龙湖小不点幼儿园', 0, '', 2020, 1, '渝北区双龙湖一支路龙裕街58号', '学区：02两路学区，等级：二级，是否普惠园：是', 1, NOW(), 0, 0, 0);
A120: Y0103 | B120: 203 | C120: 0 | D120: 100 | E120: [0],[1],[100], | F120: 3 | G120: 两路 | H120: 9 | I120: Y | J120: 0103 | K120: Y0103 | L120: 重庆市渝北区双龙湖老干部活动中心幼儿园 | M120: 双龙湖老干部活动中心幼儿园 | N120: 双龙湖老干部活动中心幼儿园 | O120: 双龙湖老干部活动中心幼儿园 | P120: 1 | Q120: 1 | R120: 3 | S120: 2030 | T120: 渝北区双龙湖龙永街28号 | U120: 学区：02两路学区，等级：三级，是否普惠园：是 | V120: 1 | X120: INSERT INTO sys_org(id, pid, pids, org_type, org_fund_source, education_stage, urban_rural_type, `code`, unique_code, full_name, `name`, short_name, short_name2, tqes_id, tqes_code, `sort`, `status`, address, remark, create_sys_user_id, create_time, longitude, latitude, is_deleted) VALUES(203, 100, '[0],[1],[100],', 3, 3, 1, 1, '0103', 'Y0103', '重庆市渝北区双龙湖老干部活动中心幼儿园', '双龙湖老干部活动中心幼儿园', '双龙湖老干部活动中心幼儿园', '双龙湖老干部活动中心幼儿园', 0, '', 2030, 1, '渝北区双龙湖龙永街28号', '学区：02两路学区，等级：三级，是否普惠园：是', 1, NOW(), 0, 0, 0);
A121: Y0104 | B121: 204 | C121: 0 | D121: 100 | E121: [0],[1],[100], | F121: 3 | G121: 两路 | H121: 9 | I121: Y | J121: 0104 | K121: Y0104 | L121: 重庆市渝北区双龙湖育苗幼儿园 | M121: 双龙湖育苗幼儿园 | N121: 双龙湖育苗幼儿园 | O121: 双龙湖育苗幼儿园 | P121: 1 | Q121: 1 | R121: 3 | S121: 2040 | T121: 渝北区双龙湖街道龙盛街90号 | U121: 学区：02两路学区，等级：三级，是否普惠园：是 | V121: 1 | X121: INSERT INTO sys_org(id, pid, pids, org_type, org_fund_source, education_stage, urban_rural_type, `code`, unique_code, full_name, `name`, short_name, short_name2, tqes_id, tqes_code, `sort`, `status`, address, remark, create_sys_user_id, create_time, longitude, latitude, is_deleted) VALUES(204, 100, '[0],[1],[100],', 3, 3, 1, 1, '0104', 'Y0104', '重庆市渝北区双龙湖育苗幼儿园', '双龙湖育苗幼儿园', '双龙湖育苗幼儿园', '双龙湖育苗幼儿园', 0, '', 2040, 1, '渝北区双龙湖街道龙盛街90号', '学区：02两路学区，等级：三级，是否普惠园：是', 1, NOW(), 0, 0, 0);
A122: Y0105 | B122: 205 | C122: 0 | D122: 100 | E122: [0],[1],[100], | F122: 3 | G122: 两路 | H122: 9 | I122: Y | J122: 0105 | K122: Y0105 | L122: 重庆市渝北区双龙湖天寨幼儿园 | M122: 双龙湖天寨幼儿园 | N122: 双龙湖天寨幼儿园 | O122: 双龙湖天寨幼儿园 | P122: 1 | Q122: 1 | R122: 3 | S122: 2050 | T122: 渝北区五星路162号 | U122: 学区：02两路学区，等级：三级，是否普惠园：是 | V122: 1 | X122: INSERT INTO sys_org(id, pid, pids, org_type, org_fund_source, education_stage, urban_rural_type, `code`, unique_code, full_name, `name`, short_name, short_name2, tqes_id, tqes_code, `sort`, `status`, address, remark, create_sys_user_id, create_time, longitude, latitude, is_deleted) VALUES(205, 100, '[0],[1],[100],', 3, 3, 1, 1, '0105', 'Y0105', '重庆市渝北区双龙湖天寨幼儿园', '双龙湖天寨幼儿园', '双龙湖天寨幼儿园', '双龙湖天寨幼儿园', 0, '', 2050, 1, '渝北区五星路162号', '学区：02两路学区，等级：三级，是否普惠园：是', 1, NOW(), 0, 0, 0);
A123: Y0106 | B123: 206 | C123: 0 | D123: 100 | E123: [0],[1],[100], | F123: 3 | G123: 两路 | H123: 9 | I123: Y | J123: 0106 | K123: Y0106 | L123: 重庆市渝北区双龙湖康利幼儿园 | M123: 双龙湖康利幼儿园 | N123: 双龙湖康利幼儿园 | O123: 双龙湖康利幼儿园 | P123: 1 | Q123: 1 | R123: 3 | S123: 2060 | T123: 渝北区双龙湖龙康街124号 | U123: 学区：02两路学区，等级：三级，是否普惠园：是 | V123: 1 | X123: INSERT INTO sys_org(id, pid, pids, org_type, org_fund_source, education_stage, urban_rural_type, `code`, unique_code, full_name, `name`, short_name, short_name2, tqes_id, tqes_code, `sort`, `status`, address, remark, create_sys_user_id, create_time, longitude, latitude, is_deleted) VALUES(206, 100, '[0],[1],[100],', 3, 3, 1, 1, '0106', 'Y0106', '重庆市渝北区双龙湖康利幼儿园', '双龙湖康利幼儿园', '双龙湖康利幼儿园', '双龙湖康利幼儿园', 0, '', 2060, 1, '渝北区双龙湖龙康街124号', '学区：02两路学区，等级：三级，是否普惠园：是', 1, NOW(), 0, 0, 0);
A124: Y0107 | B124: 207 | C124: 0 | D124: 100 | E124: [0],[1],[100], | F124: 3 | G124: 两路 | H124: 9 | I124: Y | J124: 0107 | K124: Y0107 | L124: 重庆市渝北区双龙湖花蕾幼儿园 | M124: 双龙湖花蕾幼儿园 | N124: 双龙湖花蕾幼儿园 | O124: 双龙湖花蕾幼儿园 | P124: 1 | Q124: 1 | R124: 3 | S124: 2070 | T124: 渝北区双龙湖龙升街114# | U124: 学区：02两路学区，等级：三级，是否普惠园：是 | V124: 1 | X124: INSERT INTO sys_org(id, pid, pids, org_type, org_fund_source, education_stage, urban_rural_type, `code`, unique_code, full_name, `name`, short_name, short_name2, tqes_id, tqes_code, `sort`, `status`, address, remark, create_sys_user_id, create_time, longitude, latitude, is_deleted) VALUES(207, 100, '[0],[1],[100],', 3, 3, 1, 1, '0107', 'Y0107', '重庆市渝北区双龙湖花蕾幼儿园', '双龙湖花蕾幼儿园', '双龙湖花蕾幼儿园', '双龙湖花蕾幼儿园', 0, '', 2070, 1, '渝北区双龙湖龙升街114#', '学区：02两路学区，等级：三级，是否普惠园：是', 1, NOW(), 0, 0, 0);
A125: Y0108 | B125: 208 | C125: 0 | D125: 100 | E125: [0],[1],[100], | F125: 3 | G125: 两路 | H125: 9 | I125: Y | J125: 0108 | K125: Y0108 | L125: 重庆市渝北区光彩幼儿园 | M125: 光彩幼儿园 | N125: 光彩幼儿园 | O125: 光彩幼儿园 | P125: 1 | Q125: 1 | R125: 3 | S125: 2080 | T125: 渝北区双龙湖街道五星路三巷18号 | U125: 学区：02两路学区，等级：三级，是否普惠园：是 | V125: 1 | X125: INSERT INTO sys_org(id, pid, pids, org_type, org_fund_source, education_stage, urban_rural_type, `code`, unique_code, full_name, `name`, short_name, short_name2, tqes_id, tqes_code, `sort`, `status`, address, remark, create_sys_user_id, create_time, longitude, latitude, is_deleted) VALUES(208, 100, '[0],[1],[100],', 3, 3, 1, 1, '0108', 'Y0108', '重庆市渝北区光彩幼儿园', '光彩幼儿园', '光彩幼儿园', '光彩幼儿园', 0, '', 2080, 1, '渝北区双龙湖街道五星路三巷18号', '学区：02两路学区，等级：三级，是否普惠园：是', 1, NOW(), 0, 0, 0);
A126: Y0109 | B126: 209 | C126: 0 | D126: 100 | E126: [0],[1],[100], | F126: 3 | G126: 两路 | H126: 9 | I126: Y | J126: 0109 | K126: Y0109 | L126: 重庆市渝北区双龙湖南灵幼儿园 | M126: 双龙湖南灵幼儿园 | N126: 双龙湖南灵幼儿园 | O126: 双龙湖南灵幼儿园 | P126: 1 | Q126: 1 | R126: 3 | S126: 2090 | T126: 渝北区双龙湖龙康街161号 | U126: 学区：02两路学区，等级：三级，是否普惠园：是 | V126: 1 | X126: INSERT INTO sys_org(id, pid, pids, org_type, org_fund_source, education_stage, urban_rural_type, `code`, unique_code, full_name, `name`, short_name, short_name2, tqes_id, tqes_code, `sort`, `status`, address, remark, create_sys_user_id, create_time, longitude, latitude, is_deleted) VALUES(209, 100, '[0],[1],[100],', 3, 3, 1, 1, '0109', 'Y0109', '重庆市渝北区双龙湖南灵幼儿园', '双龙湖南灵幼儿园', '双龙湖南灵幼儿园', '双龙湖南灵幼儿园', 0, '', 2090, 1, '渝北区双龙湖龙康街161号', '学区：02两路学区，等级：三级，是否普惠园：是', 1, NOW(), 0, 0, 0);
A127: Y0110 | B127: 210 | C127: 0 | D127: 100 | E127: [0],[1],[100], | F127: 3 | G127: 两路 | H127: 9 | I127: Y | J127: 0110 | K127: Y0110 | L127: 重庆市渝北区双龙湖红孩儿幼儿园 | M127: 双龙湖红孩儿幼儿园 | N127: 双龙湖红孩儿幼儿园 | O127: 双龙湖红孩儿幼儿园 | P127: 1 | Q127: 1 | R127: 3 | S127: 2100 | T127: 渝北区双龙湖街道龙平街一巷43号 | U127: 学区：02两路学区，等级：三级，是否普惠园：是 | V127: 1 | X127: INSERT INTO sys_org(id, pid, pids, org_type, org_fund_source, education_stage, urban_rural_type, `code`, unique_code, full_name, `name`, short_name, short_name2, tqes_id, tqes_code, `sort`, `status`, address, remark, create_sys_user_id, create_time, longitude, latitude, is_deleted) VALUES(210, 100, '[0],[1],[100],', 3, 3, 1, 1, '0110', 'Y0110', '重庆市渝北区双龙湖红孩儿幼儿园', '双龙湖红孩儿幼儿园', '双龙湖红孩儿幼儿园', '双龙湖红孩儿幼儿园', 0, '', 2100, 1, '渝北区双龙湖街道龙平街一巷43号', '学区：02两路学区，等级：三级，是否普惠园：是', 1, NOW(), 0, 0, 0);
A128: Y0111 | B128: 211 | C128: 0 | D128: 100 | E128: [0],[1],[100], | F128: 3 | G128: 两路 | H128: 9 | I128: Y | J128: 0111 | K128: Y0111 | L128: 重庆市渝北区双龙湖蓝天贝贝幼儿园 | M128: 双龙湖蓝天贝贝幼儿园 | N128: 双龙湖蓝天贝贝幼儿园 | O128: 双龙湖蓝天贝贝幼儿园 | P128: 1 | Q128: 1 | R128: 3 | S128: 2110 | T128: 渝北区双龙湖龙平街三巷检察院家属院B栋9-12号 | U128: 学区：02两路学区，等级：三级，是否普惠园：是 | V128: 1 | X128: INSERT INTO sys_org(id, pid, pids, org_type, org_fund_source, education_stage, urban_rural_type, `code`, unique_code, full_name, `name`, short_name, short_name2, tqes_id, tqes_code, `sort`, `status`, address, remark, create_sys_user_id, create_time, longitude, latitude, is_deleted) VALUES(211, 100, '[0],[1],[100],', 3, 3, 1, 1, '0111', 'Y0111', '重庆市渝北区双龙湖蓝天贝贝幼儿园', '双龙湖蓝天贝贝幼儿园', '双龙湖蓝天贝贝幼儿园', '双龙湖蓝天贝贝幼儿园', 0, '', 2110, 1, '渝北区双龙湖龙平街三巷检察院家属院B栋9-12号', '学区：02两路学区，等级：三级，是否普惠园：是', 1, NOW(), 0, 0, 0);
A129: Y0112 | B129: 212 | C129: 0 | D129: =$B$17 -> 100 | E129: [0],[1],[100], | F129: 3 | G129: 两路 | H129: 9 | I129: Y | J129: 0112 | K129: Y0112 | L129: 重庆市渝北区双龙湖苗苗幼儿园 | M129: 双龙湖苗苗幼儿园 | N129: 双龙湖苗苗幼儿园 | O129: 双龙湖苗苗幼儿园 | P129: 1 | Q129: 1 | R129: 3 | S129: 2120 | T129: 渝北区双龙湖街道五星路4巷19号 | U129: 学区：02两路学区，等级：三级，是否普惠园：是 | V129: 1 | X129: INSERT INTO sys_org(id, pid, pids, org_type, org_fund_source, education_stage, urban_rural_type, `code`, unique_code, full_name, `name`, short_name, short_name2, tqes_id, tqes_code, `sort`, `status`, address, remark, create_sys_user_id, create_time, longitude, latitude, is_deleted) VALUES(212, 100, '[0],[1],[100],', 3, 3, 1, 1, '0112', 'Y0112', '重庆市渝北区双龙湖苗苗幼儿园', '双龙湖苗苗幼儿园', '双龙湖苗苗幼儿园', '双龙湖苗苗幼儿园', 0, '', 2120, 1, '渝北区双龙湖街道五星路4巷19号', '学区：02两路学区，等级：三级，是否普惠园：是', 1, NOW(), 0, 0, 0);
A130: Y0113 | B130: 213 | C130: 0 | D130: 100 | E130: [0],[1],[100], | F130: 3 | G130: 两路 | H130: 9 | I130: Y | J130: 0113 | K130: Y0113 | L130: 重庆市渝北区双龙湖彩虹幼儿园 | M130: 双龙湖彩虹幼儿园 | N130: 双龙湖彩虹幼儿园 | O130: 双龙湖彩虹幼儿园 | P130: 1 | Q130: 1 | R130: 3 | S130: 2130 | T130: 渝北区龙康街161号3-3-1-2 | U130: 学区：02两路学区，等级：三级，是否普惠园：是 | V130: 1 | X130: INSERT INTO sys_org(id, pid, pids, org_type, org_fund_source, education_stage, urban_rural_type, `code`, unique_code, full_name, `name`, short_name, short_name2, tqes_id, tqes_code, `sort`, `status`, address, remark, create_sys_user_id, create_time, longitude, latitude, is_deleted) VALUES(213, 100, '[0],[1],[100],', 3, 3, 1, 1, '0113', 'Y0113', '重庆市渝北区双龙湖彩虹幼儿园', '双龙湖彩虹幼儿园', '双龙湖彩虹幼儿园', '双龙湖彩虹幼儿园', 0, '', 2130, 1, '渝北区龙康街161号3-3-1-2', '学区：02两路学区，等级：三级，是否普惠园：是', 1, NOW(), 0, 0, 0);
A131: Y0114 | B131: 214 | C131: 0 | D131: 100 | E131: [0],[1],[100], | F131: 3 | G131: 两路 | H131: 9 | I131: Y | J131: 0114 | K131: Y0114 | L131: 重庆市渝北区双龙湖群欣幼儿园 | M131: 双龙湖群欣幼儿园 | N131: 双龙湖群欣幼儿园 | O131: 双龙湖群欣幼儿园 | P131: 1 | Q131: 1 | R131: 3 | S131: 2140 | T131: 渝北区渝湖路56号 | U131: 学区：02两路学区，等级：三级，是否普惠园：是 | V131: 1 | X131: INSERT INTO sys_org(id, pid, pids, org_type, org_fund_source, education_stage, urban_rural_type, `code`, unique_code, full_name, `name`, short_name, short_name2, tqes_id, tqes_code, `sort`, `status`, address, remark, create_sys_user_id, create_time, longitude, latitude, is_deleted) VALUES(214, 100, '[0],[1],[100],', 3, 3, 1, 1, '0114', 'Y0114', '重庆市渝北区双龙湖群欣幼儿园', '双龙湖群欣幼儿园', '双龙湖群欣幼儿园', '双龙湖群欣幼儿园', 0, '', 2140, 1, '渝北区渝湖路56号', '学区：02两路学区，等级：三级，是否普惠园：是', 1, NOW(), 0, 0, 0);
A132: Y0115 | B132: 215 | C132: 0 | D132: 100 | E132: [0],[1],[100], | F132: 3 | G132: 两路 | H132: 9 | I132: Y | J132: 0115 | K132: Y0115 | L132: 重庆市渝北区绿梦幼儿园 | M132: 绿梦幼儿园 | N132: 绿梦幼儿园 | O132: 绿梦幼儿园 | P132: 1 | Q132: 1 | R132: 3 | S132: 2150 | T132: 渝北区双龙大道474号 | U132: 学区：02两路学区，等级：二级，是否普惠园：是 | V132: 1 | X132: INSERT INTO sys_org(id, pid, pids, org_type, org_fund_source, education_stage, urban_rural_type, `code`, unique_code, full_name, `name`, short_name, short_name2, tqes_id, tqes_code, `sort`, `status`, address, remark, create_sys_user_id, create_time, longitude, latitude, is_deleted) VALUES(215, 100, '[0],[1],[100],', 3, 3, 1, 1, '0115', 'Y0115', '重庆市渝北区绿梦幼儿园', '绿梦幼儿园', '绿梦幼儿园', '绿梦幼儿园', 0, '', 2150, 1, '渝北区双龙大道474号', '学区：02两路学区，等级：二级，是否普惠园：是', 1, NOW(), 0, 0, 0);
A133: Y0116 | B133: 216 | C133: 0 | D133: 100 | E133: [0],[1],[100], | F133: 3 | G133: 两路 | H133: 9 | I133: Y | J133: 0116 | K133: Y0116 | L133: 重庆市渝北区鹿山村宝贝幼儿园 | M133: 鹿山村宝贝幼儿园 | N133: 鹿山村宝贝幼儿园 | O133: 鹿山村宝贝幼儿园 | P133: 1 | Q133: 1 | R133: 3 | S133: 2160 | T133: 渝北区双龙湖街道观音岩路168号格林上城小区 | U133: 学区：02两路学区，等级：三级，是否普惠园：是 | V133: 1 | X133: INSERT INTO sys_org(id, pid, pids, org_type, org_fund_source, education_stage, urban_rural_type, `code`, unique_code, full_name, `name`, short_name, short_name2, tqes_id, tqes_code, `sort`, `status`, address, remark, create_sys_user_id, create_time, longitude, latitude, is_deleted) VALUES(216, 100, '[0],[1],[100],', 3, 3, 1, 1, '0116', 'Y0116', '重庆市渝北区鹿山村宝贝幼儿园', '鹿山村宝贝幼儿园', '鹿山村宝贝幼儿园', '鹿山村宝贝幼儿园', 0, '', 2160, 1, '渝北区双龙湖街道观音岩路168号格林上城小区', '学区：02两路学区，等级：三级，是否普惠园：是', 1, NOW(), 0, 0, 0);
A134: Y0117 | B134: 217 | C134: 0 | D134: 100 | E134: [0],[1],[100], | F134: 3 | G134: 两路 | H134: 9 | I134: Y | J134: 0117 | K134: Y0117 | L134: 重庆市渝北区水木香山贝乐坊幼儿园 | M134: 水木香山贝乐坊幼儿园 | N134: 水木香山贝乐坊幼儿园 | O134: 水木香山贝乐坊幼儿园 | P134: 1 | Q134: 1 | R134: 3 | S134: 2170 | T134: 渝北区双龙湖街道竹音支路18号34栋1-1、2-1 | U134: 学区：02两路学区，等级：一级，是否普惠园：是 | V134: 1 | X134: INSERT INTO sys_org(id, pid, pids, org_type, org_fund_source, education_stage, urban_rural_type, `code`, unique_code, full_name, `name`, short_name, short_name2, tqes_id, tqes_code, `sort`, `status`, address, remark, create_sys_user_id, create_time, longitude, latitude, is_deleted) VALUES(217, 100, '[0],[1],[100],', 3, 3, 1, 1, '0117', 'Y0117', '重庆市渝北区水木香山贝乐坊幼儿园', '水木香山贝乐坊幼儿园', '水木香山贝乐坊幼儿园', '水木香山贝乐坊幼儿园', 0, '', 2170, 1, '渝北区双龙湖街道竹音支路18号34栋1-1、2-1', '学区：02两路学区，等级：一级，是否普惠园：是', 1, NOW(), 0, 0, 0);
A135: Y0118 | B135: 218 | C135: 0 | D135: 100 | E135: [0],[1],[100], | F135: 3 | G135: 两路 | H135: 9 | I135: Y | J135: 0118 | K135: Y0118 | L135: 重庆市渝北区莱恩幼儿园 | M135: 莱恩幼儿园 | N135: 莱恩幼儿园 | O135: 莱恩幼儿园 | P135: 1 | Q135: 1 | R135: 3 | S135: 2180 | T135: 渝北区空港新城兰馨大道18号附26号 | U135: 学区：02两路学区，等级：二级，是否普惠园：否 | V135: 1 | X135: INSERT INTO sys_org(id, pid, pids, org_type, org_fund_source, education_stage, urban_rural_type, `code`, unique_code, full_name, `name`, short_name, short_name2, tqes_id, tqes_code, `sort`, `status`, address, remark, create_sys_user_id, create_time, longitude, latitude, is_deleted) VALUES(218, 100, '[0],[1],[100],', 3, 3, 1, 1, '0118', 'Y0118', '重庆市渝北区莱恩幼儿园', '莱恩幼儿园', '莱恩幼儿园', '莱恩幼儿园', 0, '', 2180, 1, '渝北区空港新城兰馨大道18号附26号', '学区：02两路学区，等级：二级，是否普惠园：否', 1, NOW(), 0, 0, 0);
A136: Y0119 | B136: 219 | C136: 0 | D136: 100 | E136: [0],[1],[100], | F136: 3 | G136: 两路 | H136: 9 | I136: Y | J136: 0119 | K136: Y0119 | L136: 重庆市渝北区润丰水尚幼儿园 | M136: 润丰水尚幼儿园 | N136: 润丰水尚幼儿园 | O136: 润丰水尚幼儿园 | P136: 1 | Q136: 1 | R136: 3 | S136: 2190 | T136: 重庆市渝北区兰桂大道2号18幢 | U136: 学区：02两路学区，等级：一级，是否普惠园：是 | V136: 1 | X136: INSERT INTO sys_org(id, pid, pids, org_type, org_fund_source, education_stage, urban_rural_type, `code`, unique_code, full_name, `name`, short_name, short_name2, tqes_id, tqes_code, `sort`, `status`, address, remark, create_sys_user_id, create_time, longitude, latitude, is_deleted) VALUES(219, 100, '[0],[1],[100],', 3, 3, 1, 1, '0119', 'Y0119', '重庆市渝北区润丰水尚幼儿园', '润丰水尚幼儿园', '润丰水尚幼儿园', '润丰水尚幼儿园', 0, '', 2190, 1, '重庆市渝北区兰桂大道2号18幢', '学区：02两路学区，等级：一级，是否普惠园：是', 1, NOW(), 0, 0, 0);
A137: Y0120 | B137: 220 | C137: 0 | D137: 100 | E137: [0],[1],[100], | F137: 3 | G137: 两路 | H137: 9 | I137: Y | J137: 0120 | K137: Y0120 | L137: 重庆市渝北区公园北路幼儿园 | M137: 公园北路幼儿园 | N137: 公园北路幼儿园 | O137: 公园北路幼儿园 | P137: 1 | Q137: 1 | R137: 1 | S137: 2200 | T137: 渝北区仙桃街道中央公园北路8号 | U137: 学区：02两路学区，等级：一级，是否普惠园：是 | V137: 1 | X137: INSERT INTO sys_org(id, pid, pids, org_type, org_fund_source, education_stage, urban_rural_type, `code`, unique_code, full_name, `name`, short_name, short_name2, tqes_id, tqes_code, `sort`, `status`, address, remark, create_sys_user_id, create_time, longitude, latitude, is_deleted) VALUES(220, 100, '[0],[1],[100],', 3, 1, 1, 1, '0120', 'Y0120', '重庆市渝北区公园北路幼儿园', '公园北路幼儿园', '公园北路幼儿园', '公园北路幼儿园', 0, '', 2200, 1, '渝北区仙桃街道中央公园北路8号', '学区：02两路学区，等级：一级，是否普惠园：是 ', 1, NOW(), 0, 0, 0);
A138: Y0121 | B138: 221 | C138: 0 | D138: 100 | E138: [0],[1],[100], | F138: 3 | G138: 两路 | H138: 9 | I138: Y | J138: 0121 | K138: Y0121 | L138: 重庆市渝北区腾芳幼儿园桂馥园 | M138: 腾芳幼儿园桂馥园 | N138: 腾芳幼儿园桂馥园 | O138: 腾芳幼儿园桂馥园 | P138: 1 | Q138: 1 | R138: 1 | S138: 2210 | T138: 渝北区仙桃街道桂馥二支路18号 | U138: 学区：02两路学区，等级：一级，是否普惠园：是 | V138: 1 | X138: INSERT INTO sys_org(id, pid, pids, org_type, org_fund_source, education_stage, urban_rural_type, `code`, unique_code, full_name, `name`, short_name, short_name2, tqes_id, tqes_code, `sort`, `status`, address, remark, create_sys_user_id, create_time, longitude, latitude, is_deleted) VALUES(221, 100, '[0],[1],[100],', 3, 1, 1, 1, '0121', 'Y0121', '重庆市渝北区腾芳幼儿园桂馥园', '腾芳幼儿园桂馥园', '腾芳幼儿园桂馥园', '腾芳幼儿园桂馥园', 0, '', 2210, 1, '渝北区仙桃街道桂馥二支路18号', '学区：02两路学区，等级：一级，是否普惠园：是', 1, NOW(), 0, 0, 0);
A139: Y0122 | B139: 222 | C139: 0 | D139: =$B$17 -> 100 | E139: [0],[1],[100], | F139: 3 | G139: 两路 | H139: 9 | I139: Y | J139: 0122 | K139: Y0122 | L139: 重庆市渝北区空港佳园幼儿园学盛园（G园） | M139: 空港佳园幼儿园学盛园（G园） | N139: 空港佳园幼儿园学盛园（G园） | O139: 空港佳园幼儿园学盛园（G园） | P139: 1 | Q139: 1 | R139: 1 | S139: 2220 | T139: 渝北区仙桃街道丛岩一路17号 | U139: 学区：02两路学区，等级：一级，是否普惠园：是 | V139: 1 | X139: INSERT INTO sys_org(id, pid, pids, org_type, org_fund_source, education_stage, urban_rural_type, `code`, unique_code, full_name, `name`, short_name, short_name2, tqes_id, tqes_code, `sort`, `status`, address, remark, create_sys_user_id, create_time, longitude, latitude, is_deleted) VALUES(222, 100, '[0],[1],[100],', 3, 1, 1, 1, '0122', 'Y0122', '重庆市渝北区空港佳园幼儿园学盛园（G园）', '空港佳园幼儿园学盛园（G园）', '空港佳园幼儿园学盛园（G园）', '空港佳园幼儿园学盛园（G园）', 0, '', 2220, 1, '渝北区仙桃街道丛岩一路17号', '学区：02两路学区，等级：一级，是否普惠园：是', 1, NOW(), 0, 0, 0);
A140: Y0123 | B140: 223 | C140: 0 | D140: 100 | E140: [0],[1],[100], | F140: 3 | G140: 两路 | H140: 9 | I140: Y | J140: 0123 | K140: Y0123 | L140: 重庆市渝北区空港佳园幼儿园丛岩园（E园） | M140: 空港佳园幼儿园丛岩园（E园） | N140: 空港佳园幼儿园丛岩园（E园） | O140: 空港佳园幼儿园丛岩园（E园） | P140: 1 | Q140: 1 | R140: 1 | S140: 2230 | T140: 渝北区仙桃街道丛岩一路1号 | U140: 学区：02两路学区，等级：一级，是否普惠园：是 | V140: 1 | X140: INSERT INTO sys_org(id, pid, pids, org_type, org_fund_source, education_stage, urban_rural_type, `code`, unique_code, full_name, `name`, short_name, short_name2, tqes_id, tqes_code, `sort`, `status`, address, remark, create_sys_user_id, create_time, longitude, latitude, is_deleted) VALUES(223, 100, '[0],[1],[100],', 3, 1, 1, 1, '0123', 'Y0123', '重庆市渝北区空港佳园幼儿园丛岩园（E园）', '空港佳园幼儿园丛岩园（E园）', '空港佳园幼儿园丛岩园（E园）', '空港佳园幼儿园丛岩园（E园）', 0, '', 2230, 1, '渝北区仙桃街道丛岩一路1号', '学区：02两路学区，等级：一级，是否普惠园：是', 1, NOW(), 0, 0, 0);
A141: Y0124 | B141: 224 | C141: 0 | D141: 100 | E141: [0],[1],[100], | F141: 3 | G141: 两路 | H141: 9 | I141: Y | J141: 0124 | K141: Y0124 | L141: 重庆市渝北区空港佳园第二幼儿园 | M141: 空港佳园第二幼儿园 | N141: 空港佳园第二幼儿园 | O141: 空港佳园第二幼儿园 | P141: 1 | Q141: 1 | R141: 1 | S141: 2240 | T141: 渝北区仙桃街道从岩二路4号 | U141: 学区：02两路学区，等级：一级，是否普惠园：是 | V141: 1 | X141: INSERT INTO sys_org(id, pid, pids, org_type, org_fund_source, education_stage, urban_rural_type, `code`, unique_code, full_name, `name`, short_name, short_name2, tqes_id, tqes_code, `sort`, `status`, address, remark, create_sys_user_id, create_time, longitude, latitude, is_deleted) VALUES(224, 100, '[0],[1],[100],', 3, 1, 1, 1, '0124', 'Y0124', '重庆市渝北区空港佳园第二幼儿园', '空港佳园第二幼儿园', '空港佳园第二幼儿园', '空港佳园第二幼儿园', 0, '', 2240, 1, '渝北区仙桃街道从岩二路4号', '学区：02两路学区，等级：一级，是否普惠园：是', 1, NOW(), 0, 0, 0);
A142: Y0125 | B142: 225 | C142: 0 | D142: 100 | E142: [0],[1],[100], | F142: 3 | G142: 两路 | H142: 9 | I142: Y | J142: 0125 | K142: Y0125 | L142: 重庆市渝北区同茂幼儿园 | M142: 同茂幼儿园 | N142: 同茂幼儿园 | O142: 同茂幼儿园 | P142: 1 | Q142: 1 | R142: 1 | S142: 2250 | T142: 渝北区仙桃街道睦邻路 | U142: 学区：02两路学区，等级：一级，是否普惠园：是 | V142: 1 | X142: INSERT INTO sys_org(id, pid, pids, org_type, org_fund_source, education_stage, urban_rural_type, `code`, unique_code, full_name, `name`, short_name, short_name2, tqes_id, tqes_code, `sort`, `status`, address, remark, create_sys_user_id, create_time, longitude, latitude, is_deleted) VALUES(225, 100, '[0],[1],[100],', 3, 1, 1, 1, '0125', 'Y0125', '重庆市渝北区同茂幼儿园', '同茂幼儿园', '同茂幼儿园', '同茂幼儿园', 0, '', 2250, 1, '渝北区仙桃街道睦邻路', '学区：02两路学区，等级：一级，是否普惠园：是', 1, NOW(), 0, 0, 0);
A143: Y0126 | B143: 226 | C143: 0 | D143: 100 | E143: [0],[1],[100], | F143: 3 | G143: 两路 | H143: 9 | I143: Y | J143: 0126 | K143: Y0126 | L143: 重庆市渝北庆龄幼儿园秋成园 | M143: 龄幼儿园秋成园 | N143: 龄幼儿园秋成园 | O143: 龄幼儿园秋成园 | P143: 1 | Q143: 1 | R143: 1 | S143: 2260 | T143: 渝北区仙桃街道秋成大道180号 | U143: 学区：02两路学区，等级：预一级，是否普惠园：是 | V143: 1 | X143: INSERT INTO sys_org(id, pid, pids, org_type, org_fund_source, education_stage, urban_rural_type, `code`, unique_code, full_name, `name`, short_name, short_name2, tqes_id, tqes_code, `sort`, `status`, address, remark, create_sys_user_id, create_time, longitude, latitude, is_deleted) VALUES(226, 100, '[0],[1],[100],', 3, 1, 1, 1, '0126', 'Y0126', '重庆市渝北庆龄幼儿园秋成园', '龄幼儿园秋成园', '龄幼儿园秋成园', '龄幼儿园秋成园', 0, '', 2260, 1, '渝北区仙桃街道秋成大道180号', '学区：02两路学区，等级：预一级，是否普惠园：是', 1, NOW(), 0, 0, 0);
A144: Y0127 | B144: 227 | C144: 0 | D144: 100 | E144: [0],[1],[100], | F144: 3 | G144: 两路 | H144: 9 | I144: Y | J144: 0127 | K144: Y0127 | L144: 重庆市渝北区盛景天下小学校附属幼儿园 | M144: 盛景天下小学校附属幼儿园 | N144: 盛景天下小学校附属幼儿园 | O144: 盛景天下小学校附属幼儿园 | P144: 1 | Q144: 1 | R144: 2 | S144: 2270 | T144: 渝北区兰馨大道16号1栋 | U144: 学区：02两路学区，等级：一级，是否普惠园：是 | V144: 1 | X144: INSERT INTO sys_org(id, pid, pids, org_type, org_fund_source, education_stage, urban_rural_type, `code`, unique_code, full_name, `name`, short_name, short_name2, tqes_id, tqes_code, `sort`, `status`, address, remark, create_sys_user_id, create_time, longitude, latitude, is_deleted) VALUES(227, 100, '[0],[1],[100],', 3, 2, 1, 1, '0127', 'Y0127', '重庆市渝北区盛景天下小学校附属幼儿园', '盛景天下小学校附属幼儿园', '盛景天下小学校附属幼儿园', '盛景天下小学校附属幼儿园', 0, '', 2270, 1, '渝北区兰馨大道16号1栋', '学区：02两路学区，等级：一级，是否普惠园：是', 1, NOW(), 0, 0, 0);
A145: Y0128 | B145: 228 | C145: 0 | D145: 100 | E145: [0],[1],[100], | F145: 3 | G145: 两路 | H145: 9 | I145: Y | J145: 0128 | K145: Y0128 | L145: 重庆市渝北区空港新城小学附属幼儿园 | M145: 空港新城小学附属幼儿园 | N145: 空港新城小学附属幼儿园 | O145: 空港新城小学附属幼儿园 | P145: 1 | Q145: 1 | R145: 2 | S145: 2280 | T145: 渝北区仙桃街道桂馥二支路9号 | U145: 学区：02两路学区，等级：二级，是否普惠园：是 | V145: 1 | X145: INSERT INTO sys_org(id, pid, pids, org_type, org_fund_source, education_stage, urban_rural_type, `code`, unique_code, full_name, `name`, short_name, short_name2, tqes_id, tqes_code, `sort`, `status`, address, remark, create_sys_user_id, create_time, longitude, latitude, is_deleted) VALUES(228, 100, '[0],[1],[100],', 3, 2, 1, 1, '0128', 'Y0128', '重庆市渝北区空港新城小学附属幼儿园', '空港新城小学附属幼儿园', '空港新城小学附属幼儿园', '空港新城小学附属幼儿园', 0, '', 2280, 1, '渝北区仙桃街道桂馥二支路9号', '学区：02两路学区，等级：二级，是否普惠园：是', 1, NOW(), 0, 0, 0);
A146: Y0129 | B146: 229 | C146: 0 | D146: 100 | E146: [0],[1],[100], | F146: 3 | G146: 两路 | H146: 9 | I146: Y | J146: 0129 | K146: =I146&RIGHT("000"&J146,4) -> Y0129 | L146: 重庆市渝北区数据谷小学校附属幼儿园 | M146: 数据谷小学校附属幼儿园 | N146: 数据谷小学校附属幼儿园 | O146: 数据谷小学校附属幼儿园 | P146: 1 | Q146: 1 | R146: 2 | S146: =B146*10 -> 2290 | T146: 渝北区仙桃街道数据谷中路52号 | U146: 学区：02两路学区，等级：一级，是否普惠园：是 | V146: 1 | X146: ="INSERT INTO sys_org(id, pid, pids, org_type, org_fund_source"&", education_stage, urban_rural_type, `code`, unique_code, full_name,"&" `name`, short_name, short_name2, tqes_id, tqes_code, `sort`, `status`, address, remark, create_sys_user_id, create_time, longitude, latitude, is_deleted) VALUES("&B146&", "&D146&", '"&E146&"', "&F146&", "&R146&", "&P146&", "&Q146&", '"&J146&"', '"&K146&"', '"&L146&"', '"&M146&"', '"&N146&"', '"&O146&"', "&C146&", '"&W146&"', "&S146&", "&V146&", '"&T146&"', '"&U146&"', 1, NOW(), 0, 0, 0);" -> INSERT INTO sys_org(id, pid, pids, org_type, org_fund_source, education_stage, urban_rural_type, `code`, unique_code, full_name, `name`, short_name, short_name2, tqes_id, tqes_code, `sort`, `status`, address, remark, create_sys_user_id, create_time, longitude, latitude, is_deleted) VALUES(229, 100, '[0],[1],[100],', 3, 2, 1, 1, '0129', 'Y0129', '重庆市渝北区数据谷小学校附属幼儿园', '数据谷小学校附属幼儿园', '数据谷小学校附属幼儿园', '数据谷小学校附属幼儿园', 0, '', 2290, 1, '渝北区仙桃街道数据谷中路52号', '学区：02两路学区，等级：一级，是否普惠园：是', 1, NOW(), 0, 0, 0);
A147: Y0130 | B147: 230 | C147: 0 | D147: 100 | E147: =$E$17&"["&D147&"]," -> [0],[1],[100], | F147: 3 | G147: 两路 | H147: 9 | I147: Y | J147: 0130 | K147: Y0130 | L147: 重庆市渝北区英华贝贝空港幼儿园 | M147: 英华贝贝空港幼儿园 | N147: 英华贝贝空港幼儿园 | O147: 英华贝贝空港幼儿园 | P147: 1 | Q147: 1 | R147: 3 | S147: 2300 | T147: 渝北区双龙湖桂馥大道6号 | U147: 学区：02两路学区，等级：一级，是否普惠园：是 | V147: 1 | X147: INSERT INTO sys_org(id, pid, pids, org_type, org_fund_source, education_stage, urban_rural_type, `code`, unique_code, full_name, `name`, short_name, short_name2, tqes_id, tqes_code, `sort`, `status`, address, remark, create_sys_user_id, create_time, longitude, latitude, is_deleted) VALUES(230, 100, '[0],[1],[100],', 3, 3, 1, 1, '0130', 'Y0130', '重庆市渝北区英华贝贝空港幼儿园', '英华贝贝空港幼儿园', '英华贝贝空港幼儿园', '英华贝贝空港幼儿园', 0, '', 2300, 1, '渝北区双龙湖桂馥大道6号', '学区：02两路学区，等级：一级，是否普惠园：是', 1, NOW(), 0, 0, 0);
A148: Y0131 | B148: 231 | C148: 0 | D148: 100 | E148: [0],[1],[100], | F148: 3 | G148: 两路 | H148: 9 | I148: Y | J148: 0131 | K148: Y0131 | L148: 重庆市渝北区好莱坞幼儿园 | M148: 好莱坞幼儿园 | N148: 好莱坞幼儿园 | O148: 好莱坞幼儿园 | P148: 1 | Q148: 1 | R148: 3 | S148: 2310 | T148: 渝北区兰馨大道77号汇祥好莱坞 | U148: 学区：02两路学区，等级：一级，是否普惠园：是 | V148: 1 | X148: INSERT INTO sys_org(id, pid, pids, org_type, org_fund_source, education_stage, urban_rural_type, `code`, unique_code, full_name, `name`, short_name, short_name2, tqes_id, tqes_code, `sort`, `status`, address, remark, create_sys_user_id, create_time, longitude, latitude, is_deleted) VALUES(231, 100, '[0],[1],[100],', 3, 3, 1, 1, '0131', 'Y0131', '重庆市渝北区好莱坞幼儿园', '好莱坞幼儿园', '好莱坞幼儿园', '好莱坞幼儿园', 0, '', 2310, 1, '渝北区兰馨大道77号汇祥好莱坞', '学区：02两路学区，等级：一级，是否普惠园：是', 1, NOW(), 0, 0, 0);
A149: Y0132 | B149: 232 | C149: 0 | D149: =$B$17 -> 100 | E149: [0],[1],[100], | F149: 3 | G149: 两路 | H149: 9 | I149: Y | J149: 0132 | K149: Y0132 | L149: 重庆市渝北区盛景天下喜洋洋幼儿园 | M149: 盛景天下喜洋洋幼儿园 | N149: 盛景天下喜洋洋幼儿园 | O149: 盛景天下喜洋洋幼儿园 | P149: 1 | Q149: 1 | R149: 3 | S149: 2320 | T149: 渝北区双龙湖兰馨大道12号17幢负一层 | U149: 学区：02两路学区，等级：二级，是否普惠园：是 | V149: 1 | X149: INSERT INTO sys_org(id, pid, pids, org_type, org_fund_source, education_stage, urban_rural_type, `code`, unique_code, full_name, `name`, short_name, short_name2, tqes_id, tqes_code, `sort`, `status`, address, remark, create_sys_user_id, create_time, longitude, latitude, is_deleted) VALUES(232, 100, '[0],[1],[100],', 3, 3, 1, 1, '0132', 'Y0132', '重庆市渝北区盛景天下喜洋洋幼儿园', '盛景天下喜洋洋幼儿园', '盛景天下喜洋洋幼儿园', '盛景天下喜洋洋幼儿园', 0, '', 2320, 1, '渝北区双龙湖兰馨大道12号17幢负一层', '学区：02两路学区，等级：二级，是否普惠园：是', 1, NOW(), 0, 0, 0);
A150: Y0133 | B150: 233 | C150: 0 | D150: 100 | E150: [0],[1],[100], | F150: 3 | G150: 两路 | H150: 9 | I150: Y | J150: 0133 | K150: Y0133 | L150: 重庆市渝北区迪思尼幼儿园 | M150: 迪思尼幼儿园 | N150: 迪思尼幼儿园 | O150: 迪思尼幼儿园 | P150: 1 | Q150: 1 | R150: 3 | S150: 2330 | T150: 渝北区兰馨大道10号锦域蓝湾13幢3-35号 | U150: 学区：02两路学区，等级：二级，是否普惠园：是 | V150: 1 | X150: INSERT INTO sys_org(id, pid, pids, org_type, org_fund_source, education_stage, urban_rural_type, `code`, unique_code, full_name, `name`, short_name, short_name2, tqes_id, tqes_code, `sort`, `status`, address, remark, create_sys_user_id, create_time, longitude, latitude, is_deleted) VALUES(233, 100, '[0],[1],[100],', 3, 3, 1, 1, '0133', 'Y0133', '重庆市渝北区迪思尼幼儿园', '迪思尼幼儿园', '迪思尼幼儿园', '迪思尼幼儿园', 0, '', 2330, 1, '渝北区兰馨大道10号锦域蓝湾13幢3-35号', '学区：02两路学区，等级：二级，是否普惠园：是', 1, NOW(), 0, 0, 0);
A151: Y0134 | B151: 234 | C151: 0 | D151: 100 | E151: [0],[1],[100], | F151: 3 | G151: 两路 | H151: 9 | I151: Y | J151: 0134 | K151: Y0134 | L151: 重庆市渝北区七色幼儿园 | M151: 七色幼儿园 | N151: 七色幼儿园 | O151: 七色幼儿园 | P151: 1 | Q151: 1 | R151: 3 | S151: 2340 | T151: 渝北区兰馨大道10号锦域蓝湾小区12-1-14 | U151: 学区：02两路学区，等级：二级，是否普惠园：是 | V151: 1 | X151: INSERT INTO sys_org(id, pid, pids, org_type, org_fund_source, education_stage, urban_rural_type, `code`, unique_code, full_name, `name`, short_name, short_name2, tqes_id, tqes_code, `sort`, `status`, address, remark, create_sys_user_id, create_time, longitude, latitude, is_deleted) VALUES(234, 100, '[0],[1],[100],', 3, 3, 1, 1, '0134', 'Y0134', '重庆市渝北区七色幼儿园', '七色幼儿园', '七色幼儿园', '七色幼儿园', 0, '', 2340, 1, '渝北区兰馨大道10号锦域蓝湾小区12-1-14', '学区：02两路学区，等级：二级，是否普惠园：是', 1, NOW(), 0, 0, 0);
A152: Y0135 | B152: 235 | C152: 0 | D152: 100 | E152: [0],[1],[100], | F152: 3 | G152: 两路 | H152: 9 | I152: Y | J152: 0135 | K152: Y0135 | L152: 重庆市渝北区全稚园金色池塘幼儿园 | M152: 全稚园金色池塘幼儿园 | N152: 全稚园金色池塘幼儿园 | O152: 全稚园金色池塘幼儿园 | P152: 1 | Q152: 1 | R152: 3 | S152: 2350 | T152: 渝北区空港新城金色池塘小区 | U152: 学区：02两路学区，等级：二级，是否普惠园：是 | V152: 1 | X152: INSERT INTO sys_org(id, pid, pids, org_type, org_fund_source, education_stage, urban_rural_type, `code`, unique_code, full_name, `name`, short_name, short_name2, tqes_id, tqes_code, `sort`, `status`, address, remark, create_sys_user_id, create_time, longitude, latitude, is_deleted) VALUES(235, 100, '[0],[1],[100],', 3, 3, 1, 1, '0135', 'Y0135', '重庆市渝北区全稚园金色池塘幼儿园', '全稚园金色池塘幼儿园', '全稚园金色池塘幼儿园', '全稚园金色池塘幼儿园', 0, '', 2350, 1, '渝北区空港新城金色池塘小区', '学区：02两路学区，等级：二级，是否普惠园：是', 1, NOW(), 0, 0, 0);
A153: Y0136 | B153: 236 | C153: 0 | D153: 100 | E153: [0],[1],[100], | F153: 3 | G153: 两路 | H153: 9 | I153: Y | J153: 0136 | K153: Y0136 | L153: 重庆市渝北区润丰明希幼儿园 | M153: 润丰明希幼儿园 | N153: 润丰明希幼儿园 | O153: 润丰明希幼儿园 | P153: 1 | Q153: 1 | R153: 3 | S153: 2360 | T153: 渝北区仙桃街道福畅路7号附59号润丰水尚20幢至23幢商业2-42、43、44号 | U153: 学区：02两路学区，等级：二级，是否普惠园：是 | V153: 1 | X153: INSERT INTO sys_org(id, pid, pids, org_type, org_fund_source, education_stage, urban_rural_type, `code`, unique_code, full_name, `name`, short_name, short_name2, tqes_id, tqes_code, `sort`, `status`, address, remark, create_sys_user_id, create_time, longitude, latitude, is_deleted) VALUES(236, 100, '[0],[1],[100],', 3, 3, 1, 1, '0136', 'Y0136', '重庆市渝北区润丰明希幼儿园', '润丰明希幼儿园', '润丰明希幼儿园', '润丰明希幼儿园', 0, '', 2360, 1, '渝北区仙桃街道福畅路7号附59号润丰水尚20幢至23幢商业2-42、43、44号', '学区：02两路学区，等级：二级，是否普惠园：是', 1, NOW(), 0, 0, 0);
A154: Y0137 | B154: 237 | C154: 0 | D154: 100 | E154: [0],[1],[100], | F154: 3 | G154: 两路 | H154: 9 | I154: Y | J154: 0137 | K154: Y0137 | L154: 重庆市渝北区香城雅郡幼儿园 | M154: 香城雅郡幼儿园 | N154: 香城雅郡幼儿园 | O154: 香城雅郡幼儿园 | P154: 1 | Q154: 1 | R154: 3 | S154: 2370 | T154: 渝北区仙桃街道睦邻路158号附12号14幢 | U154: 学区：02两路学区，等级：一级，是否普惠园：是 | V154: 1 | X154: INSERT INTO sys_org(id, pid, pids, org_type, org_fund_source, education_stage, urban_rural_type, `code`, unique_code, full_name, `name`, short_name, short_name2, tqes_id, tqes_code, `sort`, `status`, address, remark, create_sys_user_id, create_time, longitude, latitude, is_deleted) VALUES(237, 100, '[0],[1],[100],', 3, 3, 1, 1, '0137', 'Y0137', '重庆市渝北区香城雅郡幼儿园', '香城雅郡幼儿园', '香城雅郡幼儿园', '香城雅郡幼儿园', 0, '', 2370, 1, '渝北区仙桃街道睦邻路158号附12号14幢', '学区：02两路学区，等级：一级，是否普惠园：是', 1, NOW(), 0, 0, 0);
A155: Y0138 | B155: 238 | C155: 0 | D155: 100 | E155: [0],[1],[100], | F155: 3 | G155: 两路 | H155: 9 | I155: Y | J155: 0138 | K155: Y0138 | L155: 重庆市渝北区和庆路幼儿园 | M155: 和庆路幼儿园 | N155: 和庆路幼儿园 | O155: 和庆路幼儿园 | P155: 1 | Q155: 1 | R155: 3 | S155: 2380 | T155: 渝北区和庆路1号 | U155: 学区：02两路学区，等级：一级，是否普惠园：是 | V155: 1 | X155: INSERT INTO sys_org(id, pid, pids, org_type, org_fund_source, education_stage, urban_rural_type, `code`, unique_code, full_name, `name`, short_name, short_name2, tqes_id, tqes_code, `sort`, `status`, address, remark, create_sys_user_id, create_time, longitude, latitude, is_deleted) VALUES(238, 100, '[0],[1],[100],', 3, 3, 1, 1, '0138', 'Y0138', '重庆市渝北区和庆路幼儿园', '和庆路幼儿园', '和庆路幼儿园', '和庆路幼儿园', 0, '', 2380, 1, '渝北区和庆路1号', '学区：02两路学区，等级：一级，是否普惠园：是', 1, NOW(), 0, 0, 0);
A156: Y0139 | B156: 239 | C156: 0 | D156: 100 | E156: [0],[1],[100], | F156: 3 | G156: 两路 | H156: 9 | I156: Y | J156: 0139 | K156: Y0139 | L156: 重庆市渝北区戈米孚幼儿园 | M156: 戈米孚幼儿园 | N156: 戈米孚幼儿园 | O156: 戈米孚幼儿园 | P156: 1 | Q156: 1 | R156: 3 | S156: 2390 | T156: 渝北区仙桃街道同辉路18号附35号8幢1-幼儿园 | U156: 学区：02两路学区，等级：一级，是否普惠园：是 | V156: 1 | X156: INSERT INTO sys_org(id, pid, pids, org_type, org_fund_source, education_stage, urban_rural_type, `code`, unique_code, full_name, `name`, short_name, short_name2, tqes_id, tqes_code, `sort`, `status`, address, remark, create_sys_user_id, create_time, longitude, latitude, is_deleted) VALUES(239, 100, '[0],[1],[100],', 3, 3, 1, 1, '0139', 'Y0139', '重庆市渝北区戈米孚幼儿园', '戈米孚幼儿园', '戈米孚幼儿园', '戈米孚幼儿园', 0, '', 2390, 1, '渝北区仙桃街道同辉路18号附35号8幢1-幼儿园', '学区：02两路学区，等级：一级，是否普惠园：是', 1, NOW(), 0, 0, 0);
A157: Y0140 | B157: 240 | C157: 0 | D157: 100 | E157: [0],[1],[100], | F157: 3 | G157: 两路 | H157: 9 | I157: Y | J157: 0140 | K157: Y0140 | L157: 重庆市渝北区奇心乐泽科幼儿园 | M157: 奇心乐泽科幼儿园 | N157: 奇心乐泽科幼儿园 | O157: 奇心乐泽科幼儿园 | P157: 1 | Q157: 1 | R157: 3 | S157: 2400 | T157: 渝北区仙桃街道兰馨大道福畅路12号港城国际 | U157: 学区：02两路学区，等级：一级，是否普惠园：否 | V157: 1 | X157: INSERT INTO sys_org(id, pid, pids, org_type, org_fund_source, education_stage, urban_rural_type, `code`, unique_code, full_name, `name`, short_name, short_name2, tqes_id, tqes_code, `sort`, `status`, address, remark, create_sys_user_id, create_time, longitude, latitude, is_deleted) VALUES(240, 100, '[0],[1],[100],', 3, 3, 1, 1, '0140', 'Y0140', '重庆市渝北区奇心乐泽科幼儿园', '奇心乐泽科幼儿园', '奇心乐泽科幼儿园', '奇心乐泽科幼儿园', 0, '', 2400, 1, '渝北区仙桃街道兰馨大道福畅路12号港城国际', '学区：02两路学区，等级：一级，是否普惠园：否', 1, NOW(), 0, 0, 0);
A158: Y0141 | B158: 241 | C158: 0 | D158: 100 | E158: [0],[1],[100], | F158: 3 | G158: 两路 | H158: 9 | I158: Y | J158: 0141 | K158: Y0141 | L158: 重庆市渝北区青苗幼儿园有限公司 | M158: 青苗幼儿园有限公司 | N158: 青苗幼儿园有限公司 | O158: 青苗幼儿园有限公司 | P158: 1 | Q158: 1 | R158: 3 | S158: 2410 | T158: 渝北区成兴路21号附2-45至2-73号 | U158: 学区：02两路学区，等级：一级，是否普惠园：否 | V158: 1 | X158: INSERT INTO sys_org(id, pid, pids, org_type, org_fund_source, education_stage, urban_rural_type, `code`, unique_code, full_name, `name`, short_name, short_name2, tqes_id, tqes_code, `sort`, `status`, address, remark, create_sys_user_id, create_time, longitude, latitude, is_deleted) VALUES(241, 100, '[0],[1],[100],', 3, 3, 1, 1, '0141', 'Y0141', '重庆市渝北区青苗幼儿园有限公司', '青苗幼儿园有限公司', '青苗幼儿园有限公司', '青苗幼儿园有限公司', 0, '', 2410, 1, '渝北区成兴路21号附2-45至2-73号', '学区：02两路学区，等级：一级，是否普惠园：否', 1, NOW(), 0, 0, 0);
A159: Y0142 | B159: 242 | C159: 0 | D159: =$B$17 -> 100 | E159: [0],[1],[100], | F159: 3 | G159: 两路 | H159: 9 | I159: Y | J159: 0142 | K159: Y0142 | L159: 重庆市渝北区汇祥林里伟才幼儿园 | M159: 汇祥林里伟才幼儿园 | N159: 汇祥林里伟才幼儿园 | O159: 汇祥林里伟才幼儿园 | P159: 1 | Q159: 1 | R159: 3 | S159: 2420 | T159: 渝北区仙桃街道城兴路16号香芷汀兰22幢 | U159: 学区：02两路学区，等级：一级，是否普惠园：否 | V159: 1 | X159: INSERT INTO sys_org(id, pid, pids, org_type, org_fund_source, education_stage, urban_rural_type, `code`, unique_code, full_name, `name`, short_name, short_name2, tqes_id, tqes_code, `sort`, `status`, address, remark, create_sys_user_id, create_time, longitude, latitude, is_deleted) VALUES(242, 100, '[0],[1],[100],', 3, 3, 1, 1, '0142', 'Y0142', '重庆市渝北区汇祥林里伟才幼儿园', '汇祥林里伟才幼儿园', '汇祥林里伟才幼儿园', '汇祥林里伟才幼儿园', 0, '', 2420, 1, '渝北区仙桃街道城兴路16号香芷汀兰22幢', '学区：02两路学区，等级：一级，是否普惠园：否', 1, NOW(), 0, 0, 0);
A160: Y0143 | B160: 243 | C160: 0 | D160: 100 | E160: [0],[1],[100], | F160: 3 | G160: 两路 | H160: 9 | I160: Y | J160: 0143 | K160: Y0143 | L160: 重庆市渝北区辰星幼儿园 | M160: 辰星幼儿园 | N160: 辰星幼儿园 | O160: 辰星幼儿园 | P160: 1 | Q160: 1 | R160: 3 | S160: 2430 | T160: 渝北区仙桃街道睦邻路9号 | U160: 学区：02两路学区，等级：一级，是否普惠园：否 | V160: 1 | X160: INSERT INTO sys_org(id, pid, pids, org_type, org_fund_source, education_stage, urban_rural_type, `code`, unique_code, full_name, `name`, short_name, short_name2, tqes_id, tqes_code, `sort`, `status`, address, remark, create_sys_user_id, create_time, longitude, latitude, is_deleted) VALUES(243, 100, '[0],[1],[100],', 3, 3, 1, 1, '0143', 'Y0143', '重庆市渝北区辰星幼儿园', '辰星幼儿园', '辰星幼儿园', '辰星幼儿园', 0, '', 2430, 1, '渝北区仙桃街道睦邻路9号', '学区：02两路学区，等级：一级，是否普惠园：否', 1, NOW(), 0, 0, 0);
A161: Y0144 | B161: 244 | C161: 0 | D161: 100 | E161: [0],[1],[100], | F161: 3 | G161: 两路 | H161: 9 | I161: Y | J161: 0144 | K161: Y0144 | L161: 重庆市渝北区爱加橄榄幼儿园 | M161: 爱加橄榄幼儿园 | N161: 爱加橄榄幼儿园 | O161: 爱加橄榄幼儿园 | P161: 1 | Q161: 1 | R161: 3 | S161: 2440 | T161: 渝北区双龙湖街道福畅路一号 | U161: 学区：02两路学区，等级：一级，是否普惠园：否 | V161: 1 | X161: INSERT INTO sys_org(id, pid, pids, org_type, org_fund_source, education_stage, urban_rural_type, `code`, unique_code, full_name, `name`, short_name, short_name2, tqes_id, tqes_code, `sort`, `status`, address, remark, create_sys_user_id, create_time, longitude, latitude, is_deleted) VALUES(244, 100, '[0],[1],[100],', 3, 3, 1, 1, '0144', 'Y0144', '重庆市渝北区爱加橄榄幼儿园', '爱加橄榄幼儿园', '爱加橄榄幼儿园', '爱加橄榄幼儿园', 0, '', 2440, 1, '渝北区双龙湖街道福畅路一号', '学区：02两路学区，等级：一级，是否普惠园：否', 1, NOW(), 0, 0, 0);
A162: Y0145 | B162: 245 | C162: 0 | D162: 100 | E162: [0],[1],[100], | F162: 3 | G162: 两路 | H162: 9 | I162: Y | J162: 0145 | K162: Y0145 | L162: 重庆市渝北区蒙世学堂幼儿园 | M162: 蒙世学堂幼儿园 | N162: 蒙世学堂幼儿园 | O162: 蒙世学堂幼儿园 | P162: 1 | Q162: 1 | R162: 3 | S162: 2450 | T162: 渝北区福畅路28号 | U162: 学区：02两路学区，等级：二级，是否普惠园：否 | V162: 1 | X162: INSERT INTO sys_org(id, pid, pids, org_type, org_fund_source, education_stage, urban_rural_type, `code`, unique_code, full_name, `name`, short_name, short_name2, tqes_id, tqes_code, `sort`, `status`, address, remark, create_sys_user_id, create_time, longitude, latitude, is_deleted) VALUES(245, 100, '[0],[1],[100],', 3, 3, 1, 1, '0145', 'Y0145', '重庆市渝北区蒙世学堂幼儿园', '蒙世学堂幼儿园', '蒙世学堂幼儿园', '蒙世学堂幼儿园', 0, '', 2450, 1, '渝北区福畅路28号', '学区：02两路学区，等级：二级，是否普惠园：否', 1, NOW(), 0, 0, 0);
A163: Y0146 | B163: 246 | C163: 0 | D163: 100 | E163: [0],[1],[100], | F163: 3 | G163: 两路 | H163: 9 | I163: Y | J163: 0146 | K163: Y0146 | L163: 重庆市渝北区启明幼儿园 | M163: 启明幼儿园 | N163: 启明幼儿园 | O163: 启明幼儿园 | P163: 1 | Q163: 1 | R163: 3 | S163: 2460 | T163: 渝北区空港新城金玉路18号 | U163: 学区：02两路学区，等级：二级，是否普惠园：否 | V163: 1 | X163: INSERT INTO sys_org(id, pid, pids, org_type, org_fund_source, education_stage, urban_rural_type, `code`, unique_code, full_name, `name`, short_name, short_name2, tqes_id, tqes_code, `sort`, `status`, address, remark, create_sys_user_id, create_time, longitude, latitude, is_deleted) VALUES(246, 100, '[0],[1],[100],', 3, 3, 1, 1, '0146', 'Y0146', '重庆市渝北区启明幼儿园', '启明幼儿园', '启明幼儿园', '启明幼儿园', 0, '', 2460, 1, '渝北区空港新城金玉路18号', '学区：02两路学区，等级：二级，是否普惠园：否', 1, NOW(), 0, 0, 0);
A164: =K164 -> Y0147 | B164: 247 | C164: 0 | D164: 100 | E164: [0],[1],[100], | F164: 3 | G164: 两路 | H164: 9 | I164: Y | J164: 0147 | K164: Y0147 | L164: 重庆市渝北区金茂幼儿园 | M164: 金茂幼儿园 | N164: 金茂幼儿园 | O164: 金茂幼儿园 | P164: 1 | Q164: 1 | R164: 3 | S164: 2470 | T164: 渝北区德才路329号金茂书院（F101－1）地块规划2号楼 | U164: 学区：02两路学区，等级：一级，是否普惠园：是 | V164: 1 | X164: INSERT INTO sys_org(id, pid, pids, org_type, org_fund_source, education_stage, urban_rural_type, `code`, unique_code, full_name, `name`, short_name, short_name2, tqes_id, tqes_code, `sort`, `status`, address, remark, create_sys_user_id, create_time, longitude, latitude, is_deleted) VALUES(247, 100, '[0],[1],[100],', 3, 3, 1, 1, '0147', 'Y0147', '重庆市渝北区金茂幼儿园', '金茂幼儿园', '金茂幼儿园', '金茂幼儿园', 0, '', 2470, 1, '渝北区德才路329号金茂书院（F101－1）地块规划2号楼', '学区：02两路学区，等级：一级，是否普惠园：是', 1, NOW(), 0, 0, 0);
A165: Y0148 | B165: 248 | C165: 0 | D165: 100 | E165: [0],[1],[100], | F165: 3 | G165: 两路 | H165: 9 | I165: Y | J165: 0148 | K165: Y0148 | L165: 重庆市渝北区三之三天晋幼儿园 | M165: 三之三天晋幼儿园 | N165: 三之三天晋幼儿园 | O165: 三之三天晋幼儿园 | P165: 1 | Q165: 1 | R165: 3 | S165: 2480 | T165: 渝北区仙桃街道同茂大道38号天晋46栋 | U165: 学区：02两路学区，等级：一级，是否普惠园：是 | V165: 1 | X165: INSERT INTO sys_org(id, pid, pids, org_type, org_fund_source, education_stage, urban_rural_type, `code`, unique_code, full_name, `name`, short_name, short_name2, tqes_id, tqes_code, `sort`, `status`, address, remark, create_sys_user_id, create_time, longitude, latitude, is_deleted) VALUES(248, 100, '[0],[1],[100],', 3, 3, 1, 1, '0148', 'Y0148', '重庆市渝北区三之三天晋幼儿园', '三之三天晋幼儿园', '三之三天晋幼儿园', '三之三天晋幼儿园', 0, '', 2480, 1, '渝北区仙桃街道同茂大道38号天晋46栋', '学区：02两路学区，等级：一级，是否普惠园：是', 1, NOW(), 0, 0, 0);
A166: Y0149 | B166: 249 | C166: 0 | D166: 100 | E166: [0],[1],[100], | F166: 3 | G166: 两路 | H166: 9 | I166: Y | J166: 0149 | K166: Y0149 | L166: 重庆市渝北区盛果誉峰幼儿园 | M166: 盛果誉峰幼儿园 | N166: 盛果誉峰幼儿园 | O166: 盛果誉峰幼儿园 | P166: 1 | Q166: 1 | R166: 3 | S166: 2490 | T166: 渝北区仙桃街道富锦街23号 | U166: 学区：02两路学区，等级：预一级，是否普惠园：是 | V166: 1 | X166: INSERT INTO sys_org(id, pid, pids, org_type, org_fund_source, education_stage, urban_rural_type, `code`, unique_code, full_name, `name`, short_name, short_name2, tqes_id, tqes_code, `sort`, `status`, address, remark, create_sys_user_id, create_time, longitude, latitude, is_deleted) VALUES(249, 100, '[0],[1],[100],', 3, 3, 1, 1, '0149', 'Y0149', '重庆市渝北区盛果誉峰幼儿园', '盛果誉峰幼儿园', '盛果誉峰幼儿园', '盛果誉峰幼儿园', 0, '', 2490, 1, '渝北区仙桃街道富锦街23号', '学区：02两路学区，等级：预一级，是否普惠园：是', 1, NOW(), 0, 0, 0);
A167: Y0150 | B167: 250 | C167: 0 | D167: 100 | E167: [0],[1],[100], | F167: 3 | G167: 两路 | H167: 9 | I167: Y | J167: 0150 | K167: Y0150 | L167: 重庆市渝北区生生幼儿园 | M167: 生生幼儿园 | N167: 生生幼儿园 | O167: 生生幼儿园 | P167: 1 | Q167: 1 | R167: 3 | S167: 2500 | T167: 渝北区仙桃街道福畅路55号13幢 | U167: 学区：02两路学区，等级：预一级，是否普惠园：是 | V167: 1 | X167: INSERT INTO sys_org(id, pid, pids, org_type, org_fund_source, education_stage, urban_rural_type, `code`, unique_code, full_name, `name`, short_name, short_name2, tqes_id, tqes_code, `sort`, `status`, address, remark, create_sys_user_id, create_time, longitude, latitude, is_deleted) VALUES(250, 100, '[0],[1],[100],', 3, 3, 1, 1, '0150', 'Y0150', '重庆市渝北区生生幼儿园', '生生幼儿园', '生生幼儿园', '生生幼儿园', 0, '', 2500, 1, '渝北区仙桃街道福畅路55号13幢', '学区：02两路学区，等级：预一级，是否普惠园：是', 1, NOW(), 0, 0, 0);
A168: Y0151 | B168: 251 | C168: 0 | D168: 100 | E168: [0],[1],[100], | F168: 3 | G168: 两路 | H168: 9 | I168: Y | J168: 0151 | K168: Y0151 | L168: 重庆市渝北区上东汇幼儿园 | M168: 上东汇幼儿园 | N168: 上东汇幼儿园 | O168: 上东汇幼儿园 | P168: 1 | Q168: 1 | R168: 3 | S168: 2510 | T168: 渝北区仙桃街道和庆路100号 | U168: 学区：02两路学区，等级：预一级，是否普惠园：是 | V168: 1 | X168: INSERT INTO sys_org(id, pid, pids, org_type, org_fund_source, education_stage, urban_rural_type, `code`, unique_code, full_name, `name`, short_name, short_name2, tqes_id, tqes_code, `sort`, `status`, address, remark, create_sys_user_id, create_time, longitude, latitude, is_deleted) VALUES(251, 100, '[0],[1],[100],', 3, 3, 1, 1, '0151', 'Y0151', '重庆市渝北区上东汇幼儿园', '上东汇幼儿园', '上东汇幼儿园', '上东汇幼儿园', 0, '', 2510, 1, '渝北区仙桃街道和庆路100号', '学区：02两路学区，等级：预一级，是否普惠园：是', 1, NOW(), 0, 0, 0);
A169: Y0152 | B169: 252 | C169: 0 | D169: =$B$17 -> 100 | E169: [0],[1],[100], | F169: 3 | G169: 两路 | H169: 9 | I169: Y | J169: 0152 | K169: Y0152 | L169: 重庆市渝北幼儿园 | M169: 儿园 | N169: 儿园 | O169: 儿园 | P169: 1 | Q169: 1 | R169: 1 | S169: 2520 | T169: 渝北区两路街道金航路86号 | U169: 学区：02两路学区，等级：示范，是否普惠园：是 | V169: 1 | X169: INSERT INTO sys_org(id, pid, pids, org_type, org_fund_source, education_stage, urban_rural_type, `code`, unique_code, full_name, `name`, short_name, short_name2, tqes_id, tqes_code, `sort`, `status`, address, remark, create_sys_user_id, create_time, longitude, latitude, is_deleted) VALUES(252, 100, '[0],[1],[100],', 3, 1, 1, 1, '0152', 'Y0152', '重庆市渝北幼儿园', '儿园', '儿园', '儿园', 0, '', 2520, 1, '渝北区两路街道金航路86号', '学区：02两路学区，等级：示范，是否普惠园：是', 1, NOW(), 0, 0, 0);
A170: Y0153 | B170: 253 | C170: 0 | D170: 100 | E170: [0],[1],[100], | F170: 3 | G170: 两路 | H170: 9 | I170: Y | J170: 0153 | K170: Y0153 | L170: 重庆市渝北幼儿园空港新城园 | M170: 儿园空港新城园 | N170: 儿园空港新城园 | O170: 儿园空港新城园 | P170: 1 | Q170: 1 | R170: 1 | S170: 2530 | T170: 渝北区仙桃街道桂馥一支路6号 | U170: 学区：02两路学区，等级：一级，是否普惠园：是 | V170: 1 | X170: INSERT INTO sys_org(id, pid, pids, org_type, org_fund_source, education_stage, urban_rural_type, `code`, unique_code, full_name, `name`, short_name, short_name2, tqes_id, tqes_code, `sort`, `status`, address, remark, create_sys_user_id, create_time, longitude, latitude, is_deleted) VALUES(253, 100, '[0],[1],[100],', 3, 1, 1, 1, '0153', 'Y0153', '重庆市渝北幼儿园空港新城园', '儿园空港新城园', '儿园空港新城园', '儿园空港新城园', 0, '', 2530, 1, '渝北区仙桃街道桂馥一支路6号', '学区：02两路学区，等级：一级，是否普惠园：是', 1, NOW(), 0, 0, 0);
A171: Y0154 | B171: 254 | C171: 0 | D171: 100 | E171: [0],[1],[100], | F171: 3 | G171: 两路 | H171: 9 | I171: Y | J171: 0154 | K171: Y0154 | L171: 重庆市渝北区两路幼儿园 | M171: 两路幼儿园 | N171: 两路幼儿园 | O171: 两路幼儿园 | P171: 1 | Q171: 1 | R171: 1 | S171: 2540 | T171: 渝北区两路街道双凤路170号 | U171: 学区：02两路学区，等级：一级，是否普惠园：是 | V171: 1 | X171: INSERT INTO sys_org(id, pid, pids, org_type, org_fund_source, education_stage, urban_rural_type, `code`, unique_code, full_name, `name`, short_name, short_name2, tqes_id, tqes_code, `sort`, `status`, address, remark, create_sys_user_id, create_time, longitude, latitude, is_deleted) VALUES(254, 100, '[0],[1],[100],', 3, 1, 1, 1, '0154', 'Y0154', '重庆市渝北区两路幼儿园', '两路幼儿园', '两路幼儿园', '两路幼儿园', 0, '', 2540, 1, '渝北区两路街道双凤路170号', '学区：02两路学区，等级：一级，是否普惠园：是', 1, NOW(), 0, 0, 0);
A172: Y0155 | B172: 255 | C172: 0 | D172: 100 | E172: [0],[1],[100], | F172: 3 | G172: 两路 | H172: 9 | I172: Y | J172: 0155 | K172: Y0155 | L172: 重庆市渝北区两路幼儿园晚晴分园 | M172: 两路幼儿园晚晴分园 | N172: 两路幼儿园晚晴分园 | O172: 两路幼儿园晚晴分园 | P172: 1 | Q172: 1 | R172: 1 | S172: 2550 | T172: 渝北区两路街道双凤支路3号 | U172: 学区：02两路学区，等级：一级，是否普惠园：是 | V172: 1 | X172: INSERT INTO sys_org(id, pid, pids, org_type, org_fund_source, education_stage, urban_rural_type, `code`, unique_code, full_name, `name`, short_name, short_name2, tqes_id, tqes_code, `sort`, `status`, address, remark, create_sys_user_id, create_time, longitude, latitude, is_deleted) VALUES(255, 100, '[0],[1],[100],', 3, 1, 1, 1, '0155', 'Y0155', '重庆市渝北区两路幼儿园晚晴分园', '两路幼儿园晚晴分园', '两路幼儿园晚晴分园', '两路幼儿园晚晴分园', 0, '', 2550, 1, '渝北区两路街道双凤支路3号', '学区：02两路学区，等级：一级，是否普惠园：是', 1, NOW(), 0, 0, 0);
A173: Y0156 | B173: 256 | C173: 0 | D173: 100 | E173: [0],[1],[100], | F173: 3 | G173: 两路 | H173: 9 | I173: Y | J173: 0156 | K173: Y0156 | L173: 重庆市渝北金港国际实验小学校附属幼儿园 | M173: 港国际实验小学校附属幼儿园 | N173: 港国际实验小学校附属幼儿园 | O173: 港国际实验小学校附属幼儿园 | P173: 1 | Q173: 1 | R173: 2 | S173: 2560 | T173: 渝北区胜利路李家湾3号 | U173: 学区：02两路学区，等级：一级，是否普惠园：是 | V173: 1 | X173: INSERT INTO sys_org(id, pid, pids, org_type, org_fund_source, education_stage, urban_rural_type, `code`, unique_code, full_name, `name`, short_name, short_name2, tqes_id, tqes_code, `sort`, `status`, address, remark, create_sys_user_id, create_time, longitude, latitude, is_deleted) VALUES(256, 100, '[0],[1],[100],', 3, 2, 1, 1, '0156', 'Y0156', '重庆市渝北金港国际实验小学校附属幼儿园', '港国际实验小学校附属幼儿园', '港国际实验小学校附属幼儿园', '港国际实验小学校附属幼儿园', 0, '', 2560, 1, '渝北区胜利路李家湾3号', '学区：02两路学区，等级：一级，是否普惠园：是', 1, NOW(), 0, 0, 0);
A174: Y0157 | B174: 257 | C174: 0 | D174: 100 | E174: [0],[1],[100], | F174: 3 | G174: 两路 | H174: 9 | I174: Y | J174: 0157 | K174: Y0157 | L174: 重庆市渝北区汉渝路小学校附属幼儿园 | M174: 汉渝路小学校附属幼儿园 | N174: 汉渝路小学校附属幼儿园 | O174: 汉渝路小学校附属幼儿园 | P174: 1 | Q174: 1 | R174: 2 | S174: 2570 | T174: 渝北区两路街道汉渝路62号 | U174: 学区：02两路学区，等级：一级，是否普惠园：是 | V174: 1 | X174: INSERT INTO sys_org(id, pid, pids, org_type, org_fund_source, education_stage, urban_rural_type, `code`, unique_code, full_name, `name`, short_name, short_name2, tqes_id, tqes_code, `sort`, `status`, address, remark, create_sys_user_id, create_time, longitude, latitude, is_deleted) VALUES(257, 100, '[0],[1],[100],', 3, 2, 1, 1, '0157', 'Y0157', '重庆市渝北区汉渝路小学校附属幼儿园', '汉渝路小学校附属幼儿园', '汉渝路小学校附属幼儿园', '汉渝路小学校附属幼儿园', 0, '', 2570, 1, '渝北区两路街道汉渝路62号', '学区：02两路学区，等级：一级，是否普惠园：是', 1, NOW(), 0, 0, 0);
A175: Y0158 | B175: 258 | C175: 0 | D175: 100 | E175: [0],[1],[100], | F175: 3 | G175: 两路 | H175: 9 | I175: Y | J175: 0158 | K175: Y0158 | L175: 重庆市渝北区实验中学附属幼儿园 | M175: 实验中学附属幼儿园 | N175: 实验中学附属幼儿园 | O175: 实验中学附属幼儿园 | P175: 1 | Q175: 1 | R175: 2 | S175: 2580 | T175: 渝北区双凤支路三号 | U175: 学区：02两路学区，等级：预一级，是否普惠园：是 | V175: 1 | X175: INSERT INTO sys_org(id, pid, pids, org_type, org_fund_source, education_stage, urban_rural_type, `code`, unique_code, full_name, `name`, short_name, short_name2, tqes_id, tqes_code, `sort`, `status`, address, remark, create_sys_user_id, create_time, longitude, latitude, is_deleted) VALUES(258, 100, '[0],[1],[100],', 3, 2, 1, 1, '0158', 'Y0158', '重庆市渝北区实验中学附属幼儿园', '实验中学附属幼儿园', '实验中学附属幼儿园', '实验中学附属幼儿园', 0, '', 2580, 1, '渝北区双凤支路三号', '学区：02两路学区，等级：预一级，是否普惠园：是', 1, NOW(), 0, 0, 0);
A176: Y0159 | B176: 259 | C176: 0 | D176: 100 | E176: [0],[1],[100], | F176: 3 | G176: 两路 | H176: 9 | I176: Y | J176: 0159 | K176: Y0159 | L176: 重庆市渝北区笃信实验学校附属幼儿园 | M176: 笃信实验学校附属幼儿园 | N176: 笃信实验学校附属幼儿园 | O176: 笃信实验学校附属幼儿园 | P176: 1 | Q176: 1 | R176: 2 | S176: 2590 | T176: 渝北区两路街道汉渝路101号 | U176: 学区：02两路学区，等级：二级，是否普惠园：是 | V176: 1 | X176: INSERT INTO sys_org(id, pid, pids, org_type, org_fund_source, education_stage, urban_rural_type, `code`, unique_code, full_name, `name`, short_name, short_name2, tqes_id, tqes_code, `sort`, `status`, address, remark, create_sys_user_id, create_time, longitude, latitude, is_deleted) VALUES(259, 100, '[0],[1],[100],', 3, 2, 1, 1, '0159', 'Y0159', '重庆市渝北区笃信实验学校附属幼儿园', '笃信实验学校附属幼儿园', '笃信实验学校附属幼儿园', '笃信实验学校附属幼儿园', 0, '', 2590, 1, '渝北区两路街道汉渝路101号', '学区：02两路学区，等级：二级，是否普惠园：是', 1, NOW(), 0, 0, 0);
A177: Y0160 | B177: 260 | C177: 0 | D177: 100 | E177: [0],[1],[100], | F177: 3 | G177: 两路 | H177: 9 | I177: Y | J177: 0160 | K177: Y0160 | L177: 重庆市渝北区特殊教育学校附属幼儿园 | M177: 特殊教育学校附属幼儿园 | N177: 特殊教育学校附属幼儿园 | O177: 特殊教育学校附属幼儿园 | P177: 1 | Q177: 1 | R177: 2 | S177: 2600 | T177: 渝北区两路街道汉渝路69-5号 | U177: 学区：02两路学区，等级：二级，是否普惠园：是 | V177: 1 | X177: INSERT INTO sys_org(id, pid, pids, org_type, org_fund_source, education_stage, urban_rural_type, `code`, unique_code, full_name, `name`, short_name, short_name2, tqes_id, tqes_code, `sort`, `status`, address, remark, create_sys_user_id, create_time, longitude, latitude, is_deleted) VALUES(260, 100, '[0],[1],[100],', 3, 2, 1, 1, '0160', 'Y0160', '重庆市渝北区特殊教育学校附属幼儿园', '特殊教育学校附属幼儿园', '特殊教育学校附属幼儿园', '特殊教育学校附属幼儿园', 0, '', 2600, 1, '渝北区两路街道汉渝路69-5号', '学区：02两路学区，等级：二级，是否普惠园：是', 1, NOW(), 0, 0, 0);
A178: Y0161 | B178: 261 | C178: 0 | D178: 100 | E178: [0],[1],[100], | F178: 3 | G178: 两路 | H178: 9 | I178: Y | J178: 0161 | K178: =I178&RIGHT("000"&J178,4) -> Y0161 | L178: 重庆市渝北区新葵幼儿园 | M178: 新葵幼儿园 | N178: 新葵幼儿园 | O178: 新葵幼儿园 | P178: 1 | Q178: 1 | R178: 3 | S178: 2610 | T178: 渝北区两路街道汉渝路101号 | U178: 学区：02两路学区，等级：一级，是否普惠园：是 | V178: 1 | X178: ="INSERT INTO sys_org(id, pid, pids, org_type, org_fund_source"&", education_stage, urban_rural_type, `code`, unique_code, full_name,"&" `name`, short_name, short_name2, tqes_id, tqes_code, `sort`, `status`, address, remark, create_sys_user_id, create_time, longitude, latitude, is_deleted) VALUES("&B178&", "&D178&", '"&E178&"', "&F178&", "&R178&", "&P178&", "&Q178&", '"&J178&"', '"&K178&"', '"&L178&"', '"&M178&"', '"&N178&"', '"&O178&"', "&C178&", '"&W178&"', "&S178&", "&V178&", '"&T178&"', '"&U178&"', 1, NOW(), 0, 0, 0);" -> INSERT INTO sys_org(id, pid, pids, org_type, org_fund_source, education_stage, urban_rural_type, `code`, unique_code, full_name, `name`, short_name, short_name2, tqes_id, tqes_code, `sort`, `status`, address, remark, create_sys_user_id, create_time, longitude, latitude, is_deleted) VALUES(261, 100, '[0],[1],[100],', 3, 3, 1, 1, '0161', 'Y0161', '重庆市渝北区新葵幼儿园', '新葵幼儿园', '新葵幼儿园', '新葵幼儿园', 0, '', 2610, 1, '渝北区两路街道汉渝路101号', '学区：02两路学区，等级：一级，是否普惠园：是', 1, NOW(), 0, 0, 0);
A179: Y0162 | B179: 262 | C179: 0 | D179: =$B$17 -> 100 | E179: =$E$17&"["&D179&"]," -> [0],[1],[100], | F179: 3 | G179: 两路 | H179: 9 | I179: Y | J179: 0162 | K179: Y0162 | L179: 重庆市渝北区双凤桥星星幼儿园 | M179: 双凤桥星星幼儿园 | N179: 双凤桥星星幼儿园 | O179: 双凤桥星星幼儿园 | P179: 1 | Q179: 1 | R179: 3 | S179: 2620 | T179: 渝北区双凤路五巷48号 | U179: 学区：02两路学区，等级：二级，是否普惠园：是 | V179: 1 | X179: INSERT INTO sys_org(id, pid, pids, org_type, org_fund_source, education_stage, urban_rural_type, `code`, unique_code, full_name, `name`, short_name, short_name2, tqes_id, tqes_code, `sort`, `status`, address, remark, create_sys_user_id, create_time, longitude, latitude, is_deleted) VALUES(262, 100, '[0],[1],[100],', 3, 3, 1, 1, '0162', 'Y0162', '重庆市渝北区双凤桥星星幼儿园', '双凤桥星星幼儿园', '双凤桥星星幼儿园', '双凤桥星星幼儿园', 0, '', 2620, 1, '渝北区双凤路五巷48号', '学区：02两路学区，等级：二级，是否普惠园：是', 1, NOW(), 0, 0, 0);
A180: Y0163 | B180: 263 | C180: 0 | D180: 100 | E180: [0],[1],[100], | F180: 3 | G180: 两路 | H180: 9 | I180: Y | J180: 0163 | K180: Y0163 | L180: 重庆市渝北区泽科幼儿园 | M180: 泽科幼儿园 | N180: 泽科幼儿园 | O180: 泽科幼儿园 | P180: 1 | Q180: 1 | R180: 3 | S180: 2630 | T180: 渝北区观音岩路83号泽科兴城A区 | U180: 学区：02两路学区，等级：二级，是否普惠园：是 | V180: 1 | X180: INSERT INTO sys_org(id, pid, pids, org_type, org_fund_source, education_stage, urban_rural_type, `code`, unique_code, full_name, `name`, short_name, short_name2, tqes_id, tqes_code, `sort`, `status`, address, remark, create_sys_user_id, create_time, longitude, latitude, is_deleted) VALUES(263, 100, '[0],[1],[100],', 3, 3, 1, 1, '0163', 'Y0163', '重庆市渝北区泽科幼儿园', '泽科幼儿园', '泽科幼儿园', '泽科幼儿园', 0, '', 2630, 1, '渝北区观音岩路83号泽科兴城A区', '学区：02两路学区，等级：二级，是否普惠园：是 ', 1, NOW(), 0, 0, 0);
A181: Y0164 | B181: 264 | C181: 0 | D181: 100 | E181: [0],[1],[100], | F181: 3 | G181: 两路 | H181: 9 | I181: Y | J181: 0164 | K181: Y0164 | L181: 重庆市渝北区双凤桥慧伶幼儿园 | M181: 双凤桥慧伶幼儿园 | N181: 双凤桥慧伶幼儿园 | O181: 双凤桥慧伶幼儿园 | P181: 1 | Q181: 1 | R181: 3 | S181: 2640 | T181: 渝北区双凤桥天灯堡 | U181: 学区：02两路学区，等级：二级，是否普惠园：是 | V181: 1 | X181: INSERT INTO sys_org(id, pid, pids, org_type, org_fund_source, education_stage, urban_rural_type, `code`, unique_code, full_name, `name`, short_name, short_name2, tqes_id, tqes_code, `sort`, `status`, address, remark, create_sys_user_id, create_time, longitude, latitude, is_deleted) VALUES(264, 100, '[0],[1],[100],', 3, 3, 1, 1, '0164', 'Y0164', '重庆市渝北区双凤桥慧伶幼儿园', '双凤桥慧伶幼儿园', '双凤桥慧伶幼儿园', '双凤桥慧伶幼儿园', 0, '', 2640, 1, '渝北区双凤桥天灯堡', '学区：02两路学区，等级：二级，是否普惠园：是 ', 1, NOW(), 0, 0, 0);
A182: Y0165 | B182: 265 | C182: 0 | D182: 100 | E182: [0],[1],[100], | F182: 3 | G182: 两路 | H182: 9 | I182: Y | J182: 0165 | K182: Y0165 | L182: 重庆市渝北区双凤桥高屋幼儿园 | M182: 双凤桥高屋幼儿园 | N182: 双凤桥高屋幼儿园 | O182: 双凤桥高屋幼儿园 | P182: 1 | Q182: 1 | R182: 3 | S182: 2650 | T182: 渝北区汉渝路69-3号 | U182: 学区：02两路学区，等级：三级，是否普惠园：是 | V182: 1 | X182: INSERT INTO sys_org(id, pid, pids, org_type, org_fund_source, education_stage, urban_rural_type, `code`, unique_code, full_name, `name`, short_name, short_name2, tqes_id, tqes_code, `sort`, `status`, address, remark, create_sys_user_id, create_time, longitude, latitude, is_deleted) VALUES(265, 100, '[0],[1],[100],', 3, 3, 1, 1, '0165', 'Y0165', '重庆市渝北区双凤桥高屋幼儿园', '双凤桥高屋幼儿园', '双凤桥高屋幼儿园', '双凤桥高屋幼儿园', 0, '', 2650, 1, '渝北区汉渝路69-3号', '学区：02两路学区，等级：三级，是否普惠园：是 ', 1, NOW(), 0, 0, 0);
A183: Y0166 | B183: 266 | C183: 0 | D183: 100 | E183: [0],[1],[100], | F183: 3 | G183: 两路 | H183: 9 | I183: Y | J183: 0166 | K183: Y0166 | L183: 重庆市渝北区双凤桥乐乐幼儿园 | M183: 双凤桥乐乐幼儿园 | N183: 双凤桥乐乐幼儿园 | O183: 双凤桥乐乐幼儿园 | P183: 1 | Q183: 1 | R183: 3 | S183: 2660 | T183: 渝北区双凤支路5号 | U183: 学区：02两路学区，等级：三级，是否普惠园：是 | V183: 1 | X183: INSERT INTO sys_org(id, pid, pids, org_type, org_fund_source, education_stage, urban_rural_type, `code`, unique_code, full_name, `name`, short_name, short_name2, tqes_id, tqes_code, `sort`, `status`, address, remark, create_sys_user_id, create_time, longitude, latitude, is_deleted) VALUES(266, 100, '[0],[1],[100],', 3, 3, 1, 1, '0166', 'Y0166', '重庆市渝北区双凤桥乐乐幼儿园', '双凤桥乐乐幼儿园', '双凤桥乐乐幼儿园', '双凤桥乐乐幼儿园', 0, '', 2660, 1, '渝北区双凤支路5号', '学区：02两路学区，等级：三级，是否普惠园：是', 1, NOW(), 0, 0, 0);
A184: Y0167 | B184: 267 | C184: 0 | D184: 100 | E184: [0],[1],[100], | F184: 3 | G184: 两路 | H184: 9 | I184: Y | J184: 0167 | K184: Y0167 | L184: 重庆市渝北区双凤桥大风车幼儿园 | M184: 双凤桥大风车幼儿园 | N184: 双凤桥大风车幼儿园 | O184: 双凤桥大风车幼儿园 | P184: 1 | Q184: 1 | R184: 3 | S184: 2670 | T184: 渝北区渝航路三巷1号 | U184: 学区：02两路学区，等级：三级，是否普惠园：是 | V184: 1 | X184: INSERT INTO sys_org(id, pid, pids, org_type, org_fund_source, education_stage, urban_rural_type, `code`, unique_code, full_name, `name`, short_name, short_name2, tqes_id, tqes_code, `sort`, `status`, address, remark, create_sys_user_id, create_time, longitude, latitude, is_deleted) VALUES(267, 100, '[0],[1],[100],', 3, 3, 1, 1, '0167', 'Y0167', '重庆市渝北区双凤桥大风车幼儿园', '双凤桥大风车幼儿园', '双凤桥大风车幼儿园', '双凤桥大风车幼儿园', 0, '', 2670, 1, '渝北区渝航路三巷1号', '学区：02两路学区，等级：三级，是否普惠园：是', 1, NOW(), 0, 0, 0);
A185: Y0168 | B185: 268 | C185: 0 | D185: 100 | E185: [0],[1],[100], | F185: 3 | G185: 两路 | H185: 9 | I185: Y | J185: 0168 | K185: Y0168 | L185: 重庆市渝北区双凤桥艺树幼儿园 | M185: 双凤桥艺树幼儿园 | N185: 双凤桥艺树幼儿园 | O185: 双凤桥艺树幼儿园 | P185: 1 | Q185: 1 | R185: 3 | S185: 2680 | T185: 渝北区渝航路14号 | U185: 学区：02两路学区，等级：三级，是否普惠园：是 | V185: 1 | X185: INSERT INTO sys_org(id, pid, pids, org_type, org_fund_source, education_stage, urban_rural_type, `code`, unique_code, full_name, `name`, short_name, short_name2, tqes_id, tqes_code, `sort`, `status`, address, remark, create_sys_user_id, create_time, longitude, latitude, is_deleted) VALUES(268, 100, '[0],[1],[100],', 3, 3, 1, 1, '0168', 'Y0168', '重庆市渝北区双凤桥艺树幼儿园', '双凤桥艺树幼儿园', '双凤桥艺树幼儿园', '双凤桥艺树幼儿园', 0, '', 2680, 1, '渝北区渝航路14号', '学区：02两路学区，等级：三级，是否普惠园：是 ', 1, NOW(), 0, 0, 0);
A186: Y0169 | B186: 269 | C186: 0 | D186: 100 | E186: [0],[1],[100], | F186: 3 | G186: 两路 | H186: 9 | I186: Y | J186: 0169 | K186: Y0169 | L186: 重庆市渝北区双凤桥阳光幼儿园 | M186: 双凤桥阳光幼儿园 | N186: 双凤桥阳光幼儿园 | O186: 双凤桥阳光幼儿园 | P186: 1 | Q186: 1 | R186: 3 | S186: 2690 | T186: 渝北区渝航路凯莱帝景15号 | U186: 学区：02两路学区，等级：三级，是否普惠园：是 | V186: 1 | X186: INSERT INTO sys_org(id, pid, pids, org_type, org_fund_source, education_stage, urban_rural_type, `code`, unique_code, full_name, `name`, short_name, short_name2, tqes_id, tqes_code, `sort`, `status`, address, remark, create_sys_user_id, create_time, longitude, latitude, is_deleted) VALUES(269, 100, '[0],[1],[100],', 3, 3, 1, 1, '0169', 'Y0169', '重庆市渝北区双凤桥阳光幼儿园', '双凤桥阳光幼儿园', '双凤桥阳光幼儿园', '双凤桥阳光幼儿园', 0, '', 2690, 1, '渝北区渝航路凯莱帝景15号', '学区：02两路学区，等级：三级，是否普惠园：是', 1, NOW(), 0, 0, 0);
A187: Y0170 | B187: 270 | C187: 0 | D187: 100 | E187: [0],[1],[100], | F187: 3 | G187: 两路 | H187: 9 | I187: Y | J187: 0170 | K187: Y0170 | L187: 重庆市渝北区双凤桥康乐幼儿园 | M187: 双凤桥康乐幼儿园 | N187: 双凤桥康乐幼儿园 | O187: 双凤桥康乐幼儿园 | P187: 1 | Q187: 1 | R187: 3 | S187: 2700 | T187: 渝北区汉渝路二巷18号附1号 | U187: 学区：02两路学区，等级：三级，是否普惠园：是 | V187: 1 | X187: INSERT INTO sys_org(id, pid, pids, org_type, org_fund_source, education_stage, urban_rural_type, `code`, unique_code, full_name, `name`, short_name, short_name2, tqes_id, tqes_code, `sort`, `status`, address, remark, create_sys_user_id, create_time, longitude, latitude, is_deleted) VALUES(270, 100, '[0],[1],[100],', 3, 3, 1, 1, '0170', 'Y0170', '重庆市渝北区双凤桥康乐幼儿园', '双凤桥康乐幼儿园', '双凤桥康乐幼儿园', '双凤桥康乐幼儿园', 0, '', 2700, 1, '渝北区汉渝路二巷18号附1号', '学区：02两路学区，等级：三级，是否普惠园：是', 1, NOW(), 0, 0, 0);
A188: Y0171 | B188: 271 | C188: 0 | D188: 100 | E188: [0],[1],[100], | F188: 3 | G188: 两路 | H188: 9 | I188: Y | J188: 0171 | K188: Y0171 | L188: 重庆市渝北区两江第一幼儿园 | M188: 两江第一幼儿园 | N188: 两江第一幼儿园 | O188: 两江第一幼儿园 | P188: 1 | Q188: 1 | R188: 1 | S188: 2710 | T188: 渝北区双凤桥街道环湖雅居B区民秀路1号附9号 | U188: 学区：02两路学区，等级：一级，是否普惠园：是 | V188: 1 | X188: INSERT INTO sys_org(id, pid, pids, org_type, org_fund_source, education_stage, urban_rural_type, `code`, unique_code, full_name, `name`, short_name, short_name2, tqes_id, tqes_code, `sort`, `status`, address, remark, create_sys_user_id, create_time, longitude, latitude, is_deleted) VALUES(271, 100, '[0],[1],[100],', 3, 1, 1, 1, '0171', 'Y0171', '重庆市渝北区两江第一幼儿园', '两江第一幼儿园', '两江第一幼儿园', '两江第一幼儿园', 0, '', 2710, 1, '渝北区双凤桥街道环湖雅居B区民秀路1号附9号', '学区：02两路学区，等级：一级，是否普惠园：是', 1, NOW(), 0, 0, 0);
A189: Y0172 | B189: 272 | C189: 0 | D189: =$B$17 -> 100 | E189: [0],[1],[100], | F189: 3 | G189: 两路 | H189: 9 | I189: Y | J189: 0172 | K189: Y0172 | L189: 重庆市渝北区两江第一幼儿园环雅园 | M189: 两江第一幼儿园环雅园 | N189: 两江第一幼儿园环雅园 | O189: 两江第一幼儿园环雅园 | P189: 1 | Q189: 1 | R189: 1 | S189: 2720 | T189: 渝北区双凤桥街道桃源大道559号 | U189: 学区：02两路学区，等级：一级，是否普惠园：是 | V189: 1 | X189: INSERT INTO sys_org(id, pid, pids, org_type, org_fund_source, education_stage, urban_rural_type, `code`, unique_code, full_name, `name`, short_name, short_name2, tqes_id, tqes_code, `sort`, `status`, address, remark, create_sys_user_id, create_time, longitude, latitude, is_deleted) VALUES(272, 100, '[0],[1],[100],', 3, 1, 1, 1, '0172', 'Y0172', '重庆市渝北区两江第一幼儿园环雅园', '两江第一幼儿园环雅园', '两江第一幼儿园环雅园', '两江第一幼儿园环雅园', 0, '', 2720, 1, '渝北区双凤桥街道桃源大道559号', '学区：02两路学区，等级：一级，是否普惠园：是', 1, NOW(), 0, 0, 0);
A190: Y0173 | B190: 273 | C190: 0 | D190: 100 | E190: [0],[1],[100], | F190: 3 | G190: 两路 | H190: 9 | I190: Y | J190: 0173 | K190: Y0173 | L190: 重庆市渝北区两江第一幼儿园桃源园 | M190: 两江第一幼儿园桃源园 | N190: 两江第一幼儿园桃源园 | O190: 两江第一幼儿园桃源园 | P190: 1 | Q190: 1 | R190: 1 | S190: 2730 | T190: 渝北区双凤桥街道桃源大道888号 | U190: 学区：02两路学区，等级：二级，是否普惠园：是 | V190: 1 | X190: INSERT INTO sys_org(id, pid, pids, org_type, org_fund_source, education_stage, urban_rural_type, `code`, unique_code, full_name, `name`, short_name, short_name2, tqes_id, tqes_code, `sort`, `status`, address, remark, create_sys_user_id, create_time, longitude, latitude, is_deleted) VALUES(273, 100, '[0],[1],[100],', 3, 1, 1, 1, '0173', 'Y0173', '重庆市渝北区两江第一幼儿园桃源园', '两江第一幼儿园桃源园', '两江第一幼儿园桃源园', '两江第一幼儿园桃源园', 0, '', 2730, 1, '渝北区双凤桥街道桃源大道888号', '学区：02两路学区，等级：二级，是否普惠园：是', 1, NOW(), 0, 0, 0);
A191: Y0174 | B191: 274 | C191: 0 | D191: 100 | E191: [0],[1],[100], | F191: 3 | G191: 两路 | H191: 9 | I191: Y | J191: 0174 | K191: Y0174 | L191: 重庆市渝北区空港实验小学校附属幼儿园 | M191: 空港实验小学校附属幼儿园 | N191: 空港实验小学校附属幼儿园 | O191: 空港实验小学校附属幼儿园 | P191: 1 | Q191: 1 | R191: 2 | S191: 2740 | T191: 渝北区双凤桥街道安康路225号 | U191: 学区：02两路学区，等级：一级，是否普惠园：是 | V191: 1 | X191: INSERT INTO sys_org(id, pid, pids, org_type, org_fund_source, education_stage, urban_rural_type, `code`, unique_code, full_name, `name`, short_name, short_name2, tqes_id, tqes_code, `sort`, `status`, address, remark, create_sys_user_id, create_time, longitude, latitude, is_deleted) VALUES(274, 100, '[0],[1],[100],', 3, 2, 1, 1, '0174', 'Y0174', '重庆市渝北区空港实验小学校附属幼儿园', '空港实验小学校附属幼儿园', '空港实验小学校附属幼儿园', '空港实验小学校附属幼儿园', 0, '', 2740, 1, '渝北区双凤桥街道安康路225号', '学区：02两路学区，等级：一级，是否普惠园：是', 1, NOW(), 0, 0, 0);
A192: Y0175 | B192: 275 | C192: 0 | D192: 100 | E192: [0],[1],[100], | F192: 3 | G192: 两路 | H192: 9 | I192: Y | J192: 0175 | K192: Y0175 | L192: 重庆市渝北区长安锦尚小学附属幼儿园 | M192: 长安锦尚小学附属幼儿园 | N192: 长安锦尚小学附属幼儿园 | O192: 长安锦尚小学附属幼儿园 | P192: 1 | Q192: 1 | R192: 2 | S192: 2750 | T192: 渝北区空港大道滨溪路1号 | U192: 学区：02两路学区，等级：二级，是否普惠园：是 | V192: 1 | X192: INSERT INTO sys_org(id, pid, pids, org_type, org_fund_source, education_stage, urban_rural_type, `code`, unique_code, full_name, `name`, short_name, short_name2, tqes_id, tqes_code, `sort`, `status`, address, remark, create_sys_user_id, create_time, longitude, latitude, is_deleted) VALUES(275, 100, '[0],[1],[100],', 3, 2, 1, 1, '0175', 'Y0175', '重庆市渝北区长安锦尚小学附属幼儿园', '长安锦尚小学附属幼儿园', '长安锦尚小学附属幼儿园', '长安锦尚小学附属幼儿园', 0, '', 2750, 1, '渝北区空港大道滨溪路1号', '学区：02两路学区，等级：二级，是否普惠园：是', 1, NOW(), 0, 0, 0);
A193: Y0176 | B193: 276 | C193: 0 | D193: 100 | E193: [0],[1],[100], | F193: 3 | G193: 两路 | H193: 9 | I193: Y | J193: 0176 | K193: Y0176 | L193: 重庆市渝北区环雅小学校附属幼儿园 | M193: 环雅小学校附属幼儿园 | N193: 环雅小学校附属幼儿园 | O193: 环雅小学校附属幼儿园 | P193: 1 | Q193: 1 | R193: 2 | S193: 2760 | T193: 渝北区民秀路5号 | U193: 学区：02两路学区，等级：一级，是否普惠园：是 | V193: 1 | X193: INSERT INTO sys_org(id, pid, pids, org_type, org_fund_source, education_stage, urban_rural_type, `code`, unique_code, full_name, `name`, short_name, short_name2, tqes_id, tqes_code, `sort`, `status`, address, remark, create_sys_user_id, create_time, longitude, latitude, is_deleted) VALUES(276, 100, '[0],[1],[100],', 3, 2, 1, 1, '0176', 'Y0176', '重庆市渝北区环雅小学校附属幼儿园', '环雅小学校附属幼儿园', '环雅小学校附属幼儿园', '环雅小学校附属幼儿园', 0, '', 2760, 1, '渝北区民秀路5号', '学区：02两路学区，等级：一级，是否普惠园：是', 1, NOW(), 0, 0, 0);
A194: Y0177 | B194: 277 | C194: 0 | D194: 100 | E194: [0],[1],[100], | F194: 3 | G194: 两路 | H194: 9 | I194: Y | J194: 0177 | K194: Y0177 | L194: 重庆市渝北区观月小学校附属幼儿园 | M194: 观月小学校附属幼儿园 | N194: 观月小学校附属幼儿园 | O194: 观月小学校附属幼儿园 | P194: 1 | Q194: 1 | R194: 2 | S194: 2770 | T194: 渝北区双凤桥街道观月北路229号 | U194: 学区：02两路学区，等级：一级，是否普惠园：是 | V194: 1 | X194: INSERT INTO sys_org(id, pid, pids, org_type, org_fund_source, education_stage, urban_rural_type, `code`, unique_code, full_name, `name`, short_name, short_name2, tqes_id, tqes_code, `sort`, `status`, address, remark, create_sys_user_id, create_time, longitude, latitude, is_deleted) VALUES(277, 100, '[0],[1],[100],', 3, 2, 1, 1, '0177', 'Y0177', '重庆市渝北区观月小学校附属幼儿园', '观月小学校附属幼儿园', '观月小学校附属幼儿园', '观月小学校附属幼儿园', 0, '', 2770, 1, '渝北区双凤桥街道观月北路229号', '学区：02两路学区，等级：一级，是否普惠园：是', 1, NOW(), 0, 0, 0);
A195: Y0178 | B195: 278 | C195: 0 | D195: 100 | E195: [0],[1],[100], | F195: 3 | G195: 两路 | H195: 9 | I195: Y | J195: 0178 | K195: Y0178 | L195: 重庆市渝北区兴阳瑞丰幼儿园 | M195: 兴阳瑞丰幼儿园 | N195: 兴阳瑞丰幼儿园 | O195: 兴阳瑞丰幼儿园 | P195: 1 | Q195: 1 | R195: 3 | S195: 2780 | T195: 渝北区空港大道251号 | U195: 学区：02两路学区，等级：一级，是否普惠园：是 | V195: 1 | X195: INSERT INTO sys_org(id, pid, pids, org_type, org_fund_source, education_stage, urban_rural_type, `code`, unique_code, full_name, `name`, short_name, short_name2, tqes_id, tqes_code, `sort`, `status`, address, remark, create_sys_user_id, create_time, longitude, latitude, is_deleted) VALUES(278, 100, '[0],[1],[100],', 3, 3, 1, 1, '0178', 'Y0178', '重庆市渝北区兴阳瑞丰幼儿园', '兴阳瑞丰幼儿园', '兴阳瑞丰幼儿园', '兴阳瑞丰幼儿园', 0, '', 2780, 1, '渝北区空港大道251号', '学区：02两路学区，等级：一级，是否普惠园：是', 1, NOW(), 0, 0, 0);
A196: Y0179 | B196: 279 | C196: 0 | D196: 100 | E196: [0],[1],[100], | F196: 3 | G196: 两路 | H196: 9 | I196: Y | J196: 0179 | K196: Y0179 | L196: 重庆市渝北区兴阳幼儿园 | M196: 兴阳幼儿园 | N196: 兴阳幼儿园 | O196: 兴阳幼儿园 | P196: 1 | Q196: 1 | R196: 3 | S196: 2790 | T196: 渝北区双凤桥街道长翔路150号 | U196: 学区：02两路学区，等级：一级，是否普惠园：是 | V196: 1 | X196: INSERT INTO sys_org(id, pid, pids, org_type, org_fund_source, education_stage, urban_rural_type, `code`, unique_code, full_name, `name`, short_name, short_name2, tqes_id, tqes_code, `sort`, `status`, address, remark, create_sys_user_id, create_time, longitude, latitude, is_deleted) VALUES(279, 100, '[0],[1],[100],', 3, 3, 1, 1, '0179', 'Y0179', '重庆市渝北区兴阳幼儿园', '兴阳幼儿园', '兴阳幼儿园', '兴阳幼儿园', 0, '', 2790, 1, '渝北区双凤桥街道长翔路150号', '学区：02两路学区，等级：一级，是否普惠园：是', 1, NOW(), 0, 0, 0);
A197: Y0180 | B197: 280 | C197: 0 | D197: 100 | E197: [0],[1],[100], | F197: 3 | G197: 两路 | H197: 9 | I197: Y | J197: 0180 | K197: Y0180 | L197: 重庆市渝北区当当香海驿幼儿园 | M197: 当当香海驿幼儿园 | N197: 当当香海驿幼儿园 | O197: 当当香海驿幼儿园 | P197: 1 | Q197: 1 | R197: 3 | S197: 2800 | T197: 渝北区空港大道766号香海驿小区19栋 | U197: 学区：02两路学区，等级：一级，是否普惠园：是 | V197: 1 | X197: INSERT INTO sys_org(id, pid, pids, org_type, org_fund_source, education_stage, urban_rural_type, `code`, unique_code, full_name, `name`, short_name, short_name2, tqes_id, tqes_code, `sort`, `status`, address, remark, create_sys_user_id, create_time, longitude, latitude, is_deleted) VALUES(280, 100, '[0],[1],[100],', 3, 3, 1, 1, '0180', 'Y0180', '重庆市渝北区当当香海驿幼儿园', '当当香海驿幼儿园', '当当香海驿幼儿园', '当当香海驿幼儿园', 0, '', 2800, 1, '渝北区空港大道766号香海驿小区19栋', '学区：02两路学区，等级：一级，是否普惠园：是', 1, NOW(), 0, 0, 0);
A198: Y0181 | B198: 281 | C198: 0 | D198: 100 | E198: [0],[1],[100], | F198: 3 | G198: 两路 | H198: 9 | I198: Y | J198: 0181 | K198: Y0181 | L198: 重庆市渝北区长安锦尚城幼儿园 | M198: 长安锦尚城幼儿园 | N198: 长安锦尚城幼儿园 | O198: 长安锦尚城幼儿园 | P198: 1 | Q198: 1 | R198: 3 | S198: 2810 | T198: 渝北区双凤桥街道空港大道655号滨溪路12号 | U198: 学区：02两路学区，等级：一级，是否普惠园：是 | V198: 1 | X198: INSERT INTO sys_org(id, pid, pids, org_type, org_fund_source, education_stage, urban_rural_type, `code`, unique_code, full_name, `name`, short_name, short_name2, tqes_id, tqes_code, `sort`, `status`, address, remark, create_sys_user_id, create_time, longitude, latitude, is_deleted) VALUES(281, 100, '[0],[1],[100],', 3, 3, 1, 1, '0181', 'Y0181', '重庆市渝北区长安锦尚城幼儿园', '长安锦尚城幼儿园', '长安锦尚城幼儿园', '长安锦尚城幼儿园', 0, '', 2810, 1, '渝北区双凤桥街道空港大道655号滨溪路12号', '学区：02两路学区，等级：一级，是否普惠园：是', 1, NOW(), 0, 0, 0);
A199: Y0182 | B199: 282 | C199: 0 | D199: =$B$17 -> 100 | E199: [0],[1],[100], | F199: 3 | G199: 两路 | H199: 9 | I199: Y | J199: 0182 | K199: Y0182 | L199: 重庆市渝北区空港童心幼儿园 | M199: 空港童心幼儿园 | N199: 空港童心幼儿园 | O199: 空港童心幼儿园 | P199: 1 | Q199: 1 | R199: 3 | S199: 2820 | T199: 渝北区双凤桥街道泰福路6号4幢2-2 | U199: 学区：02两路学区，等级：二级，是否普惠园：是 | V199: 1 | X199: INSERT INTO sys_org(id, pid, pids, org_type, org_fund_source, education_stage, urban_rural_type, `code`, unique_code, full_name, `name`, short_name, short_name2, tqes_id, tqes_code, `sort`, `status`, address, remark, create_sys_user_id, create_time, longitude, latitude, is_deleted) VALUES(282, 100, '[0],[1],[100],', 3, 3, 1, 1, '0182', 'Y0182', '重庆市渝北区空港童心幼儿园', '空港童心幼儿园', '空港童心幼儿园', '空港童心幼儿园', 0, '', 2820, 1, '渝北区双凤桥街道泰福路6号4幢2-2', '学区：02两路学区，等级：二级，是否普惠园：是', 1, NOW(), 0, 0, 0);
A200: Y0183 | B200: 283 | C200: 0 | D200: 100 | E200: [0],[1],[100], | F200: 3 | G200: 两路 | H200: 9 | I200: Y | J200: 0183 | K200: Y0183 | L200: 重庆市渝北区浩博幼儿园 | M200: 浩博幼儿园 | N200: 浩博幼儿园 | O200: 浩博幼儿园 | P200: 1 | Q200: 1 | R200: 3 | S200: 2830 | T200: 渝北区双凤桥长空路249号 | U200: 学区：02两路学区，等级：二级，是否普惠园：是 | V200: 1 | X200: INSERT INTO sys_org(id, pid, pids, org_type, org_fund_source, education_stage, urban_rural_type, `code`, unique_code, full_name, `name`, short_name, short_name2, tqes_id, tqes_code, `sort`, `status`, address, remark, create_sys_user_id, create_time, longitude, latitude, is_deleted) VALUES(283, 100, '[0],[1],[100],', 3, 3, 1, 1, '0183', 'Y0183', '重庆市渝北区浩博幼儿园', '浩博幼儿园', '浩博幼儿园', '浩博幼儿园', 0, '', 2830, 1, '渝北区双凤桥长空路249号', '学区：02两路学区，等级：二级，是否普惠园：是', 1, NOW(), 0, 0, 0);
A201: Y0184 | B201: 284 | C201: 0 | D201: 100 | E201: [0],[1],[100], | F201: 3 | G201: 两路 | H201: 9 | I201: Y | J201: 0184 | K201: Y0184 | L201: 重庆市渝北区双凤桥金易星辰幼儿园 | M201: 双凤桥金易星辰幼儿园 | N201: 双凤桥金易星辰幼儿园 | O201: 双凤桥金易星辰幼儿园 | P201: 1 | Q201: 1 | R201: 3 | S201: 2840 | T201: 渝北区双凤桥街道双凤支路188号 | U201: 学区：02两路学区，等级：二级，是否普惠园：是 | V201: 1 | X201: INSERT INTO sys_org(id, pid, pids, org_type, org_fund_source, education_stage, urban_rural_type, `code`, unique_code, full_name, `name`, short_name, short_name2, tqes_id, tqes_code, `sort`, `status`, address, remark, create_sys_user_id, create_time, longitude, latitude, is_deleted) VALUES(284, 100, '[0],[1],[100],', 3, 3, 1, 1, '0184', 'Y0184', '重庆市渝北区双凤桥金易星辰幼儿园', '双凤桥金易星辰幼儿园', '双凤桥金易星辰幼儿园', '双凤桥金易星辰幼儿园', 0, '', 2840, 1, '渝北区双凤桥街道双凤支路188号', '学区：02两路学区，等级：二级，是否普惠园：是', 1, NOW(), 0, 0, 0);
A202: Y0185 | B202: 285 | C202: 0 | D202: 100 | E202: [0],[1],[100], | F202: 3 | G202: 两路 | H202: 9 | I202: Y | J202: 0185 | K202: Y0185 | L202: 重庆市渝北区双凤桥青麓幼儿园 | M202: 双凤桥青麓幼儿园 | N202: 双凤桥青麓幼儿园 | O202: 双凤桥青麓幼儿园 | P202: 1 | Q202: 1 | R202: 3 | S202: 2850 | T202: 渝北区空港大道99号 | U202: 学区：02两路学区，等级：二级，是否普惠园：是 | V202: 1 | X202: INSERT INTO sys_org(id, pid, pids, org_type, org_fund_source, education_stage, urban_rural_type, `code`, unique_code, full_name, `name`, short_name, short_name2, tqes_id, tqes_code, `sort`, `status`, address, remark, create_sys_user_id, create_time, longitude, latitude, is_deleted) VALUES(285, 100, '[0],[1],[100],', 3, 3, 1, 1, '0185', 'Y0185', '重庆市渝北区双凤桥青麓幼儿园', '双凤桥青麓幼儿园', '双凤桥青麓幼儿园', '双凤桥青麓幼儿园', 0, '', 2850, 1, '渝北区空港大道99号', '学区：02两路学区，等级：二级，是否普惠园：是', 1, NOW(), 0, 0, 0);
... 283 more rows

Sheet users
A1: sys_role_id | B1: sys_org_id | C1: unique_code | F1: org_name | G1: account | H1: name | I1: SQL-user | J1: SQL-role-user
I2: /* 学前 - 管理员 */ | J2: /* 学前 - 管理员 */
A3: 6 | B3: =orgs!B18 -> 101 | C3: =orgs!K18 -> Y0001 | D3: =orgs!G18 -> 龙溪 | E3: =orgs!L18 -> 重庆市渝北庆龄幼儿园 | F3: =orgs!M18 -> 庆龄幼儿园 | G3: =C3&"01" -> Y000101 | H3: 管理员 | I3: ="INSERT INTO sys_user(id, sys_org_id, `name`, account, password, is_activated, create_sys_user_id, create_time, status, is_deleted) VALUES("&(97+ROW())&", "&B3&", '"&H3&"', '"&G3&"', '5t6QUpK/gc29b2R83PGu/dMBr8qUIkRWpG9dhS85SnI=', 0, 1, NOW(), 1, 0);" -> INSERT INTO sys_user(id, sys_org_id, `name`, account, password, is_activated, create_sys_user_id, create_time, status, is_deleted) VALUES(100, 101, '管理员', 'Y000101', '5t6QUpK/gc29b2R83PGu/dMBr8qUIkRWpG9dhS85SnI=', 0, 1, NOW(), 1, 0); | J3: ="INSERT INTO sys_role_user(id, sys_role_id, sys_user_id) VALUES("&(97+ROW())&", "&A3&", "&(97+ROW())&");" -> INSERT INTO sys_role_user(id, sys_role_id, sys_user_id) VALUES(100, 6, 100);
A4: 6 | B4: =orgs!B19 -> 102 | C4: =orgs!K19 -> Y0002 | D4: =orgs!G19 -> 龙溪 | E4: =orgs!L19 -> 重庆市渝北区龙溪幼儿园 | F4: =orgs!M19 -> 龙溪幼儿园 | G4: =C4&"01" -> Y000201 | H4: 管理员 | I4: ="INSERT INTO sys_user(id, sys_org_id, `name`, account, password, is_activated, create_sys_user_id, create_time, status, is_deleted) VALUES("&(97+ROW())&", "&B4&", '"&H4&"', '"&G4&"', '5t6QUpK/gc29b2R83PGu/dMBr8qUIkRWpG9dhS85SnI=', 0, 1, NOW(), 1, 0);" -> INSERT INTO sys_user(id, sys_org_id, `name`, account, password, is_activated, create_sys_user_id, create_time, status, is_deleted) VALUES(101, 102, '管理员', 'Y000201', '5t6QUpK/gc29b2R83PGu/dMBr8qUIkRWpG9dhS85SnI=', 0, 1, NOW(), 1, 0); | J4: ="INSERT INTO sys_role_user(id, sys_role_id, sys_user_id) VALUES("&(97+ROW())&", "&A4&", "&(97+ROW())&");" -> INSERT INTO sys_role_user(id, sys_role_id, sys_user_id) VALUES(101, 6, 101);
A5: 6 | B5: =orgs!B20 -> 103 | C5: =orgs!K20 -> Y0003 | D5: =orgs!G20 -> 龙溪 | E5: =orgs!L20 -> 重庆市渝北区龙溪小学附属幼儿园 | F5: =orgs!M20 -> 龙溪小学附属幼儿园 | G5: =C5&"01" -> Y000301 | H5: 管理员 | I5: INSERT INTO sys_user(id, sys_org_id, `name`, account, password, is_activated, create_sys_user_id, create_time, status, is_deleted) VALUES(102, 103, '管理员', 'Y000301', '5t6QUpK/gc29b2R83PGu/dMBr8qUIkRWpG9dhS85SnI=', 0, 1, NOW(), 1, 0); | J5: INSERT INTO sys_role_user(id, sys_role_id, sys_user_id) VALUES(102, 6, 102);
A6: 6 | B6: =orgs!B21 -> 104 | C6: =orgs!K21 -> Y0004 | D6: =orgs!G21 -> 龙溪 | E6: =orgs!L21 -> 重庆市渝北长安锦绣实验小学校附属幼儿园 | F6: =orgs!M21 -> 安锦绣实验小学校附属幼儿园 | G6: =C6&"01" -> Y000401 | H6: 管理员 | I6: INSERT INTO sys_user(id, sys_org_id, `name`, account, password, is_activated, create_sys_user_id, create_time, status, is_deleted) VALUES(103, 104, '管理员', 'Y000401', '5t6QUpK/gc29b2R83PGu/dMBr8qUIkRWpG9dhS85SnI=', 0, 1, NOW(), 1, 0); | J6: INSERT INTO sys_role_user(id, sys_role_id, sys_user_id) VALUES(103, 6, 103);
A7: 6 | B7: =orgs!B22 -> 105 | C7: =orgs!K22 -> Y0005 | D7: =orgs!G22 -> 龙溪 | E7: =orgs!L22 -> 重庆市渝北区龙湖南苑幼儿园 | F7: =orgs!M22 -> 龙湖南苑幼儿园 | G7: Y000501 | H7: 管理员 | I7: INSERT INTO sys_user(id, sys_org_id, `name`, account, password, is_activated, create_sys_user_id, create_time, status, is_deleted) VALUES(104, 105, '管理员', 'Y000501', '5t6QUpK/gc29b2R83PGu/dMBr8qUIkRWpG9dhS85SnI=', 0, 1, NOW(), 1, 0); | J7: INSERT INTO sys_role_user(id, sys_role_id, sys_user_id) VALUES(104, 6, 104);
A8: 6 | B8: =orgs!B23 -> 106 | C8: =orgs!K23 -> Y0006 | D8: =orgs!G23 -> 龙溪 | E8: =orgs!L23 -> 重庆市渝北区富悦阳光幼儿园 | F8: =orgs!M23 -> 富悦阳光幼儿园 | G8: Y000601 | H8: 管理员 | I8: INSERT INTO sys_user(id, sys_org_id, `name`, account, password, is_activated, create_sys_user_id, create_time, status, is_deleted) VALUES(105, 106, '管理员', 'Y000601', '5t6QUpK/gc29b2R83PGu/dMBr8qUIkRWpG9dhS85SnI=', 0, 1, NOW(), 1, 0); | J8: INSERT INTO sys_role_user(id, sys_role_id, sys_user_id) VALUES(105, 6, 105);
A9: 6 | B9: =orgs!B24 -> 107 | C9: =orgs!K24 -> Y0007 | D9: =orgs!G24 -> 龙溪 | E9: =orgs!L24 -> 重庆市渝北区百合林幼儿园 | F9: =orgs!M24 -> 百合林幼儿园 | G9: Y000701 | H9: 管理员 | I9: INSERT INTO sys_user(id, sys_org_id, `name`, account, password, is_activated, create_sys_user_id, create_time, status, is_deleted) VALUES(106, 107, '管理员', 'Y000701', '5t6QUpK/gc29b2R83PGu/dMBr8qUIkRWpG9dhS85SnI=', 0, 1, NOW(), 1, 0); | J9: INSERT INTO sys_role_user(id, sys_role_id, sys_user_id) VALUES(106, 6, 106);
A10: 6 | B10: =orgs!B25 -> 108 | C10: =orgs!K25 -> Y0008 | D10: =orgs!G25 -> 龙溪 | E10: =orgs!L25 -> 重庆市渝北区童话林幼儿园 | F10: =orgs!M25 -> 童话林幼儿园 | G10: Y000801 | H10: 管理员 | I10: INSERT INTO sys_user(id, sys_org_id, `name`, account, password, is_activated, create_sys_user_id, create_time, status, is_deleted) VALUES(107, 108, '管理员', 'Y000801', '5t6QUpK/gc29b2R83PGu/dMBr8qUIkRWpG9dhS85SnI=', 0, 1, NOW(), 1, 0); | J10: INSERT INTO sys_role_user(id, sys_role_id, sys_user_id) VALUES(107, 6, 107);
A11: 6 | B11: =orgs!B26 -> 109 | C11: =orgs!K26 -> Y0009 | D11: =orgs!G26 -> 龙溪 | E11: =orgs!L26 -> 重庆市渝北区龙溪新城幼儿园 | F11: =orgs!M26 -> 龙溪新城幼儿园 | G11: Y000901 | H11: 管理员 | I11: INSERT INTO sys_user(id, sys_org_id, `name`, account, password, is_activated, create_sys_user_id, create_time, status, is_deleted) VALUES(108, 109, '管理员', 'Y000901', '5t6QUpK/gc29b2R83PGu/dMBr8qUIkRWpG9dhS85SnI=', 0, 1, NOW(), 1, 0); | J11: INSERT INTO sys_role_user(id, sys_role_id, sys_user_id) VALUES(108, 6, 108);
A12: 6 | B12: =orgs!B27 -> 110 | C12: =orgs!K27 -> Y0010 | D12: =orgs!G27 -> 龙溪 | E12: =orgs!L27 -> 重庆市渝北区龙溪倚山幼儿园 | F12: =orgs!M27 -> 龙溪倚山幼儿园 | G12: Y001001 | H12: 管理员 | I12: INSERT INTO sys_user(id, sys_org_id, `name`, account, password, is_activated, create_sys_user_id, create_time, status, is_deleted) VALUES(109, 110, '管理员', 'Y001001', '5t6QUpK/gc29b2R83PGu/dMBr8qUIkRWpG9dhS85SnI=', 0, 1, NOW(), 1, 0); | J12: INSERT INTO sys_role_user(id, sys_role_id, sys_user_id) VALUES(109, 6, 109);
A13: 6 | B13: =orgs!B28 -> 111 | C13: =orgs!K28 -> Y0011 | D13: =orgs!G28 -> 龙溪 | E13: =orgs!L28 -> 重庆市渝北区龙溪天星幼儿园 | F13: =orgs!M28 -> 龙溪天星幼儿园 | G13: Y001101 | H13: 管理员 | I13: INSERT INTO sys_user(id, sys_org_id, `name`, account, password, is_activated, create_sys_user_id, create_time, status, is_deleted) VALUES(110, 111, '管理员', 'Y001101', '5t6QUpK/gc29b2R83PGu/dMBr8qUIkRWpG9dhS85SnI=', 0, 1, NOW(), 1, 0); | J13: INSERT INTO sys_role_user(id, sys_role_id, sys_user_id) VALUES(110, 6, 110);
A14: 6 | B14: =orgs!B29 -> 112 | C14: =orgs!K29 -> Y0012 | D14: =orgs!G29 -> 龙溪 | E14: =orgs!L29 -> 重庆市渝北区千里马幼儿园 | F14: =orgs!M29 -> 千里马幼儿园 | G14: Y001201 | H14: 管理员 | I14: INSERT INTO sys_user(id, sys_org_id, `name`, account, password, is_activated, create_sys_user_id, create_time, status, is_deleted) VALUES(111, 112, '管理员', 'Y001201', '5t6QUpK/gc29b2R83PGu/dMBr8qUIkRWpG9dhS85SnI=', 0, 1, NOW(), 1, 0); | J14: INSERT INTO sys_role_user(id, sys_role_id, sys_user_id) VALUES(111, 6, 111);
A15: 6 | B15: =orgs!B30 -> 113 | C15: =orgs!K30 -> Y0013 | D15: =orgs!G30 -> 龙溪 | E15: =orgs!L30 -> 重庆市渝北区龙溪明星幼儿园 | F15: =orgs!M30 -> 龙溪明星幼儿园 | G15: Y001301 | H15: 管理员 | I15: INSERT INTO sys_user(id, sys_org_id, `name`, account, password, is_activated, create_sys_user_id, create_time, status, is_deleted) VALUES(112, 113, '管理员', 'Y001301', '5t6QUpK/gc29b2R83PGu/dMBr8qUIkRWpG9dhS85SnI=', 0, 1, NOW(), 1, 0); | J15: INSERT INTO sys_role_user(id, sys_role_id, sys_user_id) VALUES(112, 6, 112);
A16: 6 | B16: =orgs!B31 -> 114 | C16: =orgs!K31 -> Y0014 | D16: =orgs!G31 -> 龙溪 | E16: =orgs!L31 -> 重庆市渝北区龙溪绿景幼儿园 | F16: =orgs!M31 -> 龙溪绿景幼儿园 | G16: Y001401 | H16: 管理员 | I16: INSERT INTO sys_user(id, sys_org_id, `name`, account, password, is_activated, create_sys_user_id, create_time, status, is_deleted) VALUES(113, 114, '管理员', 'Y001401', '5t6QUpK/gc29b2R83PGu/dMBr8qUIkRWpG9dhS85SnI=', 0, 1, NOW(), 1, 0); | J16: INSERT INTO sys_role_user(id, sys_role_id, sys_user_id) VALUES(113, 6, 113);
A17: 6 | B17: =orgs!B32 -> 115 | C17: =orgs!K32 -> Y0015 | D17: =orgs!G32 -> 龙溪 | E17: =orgs!L32 -> 重庆市渝北区龙溪北极星幼儿园 | F17: =orgs!M32 -> 龙溪北极星幼儿园 | G17: Y001501 | H17: 管理员 | I17: INSERT INTO sys_user(id, sys_org_id, `name`, account, password, is_activated, create_sys_user_id, create_time, status, is_deleted) VALUES(114, 115, '管理员', 'Y001501', '5t6QUpK/gc29b2R83PGu/dMBr8qUIkRWpG9dhS85SnI=', 0, 1, NOW(), 1, 0); | J17: INSERT INTO sys_role_user(id, sys_role_id, sys_user_id) VALUES(114, 6, 114);
A18: 6 | B18: =orgs!B33 -> 116 | C18: =orgs!K33 -> Y0016 | D18: =orgs!G33 -> 龙溪 | E18: =orgs!L33 -> 重庆市渝北区恒大上朗幼儿园 | F18: =orgs!M33 -> 恒大上朗幼儿园 | G18: Y001601 | H18: 管理员 | I18: INSERT INTO sys_user(id, sys_org_id, `name`, account, password, is_activated, create_sys_user_id, create_time, status, is_deleted) VALUES(115, 116, '管理员', 'Y001601', '5t6QUpK/gc29b2R83PGu/dMBr8qUIkRWpG9dhS85SnI=', 0, 1, NOW(), 1, 0); | J18: INSERT INTO sys_role_user(id, sys_role_id, sys_user_id) VALUES(115, 6, 115);
A19: 6 | B19: =orgs!B34 -> 117 | C19: =orgs!K34 -> Y0017 | D19: =orgs!G34 -> 龙溪 | E19: =orgs!L34 -> 重庆市渝北区笛迪香奈公馆幼儿园 | F19: =orgs!M34 -> 笛迪香奈公馆幼儿园 | G19: Y001701 | H19: 管理员 | I19: INSERT INTO sys_user(id, sys_org_id, `name`, account, password, is_activated, create_sys_user_id, create_time, status, is_deleted) VALUES(116, 117, '管理员', 'Y001701', '5t6QUpK/gc29b2R83PGu/dMBr8qUIkRWpG9dhS85SnI=', 0, 1, NOW(), 1, 0); | J19: INSERT INTO sys_role_user(id, sys_role_id, sys_user_id) VALUES(116, 6, 116);
A20: 6 | B20: =orgs!B35 -> 118 | C20: =orgs!K35 -> Y0018 | D20: =orgs!G35 -> 龙溪 | E20: =orgs!L35 -> 重庆市渝北区珊瑚乐学幼儿园 | F20: =orgs!M35 -> 珊瑚乐学幼儿园 | G20: Y001801 | H20: 管理员 | I20: INSERT INTO sys_user(id, sys_org_id, `name`, account, password, is_activated, create_sys_user_id, create_time, status, is_deleted) VALUES(117, 118, '管理员', 'Y001801', '5t6QUpK/gc29b2R83PGu/dMBr8qUIkRWpG9dhS85SnI=', 0, 1, NOW(), 1, 0); | J20: INSERT INTO sys_role_user(id, sys_role_id, sys_user_id) VALUES(117, 6, 117);
A21: 6 | B21: =orgs!B36 -> 119 | C21: =orgs!K36 -> Y0019 | D21: =orgs!G36 -> 龙溪 | E21: =orgs!L36 -> 重庆市渝北区阳光尚线幼儿园 | F21: =orgs!M36 -> 阳光尚线幼儿园 | G21: Y001901 | H21: 管理员 | I21: INSERT INTO sys_user(id, sys_org_id, `name`, account, password, is_activated, create_sys_user_id, create_time, status, is_deleted) VALUES(118, 119, '管理员', 'Y001901', '5t6QUpK/gc29b2R83PGu/dMBr8qUIkRWpG9dhS85SnI=', 0, 1, NOW(), 1, 0); | J21: INSERT INTO sys_role_user(id, sys_role_id, sys_user_id) VALUES(118, 6, 118);
A22: 6 | B22: =orgs!B37 -> 120 | C22: =orgs!K37 -> Y0020 | D22: =orgs!G37 -> 龙溪 | E22: =orgs!L37 -> 重庆市渝北区恒大吉的堡御都会幼儿园 | F22: =orgs!M37 -> 恒大吉的堡御都会幼儿园 | G22: Y002001 | H22: 管理员 | I22: INSERT INTO sys_user(id, sys_org_id, `name`, account, password, is_activated, create_sys_user_id, create_time, status, is_deleted) VALUES(119, 120, '管理员', 'Y002001', '5t6QUpK/gc29b2R83PGu/dMBr8qUIkRWpG9dhS85SnI=', 0, 1, NOW(), 1, 0); | J22: INSERT INTO sys_role_user(id, sys_role_id, sys_user_id) VALUES(119, 6, 119);
A23: 6 | B23: =orgs!B38 -> 121 | C23: =orgs!K38 -> Y0021 | D23: =orgs!G38 -> 龙溪 | E23: =orgs!L38 -> 重庆市渝北区华龙财信幼儿园 | F23: =orgs!M38 -> 华龙财信幼儿园 | G23: Y002101 | H23: 管理员 | I23: INSERT INTO sys_user(id, sys_org_id, `name`, account, password, is_activated, create_sys_user_id, create_time, status, is_deleted) VALUES(120, 121, '管理员', 'Y002101', '5t6QUpK/gc29b2R83PGu/dMBr8qUIkRWpG9dhS85SnI=', 0, 1, NOW(), 1, 0); | J23: INSERT INTO sys_role_user(id, sys_role_id, sys_user_id) VALUES(120, 6, 120);
A24: 6 | B24: =orgs!B39 -> 122 | C24: =orgs!K39 -> Y0022 | D24: =orgs!G39 -> 龙溪 | E24: =orgs!L39 -> 重庆市渝北区才儿坊国宾城幼儿园 | F24: =orgs!M39 -> 才儿坊国宾城幼儿园 | G24: Y002201 | H24: 管理员 | I24: INSERT INTO sys_user(id, sys_org_id, `name`, account, password, is_activated, create_sys_user_id, create_time, status, is_deleted) VALUES(121, 122, '管理员', 'Y002201', '5t6QUpK/gc29b2R83PGu/dMBr8qUIkRWpG9dhS85SnI=', 0, 1, NOW(), 1, 0); | J24: INSERT INTO sys_role_user(id, sys_role_id, sys_user_id) VALUES(121, 6, 121);
A25: 6 | B25: =orgs!B40 -> 123 | C25: =orgs!K40 -> Y0023 | D25: =orgs!G40 -> 龙溪 | E25: =orgs!L40 -> 重庆市渝北区龙溪阳光宝贝幼儿园 | F25: =orgs!M40 -> 龙溪阳光宝贝幼儿园 | G25: Y002301 | H25: 管理员 | I25: INSERT INTO sys_user(id, sys_org_id, `name`, account, password, is_activated, create_sys_user_id, create_time, status, is_deleted) VALUES(122, 123, '管理员', 'Y002301', '5t6QUpK/gc29b2R83PGu/dMBr8qUIkRWpG9dhS85SnI=', 0, 1, NOW(), 1, 0); | J25: INSERT INTO sys_role_user(id, sys_role_id, sys_user_id) VALUES(122, 6, 122);
A26: 6 | B26: =orgs!B41 -> 124 | C26: =orgs!K41 -> Y0024 | D26: =orgs!G41 -> 龙溪 | E26: =orgs!L41 -> 重庆市渝北区人和长安幼儿园 | F26: =orgs!M41 -> 人和长安幼儿园 | G26: Y002401 | H26: 管理员 | I26: INSERT INTO sys_user(id, sys_org_id, `name`, account, password, is_activated, create_sys_user_id, create_time, status, is_deleted) VALUES(123, 124, '管理员', 'Y002401', '5t6QUpK/gc29b2R83PGu/dMBr8qUIkRWpG9dhS85SnI=', 0, 1, NOW(), 1, 0); | J26: INSERT INTO sys_role_user(id, sys_role_id, sys_user_id) VALUES(123, 6, 123);
A27: 6 | B27: =orgs!B42 -> 125 | C27: =orgs!K42 -> Y0025 | D27: =orgs!G42 -> 龙溪 | E27: =orgs!L42 -> 重庆市渝北区龙溪英华贝贝幼儿园 | F27: =orgs!M42 -> 龙溪英华贝贝幼儿园 | G27: Y002501 | H27: 管理员 | I27: INSERT INTO sys_user(id, sys_org_id, `name`, account, password, is_activated, create_sys_user_id, create_time, status, is_deleted) VALUES(124, 125, '管理员', 'Y002501', '5t6QUpK/gc29b2R83PGu/dMBr8qUIkRWpG9dhS85SnI=', 0, 1, NOW(), 1, 0); | J27: INSERT INTO sys_role_user(id, sys_role_id, sys_user_id) VALUES(124, 6, 124);
A28: 6 | B28: =orgs!B43 -> 126 | C28: =orgs!K43 -> Y0026 | D28: =orgs!G43 -> 龙溪 | E28: =orgs!L43 -> 重庆市渝北区龙溪三色香山幼儿园 | F28: =orgs!M43 -> 龙溪三色香山幼儿园 | G28: Y002601 | H28: 管理员 | I28: INSERT INTO sys_user(id, sys_org_id, `name`, account, password, is_activated, create_sys_user_id, create_time, status, is_deleted) VALUES(125, 126, '管理员', 'Y002601', '5t6QUpK/gc29b2R83PGu/dMBr8qUIkRWpG9dhS85SnI=', 0, 1, NOW(), 1, 0); | J28: INSERT INTO sys_role_user(id, sys_role_id, sys_user_id) VALUES(125, 6, 125);
A29: 6 | B29: =orgs!B44 -> 127 | C29: =orgs!K44 -> Y0027 | D29: =orgs!G44 -> 龙溪 | E29: =orgs!L44 -> 重庆市渝北区龙溪金龙幼儿园 | F29: =orgs!M44 -> 龙溪金龙幼儿园 | G29: Y002701 | H29: 管理员 | I29: INSERT INTO sys_user(id, sys_org_id, `name`, account, password, is_activated, create_sys_user_id, create_time, status, is_deleted) VALUES(126, 127, '管理员', 'Y002701', '5t6QUpK/gc29b2R83PGu/dMBr8qUIkRWpG9dhS85SnI=', 0, 1, NOW(), 1, 0); | J29: INSERT INTO sys_role_user(id, sys_role_id, sys_user_id) VALUES(126, 6, 126);
A30: 6 | B30: =orgs!B45 -> 128 | C30: =orgs!K45 -> Y0028 | D30: =orgs!G45 -> 龙溪 | E30: =orgs!L45 -> 重庆市渝北区龙溪林璘幼儿园 | F30: =orgs!M45 -> 龙溪林璘幼儿园 | G30: Y002801 | H30: 管理员 | I30: INSERT INTO sys_user(id, sys_org_id, `name`, account, password, is_activated, create_sys_user_id, create_time, status, is_deleted) VALUES(127, 128, '管理员', 'Y002801', '5t6QUpK/gc29b2R83PGu/dMBr8qUIkRWpG9dhS85SnI=', 0, 1, NOW(), 1, 0); | J30: INSERT INTO sys_role_user(id, sys_role_id, sys_user_id) VALUES(127, 6, 127);
A31: 6 | B31: =orgs!B46 -> 129 | C31: =orgs!K46 -> Y0029 | D31: =orgs!G46 -> 龙溪 | E31: =orgs!L46 -> 重庆市渝北区爱贝贝幼儿园 | F31: =orgs!M46 -> 爱贝贝幼儿园 | G31: Y002901 | H31: 管理员 | I31: INSERT INTO sys_user(id, sys_org_id, `name`, account, password, is_activated, create_sys_user_id, create_time, status, is_deleted) VALUES(128, 129, '管理员', 'Y002901', '5t6QUpK/gc29b2R83PGu/dMBr8qUIkRWpG9dhS85SnI=', 0, 1, NOW(), 1, 0); | J31: INSERT INTO sys_role_user(id, sys_role_id, sys_user_id) VALUES(128, 6, 128);
A32: 6 | B32: =orgs!B47 -> 130 | C32: =orgs!K47 -> Y0030 | D32: =orgs!G47 -> 龙溪 | E32: =orgs!L47 -> 重庆市渝北区龙溪培正逗点幼儿园 | F32: =orgs!M47 -> 龙溪培正逗点幼儿园 | G32: Y003001 | H32: 管理员 | I32: INSERT INTO sys_user(id, sys_org_id, `name`, account, password, is_activated, create_sys_user_id, create_time, status, is_deleted) VALUES(129, 130, '管理员', 'Y003001', '5t6QUpK/gc29b2R83PGu/dMBr8qUIkRWpG9dhS85SnI=', 0, 1, NOW(), 1, 0); | J32: INSERT INTO sys_role_user(id, sys_role_id, sys_user_id) VALUES(129, 6, 129);
A33: 6 | B33: =orgs!B48 -> 131 | C33: =orgs!K48 -> Y0031 | D33: =orgs!G48 -> 龙溪 | E33: =orgs!L48 -> 重庆市渝北区冉家坝幼儿园 | F33: =orgs!M48 -> 冉家坝幼儿园 | G33: Y003101 | H33: 管理员 | I33: INSERT INTO sys_user(id, sys_org_id, `name`, account, password, is_activated, create_sys_user_id, create_time, status, is_deleted) VALUES(130, 131, '管理员', 'Y003101', '5t6QUpK/gc29b2R83PGu/dMBr8qUIkRWpG9dhS85SnI=', 0, 1, NOW(), 1, 0); | J33: INSERT INTO sys_role_user(id, sys_role_id, sys_user_id) VALUES(130, 6, 130);
A34: 6 | B34: =orgs!B49 -> 132 | C34: =orgs!K49 -> Y0032 | D34: =orgs!G49 -> 龙溪 | E34: =orgs!L49 -> 重庆市渝北区冉家坝幼儿园榆溪园 | F34: =orgs!M49 -> 冉家坝幼儿园榆溪园 | G34: Y003201 | H34: 管理员 | I34: INSERT INTO sys_user(id, sys_org_id, `name`, account, password, is_activated, create_sys_user_id, create_time, status, is_deleted) VALUES(131, 132, '管理员', 'Y003201', '5t6QUpK/gc29b2R83PGu/dMBr8qUIkRWpG9dhS85SnI=', 0, 1, NOW(), 1, 0); | J34: INSERT INTO sys_role_user(id, sys_role_id, sys_user_id) VALUES(131, 6, 131);
A35: 6 | B35: =orgs!B50 -> 133 | C35: =orgs!K50 -> Y0033 | D35: =orgs!G50 -> 龙溪 | E35: =orgs!L50 -> 重庆市渝北区渝开学校附属幼儿园 | F35: =orgs!M50 -> 渝开学校附属幼儿园 | G35: Y003301 | H35: 管理员 | I35: INSERT INTO sys_user(id, sys_org_id, `name`, account, password, is_activated, create_sys_user_id, create_time, status, is_deleted) VALUES(132, 133, '管理员', 'Y003301', '5t6QUpK/gc29b2R83PGu/dMBr8qUIkRWpG9dhS85SnI=', 0, 1, NOW(), 1, 0); | J35: INSERT INTO sys_role_user(id, sys_role_id, sys_user_id) VALUES(132, 6, 132);
A36: 6 | B36: =orgs!B51 -> 134 | C36: =orgs!K51 -> Y0034 | D36: =orgs!G51 -> 龙溪 | E36: =orgs!L51 -> 重庆市渝北区龙山小学校附属幼儿园 | F36: =orgs!M51 -> 龙山小学校附属幼儿园 | G36: Y003401 | H36: 管理员 | I36: INSERT INTO sys_user(id, sys_org_id, `name`, account, password, is_activated, create_sys_user_id, create_time, status, is_deleted) VALUES(133, 134, '管理员', 'Y003401', '5t6QUpK/gc29b2R83PGu/dMBr8qUIkRWpG9dhS85SnI=', 0, 1, NOW(), 1, 0); | J36: INSERT INTO sys_role_user(id, sys_role_id, sys_user_id) VALUES(133, 6, 133);
A37: 6 | B37: =orgs!B52 -> 135 | C37: =orgs!K52 -> Y0035 | D37: =orgs!G52 -> 龙溪 | E37: =orgs!L52 -> 重庆市渝北区花园小学附属幼儿园 | F37: =orgs!M52 -> 花园小学附属幼儿园 | G37: Y003501 | H37: 管理员 | I37: INSERT INTO sys_user(id, sys_org_id, `name`, account, password, is_activated, create_sys_user_id, create_time, status, is_deleted) VALUES(134, 135, '管理员', 'Y003501', '5t6QUpK/gc29b2R83PGu/dMBr8qUIkRWpG9dhS85SnI=', 0, 1, NOW(), 1, 0); | J37: INSERT INTO sys_role_user(id, sys_role_id, sys_user_id) VALUES(134, 6, 134);
A38: 6 | B38: =orgs!B53 -> 136 | C38: =orgs!K53 -> Y0036 | D38: =orgs!G53 -> 龙溪 | E38: =orgs!L53 -> 重庆市渝北区东和春天实验学校附属幼儿园 | F38: =orgs!M53 -> 东和春天实验学校附属幼儿园 | G38: Y003601 | H38: 管理员 | I38: INSERT INTO sys_user(id, sys_org_id, `name`, account, password, is_activated, create_sys_user_id, create_time, status, is_deleted) VALUES(135, 136, '管理员', 'Y003601', '5t6QUpK/gc29b2R83PGu/dMBr8qUIkRWpG9dhS85SnI=', 0, 1, NOW(), 1, 0); | J38: INSERT INTO sys_role_user(id, sys_role_id, sys_user_id) VALUES(135, 6, 135);
A39: 6 | B39: =orgs!B54 -> 137 | C39: =orgs!K54 -> Y0037 | D39: =orgs!G54 -> 龙溪 | E39: =orgs!L54 -> 重庆市渝北区嘟嘟乐幼儿园 | F39: =orgs!M54 -> 嘟嘟乐幼儿园 | G39: Y003701 | H39: 管理员 | I39: INSERT INTO sys_user(id, sys_org_id, `name`, account, password, is_activated, create_sys_user_id, create_time, status, is_deleted) VALUES(136, 137, '管理员', 'Y003701', '5t6QUpK/gc29b2R83PGu/dMBr8qUIkRWpG9dhS85SnI=', 0, 1, NOW(), 1, 0); | J39: INSERT INTO sys_role_user(id, sys_role_id, sys_user_id) VALUES(136, 6, 136);
A40: 6 | B40: =orgs!B55 -> 138 | C40: =orgs!K55 -> Y0038 | D40: =orgs!G55 -> 龙溪 | E40: =orgs!L55 -> 重庆市渝北区城市理想幼儿园 | F40: =orgs!M55 -> 城市理想幼儿园 | G40: Y003801 | H40: 管理员 | I40: INSERT INTO sys_user(id, sys_org_id, `name`, account, password, is_activated, create_sys_user_id, create_time, status, is_deleted) VALUES(137, 138, '管理员', 'Y003801', '5t6QUpK/gc29b2R83PGu/dMBr8qUIkRWpG9dhS85SnI=', 0, 1, NOW(), 1, 0); | J40: INSERT INTO sys_role_user(id, sys_role_id, sys_user_id) VALUES(137, 6, 137);
A41: 6 | B41: =orgs!B56 -> 139 | C41: =orgs!K56 -> Y0039 | D41: =orgs!G56 -> 龙溪 | E41: =orgs!L56 -> 重庆市渝北区开心贝贝幼儿园 | F41: =orgs!M56 -> 开心贝贝幼儿园 | G41: Y003901 | H41: 管理员 | I41: INSERT INTO sys_user(id, sys_org_id, `name`, account, password, is_activated, create_sys_user_id, create_time, status, is_deleted) VALUES(138, 139, '管理员', 'Y003901', '5t6QUpK/gc29b2R83PGu/dMBr8qUIkRWpG9dhS85SnI=', 0, 1, NOW(), 1, 0); | J41: INSERT INTO sys_role_user(id, sys_role_id, sys_user_id) VALUES(138, 6, 138);
A42: 6 | B42: =orgs!B57 -> 140 | C42: =orgs!K57 -> Y0040 | D42: =orgs!G57 -> 龙溪 | E42: =orgs!L57 -> 重庆市渝北区龙湖紫都城幼儿园 | F42: =orgs!M57 -> 龙湖紫都城幼儿园 | G42: Y004001 | H42: 管理员 | I42: INSERT INTO sys_user(id, sys_org_id, `name`, account, password, is_activated, create_sys_user_id, create_time, status, is_deleted) VALUES(139, 140, '管理员', 'Y004001', '5t6QUpK/gc29b2R83PGu/dMBr8qUIkRWpG9dhS85SnI=', 0, 1, NOW(), 1, 0); | J42: INSERT INTO sys_role_user(id, sys_role_id, sys_user_id) VALUES(139, 6, 139);
A43: 6 | B43: =orgs!B58 -> 141 | C43: =orgs!K58 -> Y0041 | D43: =orgs!G58 -> 龙溪 | E43: =orgs!L58 -> 重庆市渝北区世博爱幼儿园 | F43: =orgs!M58 -> 世博爱幼儿园 | G43: Y004101 | H43: 管理员 | I43: INSERT INTO sys_user(id, sys_org_id, `name`, account, password, is_activated, create_sys_user_id, create_time, status, is_deleted) VALUES(140, 141, '管理员', 'Y004101', '5t6QUpK/gc29b2R83PGu/dMBr8qUIkRWpG9dhS85SnI=', 0, 1, NOW(), 1, 0); | J43: INSERT INTO sys_role_user(id, sys_role_id, sys_user_id) VALUES(140, 6, 140);
A44: 6 | B44: =orgs!B59 -> 142 | C44: =orgs!K59 -> Y0042 | D44: =orgs!G59 -> 龙溪 | E44: =orgs!L59 -> 重庆市渝北区（龙溪）米兰书香幼儿园 | F44: =orgs!M59 -> （龙溪）米兰书香幼儿园 | G44: Y004201 | H44: 管理员 | I44: INSERT INTO sys_user(id, sys_org_id, `name`, account, password, is_activated, create_sys_user_id, create_time, status, is_deleted) VALUES(141, 142, '管理员', 'Y004201', '5t6QUpK/gc29b2R83PGu/dMBr8qUIkRWpG9dhS85SnI=', 0, 1, NOW(), 1, 0); | J44: INSERT INTO sys_role_user(id, sys_role_id, sys_user_id) VALUES(141, 6, 141);
A45: 6 | B45: =orgs!B60 -> 143 | C45: =orgs!K60 -> Y0043 | D45: =orgs!G60 -> 龙溪 | E45: =orgs!L60 -> 重庆市渝北区金港湾幼儿园 | F45: =orgs!M60 -> 金港湾幼儿园 | G45: Y004301 | H45: 管理员 | I45: INSERT INTO sys_user(id, sys_org_id, `name`, account, password, is_activated, create_sys_user_id, create_time, status, is_deleted) VALUES(142, 143, '管理员', 'Y004301', '5t6QUpK/gc29b2R83PGu/dMBr8qUIkRWpG9dhS85SnI=', 0, 1, NOW(), 1, 0); | J45: INSERT INTO sys_role_user(id, sys_role_id, sys_user_id) VALUES(142, 6, 142);
A46: 6 | B46: =orgs!B61 -> 144 | C46: =orgs!K61 -> Y0044 | D46: =orgs!G61 -> 龙溪 | E46: =orgs!L61 -> 重庆市渝北区龙溪金岛幼儿园 | F46: =orgs!M61 -> 龙溪金岛幼儿园 | G46: Y004401 | H46: 管理员 | I46: INSERT INTO sys_user(id, sys_org_id, `name`, account, password, is_activated, create_sys_user_id, create_time, status, is_deleted) VALUES(143, 144, '管理员', 'Y004401', '5t6QUpK/gc29b2R83PGu/dMBr8qUIkRWpG9dhS85SnI=', 0, 1, NOW(), 1, 0); | J46: INSERT INTO sys_role_user(id, sys_role_id, sys_user_id) VALUES(143, 6, 143);
A47: 6 | B47: =orgs!B62 -> 145 | C47: =orgs!K62 -> Y0045 | D47: =orgs!G62 -> 龙溪 | E47: =orgs!L62 -> 重庆市渝北区慧聪坊幼儿园 | F47: =orgs!M62 -> 慧聪坊幼儿园 | G47: Y004501 | H47: 管理员 | I47: INSERT INTO sys_user(id, sys_org_id, `name`, account, password, is_activated, create_sys_user_id, create_time, status, is_deleted) VALUES(144, 145, '管理员', 'Y004501', '5t6QUpK/gc29b2R83PGu/dMBr8qUIkRWpG9dhS85SnI=', 0, 1, NOW(), 1, 0); | J47: INSERT INTO sys_role_user(id, sys_role_id, sys_user_id) VALUES(144, 6, 144);
A48: 6 | B48: =orgs!B63 -> 146 | C48: =orgs!K63 -> Y0046 | D48: =orgs!G63 -> 龙溪 | E48: =orgs!L63 -> 重庆市渝北区早慧幼儿园 | F48: =orgs!M63 -> 早慧幼儿园 | G48: Y004601 | H48: 管理员 | I48: INSERT INTO sys_user(id, sys_org_id, `name`, account, password, is_activated, create_sys_user_id, create_time, status, is_deleted) VALUES(145, 146, '管理员', 'Y004601', '5t6QUpK/gc29b2R83PGu/dMBr8qUIkRWpG9dhS85SnI=', 0, 1, NOW(), 1, 0); | J48: INSERT INTO sys_role_user(id, sys_role_id, sys_user_id) VALUES(145, 6, 145);
A49: 6 | B49: =orgs!B64 -> 147 | C49: =orgs!K64 -> Y0047 | D49: =orgs!G64 -> 龙溪 | E49: =orgs!L64 -> 重庆市渝北区渝安龙都幼儿园 | F49: =orgs!M64 -> 渝安龙都幼儿园 | G49: Y004701 | H49: 管理员 | I49: INSERT INTO sys_user(id, sys_org_id, `name`, account, password, is_activated, create_sys_user_id, create_time, status, is_deleted) VALUES(146, 147, '管理员', 'Y004701', '5t6QUpK/gc29b2R83PGu/dMBr8qUIkRWpG9dhS85SnI=', 0, 1, NOW(), 1, 0); | J49: INSERT INTO sys_role_user(id, sys_role_id, sys_user_id) VALUES(146, 6, 146);
A50: 6 | B50: =orgs!B65 -> 148 | C50: =orgs!K65 -> Y0048 | D50: =orgs!G65 -> 龙溪 | E50: =orgs!L65 -> 重庆市渝北区余惠敏新城丽都幼儿园 | F50: =orgs!M65 -> 余惠敏新城丽都幼儿园 | G50: Y004801 | H50: 管理员 | I50: INSERT INTO sys_user(id, sys_org_id, `name`, account, password, is_activated, create_sys_user_id, create_time, status, is_deleted) VALUES(147, 148, '管理员', 'Y004801', '5t6QUpK/gc29b2R83PGu/dMBr8qUIkRWpG9dhS85SnI=', 0, 1, NOW(), 1, 0); | J50: INSERT INTO sys_role_user(id, sys_role_id, sys_user_id) VALUES(147, 6, 147);
A51: 6 | B51: =orgs!B66 -> 149 | C51: =orgs!K66 -> Y0049 | D51: =orgs!G66 -> 龙溪 | E51: =orgs!L66 -> 重庆市渝北区东和春天幼儿园 | F51: =orgs!M66 -> 东和春天幼儿园 | G51: Y004901 | H51: 管理员 | I51: INSERT INTO sys_user(id, sys_org_id, `name`, account, password, is_activated, create_sys_user_id, create_time, status, is_deleted) VALUES(148, 149, '管理员', 'Y004901', '5t6QUpK/gc29b2R83PGu/dMBr8qUIkRWpG9dhS85SnI=', 0, 1, NOW(), 1, 0); | J51: INSERT INTO sys_role_user(id, sys_role_id, sys_user_id) VALUES(148, 6, 148);
A52: 6 | B52: =orgs!B67 -> 150 | C52: =orgs!K67 -> Y0050 | D52: =orgs!G67 -> 龙溪 | E52: =orgs!L67 -> 重庆市渝北区龙溪温馨幼儿园 | F52: =orgs!M67 -> 龙溪温馨幼儿园 | G52: Y005001 | H52: 管理员 | I52: INSERT INTO sys_user(id, sys_org_id, `name`, account, password, is_activated, create_sys_user_id, create_time, status, is_deleted) VALUES(149, 150, '管理员', 'Y005001', '5t6QUpK/gc29b2R83PGu/dMBr8qUIkRWpG9dhS85SnI=', 0, 1, NOW(), 1, 0); | J52: INSERT INTO sys_role_user(id, sys_role_id, sys_user_id) VALUES(149, 6, 149);
A53: 6 | B53: =orgs!B68 -> 151 | C53: =orgs!K68 -> Y0051 | D53: =orgs!G68 -> 龙溪 | E53: =orgs!L68 -> 重庆市渝北区龙溪点点幼儿园 | F53: =orgs!M68 -> 龙溪点点幼儿园 | G53: Y005101 | H53: 管理员 | I53: INSERT INTO sys_user(id, sys_org_id, `name`, account, password, is_activated, create_sys_user_id, create_time, status, is_deleted) VALUES(150, 151, '管理员', 'Y005101', '5t6QUpK/gc29b2R83PGu/dMBr8qUIkRWpG9dhS85SnI=', 0, 1, NOW(), 1, 0); | J53: INSERT INTO sys_role_user(id, sys_role_id, sys_user_id) VALUES(150, 6, 150);
A54: 6 | B54: =orgs!B69 -> 152 | C54: =orgs!K69 -> Y0052 | D54: =orgs!G69 -> 龙溪 | E54: =orgs!L69 -> 重庆市渝北区全稚园聚信幼儿园 | F54: =orgs!M69 -> 全稚园聚信幼儿园 | G54: Y005201 | H54: 管理员 | I54: INSERT INTO sys_user(id, sys_org_id, `name`, account, password, is_activated, create_sys_user_id, create_time, status, is_deleted) VALUES(151, 152, '管理员', 'Y005201', '5t6QUpK/gc29b2R83PGu/dMBr8qUIkRWpG9dhS85SnI=', 0, 1, NOW(), 1, 0); | J54: INSERT INTO sys_role_user(id, sys_role_id, sys_user_id) VALUES(151, 6, 151);
A55: 6 | B55: =orgs!B70 -> 153 | C55: =orgs!K70 -> Y0053 | D55: =orgs!G70 -> 龙溪 | E55: =orgs!L70 -> 重庆市渝北区智多星幼儿园 | F55: =orgs!M70 -> 智多星幼儿园 | G55: Y005301 | H55: 管理员 | I55: INSERT INTO sys_user(id, sys_org_id, `name`, account, password, is_activated, create_sys_user_id, create_time, status, is_deleted) VALUES(152, 153, '管理员', 'Y005301', '5t6QUpK/gc29b2R83PGu/dMBr8qUIkRWpG9dhS85SnI=', 0, 1, NOW(), 1, 0); | J55: INSERT INTO sys_role_user(id, sys_role_id, sys_user_id) VALUES(152, 6, 152);
A56: 6 | B56: =orgs!B71 -> 154 | C56: =orgs!K71 -> Y0054 | D56: =orgs!G71 -> 龙溪 | E56: =orgs!L71 -> 重庆市渝北区盛世北辰三色幼儿园 | F56: =orgs!M71 -> 盛世北辰三色幼儿园 | G56: Y005401 | H56: 管理员 | I56: INSERT INTO sys_user(id, sys_org_id, `name`, account, password, is_activated, create_sys_user_id, create_time, status, is_deleted) VALUES(153, 154, '管理员', 'Y005401', '5t6QUpK/gc29b2R83PGu/dMBr8qUIkRWpG9dhS85SnI=', 0, 1, NOW(), 1, 0); | J56: INSERT INTO sys_role_user(id, sys_role_id, sys_user_id) VALUES(153, 6, 153);
A57: 6 | B57: =orgs!B72 -> 155 | C57: =orgs!K72 -> Y0055 | D57: =orgs!G72 -> 龙溪 | E57: =orgs!L72 -> 重庆市渝北区龙溪龙山幼儿园 | F57: =orgs!M72 -> 龙溪龙山幼儿园 | G57: Y005501 | H57: 管理员 | I57: INSERT INTO sys_user(id, sys_org_id, `name`, account, password, is_activated, create_sys_user_id, create_time, status, is_deleted) VALUES(154, 155, '管理员', 'Y005501', '5t6QUpK/gc29b2R83PGu/dMBr8qUIkRWpG9dhS85SnI=', 0, 1, NOW(), 1, 0); | J57: INSERT INTO sys_role_user(id, sys_role_id, sys_user_id) VALUES(154, 6, 154);
A58: 6 | B58: =orgs!B73 -> 156 | C58: =orgs!K73 -> Y0056 | D58: =orgs!G73 -> 龙溪 | E58: =orgs!L73 -> 重庆市渝北区奇心乐天一幼儿园 | F58: =orgs!M73 -> 奇心乐天一幼儿园 | G58: Y005601 | H58: 管理员 | I58: INSERT INTO sys_user(id, sys_org_id, `name`, account, password, is_activated, create_sys_user_id, create_time, status, is_deleted) VALUES(155, 156, '管理员', 'Y005601', '5t6QUpK/gc29b2R83PGu/dMBr8qUIkRWpG9dhS85SnI=', 0, 1, NOW(), 1, 0); | J58: INSERT INTO sys_role_user(id, sys_role_id, sys_user_id) VALUES(155, 6, 155);
A59: 6 | B59: =orgs!B74 -> 157 | C59: =orgs!K74 -> Y0057 | D59: =orgs!G74 -> 龙溪 | E59: =orgs!L74 -> 重庆市渝北区金凤凰幼儿园 | F59: =orgs!M74 -> 金凤凰幼儿园 | G59: Y005701 | H59: 管理员 | I59: INSERT INTO sys_user(id, sys_org_id, `name`, account, password, is_activated, create_sys_user_id, create_time, status, is_deleted) VALUES(156, 157, '管理员', 'Y005701', '5t6QUpK/gc29b2R83PGu/dMBr8qUIkRWpG9dhS85SnI=', 0, 1, NOW(), 1, 0); | J59: INSERT INTO sys_role_user(id, sys_role_id, sys_user_id) VALUES(156, 6, 156);
A60: 6 | B60: =orgs!B75 -> 158 | C60: =orgs!K75 -> Y0058 | D60: =orgs!G75 -> 龙溪 | E60: =orgs!L75 -> 重庆市渝北区为明幼儿园 | F60: =orgs!M75 -> 为明幼儿园 | G60: Y005801 | H60: 管理员 | I60: INSERT INTO sys_user(id, sys_org_id, `name`, account, password, is_activated, create_sys_user_id, create_time, status, is_deleted) VALUES(157, 158, '管理员', 'Y005801', '5t6QUpK/gc29b2R83PGu/dMBr8qUIkRWpG9dhS85SnI=', 0, 1, NOW(), 1, 0); | J60: INSERT INTO sys_role_user(id, sys_role_id, sys_user_id) VALUES(157, 6, 157);
A61: 6 | B61: =orgs!B76 -> 159 | C61: =orgs!K76 -> Y0059 | D61: =orgs!G76 -> 龙溪 | E61: =orgs!L76 -> 重庆市渝北区龙汇苑爱弥儿幼儿园有限公司 | F61: =orgs!M76 -> 龙汇苑爱弥儿幼儿园有限公司 | G61: Y005901 | H61: 管理员 | I61: INSERT INTO sys_user(id, sys_org_id, `name`, account, password, is_activated, create_sys_user_id, create_time, status, is_deleted) VALUES(158, 159, '管理员', 'Y005901', '5t6QUpK/gc29b2R83PGu/dMBr8qUIkRWpG9dhS85SnI=', 0, 1, NOW(), 1, 0); | J61: INSERT INTO sys_role_user(id, sys_role_id, sys_user_id) VALUES(158, 6, 158);
A62: 6 | B62: =orgs!B77 -> 160 | C62: =orgs!K77 -> Y0060 | D62: =orgs!G77 -> 龙溪 | E62: =orgs!L77 -> 重庆市渝北区金豆云中幼儿园有限公司 | F62: =orgs!M77 -> 金豆云中幼儿园有限公司 | G62: Y006001 | H62: 管理员 | I62: INSERT INTO sys_user(id, sys_org_id, `name`, account, password, is_activated, create_sys_user_id, create_time, status, is_deleted) VALUES(159, 160, '管理员', 'Y006001', '5t6QUpK/gc29b2R83PGu/dMBr8qUIkRWpG9dhS85SnI=', 0, 1, NOW(), 1, 0); | J62: INSERT INTO sys_role_user(id, sys_role_id, sys_user_id) VALUES(159, 6, 159);
A63: 6 | B63: =orgs!B78 -> 161 | C63: =orgs!K78 -> Y0061 | D63: =orgs!G78 -> 龙溪 | E63: =orgs!L78 -> 重庆市渝北区龙溪新绿幼儿园 | F63: =orgs!M78 -> 龙溪新绿幼儿园 | G63: Y006101 | H63: 管理员 | I63: INSERT INTO sys_user(id, sys_org_id, `name`, account, password, is_activated, create_sys_user_id, create_time, status, is_deleted) VALUES(160, 161, '管理员', 'Y006101', '5t6QUpK/gc29b2R83PGu/dMBr8qUIkRWpG9dhS85SnI=', 0, 1, NOW(), 1, 0); | J63: INSERT INTO sys_role_user(id, sys_role_id, sys_user_id) VALUES(160, 6, 160);
A64: 6 | B64: =orgs!B79 -> 162 | C64: =orgs!K79 -> Y0062 | D64: =orgs!G79 -> 龙溪 | E64: =orgs!L79 -> 重庆市渝北区五州幼儿园 | F64: =orgs!M79 -> 五州幼儿园 | G64: Y006201 | H64: 管理员 | I64: INSERT INTO sys_user(id, sys_org_id, `name`, account, password, is_activated, create_sys_user_id, create_time, status, is_deleted) VALUES(161, 162, '管理员', 'Y006201', '5t6QUpK/gc29b2R83PGu/dMBr8qUIkRWpG9dhS85SnI=', 0, 1, NOW(), 1, 0); | J64: INSERT INTO sys_role_user(id, sys_role_id, sys_user_id) VALUES(161, 6, 161);
A65: 6 | B65: =orgs!B80 -> 163 | C65: =orgs!K80 -> Y0063 | D65: =orgs!G80 -> 龙溪 | E65: =orgs!L80 -> 重庆市渝北区龙山七彩阳光春风幼儿园 | F65: =orgs!M80 -> 龙山七彩阳光春风幼儿园 | G65: Y006301 | H65: 管理员 | I65: INSERT INTO sys_user(id, sys_org_id, `name`, account, password, is_activated, create_sys_user_id, create_time, status, is_deleted) VALUES(162, 163, '管理员', 'Y006301', '5t6QUpK/gc29b2R83PGu/dMBr8qUIkRWpG9dhS85SnI=', 0, 1, NOW(), 1, 0); | J65: INSERT INTO sys_role_user(id, sys_role_id, sys_user_id) VALUES(162, 6, 162);
A66: 6 | B66: =orgs!B81 -> 164 | C66: =orgs!K81 -> Y0064 | D66: =orgs!G81 -> 龙溪 | E66: =orgs!L81 -> 重庆市渝北区贝贝爱青幼儿园 | F66: =orgs!M81 -> 贝贝爱青幼儿园 | G66: Y006401 | H66: 管理员 | I66: INSERT INTO sys_user(id, sys_org_id, `name`, account, password, is_activated, create_sys_user_id, create_time, status, is_deleted) VALUES(163, 164, '管理员', 'Y006401', '5t6QUpK/gc29b2R83PGu/dMBr8qUIkRWpG9dhS85SnI=', 0, 1, NOW(), 1, 0); | J66: INSERT INTO sys_role_user(id, sys_role_id, sys_user_id) VALUES(163, 6, 163);
A67: 6 | B67: =orgs!B82 -> 165 | C67: =orgs!K82 -> Y0065 | D67: =orgs!G82 -> 龙溪 | E67: =orgs!L82 -> 重庆市渝北区桑尼朵儿幼儿园 | F67: =orgs!M82 -> 桑尼朵儿幼儿园 | G67: Y006501 | H67: 管理员 | I67: INSERT INTO sys_user(id, sys_org_id, `name`, account, password, is_activated, create_sys_user_id, create_time, status, is_deleted) VALUES(164, 165, '管理员', 'Y006501', '5t6QUpK/gc29b2R83PGu/dMBr8qUIkRWpG9dhS85SnI=', 0, 1, NOW(), 1, 0); | J67: INSERT INTO sys_role_user(id, sys_role_id, sys_user_id) VALUES(164, 6, 164);
A68: 6 | B68: =orgs!B83 -> 166 | C68: =orgs!K83 -> Y0066 | D68: =orgs!G83 -> 龙溪 | E68: =orgs!L83 -> 重庆市渝北区龙塔实验学校附属幼儿园 | F68: =orgs!M83 -> 龙塔实验学校附属幼儿园 | G68: Y006601 | H68: 管理员 | I68: ="INSERT INTO sys_user(id, sys_org_id, `name`, account, password, is_activated, create_sys_user_id, create_time, status, is_deleted) VALUES("&(97+ROW())&", "&B68&", '"&H68&"', '"&G68&"', '5t6QUpK/gc29b2R83PGu/dMBr8qUIkRWpG9dhS85SnI=', 0, 1, NOW(), 1, 0);" -> INSERT INTO sys_user(id, sys_org_id, `name`, account, password, is_activated, create_sys_user_id, create_time, status, is_deleted) VALUES(165, 166, '管理员', 'Y006601', '5t6QUpK/gc29b2R83PGu/dMBr8qUIkRWpG9dhS85SnI=', 0, 1, NOW(), 1, 0); | J68: ="INSERT INTO sys_role_user(id, sys_role_id, sys_user_id) VALUES("&(97+ROW())&", "&A68&", "&(97+ROW())&");" -> INSERT INTO sys_role_user(id, sys_role_id, sys_user_id) VALUES(165, 6, 165);
A69: 6 | B69: =orgs!B84 -> 167 | C69: =orgs!K84 -> Y0067 | D69: =orgs!G84 -> 龙溪 | E69: =orgs!L84 -> 重庆市渝北区龙头寺小学校附属幼儿园 | F69: =orgs!M84 -> 龙头寺小学校附属幼儿园 | G69: Y006701 | H69: 管理员 | I69: INSERT INTO sys_user(id, sys_org_id, `name`, account, password, is_activated, create_sys_user_id, create_time, status, is_deleted) VALUES(166, 167, '管理员', 'Y006701', '5t6QUpK/gc29b2R83PGu/dMBr8qUIkRWpG9dhS85SnI=', 0, 1, NOW(), 1, 0); | J69: INSERT INTO sys_role_user(id, sys_role_id, sys_user_id) VALUES(166, 6, 166);
A70: 6 | B70: =orgs!B85 -> 168 | C70: =orgs!K85 -> Y0068 | D70: =orgs!G85 -> 龙溪 | E70: =orgs!L85 -> 重庆市渝北区森岭居幼儿园 | F70: =orgs!M85 -> 森岭居幼儿园 | G70: =C70&"01" -> Y006801 | H70: 管理员 | I70: INSERT INTO sys_user(id, sys_org_id, `name`, account, password, is_activated, create_sys_user_id, create_time, status, is_deleted) VALUES(167, 168, '管理员', 'Y006801', '5t6QUpK/gc29b2R83PGu/dMBr8qUIkRWpG9dhS85SnI=', 0, 1, NOW(), 1, 0); | J70: INSERT INTO sys_role_user(id, sys_role_id, sys_user_id) VALUES(167, 6, 167);
A71: 6 | B71: =orgs!B86 -> 169 | C71: =orgs!K86 -> Y0069 | D71: =orgs!G86 -> 龙溪 | E71: =orgs!L86 -> 重庆市渝北区鲁能阳光幼儿园 | F71: =orgs!M86 -> 鲁能阳光幼儿园 | G71: Y006901 | H71: 管理员 | I71: INSERT INTO sys_user(id, sys_org_id, `name`, account, password, is_activated, create_sys_user_id, create_time, status, is_deleted) VALUES(168, 169, '管理员', 'Y006901', '5t6QUpK/gc29b2R83PGu/dMBr8qUIkRWpG9dhS85SnI=', 0, 1, NOW(), 1, 0); | J71: INSERT INTO sys_role_user(id, sys_role_id, sys_user_id) VALUES(168, 6, 168);
A72: 6 | B72: =orgs!B87 -> 170 | C72: =orgs!K87 -> Y0070 | D72: =orgs!G87 -> 龙溪 | E72: =orgs!L87 -> 重庆市渝北区天骄俊园幼儿园 | F72: =orgs!M87 -> 天骄俊园幼儿园 | G72: Y007001 | H72: 管理员 | I72: INSERT INTO sys_user(id, sys_org_id, `name`, account, password, is_activated, create_sys_user_id, create_time, status, is_deleted) VALUES(169, 170, '管理员', 'Y007001', '5t6QUpK/gc29b2R83PGu/dMBr8qUIkRWpG9dhS85SnI=', 0, 1, NOW(), 1, 0); | J72: INSERT INTO sys_role_user(id, sys_role_id, sys_user_id) VALUES(169, 6, 169);
A73: 6 | B73: =orgs!B88 -> 171 | C73: =orgs!K88 -> Y0071 | D73: =orgs!G88 -> 龙溪 | E73: =orgs!L88 -> 重庆市渝北区龙溪龙联幼儿园 | F73: =orgs!M88 -> 龙溪龙联幼儿园 | G73: Y007101 | H73: 管理员 | I73: INSERT INTO sys_user(id, sys_org_id, `name`, account, password, is_activated, create_sys_user_id, create_time, status, is_deleted) VALUES(170, 171, '管理员', 'Y007101', '5t6QUpK/gc29b2R83PGu/dMBr8qUIkRWpG9dhS85SnI=', 0, 1, NOW(), 1, 0); | J73: INSERT INTO sys_role_user(id, sys_role_id, sys_user_id) VALUES(170, 6, 170);
A74: 6 | B74: =orgs!B89 -> 172 | C74: =orgs!K89 -> Y0072 | D74: =orgs!G89 -> 龙溪 | E74: =orgs!L89 -> 重庆市渝北区龙溪智多星幼儿园 | F74: =orgs!M89 -> 龙溪智多星幼儿园 | G74: Y007201 | H74: 管理员 | I74: INSERT INTO sys_user(id, sys_org_id, `name`, account, password, is_activated, create_sys_user_id, create_time, status, is_deleted) VALUES(171, 172, '管理员', 'Y007201', '5t6QUpK/gc29b2R83PGu/dMBr8qUIkRWpG9dhS85SnI=', 0, 1, NOW(), 1, 0); | J74: INSERT INTO sys_role_user(id, sys_role_id, sys_user_id) VALUES(171, 6, 171);
A75: 6 | B75: =orgs!B90 -> 173 | C75: =orgs!K90 -> Y0073 | D75: =orgs!G90 -> 龙溪 | E75: =orgs!L90 -> 重庆市渝北区金秋十月幼儿园 | F75: =orgs!M90 -> 金秋十月幼儿园 | G75: Y007301 | H75: 管理员 | I75: INSERT INTO sys_user(id, sys_org_id, `name`, account, password, is_activated, create_sys_user_id, create_time, status, is_deleted) VALUES(172, 173, '管理员', 'Y007301', '5t6QUpK/gc29b2R83PGu/dMBr8qUIkRWpG9dhS85SnI=', 0, 1, NOW(), 1, 0); | J75: INSERT INTO sys_role_user(id, sys_role_id, sys_user_id) VALUES(172, 6, 172);
A76: 6 | B76: =orgs!B91 -> 174 | C76: =orgs!K91 -> Y0074 | D76: =orgs!G91 -> 龙溪 | E76: =orgs!L91 -> 重庆市渝北区宝宝乐幼儿园 | F76: =orgs!M91 -> 宝宝乐幼儿园 | G76: Y007401 | H76: 管理员 | I76: INSERT INTO sys_user(id, sys_org_id, `name`, account, password, is_activated, create_sys_user_id, create_time, status, is_deleted) VALUES(173, 174, '管理员', 'Y007401', '5t6QUpK/gc29b2R83PGu/dMBr8qUIkRWpG9dhS85SnI=', 0, 1, NOW(), 1, 0); | J76: INSERT INTO sys_role_user(id, sys_role_id, sys_user_id) VALUES(173, 6, 173);
A77: 6 | B77: =orgs!B92 -> 175 | C77: =orgs!K92 -> Y0075 | D77: =orgs!G92 -> 龙溪 | E77: =orgs!L92 -> 重庆市渝北区快乐摇篮桐林逸景幼儿园 | F77: =orgs!M92 -> 快乐摇篮桐林逸景幼儿园 | G77: Y007501 | H77: 管理员 | I77: INSERT INTO sys_user(id, sys_org_id, `name`, account, password, is_activated, create_sys_user_id, create_time, status, is_deleted) VALUES(174, 175, '管理员', 'Y007501', '5t6QUpK/gc29b2R83PGu/dMBr8qUIkRWpG9dhS85SnI=', 0, 1, NOW(), 1, 0); | J77: INSERT INTO sys_role_user(id, sys_role_id, sys_user_id) VALUES(174, 6, 174);
A78: 6 | B78: =orgs!B93 -> 176 | C78: =orgs!K93 -> Y0076 | D78: =orgs!G93 -> 龙溪 | E78: =orgs!L93 -> 重庆市渝北区蕾兰阳光幼儿园 | F78: =orgs!M93 -> 蕾兰阳光幼儿园 | G78: Y007601 | H78: 管理员 | I78: INSERT INTO sys_user(id, sys_org_id, `name`, account, password, is_activated, create_sys_user_id, create_time, status, is_deleted) VALUES(175, 176, '管理员', 'Y007601', '5t6QUpK/gc29b2R83PGu/dMBr8qUIkRWpG9dhS85SnI=', 0, 1, NOW(), 1, 0); | J78: INSERT INTO sys_role_user(id, sys_role_id, sys_user_id) VALUES(175, 6, 175);
A79: 6 | B79: =orgs!B94 -> 177 | C79: =orgs!K94 -> Y0077 | D79: =orgs!G94 -> 龙溪 | E79: =orgs!L94 -> 重庆市渝北区新城丽园幼儿园 | F79: =orgs!M94 -> 新城丽园幼儿园 | G79: Y007701 | H79: 管理员 | I79: INSERT INTO sys_user(id, sys_org_id, `name`, account, password, is_activated, create_sys_user_id, create_time, status, is_deleted) VALUES(176, 177, '管理员', 'Y007701', '5t6QUpK/gc29b2R83PGu/dMBr8qUIkRWpG9dhS85SnI=', 0, 1, NOW(), 1, 0); | J79: INSERT INTO sys_role_user(id, sys_role_id, sys_user_id) VALUES(176, 6, 176);
A80: 6 | B80: =orgs!B95 -> 178 | C80: =orgs!K95 -> Y0078 | D80: =orgs!G95 -> 龙溪 | E80: =orgs!L95 -> 重庆市渝北区巴蜀鲁能幼儿园 | F80: =orgs!M95 -> 巴蜀鲁能幼儿园 | G80: Y007801 | H80: 管理员 | I80: INSERT INTO sys_user(id, sys_org_id, `name`, account, password, is_activated, create_sys_user_id, create_time, status, is_deleted) VALUES(177, 178, '管理员', 'Y007801', '5t6QUpK/gc29b2R83PGu/dMBr8qUIkRWpG9dhS85SnI=', 0, 1, NOW(), 1, 0); | J80: INSERT INTO sys_role_user(id, sys_role_id, sys_user_id) VALUES(177, 6, 177);
A81: 6 | B81: =orgs!B96 -> 179 | C81: =orgs!K96 -> Y0079 | D81: =orgs!G96 -> 龙溪 | E81: =orgs!L96 -> 重庆市渝北区笛迪·梧桐幼儿园 | F81: =orgs!M96 -> 笛迪·梧桐幼儿园 | G81: Y007901 | H81: 管理员 | I81: INSERT INTO sys_user(id, sys_org_id, `name`, account, password, is_activated, create_sys_user_id, create_time, status, is_deleted) VALUES(178, 179, '管理员', 'Y007901', '5t6QUpK/gc29b2R83PGu/dMBr8qUIkRWpG9dhS85SnI=', 0, 1, NOW(), 1, 0); | J81: INSERT INTO sys_role_user(id, sys_role_id, sys_user_id) VALUES(178, 6, 178);
A82: 6 | B82: =orgs!B97 -> 180 | C82: =orgs!K97 -> Y0080 | D82: =orgs!G97 -> 龙溪 | E82: =orgs!L97 -> 重庆市渝北区鲁能宜生幼儿园 | F82: =orgs!M97 -> 鲁能宜生幼儿园 | G82: Y008001 | H82: 管理员 | I82: INSERT INTO sys_user(id, sys_org_id, `name`, account, password, is_activated, create_sys_user_id, create_time, status, is_deleted) VALUES(179, 180, '管理员', 'Y008001', '5t6QUpK/gc29b2R83PGu/dMBr8qUIkRWpG9dhS85SnI=', 0, 1, NOW(), 1, 0); | J82: INSERT INTO sys_role_user(id, sys_role_id, sys_user_id) VALUES(179, 6, 179);
A83: 6 | B83: =orgs!B98 -> 181 | C83: =orgs!K98 -> Y0081 | D83: =orgs!G98 -> 龙溪 | E83: =orgs!L98 -> 重庆市渝北区爱霖九寨幼儿园 | F83: =orgs!M98 -> 爱霖九寨幼儿园 | G83: Y008101 | H83: 管理员 | I83: INSERT INTO sys_user(id, sys_org_id, `name`, account, password, is_activated, create_sys_user_id, create_time, status, is_deleted) VALUES(180, 181, '管理员', 'Y008101', '5t6QUpK/gc29b2R83PGu/dMBr8qUIkRWpG9dhS85SnI=', 0, 1, NOW(), 1, 0); | J83: INSERT INTO sys_role_user(id, sys_role_id, sys_user_id) VALUES(180, 6, 180);
A84: 6 | B84: =orgs!B99 -> 182 | C84: =orgs!K99 -> Y0082 | D84: =orgs!G99 -> 龙溪 | E84: =orgs!L99 -> 重庆市渝北区奇心乐佳华幼儿园 | F84: =orgs!M99 -> 奇心乐佳华幼儿园 | G84: Y008201 | H84: 管理员 | I84: INSERT INTO sys_user(id, sys_org_id, `name`, account, password, is_activated, create_sys_user_id, create_time, status, is_deleted) VALUES(181, 182, '管理员', 'Y008201', '5t6QUpK/gc29b2R83PGu/dMBr8qUIkRWpG9dhS85SnI=', 0, 1, NOW(), 1, 0); | J84: INSERT INTO sys_role_user(id, sys_role_id, sys_user_id) VALUES(181, 6, 181);
A85: 6 | B85: =orgs!B100 -> 183 | C85: =orgs!K100 -> Y0083 | D85: =orgs!G100 -> 龙溪 | E85: =orgs!L100 -> 重庆市渝北区西米幼儿园 | F85: =orgs!M100 -> 西米幼儿园 | G85: Y008301 | H85: 管理员 | I85: INSERT INTO sys_user(id, sys_org_id, `name`, account, password, is_activated, create_sys_user_id, create_time, status, is_deleted) VALUES(182, 183, '管理员', 'Y008301', '5t6QUpK/gc29b2R83PGu/dMBr8qUIkRWpG9dhS85SnI=', 0, 1, NOW(), 1, 0); | J85: INSERT INTO sys_role_user(id, sys_role_id, sys_user_id) VALUES(182, 6, 182);
A86: 6 | B86: =orgs!B101 -> 184 | C86: =orgs!K101 -> Y0084 | D86: =orgs!G101 -> 龙溪 | E86: =orgs!L101 -> 重庆市渝北区爱诺长安华都幼儿园 | F86: =orgs!M101 -> 爱诺长安华都幼儿园 | G86: Y008401 | H86: 管理员 | I86: INSERT INTO sys_user(id, sys_org_id, `name`, account, password, is_activated, create_sys_user_id, create_time, status, is_deleted) VALUES(183, 184, '管理员', 'Y008401', '5t6QUpK/gc29b2R83PGu/dMBr8qUIkRWpG9dhS85SnI=', 0, 1, NOW(), 1, 0); | J86: INSERT INTO sys_role_user(id, sys_role_id, sys_user_id) VALUES(183, 6, 183);
A87: 6 | B87: =orgs!B102 -> 185 | C87: =orgs!K102 -> Y0085 | D87: =orgs!G102 -> 龙溪 | E87: =orgs!L102 -> 重庆市渝北区公园王府幼儿园 | F87: =orgs!M102 -> 公园王府幼儿园 | G87: Y008501 | H87: 管理员 | I87: INSERT INTO sys_user(id, sys_org_id, `name`, account, password, is_activated, create_sys_user_id, create_time, status, is_deleted) VALUES(184, 185, '管理员', 'Y008501', '5t6QUpK/gc29b2R83PGu/dMBr8qUIkRWpG9dhS85SnI=', 0, 1, NOW(), 1, 0); | J87: INSERT INTO sys_role_user(id, sys_role_id, sys_user_id) VALUES(184, 6, 184);
A88: 6 | B88: =orgs!B103 -> 186 | C88: =orgs!K103 -> Y0086 | D88: =orgs!G103 -> 龙溪 | E88: =orgs!L103 -> 重庆市渝北区佳华幼儿园 | F88: =orgs!M103 -> 佳华幼儿园 | G88: Y008601 | H88: 管理员 | I88: INSERT INTO sys_user(id, sys_org_id, `name`, account, password, is_activated, create_sys_user_id, create_time, status, is_deleted) VALUES(185, 186, '管理员', 'Y008601', '5t6QUpK/gc29b2R83PGu/dMBr8qUIkRWpG9dhS85SnI=', 0, 1, NOW(), 1, 0); | J88: INSERT INTO sys_role_user(id, sys_role_id, sys_user_id) VALUES(185, 6, 185);
A89: 6 | B89: =orgs!B104 -> 187 | C89: =orgs!K104 -> Y0087 | D89: =orgs!G104 -> 龙溪 | E89: =orgs!L104 -> 重庆市渝北区金德凯顿幼儿园 | F89: =orgs!M104 -> 金德凯顿幼儿园 | G89: Y008701 | H89: 管理员 | I89: INSERT INTO sys_user(id, sys_org_id, `name`, account, password, is_activated, create_sys_user_id, create_time, status, is_deleted) VALUES(186, 187, '管理员', 'Y008701', '5t6QUpK/gc29b2R83PGu/dMBr8qUIkRWpG9dhS85SnI=', 0, 1, NOW(), 1, 0); | J89: INSERT INTO sys_role_user(id, sys_role_id, sys_user_id) VALUES(186, 6, 186);
A90: 6 | B90: =orgs!B105 -> 188 | C90: =orgs!K105 -> Y0088 | D90: =orgs!G105 -> 龙溪 | E90: =orgs!L105 -> 重庆市渝北区生生高瞻幼儿园 | F90: =orgs!M105 -> 生生高瞻幼儿园 | G90: Y008801 | H90: 管理员 | I90: INSERT INTO sys_user(id, sys_org_id, `name`, account, password, is_activated, create_sys_user_id, create_time, status, is_deleted) VALUES(187, 188, '管理员', 'Y008801', '5t6QUpK/gc29b2R83PGu/dMBr8qUIkRWpG9dhS85SnI=', 0, 1, NOW(), 1, 0); | J90: INSERT INTO sys_role_user(id, sys_role_id, sys_user_id) VALUES(187, 6, 187);
A91: 6 | B91: =orgs!B106 -> 189 | C91: =orgs!K106 -> Y0089 | D91: =orgs!G106 -> 两路 | E91: =orgs!L106 -> 重庆市渝北区城南幼儿园 | F91: =orgs!M106 -> 城南幼儿园 | G91: Y008901 | H91: 管理员 | I91: INSERT INTO sys_user(id, sys_org_id, `name`, account, password, is_activated, create_sys_user_id, create_time, status, is_deleted) VALUES(188, 189, '管理员', 'Y008901', '5t6QUpK/gc29b2R83PGu/dMBr8qUIkRWpG9dhS85SnI=', 0, 1, NOW(), 1, 0); | J91: INSERT INTO sys_role_user(id, sys_role_id, sys_user_id) VALUES(188, 6, 188);
A92: 6 | B92: =orgs!B107 -> 190 | C92: =orgs!K107 -> Y0090 | D92: =orgs!G107 -> 两路 | E92: =orgs!L107 -> 重庆市渝北区城南幼儿园飞湖园 | F92: =orgs!M107 -> 城南幼儿园飞湖园 | G92: Y009001 | H92: 管理员 | I92: INSERT INTO sys_user(id, sys_org_id, `name`, account, password, is_activated, create_sys_user_id, create_time, status, is_deleted) VALUES(189, 190, '管理员', 'Y009001', '5t6QUpK/gc29b2R83PGu/dMBr8qUIkRWpG9dhS85SnI=', 0, 1, NOW(), 1, 0); | J92: INSERT INTO sys_role_user(id, sys_role_id, sys_user_id) VALUES(189, 6, 189);
A93: 6 | B93: =orgs!B108 -> 191 | C93: =orgs!K108 -> Y0091 | D93: =orgs!G108 -> 两路 | E93: =orgs!L108 -> 重庆市渝北区城南幼儿园翠湖园 | F93: =orgs!M108 -> 城南幼儿园翠湖园 | G93: Y009101 | H93: 管理员 | I93: INSERT INTO sys_user(id, sys_org_id, `name`, account, password, is_activated, create_sys_user_id, create_time, status, is_deleted) VALUES(190, 191, '管理员', 'Y009101', '5t6QUpK/gc29b2R83PGu/dMBr8qUIkRWpG9dhS85SnI=', 0, 1, NOW(), 1, 0); | J93: INSERT INTO sys_role_user(id, sys_role_id, sys_user_id) VALUES(190, 6, 190);
A94: 6 | B94: =orgs!B109 -> 192 | C94: =orgs!K109 -> Y0092 | D94: =orgs!G109 -> 两路 | E94: =orgs!L109 -> 重庆市渝北区同茂小学校附属幼儿园 | F94: =orgs!M109 -> 同茂小学校附属幼儿园 | G94: Y009201 | H94: 管理员 | I94: INSERT INTO sys_user(id, sys_org_id, `name`, account, password, is_activated, create_sys_user_id, create_time, status, is_deleted) VALUES(191, 192, '管理员', 'Y009201', '5t6QUpK/gc29b2R83PGu/dMBr8qUIkRWpG9dhS85SnI=', 0, 1, NOW(), 1, 0); | J94: INSERT INTO sys_role_user(id, sys_role_id, sys_user_id) VALUES(191, 6, 191);
A95: 6 | B95: =orgs!B110 -> 193 | C95: =orgs!K110 -> Y0093 | D95: =orgs!G110 -> 两路 | E95: =orgs!L110 -> 重庆市渝北区港城幼儿园 | F95: =orgs!M110 -> 港城幼儿园 | G95: Y009301 | H95: 管理员 | I95: INSERT INTO sys_user(id, sys_org_id, `name`, account, password, is_activated, create_sys_user_id, create_time, status, is_deleted) VALUES(192, 193, '管理员', 'Y009301', '5t6QUpK/gc29b2R83PGu/dMBr8qUIkRWpG9dhS85SnI=', 0, 1, NOW(), 1, 0); | J95: INSERT INTO sys_role_user(id, sys_role_id, sys_user_id) VALUES(192, 6, 192);
A96: 6 | B96: =orgs!B111 -> 194 | C96: =orgs!K111 -> Y0094 | D96: =orgs!G111 -> 两路 | E96: =orgs!L111 -> 重庆市渝北区双龙湖思艺幼儿园 | F96: =orgs!M111 -> 双龙湖思艺幼儿园 | G96: Y009401 | H96: 管理员 | I96: INSERT INTO sys_user(id, sys_org_id, `name`, account, password, is_activated, create_sys_user_id, create_time, status, is_deleted) VALUES(193, 194, '管理员', 'Y009401', '5t6QUpK/gc29b2R83PGu/dMBr8qUIkRWpG9dhS85SnI=', 0, 1, NOW(), 1, 0); | J96: INSERT INTO sys_role_user(id, sys_role_id, sys_user_id) VALUES(193, 6, 193);
A97: 6 | B97: =orgs!B112 -> 195 | C97: =orgs!K112 -> Y0095 | D97: =orgs!G112 -> 两路 | E97: =orgs!L112 -> 重庆市渝北区双龙湖佳家幼儿园 | F97: =orgs!M112 -> 双龙湖佳家幼儿园 | G97: Y009501 | H97: 管理员 | I97: INSERT INTO sys_user(id, sys_org_id, `name`, account, password, is_activated, create_sys_user_id, create_time, status, is_deleted) VALUES(194, 195, '管理员', 'Y009501', '5t6QUpK/gc29b2R83PGu/dMBr8qUIkRWpG9dhS85SnI=', 0, 1, NOW(), 1, 0); | J97: INSERT INTO sys_role_user(id, sys_role_id, sys_user_id) VALUES(194, 6, 194);
A98: 6 | B98: =orgs!B113 -> 196 | C98: =orgs!K113 -> Y0096 | D98: =orgs!G113 -> 两路 | E98: =orgs!L113 -> 重庆市渝北区双龙湖园丁村幼儿园 | F98: =orgs!M113 -> 双龙湖园丁村幼儿园 | G98: Y009601 | H98: 管理员 | I98: INSERT INTO sys_user(id, sys_org_id, `name`, account, password, is_activated, create_sys_user_id, create_time, status, is_deleted) VALUES(195, 196, '管理员', 'Y009601', '5t6QUpK/gc29b2R83PGu/dMBr8qUIkRWpG9dhS85SnI=', 0, 1, NOW(), 1, 0); | J98: INSERT INTO sys_role_user(id, sys_role_id, sys_user_id) VALUES(195, 6, 195);
A99: 6 | B99: =orgs!B114 -> 197 | C99: =orgs!K114 -> Y0097 | D99: =orgs!G114 -> 两路 | E99: =orgs!L114 -> 重庆市渝北区双龙湖华都湖滨幼儿园 | F99: =orgs!M114 -> 双龙湖华都湖滨幼儿园 | G99: Y009701 | H99: 管理员 | I99: INSERT INTO sys_user(id, sys_org_id, `name`, account, password, is_activated, create_sys_user_id, create_time, status, is_deleted) VALUES(196, 197, '管理员', 'Y009701', '5t6QUpK/gc29b2R83PGu/dMBr8qUIkRWpG9dhS85SnI=', 0, 1, NOW(), 1, 0); | J99: INSERT INTO sys_role_user(id, sys_role_id, sys_user_id) VALUES(196, 6, 196);
A100: 6 | B100: =orgs!B115 -> 198 | C100: =orgs!K115 -> Y0098 | D100: =orgs!G115 -> 两路 | E100: =orgs!L115 -> 重庆市渝北区双龙湖艺苗幼儿园 | F100: =orgs!M115 -> 双龙湖艺苗幼儿园 | G100: Y009801 | H100: 管理员 | I100: INSERT INTO sys_user(id, sys_org_id, `name`, account, password, is_activated, create_sys_user_id, create_time, status, is_deleted) VALUES(197, 198, '管理员', 'Y009801', '5t6QUpK/gc29b2R83PGu/dMBr8qUIkRWpG9dhS85SnI=', 0, 1, NOW(), 1, 0); | J100: INSERT INTO sys_role_user(id, sys_role_id, sys_user_id) VALUES(197, 6, 197);
A101: 6 | B101: =orgs!B116 -> 199 | C101: =orgs!K116 -> Y0099 | D101: =orgs!G116 -> 两路 | E101: =orgs!L116 -> 重庆市渝北区星朗幼儿园 | F101: =orgs!M116 -> 星朗幼儿园 | G101: Y009901 | H101: 管理员 | I101: INSERT INTO sys_user(id, sys_org_id, `name`, account, password, is_activated, create_sys_user_id, create_time, status, is_deleted) VALUES(198, 199, '管理员', 'Y009901', '5t6QUpK/gc29b2R83PGu/dMBr8qUIkRWpG9dhS85SnI=', 0, 1, NOW(), 1, 0); | J101: INSERT INTO sys_role_user(id, sys_role_id, sys_user_id) VALUES(198, 6, 198);
A102: 6 | B102: =orgs!B117 -> 200 | C102: =orgs!K117 -> Y0100 | D102: =orgs!G117 -> 两路 | E102: =orgs!L117 -> 重庆市渝北区阳光宝童幼儿园 | F102: =orgs!M117 -> 阳光宝童幼儿园 | G102: Y010001 | H102: 管理员 | I102: INSERT INTO sys_user(id, sys_org_id, `name`, account, password, is_activated, create_sys_user_id, create_time, status, is_deleted) VALUES(199, 200, '管理员', 'Y010001', '5t6QUpK/gc29b2R83PGu/dMBr8qUIkRWpG9dhS85SnI=', 0, 1, NOW(), 1, 0); | J102: INSERT INTO sys_role_user(id, sys_role_id, sys_user_id) VALUES(199, 6, 199);
A103: 6 | B103: =orgs!B118 -> 201 | C103: =orgs!K118 -> Y0101 | D103: =orgs!G118 -> 两路 | E103: =orgs!L118 -> 重庆市渝北区紫台金宝贝幼儿园 | F103: =orgs!M118 -> 紫台金宝贝幼儿园 | G103: Y010101 | H103: 管理员 | I103: INSERT INTO sys_user(id, sys_org_id, `name`, account, password, is_activated, create_sys_user_id, create_time, status, is_deleted) VALUES(200, 201, '管理员', 'Y010101', '5t6QUpK/gc29b2R83PGu/dMBr8qUIkRWpG9dhS85SnI=', 0, 1, NOW(), 1, 0); | J103: INSERT INTO sys_role_user(id, sys_role_id, sys_user_id) VALUES(200, 6, 200);
A104: 6 | B104: =orgs!B119 -> 202 | C104: =orgs!K119 -> Y0102 | D104: =orgs!G119 -> 两路 | E104: =orgs!L119 -> 重庆市渝北区双龙湖小不点幼儿园 | F104: =orgs!M119 -> 双龙湖小不点幼儿园 | G104: Y010201 | H104: 管理员 | I104: INSERT INTO sys_user(id, sys_org_id, `name`, account, password, is_activated, create_sys_user_id, create_time, status, is_deleted) VALUES(201, 202, '管理员', 'Y010201', '5t6QUpK/gc29b2R83PGu/dMBr8qUIkRWpG9dhS85SnI=', 0, 1, NOW(), 1, 0); | J104: INSERT INTO sys_role_user(id, sys_role_id, sys_user_id) VALUES(201, 6, 201);
A105: 6 | B105: =orgs!B120 -> 203 | C105: =orgs!K120 -> Y0103 | D105: =orgs!G120 -> 两路 | E105: =orgs!L120 -> 重庆市渝北区双龙湖老干部活动中心幼儿园 | F105: =orgs!M120 -> 双龙湖老干部活动中心幼儿园 | G105: Y010301 | H105: 管理员 | I105: INSERT INTO sys_user(id, sys_org_id, `name`, account, password, is_activated, create_sys_user_id, create_time, status, is_deleted) VALUES(202, 203, '管理员', 'Y010301', '5t6QUpK/gc29b2R83PGu/dMBr8qUIkRWpG9dhS85SnI=', 0, 1, NOW(), 1, 0); | J105: INSERT INTO sys_role_user(id, sys_role_id, sys_user_id) VALUES(202, 6, 202);
A106: 6 | B106: =orgs!B121 -> 204 | C106: =orgs!K121 -> Y0104 | D106: =orgs!G121 -> 两路 | E106: =orgs!L121 -> 重庆市渝北区双龙湖育苗幼儿园 | F106: =orgs!M121 -> 双龙湖育苗幼儿园 | G106: Y010401 | H106: 管理员 | I106: INSERT INTO sys_user(id, sys_org_id, `name`, account, password, is_activated, create_sys_user_id, create_time, status, is_deleted) VALUES(203, 204, '管理员', 'Y010401', '5t6QUpK/gc29b2R83PGu/dMBr8qUIkRWpG9dhS85SnI=', 0, 1, NOW(), 1, 0); | J106: INSERT INTO sys_role_user(id, sys_role_id, sys_user_id) VALUES(203, 6, 203);
A107: 6 | B107: =orgs!B122 -> 205 | C107: =orgs!K122 -> Y0105 | D107: =orgs!G122 -> 两路 | E107: =orgs!L122 -> 重庆市渝北区双龙湖天寨幼儿园 | F107: =orgs!M122 -> 双龙湖天寨幼儿园 | G107: Y010501 | H107: 管理员 | I107: INSERT INTO sys_user(id, sys_org_id, `name`, account, password, is_activated, create_sys_user_id, create_time, status, is_deleted) VALUES(204, 205, '管理员', 'Y010501', '5t6QUpK/gc29b2R83PGu/dMBr8qUIkRWpG9dhS85SnI=', 0, 1, NOW(), 1, 0); | J107: INSERT INTO sys_role_user(id, sys_role_id, sys_user_id) VALUES(204, 6, 204);
A108: 6 | B108: =orgs!B123 -> 206 | C108: =orgs!K123 -> Y0106 | D108: =orgs!G123 -> 两路 | E108: =orgs!L123 -> 重庆市渝北区双龙湖康利幼儿园 | F108: =orgs!M123 -> 双龙湖康利幼儿园 | G108: Y010601 | H108: 管理员 | I108: INSERT INTO sys_user(id, sys_org_id, `name`, account, password, is_activated, create_sys_user_id, create_time, status, is_deleted) VALUES(205, 206, '管理员', 'Y010601', '5t6QUpK/gc29b2R83PGu/dMBr8qUIkRWpG9dhS85SnI=', 0, 1, NOW(), 1, 0); | J108: INSERT INTO sys_role_user(id, sys_role_id, sys_user_id) VALUES(205, 6, 205);
A109: 6 | B109: =orgs!B124 -> 207 | C109: =orgs!K124 -> Y0107 | D109: =orgs!G124 -> 两路 | E109: =orgs!L124 -> 重庆市渝北区双龙湖花蕾幼儿园 | F109: =orgs!M124 -> 双龙湖花蕾幼儿园 | G109: Y010701 | H109: 管理员 | I109: INSERT INTO sys_user(id, sys_org_id, `name`, account, password, is_activated, create_sys_user_id, create_time, status, is_deleted) VALUES(206, 207, '管理员', 'Y010701', '5t6QUpK/gc29b2R83PGu/dMBr8qUIkRWpG9dhS85SnI=', 0, 1, NOW(), 1, 0); | J109: INSERT INTO sys_role_user(id, sys_role_id, sys_user_id) VALUES(206, 6, 206);
A110: 6 | B110: =orgs!B125 -> 208 | C110: =orgs!K125 -> Y0108 | D110: =orgs!G125 -> 两路 | E110: =orgs!L125 -> 重庆市渝北区光彩幼儿园 | F110: =orgs!M125 -> 光彩幼儿园 | G110: Y010801 | H110: 管理员 | I110: INSERT INTO sys_user(id, sys_org_id, `name`, account, password, is_activated, create_sys_user_id, create_time, status, is_deleted) VALUES(207, 208, '管理员', 'Y010801', '5t6QUpK/gc29b2R83PGu/dMBr8qUIkRWpG9dhS85SnI=', 0, 1, NOW(), 1, 0); | J110: INSERT INTO sys_role_user(id, sys_role_id, sys_user_id) VALUES(207, 6, 207);
A111: 6 | B111: =orgs!B126 -> 209 | C111: =orgs!K126 -> Y0109 | D111: =orgs!G126 -> 两路 | E111: =orgs!L126 -> 重庆市渝北区双龙湖南灵幼儿园 | F111: =orgs!M126 -> 双龙湖南灵幼儿园 | G111: Y010901 | H111: 管理员 | I111: INSERT INTO sys_user(id, sys_org_id, `name`, account, password, is_activated, create_sys_user_id, create_time, status, is_deleted) VALUES(208, 209, '管理员', 'Y010901', '5t6QUpK/gc29b2R83PGu/dMBr8qUIkRWpG9dhS85SnI=', 0, 1, NOW(), 1, 0); | J111: INSERT INTO sys_role_user(id, sys_role_id, sys_user_id) VALUES(208, 6, 208);
A112: 6 | B112: =orgs!B127 -> 210 | C112: =orgs!K127 -> Y0110 | D112: =orgs!G127 -> 两路 | E112: =orgs!L127 -> 重庆市渝北区双龙湖红孩儿幼儿园 | F112: =orgs!M127 -> 双龙湖红孩儿幼儿园 | G112: Y011001 | H112: 管理员 | I112: INSERT INTO sys_user(id, sys_org_id, `name`, account, password, is_activated, create_sys_user_id, create_time, status, is_deleted) VALUES(209, 210, '管理员', 'Y011001', '5t6QUpK/gc29b2R83PGu/dMBr8qUIkRWpG9dhS85SnI=', 0, 1, NOW(), 1, 0); | J112: INSERT INTO sys_role_user(id, sys_role_id, sys_user_id) VALUES(209, 6, 209);
A113: 6 | B113: =orgs!B128 -> 211 | C113: =orgs!K128 -> Y0111 | D113: =orgs!G128 -> 两路 | E113: =orgs!L128 -> 重庆市渝北区双龙湖蓝天贝贝幼儿园 | F113: =orgs!M128 -> 双龙湖蓝天贝贝幼儿园 | G113: Y011101 | H113: 管理员 | I113: INSERT INTO sys_user(id, sys_org_id, `name`, account, password, is_activated, create_sys_user_id, create_time, status, is_deleted) VALUES(210, 211, '管理员', 'Y011101', '5t6QUpK/gc29b2R83PGu/dMBr8qUIkRWpG9dhS85SnI=', 0, 1, NOW(), 1, 0); | J113: INSERT INTO sys_role_user(id, sys_role_id, sys_user_id) VALUES(210, 6, 210);
A114: 6 | B114: =orgs!B129 -> 212 | C114: =orgs!K129 -> Y0112 | D114: =orgs!G129 -> 两路 | E114: =orgs!L129 -> 重庆市渝北区双龙湖苗苗幼儿园 | F114: =orgs!M129 -> 双龙湖苗苗幼儿园 | G114: Y011201 | H114: 管理员 | I114: INSERT INTO sys_user(id, sys_org_id, `name`, account, password, is_activated, create_sys_user_id, create_time, status, is_deleted) VALUES(211, 212, '管理员', 'Y011201', '5t6QUpK/gc29b2R83PGu/dMBr8qUIkRWpG9dhS85SnI=', 0, 1, NOW(), 1, 0); | J114: INSERT INTO sys_role_user(id, sys_role_id, sys_user_id) VALUES(211, 6, 211);
A115: 6 | B115: =orgs!B130 -> 213 | C115: =orgs!K130 -> Y0113 | D115: =orgs!G130 -> 两路 | E115: =orgs!L130 -> 重庆市渝北区双龙湖彩虹幼儿园 | F115: =orgs!M130 -> 双龙湖彩虹幼儿园 | G115: Y011301 | H115: 管理员 | I115: INSERT INTO sys_user(id, sys_org_id, `name`, account, password, is_activated, create_sys_user_id, create_time, status, is_deleted) VALUES(212, 213, '管理员', 'Y011301', '5t6QUpK/gc29b2R83PGu/dMBr8qUIkRWpG9dhS85SnI=', 0, 1, NOW(), 1, 0); | J115: INSERT INTO sys_role_user(id, sys_role_id, sys_user_id) VALUES(212, 6, 212);
A116: 6 | B116: =orgs!B131 -> 214 | C116: =orgs!K131 -> Y0114 | D116: =orgs!G131 -> 两路 | E116: =orgs!L131 -> 重庆市渝北区双龙湖群欣幼儿园 | F116: =orgs!M131 -> 双龙湖群欣幼儿园 | G116: Y011401 | H116: 管理员 | I116: INSERT INTO sys_user(id, sys_org_id, `name`, account, password, is_activated, create_sys_user_id, create_time, status, is_deleted) VALUES(213, 214, '管理员', 'Y011401', '5t6QUpK/gc29b2R83PGu/dMBr8qUIkRWpG9dhS85SnI=', 0, 1, NOW(), 1, 0); | J116: INSERT INTO sys_role_user(id, sys_role_id, sys_user_id) VALUES(213, 6, 213);
A117: 6 | B117: =orgs!B132 -> 215 | C117: =orgs!K132 -> Y0115 | D117: =orgs!G132 -> 两路 | E117: =orgs!L132 -> 重庆市渝北区绿梦幼儿园 | F117: =orgs!M132 -> 绿梦幼儿园 | G117: Y011501 | H117: 管理员 | I117: INSERT INTO sys_user(id, sys_org_id, `name`, account, password, is_activated, create_sys_user_id, create_time, status, is_deleted) VALUES(214, 215, '管理员', 'Y011501', '5t6QUpK/gc29b2R83PGu/dMBr8qUIkRWpG9dhS85SnI=', 0, 1, NOW(), 1, 0); | J117: INSERT INTO sys_role_user(id, sys_role_id, sys_user_id) VALUES(214, 6, 214);
A118: 6 | B118: =orgs!B133 -> 216 | C118: =orgs!K133 -> Y0116 | D118: =orgs!G133 -> 两路 | E118: =orgs!L133 -> 重庆市渝北区鹿山村宝贝幼儿园 | F118: =orgs!M133 -> 鹿山村宝贝幼儿园 | G118: Y011601 | H118: 管理员 | I118: INSERT INTO sys_user(id, sys_org_id, `name`, account, password, is_activated, create_sys_user_id, create_time, status, is_deleted) VALUES(215, 216, '管理员', 'Y011601', '5t6QUpK/gc29b2R83PGu/dMBr8qUIkRWpG9dhS85SnI=', 0, 1, NOW(), 1, 0); | J118: INSERT INTO sys_role_user(id, sys_role_id, sys_user_id) VALUES(215, 6, 215);
A119: 6 | B119: =orgs!B134 -> 217 | C119: =orgs!K134 -> Y0117 | D119: =orgs!G134 -> 两路 | E119: =orgs!L134 -> 重庆市渝北区水木香山贝乐坊幼儿园 | F119: =orgs!M134 -> 水木香山贝乐坊幼儿园 | G119: Y011701 | H119: 管理员 | I119: INSERT INTO sys_user(id, sys_org_id, `name`, account, password, is_activated, create_sys_user_id, create_time, status, is_deleted) VALUES(216, 217, '管理员', 'Y011701', '5t6QUpK/gc29b2R83PGu/dMBr8qUIkRWpG9dhS85SnI=', 0, 1, NOW(), 1, 0); | J119: INSERT INTO sys_role_user(id, sys_role_id, sys_user_id) VALUES(216, 6, 216);
A120: 6 | B120: =orgs!B135 -> 218 | C120: =orgs!K135 -> Y0118 | D120: =orgs!G135 -> 两路 | E120: =orgs!L135 -> 重庆市渝北区莱恩幼儿园 | F120: =orgs!M135 -> 莱恩幼儿园 | G120: Y011801 | H120: 管理员 | I120: INSERT INTO sys_user(id, sys_org_id, `name`, account, password, is_activated, create_sys_user_id, create_time, status, is_deleted) VALUES(217, 218, '管理员', 'Y011801', '5t6QUpK/gc29b2R83PGu/dMBr8qUIkRWpG9dhS85SnI=', 0, 1, NOW(), 1, 0); | J120: INSERT INTO sys_role_user(id, sys_role_id, sys_user_id) VALUES(217, 6, 217);
A121: 6 | B121: =orgs!B136 -> 219 | C121: =orgs!K136 -> Y0119 | D121: =orgs!G136 -> 两路 | E121: =orgs!L136 -> 重庆市渝北区润丰水尚幼儿园 | F121: =orgs!M136 -> 润丰水尚幼儿园 | G121: Y011901 | H121: 管理员 | I121: INSERT INTO sys_user(id, sys_org_id, `name`, account, password, is_activated, create_sys_user_id, create_time, status, is_deleted) VALUES(218, 219, '管理员', 'Y011901', '5t6QUpK/gc29b2R83PGu/dMBr8qUIkRWpG9dhS85SnI=', 0, 1, NOW(), 1, 0); | J121: INSERT INTO sys_role_user(id, sys_role_id, sys_user_id) VALUES(218, 6, 218);
A122: 6 | B122: =orgs!B137 -> 220 | C122: =orgs!K137 -> Y0120 | D122: =orgs!G137 -> 两路 | E122: =orgs!L137 -> 重庆市渝北区公园北路幼儿园 | F122: =orgs!M137 -> 公园北路幼儿园 | G122: Y012001 | H122: 管理员 | I122: INSERT INTO sys_user(id, sys_org_id, `name`, account, password, is_activated, create_sys_user_id, create_time, status, is_deleted) VALUES(219, 220, '管理员', 'Y012001', '5t6QUpK/gc29b2R83PGu/dMBr8qUIkRWpG9dhS85SnI=', 0, 1, NOW(), 1, 0); | J122: INSERT INTO sys_role_user(id, sys_role_id, sys_user_id) VALUES(219, 6, 219);
A123: 6 | B123: =orgs!B138 -> 221 | C123: =orgs!K138 -> Y0121 | D123: =orgs!G138 -> 两路 | E123: =orgs!L138 -> 重庆市渝北区腾芳幼儿园桂馥园 | F123: =orgs!M138 -> 腾芳幼儿园桂馥园 | G123: Y012101 | H123: 管理员 | I123: INSERT INTO sys_user(id, sys_org_id, `name`, account, password, is_activated, create_sys_user_id, create_time, status, is_deleted) VALUES(220, 221, '管理员', 'Y012101', '5t6QUpK/gc29b2R83PGu/dMBr8qUIkRWpG9dhS85SnI=', 0, 1, NOW(), 1, 0); | J123: INSERT INTO sys_role_user(id, sys_role_id, sys_user_id) VALUES(220, 6, 220);
A124: 6 | B124: =orgs!B139 -> 222 | C124: =orgs!K139 -> Y0122 | D124: =orgs!G139 -> 两路 | E124: =orgs!L139 -> 重庆市渝北区空港佳园幼儿园学盛园（G园） | F124: =orgs!M139 -> 空港佳园幼儿园学盛园（G园） | G124: Y012201 | H124: 管理员 | I124: INSERT INTO sys_user(id, sys_org_id, `name`, account, password, is_activated, create_sys_user_id, create_time, status, is_deleted) VALUES(221, 222, '管理员', 'Y012201', '5t6QUpK/gc29b2R83PGu/dMBr8qUIkRWpG9dhS85SnI=', 0, 1, NOW(), 1, 0); | J124: INSERT INTO sys_role_user(id, sys_role_id, sys_user_id) VALUES(221, 6, 221);
A125: 6 | B125: =orgs!B140 -> 223 | C125: =orgs!K140 -> Y0123 | D125: =orgs!G140 -> 两路 | E125: =orgs!L140 -> 重庆市渝北区空港佳园幼儿园丛岩园（E园） | F125: =orgs!M140 -> 空港佳园幼儿园丛岩园（E园） | G125: Y012301 | H125: 管理员 | I125: INSERT INTO sys_user(id, sys_org_id, `name`, account, password, is_activated, create_sys_user_id, create_time, status, is_deleted) VALUES(222, 223, '管理员', 'Y012301', '5t6QUpK/gc29b2R83PGu/dMBr8qUIkRWpG9dhS85SnI=', 0, 1, NOW(), 1, 0); | J125: INSERT INTO sys_role_user(id, sys_role_id, sys_user_id) VALUES(222, 6, 222);
A126: 6 | B126: =orgs!B141 -> 224 | C126: =orgs!K141 -> Y0124 | D126: =orgs!G141 -> 两路 | E126: =orgs!L141 -> 重庆市渝北区空港佳园第二幼儿园 | F126: =orgs!M141 -> 空港佳园第二幼儿园 | G126: Y012401 | H126: 管理员 | I126: INSERT INTO sys_user(id, sys_org_id, `name`, account, password, is_activated, create_sys_user_id, create_time, status, is_deleted) VALUES(223, 224, '管理员', 'Y012401', '5t6QUpK/gc29b2R83PGu/dMBr8qUIkRWpG9dhS85SnI=', 0, 1, NOW(), 1, 0); | J126: INSERT INTO sys_role_user(id, sys_role_id, sys_user_id) VALUES(223, 6, 223);
A127: 6 | B127: =orgs!B142 -> 225 | C127: =orgs!K142 -> Y0125 | D127: =orgs!G142 -> 两路 | E127: =orgs!L142 -> 重庆市渝北区同茂幼儿园 | F127: =orgs!M142 -> 同茂幼儿园 | G127: Y012501 | H127: 管理员 | I127: INSERT INTO sys_user(id, sys_org_id, `name`, account, password, is_activated, create_sys_user_id, create_time, status, is_deleted) VALUES(224, 225, '管理员', 'Y012501', '5t6QUpK/gc29b2R83PGu/dMBr8qUIkRWpG9dhS85SnI=', 0, 1, NOW(), 1, 0); | J127: INSERT INTO sys_role_user(id, sys_role_id, sys_user_id) VALUES(224, 6, 224);
A128: 6 | B128: =orgs!B143 -> 226 | C128: =orgs!K143 -> Y0126 | D128: =orgs!G143 -> 两路 | E128: =orgs!L143 -> 重庆市渝北庆龄幼儿园秋成园 | F128: =orgs!M143 -> 龄幼儿园秋成园 | G128: Y012601 | H128: 管理员 | I128: INSERT INTO sys_user(id, sys_org_id, `name`, account, password, is_activated, create_sys_user_id, create_time, status, is_deleted) VALUES(225, 226, '管理员', 'Y012601', '5t6QUpK/gc29b2R83PGu/dMBr8qUIkRWpG9dhS85SnI=', 0, 1, NOW(), 1, 0); | J128: INSERT INTO sys_role_user(id, sys_role_id, sys_user_id) VALUES(225, 6, 225);
A129: 6 | B129: =orgs!B144 -> 227 | C129: =orgs!K144 -> Y0127 | D129: =orgs!G144 -> 两路 | E129: =orgs!L144 -> 重庆市渝北区盛景天下小学校附属幼儿园 | F129: =orgs!M144 -> 盛景天下小学校附属幼儿园 | G129: Y012701 | H129: 管理员 | I129: INSERT INTO sys_user(id, sys_org_id, `name`, account, password, is_activated, create_sys_user_id, create_time, status, is_deleted) VALUES(226, 227, '管理员', 'Y012701', '5t6QUpK/gc29b2R83PGu/dMBr8qUIkRWpG9dhS85SnI=', 0, 1, NOW(), 1, 0); | J129: INSERT INTO sys_role_user(id, sys_role_id, sys_user_id) VALUES(226, 6, 226);
A130: 6 | B130: =orgs!B145 -> 228 | C130: =orgs!K145 -> Y0128 | D130: =orgs!G145 -> 两路 | E130: =orgs!L145 -> 重庆市渝北区空港新城小学附属幼儿园 | F130: =orgs!M145 -> 空港新城小学附属幼儿园 | G130: Y012801 | H130: 管理员 | I130: INSERT INTO sys_user(id, sys_org_id, `name`, account, password, is_activated, create_sys_user_id, create_time, status, is_deleted) VALUES(227, 228, '管理员', 'Y012801', '5t6QUpK/gc29b2R83PGu/dMBr8qUIkRWpG9dhS85SnI=', 0, 1, NOW(), 1, 0); | J130: INSERT INTO sys_role_user(id, sys_role_id, sys_user_id) VALUES(227, 6, 227);
A131: 6 | B131: =orgs!B146 -> 229 | C131: =orgs!K146 -> Y0129 | D131: =orgs!G146 -> 两路 | E131: =orgs!L146 -> 重庆市渝北区数据谷小学校附属幼儿园 | F131: =orgs!M146 -> 数据谷小学校附属幼儿园 | G131: Y012901 | H131: 管理员 | I131: INSERT INTO sys_user(id, sys_org_id, `name`, account, password, is_activated, create_sys_user_id, create_time, status, is_deleted) VALUES(228, 229, '管理员', 'Y012901', '5t6QUpK/gc29b2R83PGu/dMBr8qUIkRWpG9dhS85SnI=', 0, 1, NOW(), 1, 0); | J131: INSERT INTO sys_role_user(id, sys_role_id, sys_user_id) VALUES(228, 6, 228);
A132: 6 | B132: =orgs!B147 -> 230 | C132: =orgs!K147 -> Y0130 | D132: =orgs!G147 -> 两路 | E132: =orgs!L147 -> 重庆市渝北区英华贝贝空港幼儿园 | F132: =orgs!M147 -> 英华贝贝空港幼儿园 | G132: Y013001 | H132: 管理员 | I132: ="INSERT INTO sys_user(id, sys_org_id, `name`, account, password, is_activated, create_sys_user_id, create_time, status, is_deleted) VALUES("&(97+ROW())&", "&B132&", '"&H132&"', '"&G132&"', '5t6QUpK/gc29b2R83PGu/dMBr8qUIkRWpG9dhS85SnI=', 0, 1, NOW(), 1, 0);" -> INSERT INTO sys_user(id, sys_org_id, `name`, account, password, is_activated, create_sys_user_id, create_time, status, is_deleted) VALUES(229, 230, '管理员', 'Y013001', '5t6QUpK/gc29b2R83PGu/dMBr8qUIkRWpG9dhS85SnI=', 0, 1, NOW(), 1, 0); | J132: ="INSERT INTO sys_role_user(id, sys_role_id, sys_user_id) VALUES("&(97+ROW())&", "&A132&", "&(97+ROW())&");" -> INSERT INTO sys_role_user(id, sys_role_id, sys_user_id) VALUES(229, 6, 229);
A133: 6 | B133: =orgs!B148 -> 231 | C133: =orgs!K148 -> Y0131 | D133: =orgs!G148 -> 两路 | E133: =orgs!L148 -> 重庆市渝北区好莱坞幼儿园 | F133: =orgs!M148 -> 好莱坞幼儿园 | G133: Y013101 | H133: 管理员 | I133: INSERT INTO sys_user(id, sys_org_id, `name`, account, password, is_activated, create_sys_user_id, create_time, status, is_deleted) VALUES(230, 231, '管理员', 'Y013101', '5t6QUpK/gc29b2R83PGu/dMBr8qUIkRWpG9dhS85SnI=', 0, 1, NOW(), 1, 0); | J133: INSERT INTO sys_role_user(id, sys_role_id, sys_user_id) VALUES(230, 6, 230);
A134: 6 | B134: =orgs!B149 -> 232 | C134: =orgs!K149 -> Y0132 | D134: =orgs!G149 -> 两路 | E134: =orgs!L149 -> 重庆市渝北区盛景天下喜洋洋幼儿园 | F134: =orgs!M149 -> 盛景天下喜洋洋幼儿园 | G134: =C134&"01" -> Y013201 | H134: 管理员 | I134: INSERT INTO sys_user(id, sys_org_id, `name`, account, password, is_activated, create_sys_user_id, create_time, status, is_deleted) VALUES(231, 232, '管理员', 'Y013201', '5t6QUpK/gc29b2R83PGu/dMBr8qUIkRWpG9dhS85SnI=', 0, 1, NOW(), 1, 0); | J134: INSERT INTO sys_role_user(id, sys_role_id, sys_user_id) VALUES(231, 6, 231);
A135: 6 | B135: =orgs!B150 -> 233 | C135: =orgs!K150 -> Y0133 | D135: =orgs!G150 -> 两路 | E135: =orgs!L150 -> 重庆市渝北区迪思尼幼儿园 | F135: =orgs!M150 -> 迪思尼幼儿园 | G135: Y013301 | H135: 管理员 | I135: INSERT INTO sys_user(id, sys_org_id, `name`, account, password, is_activated, create_sys_user_id, create_time, status, is_deleted) VALUES(232, 233, '管理员', 'Y013301', '5t6QUpK/gc29b2R83PGu/dMBr8qUIkRWpG9dhS85SnI=', 0, 1, NOW(), 1, 0); | J135: INSERT INTO sys_role_user(id, sys_role_id, sys_user_id) VALUES(232, 6, 232);
A136: 6 | B136: =orgs!B151 -> 234 | C136: =orgs!K151 -> Y0134 | D136: =orgs!G151 -> 两路 | E136: =orgs!L151 -> 重庆市渝北区七色幼儿园 | F136: =orgs!M151 -> 七色幼儿园 | G136: Y013401 | H136: 管理员 | I136: INSERT INTO sys_user(id, sys_org_id, `name`, account, password, is_activated, create_sys_user_id, create_time, status, is_deleted) VALUES(233, 234, '管理员', 'Y013401', '5t6QUpK/gc29b2R83PGu/dMBr8qUIkRWpG9dhS85SnI=', 0, 1, NOW(), 1, 0); | J136: INSERT INTO sys_role_user(id, sys_role_id, sys_user_id) VALUES(233, 6, 233);
A137: 6 | B137: =orgs!B152 -> 235 | C137: =orgs!K152 -> Y0135 | D137: =orgs!G152 -> 两路 | E137: =orgs!L152 -> 重庆市渝北区全稚园金色池塘幼儿园 | F137: =orgs!M152 -> 全稚园金色池塘幼儿园 | G137: Y013501 | H137: 管理员 | I137: INSERT INTO sys_user(id, sys_org_id, `name`, account, password, is_activated, create_sys_user_id, create_time, status, is_deleted) VALUES(234, 235, '管理员', 'Y013501', '5t6QUpK/gc29b2R83PGu/dMBr8qUIkRWpG9dhS85SnI=', 0, 1, NOW(), 1, 0); | J137: INSERT INTO sys_role_user(id, sys_role_id, sys_user_id) VALUES(234, 6, 234);
A138: 6 | B138: =orgs!B153 -> 236 | C138: =orgs!K153 -> Y0136 | D138: =orgs!G153 -> 两路 | E138: =orgs!L153 -> 重庆市渝北区润丰明希幼儿园 | F138: =orgs!M153 -> 润丰明希幼儿园 | G138: Y013601 | H138: 管理员 | I138: INSERT INTO sys_user(id, sys_org_id, `name`, account, password, is_activated, create_sys_user_id, create_time, status, is_deleted) VALUES(235, 236, '管理员', 'Y013601', '5t6QUpK/gc29b2R83PGu/dMBr8qUIkRWpG9dhS85SnI=', 0, 1, NOW(), 1, 0); | J138: INSERT INTO sys_role_user(id, sys_role_id, sys_user_id) VALUES(235, 6, 235);
A139: 6 | B139: =orgs!B154 -> 237 | C139: =orgs!K154 -> Y0137 | D139: =orgs!G154 -> 两路 | E139: =orgs!L154 -> 重庆市渝北区香城雅郡幼儿园 | F139: =orgs!M154 -> 香城雅郡幼儿园 | G139: Y013701 | H139: 管理员 | I139: INSERT INTO sys_user(id, sys_org_id, `name`, account, password, is_activated, create_sys_user_id, create_time, status, is_deleted) VALUES(236, 237, '管理员', 'Y013701', '5t6QUpK/gc29b2R83PGu/dMBr8qUIkRWpG9dhS85SnI=', 0, 1, NOW(), 1, 0); | J139: INSERT INTO sys_role_user(id, sys_role_id, sys_user_id) VALUES(236, 6, 236);
A140: 6 | B140: =orgs!B155 -> 238 | C140: =orgs!K155 -> Y0138 | D140: =orgs!G155 -> 两路 | E140: =orgs!L155 -> 重庆市渝北区和庆路幼儿园 | F140: =orgs!M155 -> 和庆路幼儿园 | G140: Y013801 | H140: 管理员 | I140: INSERT INTO sys_user(id, sys_org_id, `name`, account, password, is_activated, create_sys_user_id, create_time, status, is_deleted) VALUES(237, 238, '管理员', 'Y013801', '5t6QUpK/gc29b2R83PGu/dMBr8qUIkRWpG9dhS85SnI=', 0, 1, NOW(), 1, 0); | J140: INSERT INTO sys_role_user(id, sys_role_id, sys_user_id) VALUES(237, 6, 237);
A141: 6 | B141: =orgs!B156 -> 239 | C141: =orgs!K156 -> Y0139 | D141: =orgs!G156 -> 两路 | E141: =orgs!L156 -> 重庆市渝北区戈米孚幼儿园 | F141: =orgs!M156 -> 戈米孚幼儿园 | G141: Y013901 | H141: 管理员 | I141: INSERT INTO sys_user(id, sys_org_id, `name`, account, password, is_activated, create_sys_user_id, create_time, status, is_deleted) VALUES(238, 239, '管理员', 'Y013901', '5t6QUpK/gc29b2R83PGu/dMBr8qUIkRWpG9dhS85SnI=', 0, 1, NOW(), 1, 0); | J141: INSERT INTO sys_role_user(id, sys_role_id, sys_user_id) VALUES(238, 6, 238);
A142: 6 | B142: =orgs!B157 -> 240 | C142: =orgs!K157 -> Y0140 | D142: =orgs!G157 -> 两路 | E142: =orgs!L157 -> 重庆市渝北区奇心乐泽科幼儿园 | F142: =orgs!M157 -> 奇心乐泽科幼儿园 | G142: Y014001 | H142: 管理员 | I142: INSERT INTO sys_user(id, sys_org_id, `name`, account, password, is_activated, create_sys_user_id, create_time, status, is_deleted) VALUES(239, 240, '管理员', 'Y014001', '5t6QUpK/gc29b2R83PGu/dMBr8qUIkRWpG9dhS85SnI=', 0, 1, NOW(), 1, 0); | J142: INSERT INTO sys_role_user(id, sys_role_id, sys_user_id) VALUES(239, 6, 239);
A143: 6 | B143: =orgs!B158 -> 241 | C143: =orgs!K158 -> Y0141 | D143: =orgs!G158 -> 两路 | E143: =orgs!L158 -> 重庆市渝北区青苗幼儿园有限公司 | F143: =orgs!M158 -> 青苗幼儿园有限公司 | G143: Y014101 | H143: 管理员 | I143: INSERT INTO sys_user(id, sys_org_id, `name`, account, password, is_activated, create_sys_user_id, create_time, status, is_deleted) VALUES(240, 241, '管理员', 'Y014101', '5t6QUpK/gc29b2R83PGu/dMBr8qUIkRWpG9dhS85SnI=', 0, 1, NOW(), 1, 0); | J143: INSERT INTO sys_role_user(id, sys_role_id, sys_user_id) VALUES(240, 6, 240);
A144: 6 | B144: =orgs!B159 -> 242 | C144: =orgs!K159 -> Y0142 | D144: =orgs!G159 -> 两路 | E144: =orgs!L159 -> 重庆市渝北区汇祥林里伟才幼儿园 | F144: =orgs!M159 -> 汇祥林里伟才幼儿园 | G144: Y014201 | H144: 管理员 | I144: INSERT INTO sys_user(id, sys_org_id, `name`, account, password, is_activated, create_sys_user_id, create_time, status, is_deleted) VALUES(241, 242, '管理员', 'Y014201', '5t6QUpK/gc29b2R83PGu/dMBr8qUIkRWpG9dhS85SnI=', 0, 1, NOW(), 1, 0); | J144: INSERT INTO sys_role_user(id, sys_role_id, sys_user_id) VALUES(241, 6, 241);
A145: 6 | B145: =orgs!B160 -> 243 | C145: =orgs!K160 -> Y0143 | D145: =orgs!G160 -> 两路 | E145: =orgs!L160 -> 重庆市渝北区辰星幼儿园 | F145: =orgs!M160 -> 辰星幼儿园 | G145: Y014301 | H145: 管理员 | I145: INSERT INTO sys_user(id, sys_org_id, `name`, account, password, is_activated, create_sys_user_id, create_time, status, is_deleted) VALUES(242, 243, '管理员', 'Y014301', '5t6QUpK/gc29b2R83PGu/dMBr8qUIkRWpG9dhS85SnI=', 0, 1, NOW(), 1, 0); | J145: INSERT INTO sys_role_user(id, sys_role_id, sys_user_id) VALUES(242, 6, 242);
A146: 6 | B146: =orgs!B161 -> 244 | C146: =orgs!K161 -> Y0144 | D146: =orgs!G161 -> 两路 | E146: =orgs!L161 -> 重庆市渝北区爱加橄榄幼儿园 | F146: =orgs!M161 -> 爱加橄榄幼儿园 | G146: Y014401 | H146: 管理员 | I146: INSERT INTO sys_user(id, sys_org_id, `name`, account, password, is_activated, create_sys_user_id, create_time, status, is_deleted) VALUES(243, 244, '管理员', 'Y014401', '5t6QUpK/gc29b2R83PGu/dMBr8qUIkRWpG9dhS85SnI=', 0, 1, NOW(), 1, 0); | J146: INSERT INTO sys_role_user(id, sys_role_id, sys_user_id) VALUES(243, 6, 243);
A147: 6 | B147: =orgs!B162 -> 245 | C147: =orgs!K162 -> Y0145 | D147: =orgs!G162 -> 两路 | E147: =orgs!L162 -> 重庆市渝北区蒙世学堂幼儿园 | F147: =orgs!M162 -> 蒙世学堂幼儿园 | G147: Y014501 | H147: 管理员 | I147: INSERT INTO sys_user(id, sys_org_id, `name`, account, password, is_activated, create_sys_user_id, create_time, status, is_deleted) VALUES(244, 245, '管理员', 'Y014501', '5t6QUpK/gc29b2R83PGu/dMBr8qUIkRWpG9dhS85SnI=', 0, 1, NOW(), 1, 0); | J147: INSERT INTO sys_role_user(id, sys_role_id, sys_user_id) VALUES(244, 6, 244);
A148: 6 | B148: =orgs!B163 -> 246 | C148: =orgs!K163 -> Y0146 | D148: =orgs!G163 -> 两路 | E148: =orgs!L163 -> 重庆市渝北区启明幼儿园 | F148: =orgs!M163 -> 启明幼儿园 | G148: Y014601 | H148: 管理员 | I148: INSERT INTO sys_user(id, sys_org_id, `name`, account, password, is_activated, create_sys_user_id, create_time, status, is_deleted) VALUES(245, 246, '管理员', 'Y014601', '5t6QUpK/gc29b2R83PGu/dMBr8qUIkRWpG9dhS85SnI=', 0, 1, NOW(), 1, 0); | J148: INSERT INTO sys_role_user(id, sys_role_id, sys_user_id) VALUES(245, 6, 245);
A149: 6 | B149: =orgs!B164 -> 247 | C149: =orgs!K164 -> Y0147 | D149: =orgs!G164 -> 两路 | E149: =orgs!L164 -> 重庆市渝北区金茂幼儿园 | F149: =orgs!M164 -> 金茂幼儿园 | G149: Y014701 | H149: 管理员 | I149: INSERT INTO sys_user(id, sys_org_id, `name`, account, password, is_activated, create_sys_user_id, create_time, status, is_deleted) VALUES(246, 247, '管理员', 'Y014701', '5t6QUpK/gc29b2R83PGu/dMBr8qUIkRWpG9dhS85SnI=', 0, 1, NOW(), 1, 0); | J149: INSERT INTO sys_role_user(id, sys_role_id, sys_user_id) VALUES(246, 6, 246);
A150: 6 | B150: =orgs!B165 -> 248 | C150: =orgs!K165 -> Y0148 | D150: =orgs!G165 -> 两路 | E150: =orgs!L165 -> 重庆市渝北区三之三天晋幼儿园 | F150: =orgs!M165 -> 三之三天晋幼儿园 | G150: Y014801 | H150: 管理员 | I150: INSERT INTO sys_user(id, sys_org_id, `name`, account, password, is_activated, create_sys_user_id, create_time, status, is_deleted) VALUES(247, 248, '管理员', 'Y014801', '5t6QUpK/gc29b2R83PGu/dMBr8qUIkRWpG9dhS85SnI=', 0, 1, NOW(), 1, 0); | J150: INSERT INTO sys_role_user(id, sys_role_id, sys_user_id) VALUES(247, 6, 247);
A151: 6 | B151: =orgs!B166 -> 249 | C151: =orgs!K166 -> Y0149 | D151: =orgs!G166 -> 两路 | E151: =orgs!L166 -> 重庆市渝北区盛果誉峰幼儿园 | F151: =orgs!M166 -> 盛果誉峰幼儿园 | G151: Y014901 | H151: 管理员 | I151: INSERT INTO sys_user(id, sys_org_id, `name`, account, password, is_activated, create_sys_user_id, create_time, status, is_deleted) VALUES(248, 249, '管理员', 'Y014901', '5t6QUpK/gc29b2R83PGu/dMBr8qUIkRWpG9dhS85SnI=', 0, 1, NOW(), 1, 0); | J151: INSERT INTO sys_role_user(id, sys_role_id, sys_user_id) VALUES(248, 6, 248);
A152: 6 | B152: =orgs!B167 -> 250 | C152: =orgs!K167 -> Y0150 | D152: =orgs!G167 -> 两路 | E152: =orgs!L167 -> 重庆市渝北区生生幼儿园 | F152: =orgs!M167 -> 生生幼儿园 | G152: Y015001 | H152: 管理员 | I152: INSERT INTO sys_user(id, sys_org_id, `name`, account, password, is_activated, create_sys_user_id, create_time, status, is_deleted) VALUES(249, 250, '管理员', 'Y015001', '5t6QUpK/gc29b2R83PGu/dMBr8qUIkRWpG9dhS85SnI=', 0, 1, NOW(), 1, 0); | J152: INSERT INTO sys_role_user(id, sys_role_id, sys_user_id) VALUES(249, 6, 249);
A153: 6 | B153: =orgs!B168 -> 251 | C153: =orgs!K168 -> Y0151 | D153: =orgs!G168 -> 两路 | E153: =orgs!L168 -> 重庆市渝北区上东汇幼儿园 | F153: =orgs!M168 -> 上东汇幼儿园 | G153: Y015101 | H153: 管理员 | I153: INSERT INTO sys_user(id, sys_org_id, `name`, account, password, is_activated, create_sys_user_id, create_time, status, is_deleted) VALUES(250, 251, '管理员', 'Y015101', '5t6QUpK/gc29b2R83PGu/dMBr8qUIkRWpG9dhS85SnI=', 0, 1, NOW(), 1, 0); | J153: INSERT INTO sys_role_user(id, sys_role_id, sys_user_id) VALUES(250, 6, 250);
A154: 6 | B154: =orgs!B169 -> 252 | C154: =orgs!K169 -> Y0152 | D154: =orgs!G169 -> 两路 | E154: =orgs!L169 -> 重庆市渝北幼儿园 | F154: =orgs!M169 -> 儿园 | G154: Y015201 | H154: 管理员 | I154: INSERT INTO sys_user(id, sys_org_id, `name`, account, password, is_activated, create_sys_user_id, create_time, status, is_deleted) VALUES(251, 252, '管理员', 'Y015201', '5t6QUpK/gc29b2R83PGu/dMBr8qUIkRWpG9dhS85SnI=', 0, 1, NOW(), 1, 0); | J154: INSERT INTO sys_role_user(id, sys_role_id, sys_user_id) VALUES(251, 6, 251);
A155: 6 | B155: =orgs!B170 -> 253 | C155: =orgs!K170 -> Y0153 | D155: =orgs!G170 -> 两路 | E155: =orgs!L170 -> 重庆市渝北幼儿园空港新城园 | F155: =orgs!M170 -> 儿园空港新城园 | G155: Y015301 | H155: 管理员 | I155: INSERT INTO sys_user(id, sys_org_id, `name`, account, password, is_activated, create_sys_user_id, create_time, status, is_deleted) VALUES(252, 253, '管理员', 'Y015301', '5t6QUpK/gc29b2R83PGu/dMBr8qUIkRWpG9dhS85SnI=', 0, 1, NOW(), 1, 0); | J155: INSERT INTO sys_role_user(id, sys_role_id, sys_user_id) VALUES(252, 6, 252);
A156: 6 | B156: =orgs!B171 -> 254 | C156: =orgs!K171 -> Y0154 | D156: =orgs!G171 -> 两路 | E156: =orgs!L171 -> 重庆市渝北区两路幼儿园 | F156: =orgs!M171 -> 两路幼儿园 | G156: Y015401 | H156: 管理员 | I156: INSERT INTO sys_user(id, sys_org_id, `name`, account, password, is_activated, create_sys_user_id, create_time, status, is_deleted) VALUES(253, 254, '管理员', 'Y015401', '5t6QUpK/gc29b2R83PGu/dMBr8qUIkRWpG9dhS85SnI=', 0, 1, NOW(), 1, 0); | J156: INSERT INTO sys_role_user(id, sys_role_id, sys_user_id) VALUES(253, 6, 253);
A157: 6 | B157: =orgs!B172 -> 255 | C157: =orgs!K172 -> Y0155 | D157: =orgs!G172 -> 两路 | E157: =orgs!L172 -> 重庆市渝北区两路幼儿园晚晴分园 | F157: =orgs!M172 -> 两路幼儿园晚晴分园 | G157: Y015501 | H157: 管理员 | I157: INSERT INTO sys_user(id, sys_org_id, `name`, account, password, is_activated, create_sys_user_id, create_time, status, is_deleted) VALUES(254, 255, '管理员', 'Y015501', '5t6QUpK/gc29b2R83PGu/dMBr8qUIkRWpG9dhS85SnI=', 0, 1, NOW(), 1, 0); | J157: INSERT INTO sys_role_user(id, sys_role_id, sys_user_id) VALUES(254, 6, 254);
A158: 6 | B158: =orgs!B173 -> 256 | C158: =orgs!K173 -> Y0156 | D158: =orgs!G173 -> 两路 | E158: =orgs!L173 -> 重庆市渝北金港国际实验小学校附属幼儿园 | F158: =orgs!M173 -> 港国际实验小学校附属幼儿园 | G158: Y015601 | H158: 管理员 | I158: INSERT INTO sys_user(id, sys_org_id, `name`, account, password, is_activated, create_sys_user_id, create_time, status, is_deleted) VALUES(255, 256, '管理员', 'Y015601', '5t6QUpK/gc29b2R83PGu/dMBr8qUIkRWpG9dhS85SnI=', 0, 1, NOW(), 1, 0); | J158: INSERT INTO sys_role_user(id, sys_role_id, sys_user_id) VALUES(255, 6, 255);
A159: 6 | B159: =orgs!B174 -> 257 | C159: =orgs!K174 -> Y0157 | D159: =orgs!G174 -> 两路 | E159: =orgs!L174 -> 重庆市渝北区汉渝路小学校附属幼儿园 | F159: =orgs!M174 -> 汉渝路小学校附属幼儿园 | G159: Y015701 | H159: 管理员 | I159: INSERT INTO sys_user(id, sys_org_id, `name`, account, password, is_activated, create_sys_user_id, create_time, status, is_deleted) VALUES(256, 257, '管理员', 'Y015701', '5t6QUpK/gc29b2R83PGu/dMBr8qUIkRWpG9dhS85SnI=', 0, 1, NOW(), 1, 0); | J159: INSERT INTO sys_role_user(id, sys_role_id, sys_user_id) VALUES(256, 6, 256);
A160: 6 | B160: =orgs!B175 -> 258 | C160: =orgs!K175 -> Y0158 | D160: =orgs!G175 -> 两路 | E160: =orgs!L175 -> 重庆市渝北区实验中学附属幼儿园 | F160: =orgs!M175 -> 实验中学附属幼儿园 | G160: Y015801 | H160: 管理员 | I160: INSERT INTO sys_user(id, sys_org_id, `name`, account, password, is_activated, create_sys_user_id, create_time, status, is_deleted) VALUES(257, 258, '管理员', 'Y015801', '5t6QUpK/gc29b2R83PGu/dMBr8qUIkRWpG9dhS85SnI=', 0, 1, NOW(), 1, 0); | J160: INSERT INTO sys_role_user(id, sys_role_id, sys_user_id) VALUES(257, 6, 257);
A161: 6 | B161: =orgs!B176 -> 259 | C161: =orgs!K176 -> Y0159 | D161: =orgs!G176 -> 两路 | E161: =orgs!L176 -> 重庆市渝北区笃信实验学校附属幼儿园 | F161: =orgs!M176 -> 笃信实验学校附属幼儿园 | G161: Y015901 | H161: 管理员 | I161: INSERT INTO sys_user(id, sys_org_id, `name`, account, password, is_activated, create_sys_user_id, create_time, status, is_deleted) VALUES(258, 259, '管理员', 'Y015901', '5t6QUpK/gc29b2R83PGu/dMBr8qUIkRWpG9dhS85SnI=', 0, 1, NOW(), 1, 0); | J161: INSERT INTO sys_role_user(id, sys_role_id, sys_user_id) VALUES(258, 6, 258);
A162: 6 | B162: =orgs!B177 -> 260 | C162: =orgs!K177 -> Y0160 | D162: =orgs!G177 -> 两路 | E162: =orgs!L177 -> 重庆市渝北区特殊教育学校附属幼儿园 | F162: =orgs!M177 -> 特殊教育学校附属幼儿园 | G162: Y016001 | H162: 管理员 | I162: INSERT INTO sys_user(id, sys_org_id, `name`, account, password, is_activated, create_sys_user_id, create_time, status, is_deleted) VALUES(259, 260, '管理员', 'Y016001', '5t6QUpK/gc29b2R83PGu/dMBr8qUIkRWpG9dhS85SnI=', 0, 1, NOW(), 1, 0); | J162: INSERT INTO sys_role_user(id, sys_role_id, sys_user_id) VALUES(259, 6, 259);
A163: 6 | B163: =orgs!B178 -> 261 | C163: =orgs!K178 -> Y0161 | D163: =orgs!G178 -> 两路 | E163: =orgs!L178 -> 重庆市渝北区新葵幼儿园 | F163: =orgs!M178 -> 新葵幼儿园 | G163: Y016101 | H163: 管理员 | I163: INSERT INTO sys_user(id, sys_org_id, `name`, account, password, is_activated, create_sys_user_id, create_time, status, is_deleted) VALUES(260, 261, '管理员', 'Y016101', '5t6QUpK/gc29b2R83PGu/dMBr8qUIkRWpG9dhS85SnI=', 0, 1, NOW(), 1, 0); | J163: INSERT INTO sys_role_user(id, sys_role_id, sys_user_id) VALUES(260, 6, 260);
A164: 6 | B164: =orgs!B179 -> 262 | C164: =orgs!K179 -> Y0162 | D164: =orgs!G179 -> 两路 | E164: =orgs!L179 -> 重庆市渝北区双凤桥星星幼儿园 | F164: =orgs!M179 -> 双凤桥星星幼儿园 | G164: Y016201 | H164: 管理员 | I164: INSERT INTO sys_user(id, sys_org_id, `name`, account, password, is_activated, create_sys_user_id, create_time, status, is_deleted) VALUES(261, 262, '管理员', 'Y016201', '5t6QUpK/gc29b2R83PGu/dMBr8qUIkRWpG9dhS85SnI=', 0, 1, NOW(), 1, 0); | J164: INSERT INTO sys_role_user(id, sys_role_id, sys_user_id) VALUES(261, 6, 261);
A165: 6 | B165: =orgs!B180 -> 263 | C165: =orgs!K180 -> Y0163 | D165: =orgs!G180 -> 两路 | E165: =orgs!L180 -> 重庆市渝北区泽科幼儿园 | F165: =orgs!M180 -> 泽科幼儿园 | G165: Y016301 | H165: 管理员 | I165: INSERT INTO sys_user(id, sys_org_id, `name`, account, password, is_activated, create_sys_user_id, create_time, status, is_deleted) VALUES(262, 263, '管理员', 'Y016301', '5t6QUpK/gc29b2R83PGu/dMBr8qUIkRWpG9dhS85SnI=', 0, 1, NOW(), 1, 0); | J165: INSERT INTO sys_role_user(id, sys_role_id, sys_user_id) VALUES(262, 6, 262);
A166: 6 | B166: =orgs!B181 -> 264 | C166: =orgs!K181 -> Y0164 | D166: =orgs!G181 -> 两路 | E166: =orgs!L181 -> 重庆市渝北区双凤桥慧伶幼儿园 | F166: =orgs!M181 -> 双凤桥慧伶幼儿园 | G166: Y016401 | H166: 管理员 | I166: INSERT INTO sys_user(id, sys_org_id, `name`, account, password, is_activated, create_sys_user_id, create_time, status, is_deleted) VALUES(263, 264, '管理员', 'Y016401', '5t6QUpK/gc29b2R83PGu/dMBr8qUIkRWpG9dhS85SnI=', 0, 1, NOW(), 1, 0); | J166: INSERT INTO sys_role_user(id, sys_role_id, sys_user_id) VALUES(263, 6, 263);
A167: 6 | B167: =orgs!B182 -> 265 | C167: =orgs!K182 -> Y0165 | D167: =orgs!G182 -> 两路 | E167: =orgs!L182 -> 重庆市渝北区双凤桥高屋幼儿园 | F167: =orgs!M182 -> 双凤桥高屋幼儿园 | G167: Y016501 | H167: 管理员 | I167: INSERT INTO sys_user(id, sys_org_id, `name`, account, password, is_activated, create_sys_user_id, create_time, status, is_deleted) VALUES(264, 265, '管理员', 'Y016501', '5t6QUpK/gc29b2R83PGu/dMBr8qUIkRWpG9dhS85SnI=', 0, 1, NOW(), 1, 0); | J167: INSERT INTO sys_role_user(id, sys_role_id, sys_user_id) VALUES(264, 6, 264);
A168: 6 | B168: =orgs!B183 -> 266 | C168: =orgs!K183 -> Y0166 | D168: =orgs!G183 -> 两路 | E168: =orgs!L183 -> 重庆市渝北区双凤桥乐乐幼儿园 | F168: =orgs!M183 -> 双凤桥乐乐幼儿园 | G168: Y016601 | H168: 管理员 | I168: INSERT INTO sys_user(id, sys_org_id, `name`, account, password, is_activated, create_sys_user_id, create_time, status, is_deleted) VALUES(265, 266, '管理员', 'Y016601', '5t6QUpK/gc29b2R83PGu/dMBr8qUIkRWpG9dhS85SnI=', 0, 1, NOW(), 1, 0); | J168: INSERT INTO sys_role_user(id, sys_role_id, sys_user_id) VALUES(265, 6, 265);
A169: 6 | B169: =orgs!B184 -> 267 | C169: =orgs!K184 -> Y0167 | D169: =orgs!G184 -> 两路 | E169: =orgs!L184 -> 重庆市渝北区双凤桥大风车幼儿园 | F169: =orgs!M184 -> 双凤桥大风车幼儿园 | G169: Y016701 | H169: 管理员 | I169: INSERT INTO sys_user(id, sys_org_id, `name`, account, password, is_activated, create_sys_user_id, create_time, status, is_deleted) VALUES(266, 267, '管理员', 'Y016701', '5t6QUpK/gc29b2R83PGu/dMBr8qUIkRWpG9dhS85SnI=', 0, 1, NOW(), 1, 0); | J169: INSERT INTO sys_role_user(id, sys_role_id, sys_user_id) VALUES(266, 6, 266);
A170: 6 | B170: =orgs!B185 -> 268 | C170: =orgs!K185 -> Y0168 | D170: =orgs!G185 -> 两路 | E170: =orgs!L185 -> 重庆市渝北区双凤桥艺树幼儿园 | F170: =orgs!M185 -> 双凤桥艺树幼儿园 | G170: Y016801 | H170: 管理员 | I170: INSERT INTO sys_user(id, sys_org_id, `name`, account, password, is_activated, create_sys_user_id, create_time, status, is_deleted) VALUES(267, 268, '管理员', 'Y016801', '5t6QUpK/gc29b2R83PGu/dMBr8qUIkRWpG9dhS85SnI=', 0, 1, NOW(), 1, 0); | J170: INSERT INTO sys_role_user(id, sys_role_id, sys_user_id) VALUES(267, 6, 267);
A171: 6 | B171: =orgs!B186 -> 269 | C171: =orgs!K186 -> Y0169 | D171: =orgs!G186 -> 两路 | E171: =orgs!L186 -> 重庆市渝北区双凤桥阳光幼儿园 | F171: =orgs!M186 -> 双凤桥阳光幼儿园 | G171: Y016901 | H171: 管理员 | I171: INSERT INTO sys_user(id, sys_org_id, `name`, account, password, is_activated, create_sys_user_id, create_time, status, is_deleted) VALUES(268, 269, '管理员', 'Y016901', '5t6QUpK/gc29b2R83PGu/dMBr8qUIkRWpG9dhS85SnI=', 0, 1, NOW(), 1, 0); | J171: INSERT INTO sys_role_user(id, sys_role_id, sys_user_id) VALUES(268, 6, 268);
A172: 6 | B172: =orgs!B187 -> 270 | C172: =orgs!K187 -> Y0170 | D172: =orgs!G187 -> 两路 | E172: =orgs!L187 -> 重庆市渝北区双凤桥康乐幼儿园 | F172: =orgs!M187 -> 双凤桥康乐幼儿园 | G172: Y017001 | H172: 管理员 | I172: INSERT INTO sys_user(id, sys_org_id, `name`, account, password, is_activated, create_sys_user_id, create_time, status, is_deleted) VALUES(269, 270, '管理员', 'Y017001', '5t6QUpK/gc29b2R83PGu/dMBr8qUIkRWpG9dhS85SnI=', 0, 1, NOW(), 1, 0); | J172: INSERT INTO sys_role_user(id, sys_role_id, sys_user_id) VALUES(269, 6, 269);
A173: 6 | B173: =orgs!B188 -> 271 | C173: =orgs!K188 -> Y0171 | D173: =orgs!G188 -> 两路 | E173: =orgs!L188 -> 重庆市渝北区两江第一幼儿园 | F173: =orgs!M188 -> 两江第一幼儿园 | G173: Y017101 | H173: 管理员 | I173: INSERT INTO sys_user(id, sys_org_id, `name`, account, password, is_activated, create_sys_user_id, create_time, status, is_deleted) VALUES(270, 271, '管理员', 'Y017101', '5t6QUpK/gc29b2R83PGu/dMBr8qUIkRWpG9dhS85SnI=', 0, 1, NOW(), 1, 0); | J173: INSERT INTO sys_role_user(id, sys_role_id, sys_user_id) VALUES(270, 6, 270);
A174: 6 | B174: =orgs!B189 -> 272 | C174: =orgs!K189 -> Y0172 | D174: =orgs!G189 -> 两路 | E174: =orgs!L189 -> 重庆市渝北区两江第一幼儿园环雅园 | F174: =orgs!M189 -> 两江第一幼儿园环雅园 | G174: Y017201 | H174: 管理员 | I174: INSERT INTO sys_user(id, sys_org_id, `name`, account, password, is_activated, create_sys_user_id, create_time, status, is_deleted) VALUES(271, 272, '管理员', 'Y017201', '5t6QUpK/gc29b2R83PGu/dMBr8qUIkRWpG9dhS85SnI=', 0, 1, NOW(), 1, 0); | J174: INSERT INTO sys_role_user(id, sys_role_id, sys_user_id) VALUES(271, 6, 271);
A175: 6 | B175: =orgs!B190 -> 273 | C175: =orgs!K190 -> Y0173 | D175: =orgs!G190 -> 两路 | E175: =orgs!L190 -> 重庆市渝北区两江第一幼儿园桃源园 | F175: =orgs!M190 -> 两江第一幼儿园桃源园 | G175: Y017301 | H175: 管理员 | I175: INSERT INTO sys_user(id, sys_org_id, `name`, account, password, is_activated, create_sys_user_id, create_time, status, is_deleted) VALUES(272, 273, '管理员', 'Y017301', '5t6QUpK/gc29b2R83PGu/dMBr8qUIkRWpG9dhS85SnI=', 0, 1, NOW(), 1, 0); | J175: INSERT INTO sys_role_user(id, sys_role_id, sys_user_id) VALUES(272, 6, 272);
A176: 6 | B176: =orgs!B191 -> 274 | C176: =orgs!K191 -> Y0174 | D176: =orgs!G191 -> 两路 | E176: =orgs!L191 -> 重庆市渝北区空港实验小学校附属幼儿园 | F176: =orgs!M191 -> 空港实验小学校附属幼儿园 | G176: Y017401 | H176: 管理员 | I176: INSERT INTO sys_user(id, sys_org_id, `name`, account, password, is_activated, create_sys_user_id, create_time, status, is_deleted) VALUES(273, 274, '管理员', 'Y017401', '5t6QUpK/gc29b2R83PGu/dMBr8qUIkRWpG9dhS85SnI=', 0, 1, NOW(), 1, 0); | J176: INSERT INTO sys_role_user(id, sys_role_id, sys_user_id) VALUES(273, 6, 273);
A177: 6 | B177: =orgs!B192 -> 275 | C177: =orgs!K192 -> Y0175 | D177: =orgs!G192 -> 两路 | E177: =orgs!L192 -> 重庆市渝北区长安锦尚小学附属幼儿园 | F177: =orgs!M192 -> 长安锦尚小学附属幼儿园 | G177: Y017501 | H177: 管理员 | I177: INSERT INTO sys_user(id, sys_org_id, `name`, account, password, is_activated, create_sys_user_id, create_time, status, is_deleted) VALUES(274, 275, '管理员', 'Y017501', '5t6QUpK/gc29b2R83PGu/dMBr8qUIkRWpG9dhS85SnI=', 0, 1, NOW(), 1, 0); | J177: INSERT INTO sys_role_user(id, sys_role_id, sys_user_id) VALUES(274, 6, 274);
A178: 6 | B178: =orgs!B193 -> 276 | C178: =orgs!K193 -> Y0176 | D178: =orgs!G193 -> 两路 | E178: =orgs!L193 -> 重庆市渝北区环雅小学校附属幼儿园 | F178: =orgs!M193 -> 环雅小学校附属幼儿园 | G178: Y017601 | H178: 管理员 | I178: INSERT INTO sys_user(id, sys_org_id, `name`, account, password, is_activated, create_sys_user_id, create_time, status, is_deleted) VALUES(275, 276, '管理员', 'Y017601', '5t6QUpK/gc29b2R83PGu/dMBr8qUIkRWpG9dhS85SnI=', 0, 1, NOW(), 1, 0); | J178: INSERT INTO sys_role_user(id, sys_role_id, sys_user_id) VALUES(275, 6, 275);
A179: 6 | B179: =orgs!B194 -> 277 | C179: =orgs!K194 -> Y0177 | D179: =orgs!G194 -> 两路 | E179: =orgs!L194 -> 重庆市渝北区观月小学校附属幼儿园 | F179: =orgs!M194 -> 观月小学校附属幼儿园 | G179: Y017701 | H179: 管理员 | I179: INSERT INTO sys_user(id, sys_org_id, `name`, account, password, is_activated, create_sys_user_id, create_time, status, is_deleted) VALUES(276, 277, '管理员', 'Y017701', '5t6QUpK/gc29b2R83PGu/dMBr8qUIkRWpG9dhS85SnI=', 0, 1, NOW(), 1, 0); | J179: INSERT INTO sys_role_user(id, sys_role_id, sys_user_id) VALUES(276, 6, 276);
A180: 6 | B180: =orgs!B195 -> 278 | C180: =orgs!K195 -> Y0178 | D180: =orgs!G195 -> 两路 | E180: =orgs!L195 -> 重庆市渝北区兴阳瑞丰幼儿园 | F180: =orgs!M195 -> 兴阳瑞丰幼儿园 | G180: Y017801 | H180: 管理员 | I180: INSERT INTO sys_user(id, sys_org_id, `name`, account, password, is_activated, create_sys_user_id, create_time, status, is_deleted) VALUES(277, 278, '管理员', 'Y017801', '5t6QUpK/gc29b2R83PGu/dMBr8qUIkRWpG9dhS85SnI=', 0, 1, NOW(), 1, 0); | J180: INSERT INTO sys_role_user(id, sys_role_id, sys_user_id) VALUES(277, 6, 277);
A181: 6 | B181: =orgs!B196 -> 279 | C181: =orgs!K196 -> Y0179 | D181: =orgs!G196 -> 两路 | E181: =orgs!L196 -> 重庆市渝北区兴阳幼儿园 | F181: =orgs!M196 -> 兴阳幼儿园 | G181: Y017901 | H181: 管理员 | I181: INSERT INTO sys_user(id, sys_org_id, `name`, account, password, is_activated, create_sys_user_id, create_time, status, is_deleted) VALUES(278, 279, '管理员', 'Y017901', '5t6QUpK/gc29b2R83PGu/dMBr8qUIkRWpG9dhS85SnI=', 0, 1, NOW(), 1, 0); | J181: INSERT INTO sys_role_user(id, sys_role_id, sys_user_id) VALUES(278, 6, 278);
A182: 6 | B182: =orgs!B197 -> 280 | C182: =orgs!K197 -> Y0180 | D182: =orgs!G197 -> 两路 | E182: =orgs!L197 -> 重庆市渝北区当当香海驿幼儿园 | F182: =orgs!M197 -> 当当香海驿幼儿园 | G182: Y018001 | H182: 管理员 | I182: INSERT INTO sys_user(id, sys_org_id, `name`, account, password, is_activated, create_sys_user_id, create_time, status, is_deleted) VALUES(279, 280, '管理员', 'Y018001', '5t6QUpK/gc29b2R83PGu/dMBr8qUIkRWpG9dhS85SnI=', 0, 1, NOW(), 1, 0); | J182: INSERT INTO sys_role_user(id, sys_role_id, sys_user_id) VALUES(279, 6, 279);
A183: 6 | B183: =orgs!B198 -> 281 | C183: =orgs!K198 -> Y0181 | D183: =orgs!G198 -> 两路 | E183: =orgs!L198 -> 重庆市渝北区长安锦尚城幼儿园 | F183: =orgs!M198 -> 长安锦尚城幼儿园 | G183: Y018101 | H183: 管理员 | I183: INSERT INTO sys_user(id, sys_org_id, `name`, account, password, is_activated, create_sys_user_id, create_time, status, is_deleted) VALUES(280, 281, '管理员', 'Y018101', '5t6QUpK/gc29b2R83PGu/dMBr8qUIkRWpG9dhS85SnI=', 0, 1, NOW(), 1, 0); | J183: INSERT INTO sys_role_user(id, sys_role_id, sys_user_id) VALUES(280, 6, 280);
A184: 6 | B184: =orgs!B199 -> 282 | C184: =orgs!K199 -> Y0182 | D184: =orgs!G199 -> 两路 | E184: =orgs!L199 -> 重庆市渝北区空港童心幼儿园 | F184: =orgs!M199 -> 空港童心幼儿园 | G184: Y018201 | H184: 管理员 | I184: INSERT INTO sys_user(id, sys_org_id, `name`, account, password, is_activated, create_sys_user_id, create_time, status, is_deleted) VALUES(281, 282, '管理员', 'Y018201', '5t6QUpK/gc29b2R83PGu/dMBr8qUIkRWpG9dhS85SnI=', 0, 1, NOW(), 1, 0); | J184: INSERT INTO sys_role_user(id, sys_role_id, sys_user_id) VALUES(281, 6, 281);
A185: 6 | B185: =orgs!B200 -> 283 | C185: =orgs!K200 -> Y0183 | D185: =orgs!G200 -> 两路 | E185: =orgs!L200 -> 重庆市渝北区浩博幼儿园 | F185: =orgs!M200 -> 浩博幼儿园 | G185: Y018301 | H185: 管理员 | I185: INSERT INTO sys_user(id, sys_org_id, `name`, account, password, is_activated, create_sys_user_id, create_time, status, is_deleted) VALUES(282, 283, '管理员', 'Y018301', '5t6QUpK/gc29b2R83PGu/dMBr8qUIkRWpG9dhS85SnI=', 0, 1, NOW(), 1, 0); | J185: INSERT INTO sys_role_user(id, sys_role_id, sys_user_id) VALUES(282, 6, 282);
A186: 6 | B186: =orgs!B201 -> 284 | C186: =orgs!K201 -> Y0184 | D186: =orgs!G201 -> 两路 | E186: =orgs!L201 -> 重庆市渝北区双凤桥金易星辰幼儿园 | F186: =orgs!M201 -> 双凤桥金易星辰幼儿园 | G186: Y018401 | H186: 管理员 | I186: INSERT INTO sys_user(id, sys_org_id, `name`, account, password, is_activated, create_sys_user_id, create_time, status, is_deleted) VALUES(283, 284, '管理员', 'Y018401', '5t6QUpK/gc29b2R83PGu/dMBr8qUIkRWpG9dhS85SnI=', 0, 1, NOW(), 1, 0); | J186: INSERT INTO sys_role_user(id, sys_role_id, sys_user_id) VALUES(283, 6, 283);
A187: 6 | B187: =orgs!B202 -> 285 | C187: =orgs!K202 -> Y0185 | D187: =orgs!G202 -> 两路 | E187: =orgs!L202 -> 重庆市渝北区双凤桥青麓幼儿园 | F187: =orgs!M202 -> 双凤桥青麓幼儿园 | G187: Y018501 | H187: 管理员 | I187: INSERT INTO sys_user(id, sys_org_id, `name`, account, password, is_activated, create_sys_user_id, create_time, status, is_deleted) VALUES(284, 285, '管理员', 'Y018501', '5t6QUpK/gc29b2R83PGu/dMBr8qUIkRWpG9dhS85SnI=', 0, 1, NOW(), 1, 0); | J187: INSERT INTO sys_role_user(id, sys_role_id, sys_user_id) VALUES(284, 6, 284);
A188: 6 | B188: =orgs!B203 -> 286 | C188: =orgs!K203 -> Y0186 | D188: =orgs!G203 -> 两路 | E188: =orgs!L203 -> 重庆市渝北区蕾蕾唐庄幼儿园 | F188: =orgs!M203 -> 蕾蕾唐庄幼儿园 | G188: Y018601 | H188: 管理员 | I188: INSERT INTO sys_user(id, sys_org_id, `name`, account, password, is_activated, create_sys_user_id, create_time, status, is_deleted) VALUES(285, 286, '管理员', 'Y018601', '5t6QUpK/gc29b2R83PGu/dMBr8qUIkRWpG9dhS85SnI=', 0, 1, NOW(), 1, 0); | J188: INSERT INTO sys_role_user(id, sys_role_id, sys_user_id) VALUES(285, 6, 285);
A189: 6 | B189: =orgs!B204 -> 287 | C189: =orgs!K204 -> Y0187 | D189: =orgs!G204 -> 两路 | E189: =orgs!L204 -> 重庆市渝北区海智幼儿园 | F189: =orgs!M204 -> 海智幼儿园 | G189: Y018701 | H189: 管理员 | I189: INSERT INTO sys_user(id, sys_org_id, `name`, account, password, is_activated, create_sys_user_id, create_time, status, is_deleted) VALUES(286, 287, '管理员', 'Y018701', '5t6QUpK/gc29b2R83PGu/dMBr8qUIkRWpG9dhS85SnI=', 0, 1, NOW(), 1, 0); | J189: INSERT INTO sys_role_user(id, sys_role_id, sys_user_id) VALUES(286, 6, 286);
A190: 6 | B190: =orgs!B205 -> 288 | C190: =orgs!K205 -> Y0188 | D190: =orgs!G205 -> 两路 | E190: =orgs!L205 -> 重庆市渝北区艺思蒙想幼儿园 | F190: =orgs!M205 -> 艺思蒙想幼儿园 | G190: Y018801 | H190: 管理员 | I190: INSERT INTO sys_user(id, sys_org_id, `name`, account, password, is_activated, create_sys_user_id, create_time, status, is_deleted) VALUES(287, 288, '管理员', 'Y018801', '5t6QUpK/gc29b2R83PGu/dMBr8qUIkRWpG9dhS85SnI=', 0, 1, NOW(), 1, 0); | J190: INSERT INTO sys_role_user(id, sys_role_id, sys_user_id) VALUES(287, 6, 287);
A191: 6 | B191: =orgs!B206 -> 289 | C191: =orgs!K206 -> Y0189 | D191: =orgs!G206 -> 两路 | E191: =orgs!L206 -> 重庆市渝北区双凤桥红苹果幼儿园 | F191: =orgs!M206 -> 双凤桥红苹果幼儿园 | G191: =C191&"01" -> Y018901 | H191: 管理员 | I191: INSERT INTO sys_user(id, sys_org_id, `name`, account, password, is_activated, create_sys_user_id, create_time, status, is_deleted) VALUES(288, 289, '管理员', 'Y018901', '5t6QUpK/gc29b2R83PGu/dMBr8qUIkRWpG9dhS85SnI=', 0, 1, NOW(), 1, 0); | J191: INSERT INTO sys_role_user(id, sys_role_id, sys_user_id) VALUES(288, 6, 288);
A192: 6 | B192: =orgs!B207 -> 290 | C192: =orgs!K207 -> Y0190 | D192: =orgs!G207 -> 两路 | E192: =orgs!L207 -> 重庆市渝北区双凤桥建兴幼儿园 | F192: =orgs!M207 -> 双凤桥建兴幼儿园 | G192: Y019001 | H192: 管理员 | I192: INSERT INTO sys_user(id, sys_org_id, `name`, account, password, is_activated, create_sys_user_id, create_time, status, is_deleted) VALUES(289, 290, '管理员', 'Y019001', '5t6QUpK/gc29b2R83PGu/dMBr8qUIkRWpG9dhS85SnI=', 0, 1, NOW(), 1, 0); | J192: INSERT INTO sys_role_user(id, sys_role_id, sys_user_id) VALUES(289, 6, 289);
A193: 6 | B193: =orgs!B208 -> 291 | C193: =orgs!K208 -> Y0191 | D193: =orgs!G208 -> 两路 | E193: =orgs!L208 -> 重庆市渝北区双凤桥蕾蕾幼儿园 | F193: =orgs!M208 -> 双凤桥蕾蕾幼儿园 | G193: Y019101 | H193: 管理员 | I193: INSERT INTO sys_user(id, sys_org_id, `name`, account, password, is_activated, create_sys_user_id, create_time, status, is_deleted) VALUES(290, 291, '管理员', 'Y019101', '5t6QUpK/gc29b2R83PGu/dMBr8qUIkRWpG9dhS85SnI=', 0, 1, NOW(), 1, 0); | J193: INSERT INTO sys_role_user(id, sys_role_id, sys_user_id) VALUES(290, 6, 290);
A194: 6 | B194: =orgs!B209 -> 292 | C194: =orgs!K209 -> Y0192 | D194: =orgs!G209 -> 两路 | E194: =orgs!L209 -> 重庆市渝北区双凤桥晨曦幼儿园 | F194: =orgs!M209 -> 双凤桥晨曦幼儿园 | G194: Y019201 | H194: 管理员 | I194: INSERT INTO sys_user(id, sys_org_id, `name`, account, password, is_activated, create_sys_user_id, create_time, status, is_deleted) VALUES(291, 292, '管理员', 'Y019201', '5t6QUpK/gc29b2R83PGu/dMBr8qUIkRWpG9dhS85SnI=', 0, 1, NOW(), 1, 0); | J194: INSERT INTO sys_role_user(id, sys_role_id, sys_user_id) VALUES(291, 6, 291);
A195: 6 | B195: =orgs!B210 -> 293 | C195: =orgs!K210 -> Y0193 | D195: =orgs!G210 -> 两路 | E195: =orgs!L210 -> 重庆市渝北区金色童年幼儿园 | F195: =orgs!M210 -> 金色童年幼儿园 | G195: Y019301 | H195: 管理员 | I195: INSERT INTO sys_user(id, sys_org_id, `name`, account, password, is_activated, create_sys_user_id, create_time, status, is_deleted) VALUES(292, 293, '管理员', 'Y019301', '5t6QUpK/gc29b2R83PGu/dMBr8qUIkRWpG9dhS85SnI=', 0, 1, NOW(), 1, 0); | J195: INSERT INTO sys_role_user(id, sys_role_id, sys_user_id) VALUES(292, 6, 292);
A196: 6 | B196: =orgs!B211 -> 294 | C196: =orgs!K211 -> Y0194 | D196: =orgs!G211 -> 两路 | E196: =orgs!L211 -> 重庆市渝北区双凤桥童心幼儿园 | F196: =orgs!M211 -> 双凤桥童心幼儿园 | G196: Y019401 | H196: 管理员 | I196: ="INSERT INTO sys_user(id, sys_org_id, `name`, account, password, is_activated, create_sys_user_id, create_time, status, is_deleted) VALUES("&(97+ROW())&", "&B196&", '"&H196&"', '"&G196&"', '5t6QUpK/gc29b2R83PGu/dMBr8qUIkRWpG9dhS85SnI=', 0, 1, NOW(), 1, 0);" -> INSERT INTO sys_user(id, sys_org_id, `name`, account, password, is_activated, create_sys_user_id, create_time, status, is_deleted) VALUES(293, 294, '管理员', 'Y019401', '5t6QUpK/gc29b2R83PGu/dMBr8qUIkRWpG9dhS85SnI=', 0, 1, NOW(), 1, 0); | J196: ="INSERT INTO sys_role_user(id, sys_role_id, sys_user_id) VALUES("&(97+ROW())&", "&A196&", "&(97+ROW())&");" -> INSERT INTO sys_role_user(id, sys_role_id, sys_user_id) VALUES(293, 6, 293);
A197: 6 | B197: =orgs!B212 -> 295 | C197: =orgs!K212 -> Y0195 | D197: =orgs!G212 -> 两路 | E197: =orgs!L212 -> 重庆市渝北区北城空港大地幼儿园 | F197: =orgs!M212 -> 北城空港大地幼儿园 | G197: Y019501 | H197: 管理员 | I197: INSERT INTO sys_user(id, sys_org_id, `name`, account, password, is_activated, create_sys_user_id, create_time, status, is_deleted) VALUES(294, 295, '管理员', 'Y019501', '5t6QUpK/gc29b2R83PGu/dMBr8qUIkRWpG9dhS85SnI=', 0, 1, NOW(), 1, 0); | J197: INSERT INTO sys_role_user(id, sys_role_id, sys_user_id) VALUES(294, 6, 294);
A198: 6 | B198: =orgs!B213 -> 296 | C198: =orgs!K213 -> Y0196 | D198: =orgs!G213 -> 两路 | E198: =orgs!L213 -> 重庆市渝北区桃源居悠乐蒙幼儿园 | F198: =orgs!M213 -> 桃源居悠乐蒙幼儿园 | G198: Y019601 | H198: 管理员 | I198: INSERT INTO sys_user(id, sys_org_id, `name`, account, password, is_activated, create_sys_user_id, create_time, status, is_deleted) VALUES(295, 296, '管理员', 'Y019601', '5t6QUpK/gc29b2R83PGu/dMBr8qUIkRWpG9dhS85SnI=', 0, 1, NOW(), 1, 0); | J198: INSERT INTO sys_role_user(id, sys_role_id, sys_user_id) VALUES(295, 6, 295);
A199: 6 | B199: =orgs!B214 -> 297 | C199: =orgs!K214 -> Y0197 | D199: =orgs!G214 -> 两路 | E199: =orgs!L214 -> 重庆市渝北区双凤桥街道金辰幼儿园 | F199: =orgs!M214 -> 双凤桥街道金辰幼儿园 | G199: Y019701 | H199: 管理员 | I199: INSERT INTO sys_user(id, sys_org_id, `name`, account, password, is_activated, create_sys_user_id, create_time, status, is_deleted) VALUES(296, 297, '管理员', 'Y019701', '5t6QUpK/gc29b2R83PGu/dMBr8qUIkRWpG9dhS85SnI=', 0, 1, NOW(), 1, 0); | J199: INSERT INTO sys_role_user(id, sys_role_id, sys_user_id) VALUES(296, 6, 296);
A200: 6 | B200: =orgs!B215 -> 298 | C200: =orgs!K215 -> Y0198 | D200: =orgs!G215 -> 两路 | E200: =orgs!L215 -> 重庆市渝北区君君幼儿园 | F200: =orgs!M215 -> 君君幼儿园 | G200: Y019801 | H200: 管理员 | I200: INSERT INTO sys_user(id, sys_org_id, `name`, account, password, is_activated, create_sys_user_id, create_time, status, is_deleted) VALUES(297, 298, '管理员', 'Y019801', '5t6QUpK/gc29b2R83PGu/dMBr8qUIkRWpG9dhS85SnI=', 0, 1, NOW(), 1, 0); | J200: INSERT INTO sys_role_user(id, sys_role_id, sys_user_id) VALUES(297, 6, 297);
... 271 more rows

Sheet 幼儿园
B1: 镇街 | C1: 学区划分 | D1: 机构名称 | L1: 机构地址 | N1: 办园 性质 | O1: 幼儿园 等级 | P1: 是否 普惠园 | Q1: 现有规模（班） | R1: 在园幼儿 (人) | S1: 4-5岁 | T1: 5-6岁
B2: 龙溪街道 | C2: 01龙溪学区 | D2: 重庆市渝北庆龄幼儿园 | E2: 庆龄幼儿园 | F2: 庆龄幼儿园 | G2: 庆龄幼儿园 | H2: 1 | I2: 1 | J2: 1 | K2: 1 | L2: 渝北区龙溪街道柳荫街42号 | M2: ="学区："&C2&"，等级："&O2&"，是否普惠园："&P2 -> 学区：01龙溪学区，等级：示范，是否普惠园：是 | N2: 公办 | O2: 示范 | P2: 是 | Q2: 10 | R2: 308 | S2: 124 | T2: 92
B3: 龙溪街道 | C3: 01龙溪学区 | D3: 重庆市渝北区龙溪幼儿园 | E3: 龙溪幼儿园 | F3: 龙溪幼儿园 | G3: 龙溪幼儿园 | H3: 1 | I3: 1 | J3: 1 | K3: 2 | L3: 渝北区龙溪街道花卉东路20号公办 | M3: 学区：01龙溪学区，等级：一级，是否普惠园：是 | N3: 公办 | O3: 一级 | P3: 是 | Q3: 6 | R3: 171 | S3: 52 | T3: 44
B4: 龙溪街道 | C4: 01龙溪学区 | D4: 重庆市渝北区龙溪小学附属幼儿园 | E4: 龙溪小学附属幼儿园 | F4: 龙溪小学附属幼儿园 | G4: 龙溪小学附属幼儿园 | H4: 1 | I4: 1 | J4: 2 | K4: 3 | L4: 渝北区龙溪街道金龙路121号 | M4: 学区：01龙溪学区，等级：二级，是否普惠园：是 | N4: 公办性质 | O4: 二级 | P4: 是 | Q4: 3 | R4: 84 | S4: 0 | T4: 84
B5: 龙溪街道 | C5: 01龙溪学区 | D5: 重庆市渝北长安锦绣实验小学校附属幼儿园 | E5: 安锦绣实验小学校附属幼儿园 | F5: 安锦绣实验小学校附属幼儿园 | G5: 安锦绣实验小学校附属幼儿园 | H5: 1 | I5: 1 | J5: 2 | K5: 4 | L5: 渝北区龙溪镇龙华大道91号 | M5: 学区：01龙溪学区，等级：二级，是否普惠园：是 | N5: 公办性质 | O5: 二级 | P5: 是 | Q5: 3 | R5: 89 | S5: 30 | T5: 29
B6: 龙溪街道 | C6: 01龙溪学区 | D6: 重庆市渝北区龙湖南苑幼儿园 | E6: 龙湖南苑幼儿园 | F6: 龙湖南苑幼儿园 | G6: 龙湖南苑幼儿园 | H6: 1 | I6: 1 | J6: 3 | K6: 5 | L6: 渝北区龙溪街道新南路6号 | M6: 学区：01龙溪学区，等级：一级，是否普惠园：是 | N6: 民办 | O6: 一级 | P6: 是 | Q6: 6 | R6: 127 | S6: 42 | T6: 42
B7: 龙溪街道 | C7: 01龙溪学区 | D7: 重庆市渝北区富悦阳光幼儿园 | E7: 富悦阳光幼儿园 | F7: 富悦阳光幼儿园 | G7: 富悦阳光幼儿园 | H7: 1 | I7: 1 | J7: 3 | K7: 7 | L7: 渝北区龙溪街道红石路3号 | M7: 学区：01龙溪学区，等级：一级，是否普惠园：是 | N7: 民办 | O7: 一级 | P7: 是 | Q7: 3 | R7: 49 | S7: 25 | T7: 11
B8: 龙溪街道 | C8: 01龙溪学区 | D8: 重庆市渝北区百合林幼儿园 | E8: 百合林幼儿园 | F8: 百合林幼儿园 | G8: 百合林幼儿园 | H8: 1 | I8: 1 | J8: 3 | K8: 8 | L8: 渝北区龙溪街道龙华大道1891号附1号 | M8: 学区：01龙溪学区，等级：一级，是否普惠园：是 | N8: 民办 | O8: 一级 | P8: 是 | Q8: 10 | R8: 310 | S8: 125 | T8: 130
B9: 龙溪街道 | C9: 01龙溪学区 | D9: 重庆市渝北区童话林幼儿园 | E9: 童话林幼儿园 | F9: 童话林幼儿园 | G9: 童话林幼儿园 | H9: 1 | I9: 1 | J9: 3 | K9: 9 | L9: 渝北区龙溪街道龙华大道1889号 | M9: 学区：01龙溪学区，等级：三级，是否普惠园：是 | N9: 民办 | O9: 三级 | P9: 是 | Q9: 7 | R9: 206 | S9: 133 | T9: 37
B10: 龙溪街道 | C10: 01龙溪学区 | D10: 重庆市渝北区龙溪新城幼儿园 | E10: 龙溪新城幼儿园 | F10: 龙溪新城幼儿园 | G10: 龙溪新城幼儿园 | H10: 1 | I10: 1 | J10: 3 | K10: 10 | L10: 渝北区龙溪街道花卉园西一路16号5-1-2 | M10: 学区：01龙溪学区，等级：三级，是否普惠园：是 | N10: 民办 | O10: 三级 | P10: 是 | Q10: 5 | R10: 165 | S10: 45 | T10: 49
B11: 龙溪街道 | C11: 01龙溪学区 | D11: 重庆市渝北区龙溪倚山幼儿园 | E11: 龙溪倚山幼儿园 | F11: 龙溪倚山幼儿园 | G11: 龙溪倚山幼儿园 | H11: 1 | I11: 1 | J11: 3 | K11: 11 | L11: 渝北区龙溪花卉园西四路82号 | M11: 学区：01龙溪学区，等级：三级，是否普惠园：是 | N11: 民办 | O11: 三级 | P11: 是 | Q11: 3 | R11: 30 | S11: 10 | T11: 15
B12: 龙溪街道 | C12: 01龙溪学区 | D12: 重庆市渝北区龙溪天星幼儿园 | E12: 龙溪天星幼儿园 | F12: 龙溪天星幼儿园 | G12: 龙溪天星幼儿园 | H12: 1 | I12: 1 | J12: 3 | K12: 12 | L12: 渝北区龙溪花卉园西四路3号 | M12: 学区：01龙溪学区，等级：三级，是否普惠园：是 | N12: 民办 | O12: 三级 | P12: 是 | Q12: 2 | R12: 44 | S12: 16 | T12: 16
B13: 龙溪街道 | C13: 01龙溪学区 | D13: 重庆市渝北区千里马幼儿园 | E13: 千里马幼儿园 | F13: 千里马幼儿园 | G13: 千里马幼儿园 | H13: 1 | I13: 1 | J13: 3 | K13: 13 | L13: 渝北区龙溪街道花卉东路黄金堡想小区1栋5单元 | M13: 学区：01龙溪学区，等级：三级，是否普惠园：是 | N13: 民办 | O13: 三级 | P13: 是 | Q13: 1 | R13: 13 | S13: 5 | T13: 4
B14: 龙溪街道 | C14: 01龙溪学区 | D14: 重庆市渝北区龙溪明星幼儿园 | E14: 龙溪明星幼儿园 | F14: 龙溪明星幼儿园 | G14: 龙溪明星幼儿园 | H14: 1 | I14: 1 | J14: 3 | K14: 14 | L14: 渝北区龙溪武陵路154号 | M14: 学区：01龙溪学区，等级：三级，是否普惠园：是 | N14: 民办 | O14: 三级 | P14: 是 | Q14: 4 | R14: 71 | S14: 16 | T14: 47
B15: 龙溪街道 | C15: 01龙溪学区 | D15: 重庆市渝北区龙溪绿景幼儿园 | E15: 龙溪绿景幼儿园 | F15: 龙溪绿景幼儿园 | G15: 龙溪绿景幼儿园 | H15: 1 | I15: 1 | J15: 3 | K15: 15 | L15: 渝北区龙溪新牌坊一路139号北城绿景花园 | M15: 学区：01龙溪学区，等级：三级，是否普惠园：是 | N15: 民办 | O15: 三级 | P15: 是 | Q15: 3 | R15: 72 | S15: 20 | T15: 24
B16: 龙溪街道 | C16: 01龙溪学区 | D16: 重庆市渝北区龙溪北极星幼儿园 | E16: 龙溪北极星幼儿园 | F16: 龙溪北极星幼儿园 | G16: 龙溪北极星幼儿园 | H16: 1 | I16: 1 | J16: 3 | K16: 16 | L16: 渝北区龙溪街道红石路2号龙溪景苑 | M16: 学区：01龙溪学区，等级：三级，是否普惠园：是 | N16: 民办 | O16: 三级 | P16: 是 | Q16: 3 | R16: 45 | S16: 9 | T16: 19
B17: 龙溪街道 | C17: 01龙溪学区 | D17: 重庆市渝北区恒大上朗幼儿园 | E17: 恒大上朗幼儿园 | F17: 恒大上朗幼儿园 | G17: 恒大上朗幼儿园 | H17: 1 | I17: 1 | J17: 3 | K17: 17 | L17: 渝北区龙溪街道金顶路6号 | M17: 学区：01龙溪学区，等级：一级，是否普惠园：是 | N17: 民办 | O17: 一级 | P17: 是 | Q17: 4 | R17: 97 | S17: 52 | T17: 30
B18: 龙溪街道 | C18: 01龙溪学区 | D18: 重庆市渝北区笛迪香奈公馆幼儿园 | E18: 笛迪香奈公馆幼儿园 | F18: 笛迪香奈公馆幼儿园 | G18: 笛迪香奈公馆幼儿园 | H18: 1 | I18: 1 | J18: 3 | K18: 18 | L18: 渝北区龙溪街道新溉大道99号附2号 | M18: 学区：01龙溪学区，等级：一级，是否普惠园：是 | N18: 民办 | O18: 一级 | P18: 是 | Q18: 10 | R18: 296 | S18: 153 | T18: 70
B19: 龙溪街道 | C19: 01龙溪学区 | D19: 重庆市渝北区珊瑚乐学幼儿园 | E19: 珊瑚乐学幼儿园 | F19: 珊瑚乐学幼儿园 | G19: 珊瑚乐学幼儿园 | H19: 1 | I19: 1 | J19: 3 | K19: 19 | L19: 渝北区龙溪街道红金路37号 | M19: 学区：01龙溪学区，等级：一级，是否普惠园：是 | N19: 民办 | O19: 一级 | P19: 是 | Q19: 4 | R19: 75 | S19: 16 | T19: 48
B20: 龙溪街道 | C20: 01龙溪学区 | D20: 重庆市渝北区阳光尚线幼儿园 | E20: 阳光尚线幼儿园 | F20: 阳光尚线幼儿园 | G20: 阳光尚线幼儿园 | H20: 1 | I20: 1 | J20: 3 | K20: 20 | L20: 渝北区龙溪街道丽园路20号 | M20: 学区：01龙溪学区，等级：一级，是否普惠园：是 | N20: 民办 | O20: 一级 | P20: 是 | Q20: 7 | R20: 150 | S20: 48 | T20: 23
B21: 龙溪街道 | C21: 01龙溪学区 | D21: 重庆市渝北区恒大吉的堡御都会幼儿园 | E21: 恒大吉的堡御都会幼儿园 | F21: 恒大吉的堡御都会幼儿园 | G21: 恒大吉的堡御都会幼儿园 | H21: 1 | I21: 1 | J21: 3 | K21: 21 | L21: 渝北区红锦支路20号 | M21: 学区：01龙溪学区，等级：一级，是否普惠园：是 | N21: 民办 | O21: 一级 | P21: 是 | Q21: 4 | R21: 72 | S21: 23 | T21: 18
B22: 龙溪街道 | C22: 01龙溪学区 | D22: 重庆市渝北区华龙财信幼儿园 | E22: 华龙财信幼儿园 | F22: 华龙财信幼儿园 | G22: 华龙财信幼儿园 | H22: 1 | I22: 1 | J22: 3 | K22: 22 | L22: 渝北区龙溪街道金龙路265号 | M22: 学区：01龙溪学区，等级：一级，是否普惠园：否 | N22: 民办 | O22: 一级 | P22: 否 | Q22: 9 | R22: 230 | S22: 58 | T22: 66
B23: 龙溪街道 | C23: 01龙溪学区 | D23: 重庆市渝北区才儿坊国宾城幼儿园 | E23: 才儿坊国宾城幼儿园 | F23: 才儿坊国宾城幼儿园 | G23: 才儿坊国宾城幼儿园 | H23: 1 | I23: 1 | J23: 3 | K23: 23 | L23: 渝北区龙溪街道新溉大道18号 | M23: 学区：01龙溪学区，等级：一级，是否普惠园：否 | N23: 民办 | O23: 一级 | P23: 否 | Q23: 11 | R23: 285 | S23: 87 | T23: 120
B24: 龙溪街道 | C24: 01龙溪学区 | D24: 重庆市渝北区龙溪阳光宝贝幼儿园 | E24: 龙溪阳光宝贝幼儿园 | F24: 龙溪阳光宝贝幼儿园 | G24: 龙溪阳光宝贝幼儿园 | H24: 1 | I24: 1 | J24: 3 | K24: 24 | L24: 渝北区龙溪加州城市花园阳光宝贝幼儿园 | M24: 学区：01龙溪学区，等级：一级，是否普惠园：是 | N24: 民办 | O24: 一级 | P24: 是 | Q24: 4 | R24: 96 | S24: 20 | T24: 34
B25: 龙溪街道 | C25: 01龙溪学区 | D25: 重庆市渝北区人和长安幼儿园 | E25: 人和长安幼儿园 | F25: 人和长安幼儿园 | G25: 人和长安幼儿园 | H25: 1 | I25: 1 | J25: 3 | K25: 25 | L25: 渝北区龙溪街道松牌路109号 | M25: 学区：01龙溪学区，等级：一级，是否普惠园：否 | N25: 民办 | O25: 一级 | P25: 否 | Q25: 6 | R25: 128 | S25: 34 | T25: 45
B26: 龙溪街道 | C26: 01龙溪学区 | D26: 重庆市渝北区龙溪英华贝贝幼儿园 | E26: 龙溪英华贝贝幼儿园 | F26: 龙溪英华贝贝幼儿园 | G26: 龙溪英华贝贝幼儿园 | H26: 1 | I26: 1 | J26: 3 | K26: 26 | L26: 渝北区佳园路31号 | M26: 学区：01龙溪学区，等级：一级，是否普惠园：否 | N26: 民办 | O26: 一级 | P26: 否 | Q26: 6 | R26: 126 | S26: 34 | T26: 51
B27: 龙溪街道 | C27: 01龙溪学区 | D27: 重庆市渝北区龙溪三色香山幼儿园 | E27: 龙溪三色香山幼儿园 | F27: 龙溪三色香山幼儿园 | G27: 龙溪三色香山幼儿园 | H27: 1 | I27: 1 | J27: 3 | K27: 27 | L27: 渝北区龙溪街新牌坊二路119号 | M27: 学区：01龙溪学区，等级：一级，是否普惠园：是 | N27: 民办 | O27: 一级 | P27: 是 | Q27: 9 | R27: 260 | S27: 88 | T27: 72
B28: 龙溪街道 | C28: 01龙溪学区 | D28: 重庆市渝北区龙溪金龙幼儿园 | E28: 龙溪金龙幼儿园 | F28: 龙溪金龙幼儿园 | G28: 龙溪金龙幼儿园 | H28: 1 | I28: 1 | J28: 3 | K28: 28 | L28: 渝北区龙溪金龙路75号 | M28: 学区：01龙溪学区，等级：二级，是否普惠园：否 | N28: 民办 | O28: 二级 | P28: 否 | Q28: 5 | R28: 110 | S28: 18 | T28: 78
B29: 龙溪街道 | C29: 01龙溪学区 | D29: 重庆市渝北区龙溪林璘幼儿园 | E29: 龙溪林璘幼儿园 | F29: 龙溪林璘幼儿园 | G29: 龙溪林璘幼儿园 | H29: 1 | I29: 1 | J29: 3 | K29: 29 | L29: 渝北区龙溪武陵路93号 | M29: 学区：01龙溪学区，等级：二级，是否普惠园：否 | N29: 民办 | O29: 二级 | P29: 否 | Q29: 3 | R29: 34 | S29: 12 | T29: 13
B30: 龙溪街道 | C30: 01龙溪学区 | D30: 重庆市渝北区爱贝贝幼儿园 | E30: 爱贝贝幼儿园 | F30: 爱贝贝幼儿园 | G30: 爱贝贝幼儿园 | H30: 1 | I30: 1 | J30: 3 | K30: 30 | L30: 渝北区龙溪镇镇武陵路209号 | M30: 学区：01龙溪学区，等级：二级，是否普惠园：否 | N30: 民办 | O30: 二级 | P30: 否 | Q30: 7 | R30: 174 | S30: 60 | T30: 56
B31: 龙溪街道 | C31: 01龙溪学区 | D31: 重庆市渝北区龙溪培正逗点幼儿园 | E31: 龙溪培正逗点幼儿园 | F31: 龙溪培正逗点幼儿园 | G31: 龙溪培正逗点幼儿园 | H31: 1 | I31: 1 | J31: 3 | K31: 31 | L31: 渝北区新南路6号 | M31: 学区：01龙溪学区，等级：三级，是否普惠园：否 | N31: 民办 | O31: 三级 | P31: 否 | Q31: 4 | R31: 36 | S31: 8 | T31: 25
B32: 龙山街道 | C32: 01龙溪学区 | D32: 重庆市渝北区冉家坝幼儿园 | E32: 冉家坝幼儿园 | F32: 冉家坝幼儿园 | G32: 冉家坝幼儿园 | H32: 1 | I32: 1 | J32: 1 | K32: 33 | L32: 渝北区龙山街道松石支路49号 | M32: ="学区："&C32&"，等级："&O32&"，是否普惠园："&P32 -> 学区：01龙溪学区，等级：一级，是否普惠园：是 | N32: 公办 | O32: 一级 | P32: 是 | Q32: 6 | R32: 163 | S32: 66 | T32: 41
B33: 龙山街道 | C33: 01龙溪学区 | D33: 重庆市渝北区冉家坝幼儿园榆溪园 | E33: 冉家坝幼儿园榆溪园 | F33: 冉家坝幼儿园榆溪园 | G33: 冉家坝幼儿园榆溪园 | H33: 1 | I33: 1 | J33: 1 | K33: 34 | L33: 渝北区龙山街道福康路40号 | M33: 学区：01龙溪学区，等级：预一级，是否普惠园：是 | N33: 公办 | O33: 预一级 | P33: 是 | Q33: 7 | R33: 229 | S33: 75 | T33: 35
B34: 龙山街道 | C34: 01龙溪学区 | D34: 重庆市渝北区渝开学校附属幼儿园 | E34: 渝开学校附属幼儿园 | F34: 渝开学校附属幼儿园 | G34: 渝开学校附属幼儿园 | H34: 1 | I34: 1 | J34: 2 | K34: 35 | L34: 渝北区龙山街道龙脊路150号 | M34: 学区：01龙溪学区，等级：一级，是否普惠园：是 | N34: 公办性质 | O34: 一级 | P34: 是 | Q34: 6 | R34: 170 | S34: 54 | T34: 57
B35: 龙山街道 | C35: 01龙溪学区 | D35: 重庆市渝北区龙山小学校附属幼儿园 | E35: 龙山小学校附属幼儿园 | F35: 龙山小学校附属幼儿园 | G35: 龙山小学校附属幼儿园 | H35: 1 | I35: 1 | J35: 2 | K35: 36 | L35: 渝北区景辉路6号 | M35: 学区：01龙溪学区，等级：二级，是否普惠园：是 | N35: 公办性质 | O35: 二级 | P35: 是 | Q35: 3 | R35: 85 | S35: 33 | T35: 27
B36: 龙山街道 | C36: 01龙溪学区 | D36: 重庆市渝北区花园小学附属幼儿园 | E36: 花园小学附属幼儿园 | F36: 花园小学附属幼儿园 | G36: 花园小学附属幼儿园 | H36: 1 | I36: 1 | J36: 2 | K36: 37 | L36: 渝北区龙脊路49号 | M36: 学区：01龙溪学区，等级：二级，是否普惠园：是 | N36: 公办性质 | O36: 二级 | P36: 是 | Q36: 1 | R36: 23 | S36: 0 | T36: 23
B37: 龙山街道 | C37: 01龙溪学区 | D37: 重庆市渝北区东和春天实验学校附属幼儿园 | E37: 东和春天实验学校附属幼儿园 | F37: 东和春天实验学校附属幼儿园 | G37: 东和春天实验学校附属幼儿园 | H37: 1 | I37: 1 | J37: 2 | K37: 38 | L37: 渝北区龙山街道松石支北路269号附40号 | M37: 学区：01龙溪学区，等级：二级，是否普惠园：是 | N37: 公办性质 | O37: 二级 | P37: 是 | Q37: 2 | R37: 48 | S37: 4 | T37: 42
B38: 龙山街道 | C38: 01龙溪学区 | D38: 重庆市渝北区嘟嘟乐幼儿园 | E38: 嘟嘟乐幼儿园 | F38: 嘟嘟乐幼儿园 | G38: 嘟嘟乐幼儿园 | H38: 1 | I38: 1 | J38: 3 | K38: 39 | L38: 渝北区龙山街道龙山路355号 | M38: 学区：01龙溪学区，等级：一级，是否普惠园：是 | N38: 民办 | O38: 一级 | P38: 是 | Q38: 6 | R38: 201 | S38: 59 | T38: 114
B39: 龙山街道 | C39: 01龙溪学区 | D39: 重庆市渝北区城市理想幼儿园 | E39: 城市理想幼儿园 | F39: 城市理想幼儿园 | G39: 城市理想幼儿园 | H39: 1 | I39: 1 | J39: 3 | K39: 40 | L39: 渝北区龙山街道余松一支路15号 | M39: 学区：01龙溪学区，等级：一级，是否普惠园：是 | N39: 民办 | O39: 一级 | P39: 是 | Q39: 5 | R39: 121 | S39: 54 | T39: 12
B40: 龙山街道 | C40: 01龙溪学区 | D40: 重庆市渝北区开心贝贝幼儿园 | E40: 开心贝贝幼儿园 | F40: 开心贝贝幼儿园 | G40: 开心贝贝幼儿园 | H40: 1 | I40: 1 | J40: 3 | K40: 41 | L40: 渝北区冉家坝龙山大道135号 | M40: 学区：01龙溪学区，等级：一级，是否普惠园：是 | N40: 民办 | O40: 一级 | P40: 是 | Q40: 5 | R40: 132 | S40: 49 | T40: 27
B41: 龙山街道 | C41: 01龙溪学区 | D41: 重庆市渝北区龙湖紫都城幼儿园 | E41: 龙湖紫都城幼儿园 | F41: 龙湖紫都城幼儿园 | G41: 龙湖紫都城幼儿园 | H41: 1 | I41: 1 | J41: 3 | K41: 42 | L41: 渝北区龙山街道余松一支路6号 | M41: 学区：01龙溪学区，等级：一级，是否普惠园：是 | N41: 民办 | O41: 一级 | P41: 是 | Q41: 9 | R41: 276 | S41: 81 | T41: 64
B42: 龙山街道 | C42: 01龙溪学区 | D42: 重庆市渝北区世博爱幼儿园 | E42: 世博爱幼儿园 | F42: 世博爱幼儿园 | G42: 世博爱幼儿园 | H42: 1 | I42: 1 | J42: 3 | K42: 43 | L42: 渝北区新南路388号 | M42: 学区：01龙溪学区，等级：一级，是否普惠园：是 | N42: 民办 | O42: 一级 | P42: 是 | Q42: 12 | R42: 285 | S42: 118 | T42: 93
B43: 龙山街道 | C43: 01龙溪学区 | D43: 重庆市渝北区（龙溪）米兰书香幼儿园 | E43: （龙溪）米兰书香幼儿园 | F43: （龙溪）米兰书香幼儿园 | G43: （龙溪）米兰书香幼儿园 | H43: 1 | I43: 1 | J43: 3 | K43: 44 | L43: 渝北区松牌路米兰天空小区3栋 | M43: 学区：01龙溪学区，等级：一级，是否普惠园：是 | N43: 民办 | O43: 一级 | P43: 是 | Q43: 6 | R43: 173 | S43: 44 | T43: 86
B44: 龙山街道 | C44: 01龙溪学区 | D44: 重庆市渝北区金港湾幼儿园 | E44: 金港湾幼儿园 | F44: 金港湾幼儿园 | G44: 金港湾幼儿园 | H44: 1 | I44: 1 | J44: 3 | K44: 45 | L44: 渝北区松牌路81号建峰小区 | M44: 学区：01龙溪学区，等级：一级，是否普惠园：是 | N44: 民办 | O44: 一级 | P44: 是 | Q44: 6 | R44: 157 | S44: 62 | T44: 63
B45: 龙山街道 | C45: 01龙溪学区 | D45: 重庆市渝北区龙溪金岛幼儿园 | E45: 龙溪金岛幼儿园 | F45: 龙溪金岛幼儿园 | G45: 龙溪金岛幼儿园 | H45: 1 | I45: 1 | J45: 3 | K45: 46 | L45: 渝北区龙溪松石北路58号 | M45: 学区：01龙溪学区，等级：一级，是否普惠园：是 | N45: 民办 | O45: 一级 | P45: 是 | Q45: 4 | R45: 101 | S45: 31 | T45: 32
B46: 龙山街道 | C46: 01龙溪学区 | D46: 重庆市渝北区慧聪坊幼儿园 | E46: 慧聪坊幼儿园 | F46: 慧聪坊幼儿园 | G46: 慧聪坊幼儿园 | H46: 1 | I46: 1 | J46: 3 | K46: 47 | L46: 渝北区银桦路39号附29号 | M46: 学区：01龙溪学区，等级：一级，是否普惠园：是 | N46: 民办 | O46: 一级 | P46: 是 | Q46: 5 | R46: 118 | S46: 40 | T46: 37
B47: 龙山街道 | C47: 01龙溪学区 | D47: 重庆市渝北区早慧幼儿园 | E47: 早慧幼儿园 | F47: 早慧幼儿园 | G47: 早慧幼儿园 | H47: 1 | I47: 1 | J47: 3 | K47: 48 | L47: 渝北区花园新村松石支路15号 | M47: 学区：01龙溪学区，等级：一级，是否普惠园：是 | N47: 民办 | O47: 一级 | P47: 是 | Q47: 6 | R47: 180 | S47: 60 | T47: 70
B48: 龙山街道 | C48: 01龙溪学区 | D48: 重庆市渝北区渝安龙都幼儿园 | E48: 渝安龙都幼儿园 | F48: 渝安龙都幼儿园 | G48: 渝安龙都幼儿园 | H48: 1 | I48: 1 | J48: 3 | K48: 49 | L48: 渝北区龙山路303号 | M48: 学区：01龙溪学区，等级：一级，是否普惠园：是 | N48: 民办 | O48: 一级 | P48: 是 | Q48: 7 | R48: 173 | S48: 31 | T48: 116
B49: 龙山街道 | C49: 01龙溪学区 | D49: 重庆市渝北区余惠敏新城丽都幼儿园 | E49: 余惠敏新城丽都幼儿园 | F49: 余惠敏新城丽都幼儿园 | G49: 余惠敏新城丽都幼儿园 | H49: 1 | I49: 1 | J49: 3 | K49: 50 | L49: 渝北区龙溪龙山路72号 | M49: 学区：01龙溪学区，等级：二级，是否普惠园：是 | N49: 民办 | O49: 二级 | P49: 是 | Q49: 3 | R49: 68 | S49: 28 | T49: 21
B50: 龙山街道 | C50: 01龙溪学区 | D50: 重庆市渝北区东和春天幼儿园 | E50: 东和春天幼儿园 | F50: 东和春天幼儿园 | G50: 东和春天幼儿园 | H50: 1 | I50: 1 | J50: 3 | K50: 52 | L50: 渝北区松石北路232号东和春天东区 | M50: 学区：01龙溪学区，等级：二级，是否普惠园：是 | N50: 民办 | O50: 二级 | P50: 是 | Q50: 4 | R50: 98 | S50: 35 | T50: 32
B51: 龙山街道 | C51: 01龙溪学区 | D51: 重庆市渝北区龙溪温馨幼儿园 | E51: 龙溪温馨幼儿园 | F51: 龙溪温馨幼儿园 | G51: 龙溪温馨幼儿园 | H51: 1 | I51: 1 | J51: 3 | K51: 54 | L51: 渝北区松石支路176号 | M51: 学区：01龙溪学区，等级：三级，是否普惠园：是 | N51: 民办 | O51: 三级 | P51: 是 | Q51: 2 | R51: 52 | S51: 11 | T51: 22
B52: 龙山街道 | C52: 01龙溪学区 | D52: 重庆市渝北区龙溪点点幼儿园 | E52: 龙溪点点幼儿园 | F52: 龙溪点点幼儿园 | G52: 龙溪点点幼儿园 | H52: 1 | I52: 1 | J52: 3 | K52: 55 | L52: 渝北区龙溪松石北路大道193号 | M52: 学区：01龙溪学区，等级：三级，是否普惠园：是 | N52: 民办 | O52: 三级 | P52: 是 | Q52: 4 | R52: 108 | S52: 17 | T52: 33
B53: 龙山街道 | C53: 01龙溪学区 | D53: 重庆市渝北区全稚园聚信幼儿园 | E53: 全稚园聚信幼儿园 | F53: 全稚园聚信幼儿园 | G53: 全稚园聚信幼儿园 | H53: 1 | I53: 1 | J53: 3 | K53: 56 | L53: 渝北区龙山街道红石路150号聚信广场 | M53: 学区：01龙溪学区，等级：一级，是否普惠园：否 | N53: 民办 | O53: 一级 | P53: 否 | Q53: 6 | R53: 165 | S53: 55 | T53: 70
B54: 龙山街道 | C54: 01龙溪学区 | D54: 重庆市渝北区智多星幼儿园 | E54: 智多星幼儿园 | F54: 智多星幼儿园 | G54: 智多星幼儿园 | H54: 1 | I54: 1 | J54: 3 | K54: 57 | L54: 渝北区冉家坝天竺路91号附10号 | M54: 学区：01龙溪学区，等级：一级，是否普惠园：是 | N54: 民办 | O54: 一级 | P54: 是 | Q54: 4 | R54: 65 | S54: 22 | T54: 28
B55: 龙山街道 | C55: 01龙溪学区 | D55: 重庆市渝北区盛世北辰三色幼儿园 | E55: 盛世北辰三色幼儿园 | F55: 盛世北辰三色幼儿园 | G55: 盛世北辰三色幼儿园 | H55: 1 | I55: 1 | J55: 3 | K55: 58 | L55: 渝北区冉家坝天竺路59号盛世北辰B区 | M55: 学区：01龙溪学区，等级：一级，是否普惠园：否 | N55: 民办 | O55: 一级 | P55: 否 | Q55: 6 | R55: 130 | S55: 52 | T55: 52
B56: 龙山街道 | C56: 01龙溪学区 | D56: 重庆市渝北区龙溪龙山幼儿园 | E56: 龙溪龙山幼儿园 | F56: 龙溪龙山幼儿园 | G56: 龙溪龙山幼儿园 | H56: 1 | I56: 1 | J56: 3 | K56: 59 | L56: 渝北区龙溪松石北路112号 | M56: 学区：01龙溪学区，等级：一级，是否普惠园：是 | N56: 民办 | O56: 一级 | P56: 是 | Q56: 10 | R56: 326 | S56: 106 | T56: 160
B57: 龙山街道 | C57: 01龙溪学区 | D57: 重庆市渝北区奇心乐天一幼儿园 | E57: 奇心乐天一幼儿园 | F57: 奇心乐天一幼儿园 | G57: 奇心乐天一幼儿园 | H57: 1 | I57: 1 | J57: 3 | K57: 60 | L57: 渝北区龙山二路二号 | M57: 学区：01龙溪学区，等级：一级，是否普惠园：否 | N57: 民办 | O57: 一级 | P57: 否 | Q57: 5 | R57: 118 | S57: 27 | T57: 49
B58: 龙山街道 | C58: 01龙溪学区 | D58: 重庆市渝北区金凤凰幼儿园 | E58: 金凤凰幼儿园 | F58: 金凤凰幼儿园 | G58: 金凤凰幼儿园 | H58: 1 | I58: 1 | J58: 3 | K58: 61 | L58: 渝北区龙山街道百灵路1号 | M58: 学区：01龙溪学区，等级：一级，是否普惠园：否 | N58: 民办 | O58: 一级 | P58: 否 | Q58: 4 | R58: 81 | S58: 24 | T58: 44
B59: 龙山街道 | C59: 01龙溪学区 | D59: 重庆市渝北区为明幼儿园 | E59: 为明幼儿园 | F59: 为明幼儿园 | G59: 为明幼儿园 | H59: 1 | I59: 1 | J59: 3 | K59: 62 | L59: 渝北区龙华大道50号 | M59: 学区：01龙溪学区，等级：一级，是否普惠园：否 | N59: 民办 | O59: 一级 | P59: 否 | Q59: 7 | R59: 167 | S59: 66 | T59: 37
B60: 龙山街道 | C60: 01龙溪学区 | D60: 重庆市渝北区龙汇苑爱弥儿幼儿园有限公司 | E60: 龙汇苑爱弥儿幼儿园有限公司 | F60: 龙汇苑爱弥儿幼儿园有限公司 | G60: 龙汇苑爱弥儿幼儿园有限公司 | H60: 1 | I60: 1 | J60: 3 | K60: 63 | L60: 渝北区新南路263号 | M60: 学区：01龙溪学区，等级：一级，是否普惠园：否 | N60: 民办 | O60: 一级 | P60: 否 | Q60: 5 | R60: 80 | S60: 29 | T60: 17
B61: 龙山街道 | C61: 01龙溪学区 | D61: 重庆市渝北区金豆云中幼儿园有限公司 | E61: 金豆云中幼儿园有限公司 | F61: 金豆云中幼儿园有限公司 | G61: 金豆云中幼儿园有限公司 | H61: 1 | I61: 1 | J61: 3 | K61: 64 | L61: 渝北区龙山街道松石北路180号 | M61: 学区：01龙溪学区，等级：二级，是否普惠园：否 | N61: 民办 | O61: 二级 | P61: 否 | Q61: 11 | R61: 196 | S61: 58 | T61: 84
B62: 龙山街道 | C62: 01龙溪学区 | D62: 重庆市渝北区龙溪新绿幼儿园 | E62: 龙溪新绿幼儿园 | F62: 龙溪新绿幼儿园 | G62: 龙溪新绿幼儿园 | H62: 1 | I62: 1 | J62: 3 | K62: 65 | L62: 渝北区龙溪花园新村新城绿园小区内 | M62: 学区：01龙溪学区，等级：二级，是否普惠园：是 | N62: 民办 | O62: 二级 | P62: 是 | Q62: 4 | R62: 78 | S62: 20 | T62: 46
B63: 龙山街道 | C63: 01龙溪学区 | D63: 重庆市渝北区五州幼儿园 | E63: 五州幼儿园 | F63: 五州幼儿园 | G63: 五州幼儿园 | H63: 1 | I63: 1 | J63: 3 | K63: 66 | L63: 渝北区银桦路125号圣地阳光 | M63: 学区：01龙溪学区，等级： 二级，是否普惠园：否 | N63: 民办 | O63: 二级 | P63: 否 | Q63: 5 | R63: 139 | S63: 50 | T63: 57
B64: 龙山街道 | C64: 01龙溪学区 | D64: 重庆市渝北区龙山七彩阳光春风幼儿园 | E64: 龙山七彩阳光春风幼儿园 | F64: 龙山七彩阳光春风幼儿园 | G64: 龙山七彩阳光春风幼儿园 | H64: 1 | I64: 1 | J64: 3 | K64: 67 | L64: 渝北区景观大道300号 | M64: 学区：01龙溪学区，等级：一级，是否普惠园：否 | N64: 民办 | O64: 一级 | P64: 否 | Q64: 5 | R64: 119 | S64: 50 | T64: 31
B65: 龙山街道 | C65: 01龙溪学区 | D65: 重庆市渝北区贝贝爱青幼儿园 | E65: 贝贝爱青幼儿园 | F65: 贝贝爱青幼儿园 | G65: 贝贝爱青幼儿园 | H65: 1 | I65: 1 | J65: 3 | K65: 68 | L65: 渝北区龙山街道两江春城 | M65: 学区：01龙溪学区，等级：二级，是否普惠园：否 | N65: 民办 | O65: 二级 | P65: 否 | Q65: 9 | R65: 217 | S65: 62 | T65: 76
B66: 龙山街道 | C66: 01龙溪学区 | D66: 重庆市渝北区桑尼朵儿幼儿园 | E66: 桑尼朵儿幼儿园 | F66: 桑尼朵儿幼儿园 | G66: 桑尼朵儿幼儿园 | H66: 1 | I66: 1 | J66: 3 | K66: 69 | L66: 渝北区天竺路343号附1号 | M66: 学区：01龙溪学区，等级：一级，是否普惠园：否 | N66: 民办 | O66: 一级 | P66: 否 | Q66: 7 | R66: 145 | S66: 63 | T66: 23
B67: 龙塔街道 | C67: 01龙溪学区 | D67: 重庆市渝北区龙塔实验学校附属幼儿园 | E67: 龙塔实验学校附属幼儿园 | F67: 龙塔实验学校附属幼儿园 | G67: 龙塔实验学校附属幼儿园 | H67: 1 | I67: 1 | J67: 2 | K67: 70 | L67: 渝北区龙塔街道紫园路188号 | M67: 学区：01龙溪学区，等级：一级，是否普惠园：是 | N67: 公办性质 | O67: 一级 | P67: 是 | Q67: 5 | R67: 149 | S67: 8 | T67: 131
B68: 龙塔街道 | C68: 01龙溪学区 | D68: 重庆市渝北区龙头寺小学校附属幼儿园 | E68: 龙头寺小学校附属幼儿园 | F68: 龙头寺小学校附属幼儿园 | G68: 龙头寺小学校附属幼儿园 | H68: 1 | I68: 1 | J68: 2 | K68: 71 | L68: 渝北区福缘路1号 | M68: 学区：01龙溪学区，等级：一级，是否普惠园：是 | N68: 公办性质 | O68: 一级 | P68: 是 | Q68: 9 | R68: 279 | S68: 148 | T68: 120
B69: 龙塔街道 | C69: 01龙溪学区 | D69: 重庆市渝北区森岭居幼儿园 | E69: 森岭居幼儿园 | F69: 森岭居幼儿园 | G69: 森岭居幼儿园 | H69: 1 | I69: 1 | J69: 3 | K69: 72 | L69: 渝北区龙塔街道龙头寺路50号 | M69: 学区：01龙溪学区，等级：一级，是否普惠园：是 | N69: 民办 | O69: 一级 | P69: 是 | Q69: 1 | R69: 5 | S69: 5 | T69: 0
B70: 龙塔街道 | C70: 01龙溪学区 | D70: 重庆市渝北区鲁能阳光幼儿园 | E70: 鲁能阳光幼儿园 | F70: 鲁能阳光幼儿园 | G70: 鲁能阳光幼儿园 | H70: 1 | I70: 1 | J70: 3 | K70: 73 | L70: 渝北区渝鲁大道680号鲁能星城12街区 | M70: 学区：01龙溪学区，等级：一级，是否普惠园：是 | N70: 民办 | O70: 一级 | P70: 是 | Q70: 7 | R70: 190 | S70: 56 | T70: 73
B71: 龙塔街道 | C71: 01龙溪学区 | D71: 重庆市渝北区天骄俊园幼儿园 | E71: 天骄俊园幼儿园 | F71: 天骄俊园幼儿园 | G71: 天骄俊园幼儿园 | H71: 1 | I71: 1 | J71: 3 | K71: 74 | L71: 渝北区龙溪街道红黄路97号 | M71: 学区：01龙溪学区，等级：一级，是否普惠园：是 | N71: 民办 | O71: 一级 | P71: 是 | Q71: 4 | R71: 101 | S71: 37 | T71: 21
B72: 龙塔街道 | C72: 01龙溪学区 | D72: 重庆市渝北区龙溪龙联幼儿园 | E72: 龙溪龙联幼儿园 | F72: 龙溪龙联幼儿园 | G72: 龙溪龙联幼儿园 | H72: 1 | I72: 1 | J72: 3 | K72: 75 | L72: 渝北区黄泥磅龙越路19号 | M72: 学区：01龙溪学区，等级：二级，是否普惠园：是 | N72: 民办 | O72: 二级 | P72: 是 | Q72: 8 | R72: 214 | S72: 67 | T72: 129
B73: 龙塔街道 | C73: 01龙溪学区 | D73: 重庆市渝北区龙溪智多星幼儿园 | E73: 龙溪智多星幼儿园 | F73: 龙溪智多星幼儿园 | G73: 龙溪智多星幼儿园 | H73: 1 | I73: 1 | J73: 3 | K73: 76 | L73: 渝北区龙塔街道五童街10号 | M73: 学区：01龙溪学区，等级：二级，是否普惠园：是 | N73: 民办 | O73: 二级 | P73: 是 | Q73: 2 | R73: 41 | S73: 10 | T73: 16
B74: 龙塔街道 | C74: 01龙溪学区 | D74: 重庆市渝北区金秋十月幼儿园 | E74: 金秋十月幼儿园 | F74: 金秋十月幼儿园 | G74: 金秋十月幼儿园 | H74: 1 | I74: 1 | J74: 3 | K74: 77 | L74: 渝北区龙塔街道黄泥塝紫康路号皇冠自由城1栋 | M74: 学区：01龙溪学区，等级：二级，是否普惠园：是 | N74: 民办 | O74: 二级 | P74: 是 | Q74: 4 | R74: 82 | S74: 27 | T74: 37
B75: 龙塔街道 | C75: 01龙溪学区 | D75: 重庆市渝北区宝宝乐幼儿园 | E75: 宝宝乐幼儿园 | F75: 宝宝乐幼儿园 | G75: 宝宝乐幼儿园 | H75: 1 | I75: 1 | J75: 3 | K75: 78 | L75: 渝北区龙塔街道五红路127号红地苑小区B栋二楼 | M75: 学区：01龙溪学区，等级：三级，是否普惠园：是 | N75: 民办 | O75: 三级 | P75: 是 | Q75: 3 | R75: 50 | S75: 15 | T75: 18
B76: 龙塔街道 | C76: 01龙溪学区 | D76: 重庆市渝北区快乐摇篮桐林逸景幼儿园 | E76: 快乐摇篮桐林逸景幼儿园 | F76: 快乐摇篮桐林逸景幼儿园 | G76: 快乐摇篮桐林逸景幼儿园 | H76: 1 | I76: 1 | J76: 3 | K76: 79 | L76: 渝北区龙塔街道上域街9号观恒·上域4幢 | M76: 学区：01龙溪学区，等级：一级，是否普惠园：是 | N76: 民办 | O76: 一级 | P76: 是 | Q76: 5 | R76: 81 | S76: 19 | T76: 30
B77: 龙塔街道 | C77: 01龙溪学区 | D77: 重庆市渝北区蕾兰阳光幼儿园 | E77: 蕾兰阳光幼儿园 | F77: 蕾兰阳光幼儿园 | G77: 蕾兰阳光幼儿园 | H77: 1 | I77: 1 | J77: 3 | K77: 80 | L77: 渝北区龙塔街道龙头寺路39号附9号 | M77: 学区：01龙溪学区，等级：一级，是否普惠园：是 | N77: 民办 | O77: 一级 | P77: 是 | Q77: 8 | R77: 225 | S77: 66 | T77: 108
B78: 龙塔街道 | C78: 01龙溪学区 | D78: 重庆市渝北区新城丽园幼儿园 | E78: 新城丽园幼儿园 | F78: 新城丽园幼儿园 | G78: 新城丽园幼儿园 | H78: 1 | I78: 1 | J78: 3 | K78: 81 | L78: 渝北区黄泥磅紫薇支路12号 | M78: 学区：01龙溪学区，等级：一级，是否普惠园：否 | N78: 民办 | O78: 一级 | P78: 否 | Q78: 5 | R78: 140 | S78: 50 | T78: 65
B79: 龙塔街道 | C79: 01龙溪学区 | D79: 重庆市渝北区巴蜀鲁能幼儿园 | E79: 巴蜀鲁能幼儿园 | F79: 巴蜀鲁能幼儿园 | G79: 巴蜀鲁能幼儿园 | H79: 1 | I79: 1 | J79: 3 | K79: 83 | L79: 渝北区渝鲁大道663号鲁能六街区18幢 | M79: 学区：01龙溪学区，等级：一级，是否普惠园：否 | N79: 民办 | O79: 一级 | P79: 否 | Q79: 7 | R79: 176 | S79: 55 | T79: 81
B80: 龙塔街道 | C80: 01龙溪学区 | D80: 重庆市渝北区笛迪·梧桐幼儿园 | E80: 笛迪·梧桐幼儿园 | F80: 笛迪·梧桐幼儿园 | G80: 笛迪·梧桐幼儿园 | H80: 1 | I80: 1 | J80: 3 | K80: 84 | L80: 渝北区龙塔街道兴盛支路8号 | M80: 学区：01龙溪学区，等级：一级，是否普惠园：否 | N80: 民办 | O80: 一级 | P80: 否 | Q80: 4 | R80: 79 | S80: 18 | T80: 13
B81: 龙塔街道 | C81: 01龙溪学区 | D81: 重庆市渝北区鲁能宜生幼儿园 | E81: 鲁能宜生幼儿园 | F81: 鲁能宜生幼儿园 | G81: 鲁能宜生幼儿园 | H81: 1 | I81: 1 | J81: 3 | K81: 85 | L81: 渝北区鲁能星城五街区龙塔街道尚品路777号附31号 | M81: 学区：01龙溪学区，等级：一级，是否普惠园：否 | N81: 民办 | O81: 一级 | P81: 否 | Q81: 9 | R81: 255 | S81: 87 | T81: 83
B82: 龙塔街道 | C82: 01龙溪学区 | D82: 重庆市渝北区爱霖九寨幼儿园 | E82: 爱霖九寨幼儿园 | F82: 爱霖九寨幼儿园 | G82: 爱霖九寨幼儿园 | H82: 1 | I82: 1 | J82: 3 | K82: 86 | L82: 渝北区渝鲁大道188号附38号 | M82: 学区：01龙溪学区，等级：一级，是否普惠园：否 | N82: 民办 | O82: 一级 | P82: 否 | Q82: 6 | R82: 122 | S82: 44 | T82: 60
B83: 龙塔街道 | C83: 01龙溪学区 | D83: 重庆市渝北区奇心乐佳华幼儿园 | E83: 奇心乐佳华幼儿园 | F83: 奇心乐佳华幼儿园 | G83: 奇心乐佳华幼儿园 | H83: 1 | I83: 1 | J83: 3 | K83: 87 | L83: 渝北区黄泥磅紫荆路1号 | M83: 学区：01龙溪学区，等级：一级，是否普惠园：是 | N83: 民办 | O83: 一级 | P83: 是 | Q83: 3 | R83: 56 | S83: 12 | T83: 20
B84: 龙塔街道 | C84: 01龙溪学区 | D84: 重庆市渝北区西米幼儿园 | E84: 西米幼儿园 | F84: 西米幼儿园 | G84: 西米幼儿园 | H84: 1 | I84: 1 | J84: 3 | K84: 88 | L84: 渝北区龙塔街道渝鲁大道666号鲁能星城七街区14幢 | M84: 学区：01龙溪学区，等级：二级，是否普惠园：否 | N84: 民办 | O84: 二级 | P84: 否 | Q84: 3 | R84: 60 | S84: 17 | T84: 35
B85: 龙塔街道 | C85: 01龙溪学区 | D85: 重庆市渝北区爱诺长安华都幼儿园 | E85: 爱诺长安华都幼儿园 | F85: 爱诺长安华都幼儿园 | G85: 爱诺长安华都幼儿园 | H85: 1 | I85: 1 | J85: 3 | K85: 89 | L85: 渝北区五红路66号长安华都小区内 | M85: 学区：01龙溪学区，等级：二级，是否普惠园：否 | N85: 民办 | O85: 二级 | P85: 否 | Q85: 6 | R85: 109 | S85: 37 | T85: 29
B86: 龙塔街道 | C86: 01龙溪学区 | D86: 重庆市渝北区公园王府幼儿园 | E86: 公园王府幼儿园 | F86: 公园王府幼儿园 | G86: 公园王府幼儿园 | H86: 1 | I86: 1 | J86: 3 | K86: 90 | L86: 渝北区景园大道18号金科公园王府7栋 | M86: 学区：01龙溪学区，等级：二级，是否普惠园：否 | N86: 民办 | O86: 二级 | P86: 否 | Q86: 6 | R86: 108 | S86: 38 | T86: 32
B87: 龙塔街道 | C87: 01龙溪学区 | D87: 重庆市渝北区佳华幼儿园 | E87: 佳华幼儿园 | F87: 佳华幼儿园 | G87: 佳华幼儿园 | H87: 1 | I87: 1 | J87: 3 | K87: 91 | L87: 渝北区紫荆路156号佳华世纪新城E区二期第6栋 | M87: 学区：01龙溪学区，等级：一级，是否普惠园：是 | N87: 民办 | O87: 一级 | P87: 是 | Q87: 8 | R87: 171 | S87: 80 | T87: 35
B88: 龙塔街道 | C88: 01龙溪学区 | D88: 重庆市渝北区金德凯顿幼儿园 | E88: 金德凯顿幼儿园 | F88: 金德凯顿幼儿园 | G88: 金德凯顿幼儿园 | H88: 1 | I88: 1 | J88: 3 | K88: 92 | L88: 渝北区龙塔街道渝鲁大道777号鲁能星城一街区17幢幼儿园 | M88: 学区：01龙溪学区，等级：预一级，是否普惠园：是 | N88: 民办 | O88: 预一级 | P88: 是 | Q88: 9 | R88: 184 | S88: 41 | T88: 36
B89: 龙塔街道 | C89: 01龙溪学区 | D89: 重庆市渝北区生生高瞻幼儿园 | E89: 生生高瞻幼儿园 | F89: 生生高瞻幼儿园 | G89: 生生高瞻幼儿园 | H89: 1 | I89: 1 | J89: 3 | K89: 93 | L89: 渝北区余松路299号 | M89: ="学区："&C89&"，等级："&O89&"，是否普惠园："&P89&"，（世纪宝贝幼儿园更名）" -> 学区：01龙溪学区，等级：二级，是否普惠园：是，（世纪宝贝幼儿园更名） | N89: 民办 | O89: 二级 | P89: 是 | R89: 117 | S89: 36 | T89: 34
B90: 双龙湖街道 | C90: 02两路学区 | D90: 重庆市渝北区城南幼儿园 | E90: 城南幼儿园 | F90: 城南幼儿园 | G90: 城南幼儿园 | H90: 1 | I90: 1 | J90: 1 | K90: 157 | L90: 渝北区双龙湖街道北湖路140号 | M90: ="学区："&C90&"，等级："&O90&"，是否普惠园："&P90 -> 学区：02两路学区，等级：二级，是否普惠园：是 | N90: 公办 | O90: 二级 | P90: 是 | Q90: 4 | R90: 100 | S90: 26 | T90: 27
B91: 双龙湖街道 | C91: 02两路学区 | D91: 重庆市渝北区城南幼儿园飞湖园 | E91: 城南幼儿园飞湖园 | F91: 城南幼儿园飞湖园 | G91: 城南幼儿园飞湖园 | H91: 1 | I91: 1 | J91: 1 | K91: 158 | L91: 渝北区双龙湖街道龙永街28号 | M91: 学区：02两路学区，等级：一级，是否普惠园：是 | N91: 公办 | O91: 一级 | P91: 是 | Q91: 7 | R91: 124 | S91: 43 | T91: 45
B92: 双龙湖街道 | C92: 02两路学区 | D92: 重庆市渝北区城南幼儿园翠湖园 | E92: 城南幼儿园翠湖园 | F92: 城南幼儿园翠湖园 | G92: 城南幼儿园翠湖园 | H92: 1 | I92: 1 | J92: 1 | K92: 159 | L92: 渝北区双龙湖街道翠湖路一巷 | M92: 学区：02两路学区，等级：二级，是否普惠园：是 | N92: 公办 | O92: 二级 | P92: 是 | Q92: 2 | R92: 28 | S92: 12 | T92: 16
B93: 双龙湖街道 | C93: 02两路学区 | D93: 重庆市渝北区同茂小学校附属幼儿园 | E93: 同茂小学校附属幼儿园 | F93: 同茂小学校附属幼儿园 | G93: 同茂小学校附属幼儿园 | H93: 1 | I93: 1 | J93: 2 | K93: 162 | L93: 渝北区双龙湖街道同茂小学内 | M93: 学区：02两路学区，等级：一级，是否普惠园：是 | N93: 公办性质 | O93: 一级 | P93: 是 | Q93: 6 | R93: 204 | S93: 72 | T93: 76
B94: 双龙湖街道 | C94: 02两路学区 | D94: 重庆市渝北区港城幼儿园 | E94: 港城幼儿园 | F94: 港城幼儿园 | G94: 港城幼儿园 | H94: 1 | I94: 1 | J94: 3 | K94: 163 | L94: 渝北区仙桃街道兰馨大道18号 | M94: 学区：02两路学区，等级：一级，是否普惠园：是 | N94: 民办 | O94: 一级 | P94: 是 | Q94: 8 | R94: 253 | S94: 68 | T94: 117
B95: 双龙湖街道 | C95: 02两路学区 | D95: 重庆市渝北区双龙湖思艺幼儿园 | E95: 双龙湖思艺幼儿园 | F95: 双龙湖思艺幼儿园 | G95: 双龙湖思艺幼儿园 | H95: 1 | I95: 1 | J95: 3 | K95: 164 | L95: 渝北区翠湖路三巷250号 | M95: 学区：02两路学区，等级：二级，是否普惠园：是 | N95: 民办 | O95: 二级 | P95: 是 | Q95: 5 | R95: 134 | S95: 47 | T95: 58
B96: 双龙湖街道 | C96: 02两路学区 | D96: 重庆市渝北区双龙湖佳家幼儿园 | E96: 双龙湖佳家幼儿园 | F96: 双龙湖佳家幼儿园 | G96: 双龙湖佳家幼儿园 | H96: 1 | I96: 1 | J96: 3 | K96: 165 | L96: 渝北区双龙湖凯歌路后街4号 | M96: 学区：02两路学区，等级：二级，是否普惠园：是 | N96: 民办 | O96: 二级 | P96: 是 | Q96: 5 | R96: 148 | S96: 48 | T96: 48
B97: 双龙湖街道 | C97: 02两路学区 | D97: 重庆市渝北区双龙湖园丁村幼儿园 | E97: 双龙湖园丁村幼儿园 | F97: 双龙湖园丁村幼儿园 | G97: 双龙湖园丁村幼儿园 | H97: 1 | I97: 1 | J97: 3 | K97: 166 | L97: 渝北区龙平街5号1幢单元1-1-3 | M97: 学区：02两路学区，等级：二级，是否普惠园：是 | N97: 民办 | O97: 二级 | P97: 是 | Q97: 3 | R97: 65 | S97: 26 | T97: 14
B98: 双龙湖街道 | C98: 02两路学区 | D98: 重庆市渝北区双龙湖华都湖滨幼儿园 | E98: 双龙湖华都湖滨幼儿园 | F98: 双龙湖华都湖滨幼儿园 | G98: 双龙湖华都湖滨幼儿园 | H98: 1 | I98: 1 | J98: 3 | K98: 167 | L98: 渝北区双龙大道绣湖路21号 | M98: 学区：02两路学区，等级：二级，是否普惠园：是 | N98: 民办 | O98: 二级 | P98: 是 | Q98: 5 | R98: 178 | S98: 35 | T98: 108
B99: 双龙湖街道 | C99: 02两路学区 | D99: 重庆市渝北区双龙湖艺苗幼儿园 | E99: 双龙湖艺苗幼儿园 | F99: 双龙湖艺苗幼儿园 | G99: 双龙湖艺苗幼儿园 | H99: 1 | I99: 1 | J99: 3 | K99: 168 | L99: 渝北区双龙湖街道龙兴街85号 | M99: 学区：02两路学区，等级：二级，是否普惠园：是 | N99: 民办 | O99: 二级 | P99: 是 | Q99: 6 | R99: 168 | S99: 47 | T99: 81
B100: 双龙湖街道 | C100: 02两路学区 | D100: 重庆市渝北区星朗幼儿园 | E100: 星朗幼儿园 | F100: 星朗幼儿园 | G100: 星朗幼儿园 | H100: 1 | I100: 1 | J100: 3 | K100: 169 | L100: 渝北区双龙西路149号 | M100: 学区：02两路学区，等级：二级，是否普惠园：是 | N100: 民办 | O100: 二级 | P100: 是 | Q100: 4 | R100: 113 | S100: 30 | T100: 56
B101: 双龙湖街道 | C101: 02两路学区 | D101: 重庆市渝北区阳光宝童幼儿园 | E101: 阳光宝童幼儿园 | F101: 阳光宝童幼儿园 | G101: 阳光宝童幼儿园 | H101: 1 | I101: 1 | J101: 3 | K101: 170 | L101: 渝北区双龙湖街道银鑫路7号 | M101: 学区：02两路学区，等级：二级，是否普惠园：是 | N101: 民办 | O101: 二级 | P101: 是 | Q101: 6 | R101: 199 | S101: 39 | T101: 128
B102: 双龙湖街道 | C102: 02两路学区 | D102: 重庆市渝北区紫台金宝贝幼儿园 | E102: 紫台金宝贝幼儿园 | F102: 紫台金宝贝幼儿园 | G102: 紫台金宝贝幼儿园 | H102: 1 | I102: 1 | J102: 3 | K102: 171 | L102: 渝北区双龙湖街道同茂大道14号紫台春千集B商业 | M102: 学区：02两路学区，等级：二级，是否普惠园：是 | N102: 民办 | O102: 二级 | P102: 是 | Q102: 5 | R102: 123 | S102: 41 | T102: 48
B103: 双龙湖街道 | C103: 02两路学区 | D103: 重庆市渝北区双龙湖小不点幼儿园 | E103: 双龙湖小不点幼儿园 | F103: 双龙湖小不点幼儿园 | G103: 双龙湖小不点幼儿园 | H103: 1 | I103: 1 | J103: 3 | K103: 172 | L103: 渝北区双龙湖一支路龙裕街58号 | M103: 学区：02两路学区，等级：二级，是否普惠园：是 | N103: 民办 | O103: 二级 | P103: 是 | Q103: 2 | R103: 27 | S103: 8 | T103: 10
B104: 双龙湖街道 | C104: 02两路学区 | D104: 重庆市渝北区双龙湖老干部活动中心幼儿园 | E104: 双龙湖老干部活动中心幼儿园 | F104: 双龙湖老干部活动中心幼儿园 | G104: 双龙湖老干部活动中心幼儿园 | H104: 1 | I104: 1 | J104: 3 | K104: 173 | L104: 渝北区双龙湖龙永街28号 | M104: 学区：02两路学区，等级：三级，是否普惠园：是 | N104: 民办 | O104: 三级 | P104: 是 | Q104: 3 | R104: 50 | S104: 8 | T104: 22
B105: 双龙湖街道 | C105: 02两路学区 | D105: 重庆市渝北区双龙湖育苗幼儿园 | E105: 双龙湖育苗幼儿园 | F105: 双龙湖育苗幼儿园 | G105: 双龙湖育苗幼儿园 | H105: 1 | I105: 1 | J105: 3 | K105: 174 | L105: 渝北区双龙湖街道龙盛街90号 | M105: 学区：02两路学区，等级：三级，是否普惠园：是 | N105: 民办 | O105: 三级 | P105: 是 | Q105: 4 | R105: 108 | S105: 54 | T105: 29
B106: 双龙湖街道 | C106: 02两路学区 | D106: 重庆市渝北区双龙湖天寨幼儿园 | E106: 双龙湖天寨幼儿园 | F106: 双龙湖天寨幼儿园 | G106: 双龙湖天寨幼儿园 | H106: 1 | I106: 1 | J106: 3 | K106: 175 | L106: 渝北区五星路162号 | M106: 学区：02两路学区，等级：三级，是否普惠园：是 | N106: 民办 | O106: 三级 | P106: 是 | Q106: 2 | R106: 37 | S106: 12 | T106: 10
B107: 双龙湖街道 | C107: 02两路学区 | D107: 重庆市渝北区双龙湖康利幼儿园 | E107: 双龙湖康利幼儿园 | F107: 双龙湖康利幼儿园 | G107: 双龙湖康利幼儿园 | H107: 1 | I107: 1 | J107: 3 | K107: 176 | L107: 渝北区双龙湖龙康街124号 | M107: 学区：02两路学区，等级：三级，是否普惠园：是 | N107: 民办 | O107: 三级 | P107: 是 | Q107: 1 | R107: 16 | S107: 6 | T107: 3
B108: 双龙湖街道 | C108: 02两路学区 | D108: 重庆市渝北区双龙湖花蕾幼儿园 | E108: 双龙湖花蕾幼儿园 | F108: 双龙湖花蕾幼儿园 | G108: 双龙湖花蕾幼儿园 | H108: 1 | I108: 1 | J108: 3 | K108: 177 | L108: 渝北区双龙湖龙升街114# | M108: 学区：02两路学区，等级：三级，是否普惠园：是 | N108: 民办 | O108: 三级 | P108: 是 | Q108: 1 | R108: 17 | S108: 7 | T108: 2
B109: 双龙湖街道 | C109: 02两路学区 | D109: 重庆市渝北区光彩幼儿园 | E109: 光彩幼儿园 | F109: 光彩幼儿园 | G109: 光彩幼儿园 | H109: 1 | I109: 1 | J109: 3 | K109: 179 | L109: 渝北区双龙湖街道五星路三巷18号 | M109: 学区：02两路学区，等级：三级，是否普惠园：是 | N109: 民办 | O109: 三级 | P109: 是 | Q109: 3 | R109: 21 | S109: 12 | T109: 5
B110: 双龙湖街道 | C110: 02两路学区 | D110: 重庆市渝北区双龙湖南灵幼儿园 | E110: 双龙湖南灵幼儿园 | F110: 双龙湖南灵幼儿园 | G110: 双龙湖南灵幼儿园 | H110: 1 | I110: 1 | J110: 3 | K110: 180 | L110: 渝北区双龙湖龙康街161号 | M110: 学区：02两路学区，等级：三级，是否普惠园：是 | N110: 民办 | O110: 三级 | P110: 是 | Q110: 3 | R110: 26 | S110: 5 | T110: 16
B111: 双龙湖街道 | C111: 02两路学区 | D111: 重庆市渝北区双龙湖红孩儿幼儿园 | E111: 双龙湖红孩儿幼儿园 | F111: 双龙湖红孩儿幼儿园 | G111: 双龙湖红孩儿幼儿园 | H111: 1 | I111: 1 | J111: 3 | K111: 181 | L111: 渝北区双龙湖街道龙平街一巷43号 | M111: 学区：02两路学区，等级：三级，是否普惠园：是 | N111: 民办 | O111: 三级 | P111: 是 | Q111: 2 | R111: 37 | S111: 14 | T111: 15
B112: 双龙湖街道 | C112: 02两路学区 | D112: 重庆市渝北区双龙湖蓝天贝贝幼儿园 | E112: 双龙湖蓝天贝贝幼儿园 | F112: 双龙湖蓝天贝贝幼儿园 | G112: 双龙湖蓝天贝贝幼儿园 | H112: 1 | I112: 1 | J112: 3 | K112: 182 | L112: 渝北区双龙湖龙平街三巷检察院家属院B栋9-12号 | M112: 学区：02两路学区，等级：三级，是否普惠园：是 | N112: 民办 | O112: 三级 | P112: 是 | Q112: 3 | R112: 46 | S112: 9 | T112: 30
B113: 双龙湖街道 | C113: 02两路学区 | D113: 重庆市渝北区双龙湖苗苗幼儿园 | E113: 双龙湖苗苗幼儿园 | F113: 双龙湖苗苗幼儿园 | G113: 双龙湖苗苗幼儿园 | H113: 1 | I113: 1 | J113: 3 | K113: 184 | L113: 渝北区双龙湖街道五星路4巷19号 | M113: 学区：02两路学区，等级：三级，是否普惠园：是 | N113: 民办 | O113: 三级 | P113: 是 | Q113: 4 | R113: 92 | S113: 26 | T113: 37
B114: 双龙湖街道 | C114: 02两路学区 | D114: 重庆市渝北区双龙湖彩虹幼儿园 | E114: 双龙湖彩虹幼儿园 | F114: 双龙湖彩虹幼儿园 | G114: 双龙湖彩虹幼儿园 | H114: 1 | I114: 1 | J114: 3 | K114: 185 | L114: 渝北区龙康街161号3-3-1-2 | M114: 学区：02两路学区，等级：三级，是否普惠园：是 | N114: 民办 | O114: 三级 | P114: 是 | Q114: 1 | R114: 21 | S114: 7 | T114: 11
B115: 双龙湖街道 | C115: 02两路学区 | D115: 重庆市渝北区双龙湖群欣幼儿园 | E115: 双龙湖群欣幼儿园 | F115: 双龙湖群欣幼儿园 | G115: 双龙湖群欣幼儿园 | H115: 1 | I115: 1 | J115: 3 | K115: 186 | L115: 渝北区渝湖路56号 | M115: 学区：02两路学区，等级：三级，是否普惠园：是 | N115: 民办 | O115: 三级 | P115: 是 | Q115: 3 | R115: 58 | S115: 25 | T115: 26
B116: 双龙湖街道 | C116: 02两路学区 | D116: 重庆市渝北区绿梦幼儿园 | E116: 绿梦幼儿园 | F116: 绿梦幼儿园 | G116: 绿梦幼儿园 | H116: 1 | I116: 1 | J116: 3 | K116: 187 | L116: 渝北区双龙大道474号 | M116: 学区：02两路学区，等级：二级，是否普惠园：是 | N116: 民办 | O116: 二级 | P116: 是 | Q116: 3 | R116: 30 | S116: 8 | T116: 10
B117: 双龙湖街道 | C117: 02两路学区 | D117: 重庆市渝北区鹿山村宝贝幼儿园 | E117: 鹿山村宝贝幼儿园 | F117: 鹿山村宝贝幼儿园 | G117: 鹿山村宝贝幼儿园 | H117: 1 | I117: 1 | J117: 3 | K117: 188 | L117: 渝北区双龙湖街道观音岩路168号格林上城小区 | M117: 学区：02两路学区，等级：三级，是否普惠园：是 | N117: 民办 | O117: 三级 | P117: 是 | Q117: 4 | R117: 74 | S117: 22 | T117: 46
B118: 双龙湖街道 | C118: 02两路学区 | D118: 重庆市渝北区水木香山贝乐坊幼儿园 | E118: 水木香山贝乐坊幼儿园 | F118: 水木香山贝乐坊幼儿园 | G118: 水木香山贝乐坊幼儿园 | H118: 1 | I118: 1 | J118: 3 | K118: 189 | L118: 渝北区双龙湖街道竹音支路18号34栋1-1、2-1 | M118: 学区：02两路学区，等级：一级，是否普惠园：是 | N118: 民办 | O118: 一级 | P118: 是 | Q118: 5 | R118: 125 | S118: 28 | T118: 56
B119: 双龙湖街道 | C119: 02两路学区 | D119: 重庆市渝北区莱恩幼儿园 | E119: 莱恩幼儿园 | F119: 莱恩幼儿园 | G119: 莱恩幼儿园 | H119: 1 | I119: 1 | J119: 3 | K119: 190 | L119: 渝北区空港新城兰馨大道18号附26号 | M119: 学区：02两路学区，等级：二级，是否普惠园：否 | N119: 民办 | O119: 二级 | P119: 否 | Q119: 3 | R119: 42 | S119: 13 | T119: 15
B120: 双龙湖街道 | C120: 02两路学区 | D120: 重庆市渝北区润丰水尚幼儿园 | E120: 润丰水尚幼儿园 | F120: 润丰水尚幼儿园 | G120: 润丰水尚幼儿园 | H120: 1 | I120: 1 | J120: 3 | K120: 191 | L120: 重庆市渝北区兰桂大道2号18幢 | M120: 学区：02两路学区，等级：一级，是否普惠园：是 | N120: 民办 | O120: 一级 | P120: 是 | Q120: 11 | R120: 315 | S120: 146 | T120: 52
B121: 仙桃街道 | C121: 02两路学区 | D121: 重庆市渝北区公园北路幼儿园 | E121: 公园北路幼儿园 | F121: 公园北路幼儿园 | G121: 公园北路幼儿园 | H121: 1 | I121: 1 | J121: 1 | K121: 192 | L121: 渝北区仙桃街道中央公园北路8号 | M121: 学区：02两路学区，等级：一级，是否普惠园：是 | N121: 公办 | O121: 一级 | P121: 是 | Q121: 15 | R121: 483 | S121: 157 | T121: 182
B122: 仙桃街道 | C122: 02两路学区 | D122: 重庆市渝北区腾芳幼儿园桂馥园 | E122: 腾芳幼儿园桂馥园 | F122: 腾芳幼儿园桂馥园 | G122: 腾芳幼儿园桂馥园 | H122: 1 | I122: 1 | J122: 1 | K122: 195 | L122: 渝北区仙桃街道桂馥二支路18号 | M122: 学区：02两路学区，等级：一级，是否普惠园：是 | N122: 公办 | O122: 一级 | P122: 是 | Q122: 8 | R122: 252 | S122: 97 | T122: 58
B123: 仙桃街道 | C123: 02两路学区 | D123: 重庆市渝北区空港佳园幼儿园学盛园（G园） | E123: 空港佳园幼儿园学盛园（G园） | F123: 空港佳园幼儿园学盛园（G园） | G123: 空港佳园幼儿园学盛园（G园） | H123: 1 | I123: 1 | J123: 1 | K123: 196 | L123: 渝北区仙桃街道丛岩一路17号 | M123: 学区：02两路学区，等级：一级，是否普惠园：是 | N123: 公办 | O123: 一级 | P123: 是 | Q123: 8 | R123: 252 | S123: 65 | T123: 69
B124: 仙桃街道 | C124: 02两路学区 | D124: 重庆市渝北区空港佳园幼儿园丛岩园（E园） | E124: 空港佳园幼儿园丛岩园（E园） | F124: 空港佳园幼儿园丛岩园（E园） | G124: 空港佳园幼儿园丛岩园（E园） | H124: 1 | I124: 1 | J124: 1 | K124: 197 | L124: 渝北区仙桃街道丛岩一路1号 | M124: 学区：02两路学区，等级：一级，是否普惠园：是 | N124: 公办 | O124: 一级 | P124: 是 | Q124: 5 | R124: 156 | S124: 92 | T124: 62
B125: 仙桃街道 | C125: 02两路学区 | D125: 重庆市渝北区空港佳园第二幼儿园 | E125: 空港佳园第二幼儿园 | F125: 空港佳园第二幼儿园 | G125: 空港佳园第二幼儿园 | H125: 1 | I125: 1 | J125: 1 | K125: 198 | L125: 渝北区仙桃街道从岩二路4号 | M125: 学区：02两路学区，等级：一级，是否普惠园：是 | N125: 公办 | O125: 一级 | P125: 是 | Q125: 9 | R125: 316 | S125: 105 | T125: 116
B126: 仙桃街道 | C126: 02两路学区 | D126: 重庆市渝北区同茂幼儿园 | E126: 同茂幼儿园 | F126: 同茂幼儿园 | G126: 同茂幼儿园 | H126: 1 | I126: 1 | J126: 1 | K126: 199 | L126: 渝北区仙桃街道睦邻路 | M126: 学区：02两路学区，等级：一级，是否普惠园：是 | N126: 公办 | O126: 一级 | P126: 是 | Q126: 13 | R126: 423 | S126: 156 | T126: 137
B127: 仙桃街道 | C127: 02两路学区 | D127: 重庆市渝北庆龄幼儿园秋成园 | E127: 龄幼儿园秋成园 | F127: 龄幼儿园秋成园 | G127: 龄幼儿园秋成园 | H127: 1 | I127: 1 | J127: 1 | K127: 200 | L127: 渝北区仙桃街道秋成大道180号 | M127: 学区：02两路学区，等级：预一级，是否普惠园：是 | N127: 公办 | O127: 预一级 | P127: 是 | Q127: 12 | R127: 377 | S127: 132 | T127: 81
B128: 仙桃街道 | C128: 02两路学区 | D128: 重庆市渝北区盛景天下小学校附属幼儿园 | E128: 盛景天下小学校附属幼儿园 | F128: 盛景天下小学校附属幼儿园 | G128: 盛景天下小学校附属幼儿园 | H128: 1 | I128: 1 | J128: 2 | K128: 201 | L128: 渝北区兰馨大道16号1栋 | M128: 学区：02两路学区，等级：一级，是否普惠园：是 | N128: 公办性质 | O128: 一级 | P128: 是 | Q128: 8 | R128: 222 | S128: 88 | T128: 64
B129: 仙桃街道 | C129: 02两路学区 | D129: 重庆市渝北区空港新城小学附属幼儿园 | E129: 空港新城小学附属幼儿园 | F129: 空港新城小学附属幼儿园 | G129: 空港新城小学附属幼儿园 | H129: 1 | I129: 1 | J129: 2 | K129: 202 | L129: 渝北区仙桃街道桂馥二支路9号 | M129: 学区：02两路学区，等级：二级，是否普惠园：是 | N129: 公办性质 | O129: 二级 | P129: 是 | Q129: 7 | R129: 210 | S129: 60 | T129: 87
B130: 仙桃街道 | C130: 02两路学区 | D130: 重庆市渝北区数据谷小学校附属幼儿园 | E130: 数据谷小学校附属幼儿园 | F130: 数据谷小学校附属幼儿园 | G130: 数据谷小学校附属幼儿园 | H130: 1 | I130: 1 | J130: 2 | K130: 203 | L130: 渝北区仙桃街道数据谷中路52号 | M130: 学区：02两路学区，等级：一级，是否普惠园：是 | N130: 公办性质 | O130: 一级 | P130: 是 | Q130: 15 | R130: 452 | S130: 140 | T130: 167
B131: 仙桃街道 | C131: 02两路学区 | D131: 重庆市渝北区英华贝贝空港幼儿园 | E131: 英华贝贝空港幼儿园 | F131: 英华贝贝空港幼儿园 | G131: 英华贝贝空港幼儿园 | H131: 1 | I131: 1 | J131: 3 | K131: 204 | L131: 渝北区双龙湖桂馥大道6号 | M131: 学区：02两路学区，等级：一级，是否普惠园：是 | N131: 民办 | O131: 一级 | P131: 是 | Q131: 4 | R131: 120 | S131: 18 | T131: 40
B132: 仙桃街道 | C132: 02两路学区 | D132: 重庆市渝北区好莱坞幼儿园 | E132: 好莱坞幼儿园 | F132: 好莱坞幼儿园 | G132: 好莱坞幼儿园 | H132: 1 | I132: 1 | J132: 3 | K132: 205 | L132: 渝北区兰馨大道77号汇祥好莱坞 | M132: 学区：02两路学区，等级：一级，是否普惠园：是 | N132: 民办 | O132: 一级 | P132: 是 | Q132: 7 | R132: 190 | S132: 59 | T132: 60
B133: 仙桃街道 | C133: 02两路学区 | D133: 重庆市渝北区盛景天下喜洋洋幼儿园 | E133: 盛景天下喜洋洋幼儿园 | F133: 盛景天下喜洋洋幼儿园 | G133: 盛景天下喜洋洋幼儿园 | H133: 1 | I133: 1 | J133: 3 | K133: 206 | L133: 渝北区双龙湖兰馨大道12号17幢负一层 | M133: 学区：02两路学区，等级：二级，是否普惠园：是 | N133: 民办 | O133: 二级 | P133: 是 | Q133: 6 | R133: 126 | S133: 37 | T133: 61
B134: 仙桃街道 | C134: 02两路学区 | D134: 重庆市渝北区迪思尼幼儿园 | E134: 迪思尼幼儿园 | F134: 迪思尼幼儿园 | G134: 迪思尼幼儿园 | H134: 1 | I134: 1 | J134: 3 | K134: 207 | L134: 渝北区兰馨大道10号锦域蓝湾13幢3-35号 | M134: 学区：02两路学区，等级：二级，是否普惠园：是 | N134: 民办 | O134: 二级 | P134: 是 | Q134: 4 | R134: 102 | S134: 21 | T134: 54
B135: 仙桃街道 | C135: 02两路学区 | D135: 重庆市渝北区七色幼儿园 | E135: 七色幼儿园 | F135: 七色幼儿园 | G135: 七色幼儿园 | H135: 1 | I135: 1 | J135: 3 | K135: 208 | L135: 渝北区兰馨大道10号锦域蓝湾小区12-1-14 | M135: 学区：02两路学区，等级：二级，是否普惠园：是 | N135: 民办 | O135: 二级 | P135: 是 | Q135: 6 | R135: 124 | S135: 48 | T135: 40
